Workbook

Sheet 
C4: Stormwater Quality In-Lieu Contributions Model
C14: Contact:
D15: Jeremy Cheesman | jcheesman@marsdenjacob.com.au | 0414 765 739
D16: Kanchana Karunaratna | kanchana@marsdenjacob.com.au | 0432 557 188
D17: Jacob Helgeby-Cook | jhelgeby-cook@marsdenjacob.com.au | 0401 538 613
C20: Date: 22/4/2025

Sheet Dashboard
B2: Stormwater In-Lieu Scheme fee calculator
C4: Hume City Council | G4: Councils with bespoke data: | I4: Darebin City Council, Greater Bendigo City Council, Greater Geelong City Council, Moonee Valley City Council, Maroondah City Council, Yarra City Council, Hume City Council - Non Residential, Merri-Bek, Frankston City Council
B7: Model Inputs | L7: Model Outputs
C9: Municipality | E9: Start year | G9: 'Bespoke' or 'Dataset Average' Analysis | I9: Nitrogen from impervious area | M9: Developer Vs Council Asset Cost | U9: Average site $/kg Treated nitrogen across municipality postcodes
C10: Frankston City Council | E10: 2025 | G10: Bespoke | I10: 1
I11: ='2. Assumptions'!D35 -> 0.001663333333 | J11: kg/m2/annum
C12: Coucil Asset List Input
C13: Project Priority | D13: Project Name | E13: Asset Land Size (m2) | F13: Capital Costs | G13: Annual Maintenance costs | H13: Annual harvest (ML/yr) | I13: Annual TN removal (kg/yr)
C14: 1 | D14: Asset 1 | E14: 450 | F14: 454330.5 | G14: 5495 | I14: 109
C15: 2 | D15: Asset 2 | E15: 1000 | F15: 1316537.3 | G15: 13747 | H15: 10.7 | I15: 430
C16: 3 | D16: Asset 3 | E16: 1000 | F16: 981084 | G16: 9792 | I16: 380
C17: 4 | D17: Asset 4 | E17: 900 | F17: 1003779.4 | G17: 9011 | I17: 226
C18: 5 | D18: Asset 5 | E18: 500 | F18: 714672.4 | G18: 5886 | I18: 112
C19: 6 | D19: Asset 6 | E19: 450 | F19: 1815227.7 | G19: 13023 | H19: 11.4 | I19: 100
C20: 7 | D20: Asset 7 | E20: 3000 | F20: 1545144.9 | G20: 11328 | I20: 78
C21: 8 | D21: Asset 8 | E21: 2400 | F21: 1210327.3 | G21: 10148 | I21: 60
C22: 9 | D22: Asset 9 | E22: 3000 | F22: 1807664.3 | G22: 15284 | H22: 5.8 | I22: 70
C23: 10 | D23: Asset 10 | E23: 720 | F23: 702900 | G23: 9500 | H23: 0 | I23: 104
C24: 11 | D24: Asset 11 | E24: 600 | F24: 619800 | G24: 8300 | H24: 0 | I24: 90
C25: 12 | D25: Asset 12 | E25: 750 | F25: 730300 | G25: 9900 | H25: 0 | I25: 104
C26: 13 | D26: Asset 13 | E26: 1100 | F26: 1236200 | G26: 12900 | H26: 0 | I26: 163
C27: 14 | D27: Asset 14 | E27: 750 | F27: 738600 | G27: 10000 | H27: 0 | I27: 103
C28: 15 | D28: Asset 15 | E28: 900 | F28: 1052300 | G28: 10900 | H28: 0 | I28: 130
C29: 16 | D29: Asset 16 | E29: 300 | F29: 385600 | G29: 5100 | H29: 0 | I29: 49
C30: 17 | D30: Asset 17 | E30: 425 | F30: 334320 | G30: 7200 | H30: 0 | I30: 49
C31: 18 | D31: Asset 18 | E31: 500 | F31: 586800 | G31: 7700 | H31: 0 | I31: 70
C32: 19 | D32: Asset 19 | E32: 640 | F32: 674600 | G32: 9000 | H32: 0 | I32: 79
C33: 20 | D33: Asset 20 | E33: 550 | F33: 605900 | G33: 8000 | H33: 0 | I33: 70
C35: Dwelling types | D35: Current Dwelling/lot Number | E35: Average Lots Added Annualy | F35: Calculated Average annual growth rate (%) | G35: Benchmark Average annual growth rate (%)
C36: Separate House | D36: 100000 | E36: 100 | F36: ='5. Dwelling Forecast'!D115 -> 0.0009896481155 | G36: ='5. Dwelling Forecast'!D103 -> 0.005560423985
C37: Medium Density | D37: 500 | E37: 100 | F37: ='5. Dwelling Forecast'!D116 -> 0.08050392649 | G37: ='5. Dwelling Forecast'!D104 -> 0.01612512586
C38: High Density | D38: ='5. Dwelling Forecast'!Z57 -> 587 | E38: 20 | F38: ='5. Dwelling Forecast'!D117 -> 0.02576073602 | G38: ='5. Dwelling Forecast'!D105 -> 0.06990716621
C39: Industrial | D39: 2500 | E39: 20 | F39: ='5. Dwelling Forecast'!D118 -> 0.0007243867244 | G39: ='5. Dwelling Forecast'!D106 -> 0
C40: Commercial | D40: 2000 | E40: 20 | F40: ='5. Dwelling Forecast'!D119 -> 0.009079783297 | G40: ='5. Dwelling Forecast'!D107 -> 0
B41: Stormwater Quality In-Lieu Rate | L41: In-Lieu Fee Function
C43: The stormwater quality in lieu-rate is the median estimated cost value for the selected municipality based on Marsden Jacob Associates cost database and developer assets as reported within their STORM report.
C44: Selecting a factor of 100% selects the median value, whereas any amount below this 100% will discount the offset rate - thereby setting the price more competitively
E46: Calculated Offset Rate | F46: ='8. Developer Cost Outputs'!E11*$F$49 -> 68.72395767 | G46: $/sqm of impervious area
E49: Factor to apply | F49: 1 | G49: % of calculated value
E52: Developer Sample Analysis | F52: Number | G52: %
E53: Total Developer Sample | F53: ='10. On-lot Curve'!O3 -> 152 | G53: ='10. On-lot Curve'!P3 -> 1
E54: Sample Above Curve | F54: ='10. On-lot Curve'!O4 -> 76 | G54: ='10. On-lot Curve'!P4 -> 0.5
E55: Sample Below Curve | F55: ='10. On-lot Curve'!O5 -> 76 | G55: ='10. On-lot Curve'!P5 -> 0.5
E58: Land Cost Analysis | F58: $ per sqm
E59: Developable Land Cost | F59: 1605 | G59: Source: https://www.land.vic.gov.au/valuations/resources-and-reports/revaluation-2023-outcomes
E60: Non developable Council Land | F60: 150 | G60: Source
B77: All amounts in AUD
B78: Developer On-Lot treatment - Sample Analysis Summary
C80: =" "&IF($G$10="Bespoke",$C$10,"Dataset Average") -> Frankston City Council | K80: Development Type | L80: Number of projects | M80: Av Impervious Area Per dwelling | N80: Life cycle cost Estimate | O80: Life cycle cost Estimate (without land) | P80: Life cycle cost per m2 | Q80: Life cycle cost per m2 (without land) | R80: Cost per kgTN | S80: Cost per kgTN (without land) | T80: % Impervious
K81: ='8. Developer Cost Outputs'!B15 -> Separate Dwelling | L81: =IFERROR('8. Developer Cost Outputs'!C15,0) -> 99 | M81: =IFERROR('8. Developer Cost Outputs'!D15,0) -> 240.7273232 | N81: =IFERROR('8. Developer Cost Outputs'!E15,0) -> 23668.62922 | O81: =IFERROR('8. Developer Cost Outputs'!F15,0) -> 22340.23703 | P81: =IFERROR('8. Developer Cost Outputs'!G15,0) -> 120.1997214 | Q81: =IFERROR('8. Developer Cost Outputs'!H15,0) -> 59.08628088 | R81: =IFERROR('8. Developer Cost Outputs'!I15,0) -> 145503.5638 | S81: =IFERROR('8. Developer Cost Outputs'!J15,0) -> 73277.59419 | T81: =IFERROR('8. Developer Cost Outputs'!I5,0) -> 0.5337684273
K82: ='8. Developer Cost Outputs'!B16 -> Medium Density | L82: =IFERROR('8. Developer Cost Outputs'!C16,0) -> 33 | M82: =IFERROR('8. Developer Cost Outputs'!D16,0) -> 158.7549545 | N82: =IFERROR('8. Developer Cost Outputs'!E16,0) -> 42096.42848 | O82: =IFERROR('8. Developer Cost Outputs'!F16,0) -> 35774.98734 | P82: =IFERROR('8. Developer Cost Outputs'!G16,0) -> 106.4355429 | Q82: =IFERROR('8. Developer Cost Outputs'!H16,0) -> 61.62773334 | R82: =IFERROR('8. Developer Cost Outputs'!I16,0) -> 135768.2741 | S82: =IFERROR('8. Developer Cost Outputs'!J16,0) -> 77974.96599 | T82: =IFERROR('8. Developer Cost Outputs'!I6,0) -> 0.5567322936
K83: ='8. Developer Cost Outputs'!B17 -> High Density | L83: =IFERROR('8. Developer Cost Outputs'!C17,0) -> 9 | M83: =IFERROR('8. Developer Cost Outputs'!D17,0) -> 111.8892025 | N83: =IFERROR('8. Developer Cost Outputs'!E17,0) -> 95448.82205 | O83: =IFERROR('8. Developer Cost Outputs'!F17,0) -> 52200.30872 | P83: =IFERROR('8. Developer Cost Outputs'!G17,0) -> 58.91381278 | Q83: =IFERROR('8. Developer Cost Outputs'!H17,0) -> 38.38619736 | R83: =IFERROR('8. Developer Cost Outputs'!I17,0) -> 74960.42341 | S83: =IFERROR('8. Developer Cost Outputs'!J17,0) -> 48678.38892 | T83: =IFERROR('8. Developer Cost Outputs'!I7,0) -> 0.6179114304
K84: ='8. Developer Cost Outputs'!B18 -> Commercial | L84: =IFERROR('8. Developer Cost Outputs'!C18,0) -> 7 | M84: =IFERROR('8. Developer Cost Outputs'!D18,0) -> 608 | N84: =IFERROR('8. Developer Cost Outputs'!E18,0) -> 20587.87995 | O84: =IFERROR('8. Developer Cost Outputs'!F18,0) -> 11218.11102 | P84: =IFERROR('8. Developer Cost Outputs'!G18,0) -> 54.97110634 | Q84: =IFERROR('8. Developer Cost Outputs'!H18,0) -> 30.77472851 | R84: =IFERROR('8. Developer Cost Outputs'!I18,0) -> 63311.80331 | S84: =IFERROR('8. Developer Cost Outputs'!J18,0) -> 23593.03893 | T84: =IFERROR('8. Developer Cost Outputs'!I8,0) -> 0.8444444444
K85: ='8. Developer Cost Outputs'!B19 -> Industrial | L85: ='8. Developer Cost Outputs'!C19 -> 1 | M85: =IFERROR('8. Developer Cost Outputs'!D19,0) -> 1948 | N85: =IFERROR('8. Developer Cost Outputs'!E19,0) -> 24855.78359 | O85: =IFERROR('8. Developer Cost Outputs'!F19,0) -> 8675.202962 | P85: =IFERROR('8. Developer Cost Outputs'!G19,0) -> 12.7596425 | Q85: =IFERROR('8. Developer Cost Outputs'!H19,0) -> 4.453389611 | R85: =IFERROR('8. Developer Cost Outputs'!I19,0) -> 17132.52524 | S85: =IFERROR('8. Developer Cost Outputs'!J19,0) -> 5979.619722 | T85: =IFERROR('8. Developer Cost Outputs'!I9,0) -> 1
B136: Project Cashflow Scenarios
B137: 20% treatment transfer Scenario
B138: All amounts in AUD
B193: 100% treatment transfer scenario
B240: Development Segmentation and Forecast | N240: Developer Sample Treatment Cost
I251: High Density | J251: ='6. Financial Performance'!AD39 -> 49231.2491 | K251: =J251/$J$254 -> 0.05304564127
D252: ='6. Financial Performance'!AD24 -> 440 | E252: =D252/$D$255 -> 0.09090909091 | I252: Medium Density | J252: ='6. Financial Performance'!AD38 -> 349260.9 | K252: =J252/$J$254 -> 0.3763213152
D253: ='6. Financial Performance'!AD23 -> 2200 | E253: =D253/$D$255 -> 0.4545454545 | I253: Separate Dwelling | J253: ='6. Financial Performance'!AD37 -> 529600.1111 | K253: =J253/$J$254 -> 0.5706330435
D254: ='6. Financial Performance'!AD22 -> 2200 | E254: =D254/$D$255 -> 0.4545454545 | J254: =SUM(J251:J253) -> 928092.2602
D255: =SUM(D252:D254) -> 4840

Sheet Contents (hidden)
F4: CONFIDENTIAL - REPORT / DATA / MODEL NOT FOR DISTRIBUTION
C8: Project Details
C9: Project Name | E9: Stormwater In-lieu Offset Modelling
C10: Client Name | E10: Department of Energy, Environment and Climate Action
C12: Tab | D12: Section | E12: Sheets | F12: Description
D13: Introduction | E13: Cover Page | F13: Presents model name, contact information, client and disclaimer.
E14: Contents | F14: This is the current sheet. It provides a general overview of the model content and format.
D15: Summary and Inputs | E15: 1. Dashboard | F15: Displays high level results and allows summary inputs to be added.
E16: 2. Assumptions | F16: Includes the detailed assumptions underlying and informing the analysis.
E17: 3. Developer Applications | F17: The database of developer applications that inform developer treatment costs for stormwater in different melbourne municipalities.
D18: Model Analysis | E18: 4. Council Asset Costs | F18: Calculates lifecycle costs for council centralised treatment assets.
E19: 5. Dwelling Forecast | F19: Calculates highlevel forecast of future dwelling numbers in the region.
E20: 6. Financial Performance | F20: Calculates impervious area from additional dwellings, additional nitrogen, fees from developers under different scenarios, development timeline and treatment performance of council assets.
D21: Detailed Results | E21: 7. Council Development Timing | F21: Summarises the development timeline of council assets under different scenarios.
E22: 8. Developer Cost Outputs | F22: Calculates key outputs from 3.Developer Applications for development of 10. On lot Curve.
E23: 9. Developer Cost Graphs | F23: Calculates inputs for developer cost graphs displayed on 1.Dashboard tab
E24: 10. On lot Curve | F24: Calculates On lot Curve for development of the In-lieu fee function
D25: Development Process | E25: 11. Process Map | F25: Outlines the standard reviewal process for implementing the in-lie scheme in Council.
E26: 12. Storm Report examples | F26: Shows example STORM report

Sheet CPIConversion (hidden)
A1: Conversion table - CPI
F2: Sourced: | G2: 44462
A3: Convert From | B3: 2023/24 | C3: Select year from drop down list | F3: https://www.abs.gov.au/statistics/economy/price-indexes-and-inflation/consumer-price-index-australia/latest-release
A4: Convert To | B4: 2024/25 | C4: Select year from drop down list | F4: Table 1 and 2. CPI: All Groups, Index Numbers and Percentage Changes
A5: Multiply by | B5: =VLOOKUP($B$4,$A$8:$D$42,3)/VLOOKUP($B$3,$A$8:$D$42,3) -> 1.008135864 | D5: 1.008135864
A7: Financial Year | B7: Calendar Year | C7: Month | D7: Index Numbers ; All groups CPI ; Australia ; | E7: Index Numbers ; All groups CPI ; Australia - Reset in 2013 | F7: Annual CPI March Quarter | G7: Notes
A8: 1990/91 | B8: =YEAR(Table5[[#This Row],[Month]]) -> 1990 | C8: 1990-03-01 | D8: 100.9 | E8: - | G8: -
A9: 1991/92 | B9: =YEAR(Table5[[#This Row],[Month]]) -> 1991 | C9: 1991-03-01 | D9: 105.8 | E9: - | F9: =IF(D9="","",D9/D8-1) -> 0.0485629336 | G9: - | J9: =TODAY() -> 2025-04-29
A10: 1992/93 | B10: =YEAR(Table5[[#This Row],[Month]]) -> 1992 | C10: 1992-03-01 | D10: 107.6 | E10: - | F10: 0.01701323251 | G10: - | J10: Convert to: | K10: 2024 | L10: /22 financial year
A11: 1993/94 | B11: =YEAR(Table5[[#This Row],[Month]]) -> 1993 | C11: 1993-03-01 | D11: 108.9 | E11: - | F11: 0.01208178439 | G11: - | J11: Calendar Year | K11: Conversion Rate
A12: 1994/95 | B12: =YEAR(Table5[[#This Row],[Month]]) -> 1994 | C12: 1994-03-01 | D12: 110.4 | E12: - | F12: 0.01377410468 | G12: - | J12: 2006 | K12: =INDEX(Table5[Index Numbers ; All groups CPI ; Australia ;],MATCH($K$10,Table5[Calendar Year],0))/INDEX(Table5[Index Numbers ; All groups CPI ; Australia ;],MATCH($J12,Table5[Calendar Year],0)) -> 1.625278999
A13: 1995/96 | B13: =YEAR(Table5[[#This Row],[Month]]) -> 1995 | C13: 1995-03-01 | D13: 114.7 | E13: - | F13: 0.03894927536 | G13: - | J13: 2007 | K13: =INDEX(Table5[Index Numbers ; All groups CPI ; Australia ;],MATCH($K$10,Table5[Calendar Year],0))/INDEX(Table5[Index Numbers ; All groups CPI ; Australia ;],MATCH($J13,Table5[Calendar Year],0)) -> 1.586631619
A14: 1996/97 | B14: =YEAR(Table5[[#This Row],[Month]]) -> 1996 | C14: 1996-03-01 | D14: 119 | E14: - | F14: 0.03748910201 | G14: - | J14: 2008 | K14: =INDEX(Table5[Index Numbers ; All groups CPI ; Australia ;],MATCH($K$10,Table5[Calendar Year],0))/INDEX(Table5[Index Numbers ; All groups CPI ; Australia ;],MATCH($J14,Table5[Calendar Year],0)) -> 1.522070776
A15: 1997/98 | B15: =YEAR(Table5[[#This Row],[Month]]) -> 1997 | C15: 1997-03-01 | D15: 120.5 | E15: - | F15: 0.01260504202 | G15: - | J15: 2009 | K15: =INDEX(Table5[Index Numbers ; All groups CPI ; Australia ;],MATCH($K$10,Table5[Calendar Year],0))/INDEX(Table5[Index Numbers ; All groups CPI ; Australia ;],MATCH($J15,Table5[Calendar Year],0)) -> 1.485438507
A16: 1998/99 | B16: =YEAR(Table5[[#This Row],[Month]]) -> 1998 | C16: 1998-03-01 | D16: 120.3 | E16: - | F16: -0.001659751037 | G16: - | J16: 2010 | K16: =INDEX(Table5[Index Numbers ; All groups CPI ; Australia ;],MATCH($K$10,Table5[Calendar Year],0))/INDEX(Table5[Index Numbers ; All groups CPI ; Australia ;],MATCH($J16,Table5[Calendar Year],0)) -> 1.443741988
A17: 1999/00 | B17: =YEAR(Table5[[#This Row],[Month]]) -> 1999 | C17: 1999-03-01 | D17: 121.8 | E17: - | F17: 0.01246882793 | G17: - | J17: 2011 | K17: =INDEX(Table5[Index Numbers ; All groups CPI ; Australia ;],MATCH($K$10,Table5[Calendar Year],0))/INDEX(Table5[Index Numbers ; All groups CPI ; Australia ;],MATCH($J17,Table5[Calendar Year],0)) -> 1.397169665
A18: 2000/01 | B18: =YEAR(Table5[[#This Row],[Month]]) -> 2000 | C18: 2000-03-01 | D18: 125.2 | E18: - | F18: 0.02791461412 | G18: - | J18: 2012 | K18: =INDEX(Table5[Index Numbers ; All groups CPI ; Australia ;],MATCH($K$10,Table5[Calendar Year],0))/INDEX(Table5[Index Numbers ; All groups CPI ; Australia ;],MATCH($J18,Table5[Calendar Year],0)) -> 1.375375375
A19: 2001/02 | B19: =YEAR(Table5[[#This Row],[Month]]) -> 2001 | C19: 2001-03-01 | D19: 132.7 | E19: - | F19: 0.05990415335 | G19: - | J19: 2013 | K19: =INDEX(Table5[Index Numbers ; All groups CPI ; Australia ;],MATCH($K$10,Table5[Calendar Year],0))/INDEX(Table5[Index Numbers ; All groups CPI ; Australia ;],MATCH($J19,Table5[Calendar Year],0)) -> 1.341796875
A20: 2002/03 | B20: =YEAR(Table5[[#This Row],[Month]]) -> 2002 | C20: 2002-03-01 | D20: 136.6 | E20: - | F20: 0.0293896006 | G20: - | J20: 2014 | K20: =INDEX(Table5[Index Numbers ; All groups CPI ; Australia ;],MATCH($K$10,Table5[Calendar Year],0))/INDEX(Table5[Index Numbers ; All groups CPI ; Australia ;],MATCH($J20,Table5[Calendar Year],0)) -> 1.303605313
A21: 2003/04 | B21: =YEAR(Table5[[#This Row],[Month]]) -> 2003 | C21: 2003-03-01 | D21: 141.3 | E21: - | F21: 0.03440702782 | G21: - | J21: 2015 | K21: =INDEX(Table5[Index Numbers ; All groups CPI ; Australia ;],MATCH($K$10,Table5[Calendar Year],0))/INDEX(Table5[Index Numbers ; All groups CPI ; Australia ;],MATCH($J21,Table5[Calendar Year],0)) -> 1.286516854
A22: 2004/05 | B22: =YEAR(Table5[[#This Row],[Month]]) -> 2004 | C22: 2004-03-01 | D22: 144.1 | E22: - | F22: 0.01981599434 | G22: - | J22: 2016 | K22: =INDEX(Table5[Index Numbers ; All groups CPI ; Australia ;],MATCH($K$10,Table5[Calendar Year],0))/INDEX(Table5[Index Numbers ; All groups CPI ; Australia ;],MATCH($J22,Table5[Calendar Year],0)) -> 1.26987061
A23: 2005/06 | B23: =YEAR(Table5[[#This Row],[Month]]) -> 2005 | C23: 2005-03-01 | D23: 147.5 | E23: - | F23: 0.02359472588 | G23: - | J23: 2017 | K23: =INDEX(Table5[Index Numbers ; All groups CPI ; Australia ;],MATCH($K$10,Table5[Calendar Year],0))/INDEX(Table5[Index Numbers ; All groups CPI ; Australia ;],MATCH($J23,Table5[Calendar Year],0)) -> 1.243438914
A24: 2006/07 | B24: =YEAR(Table5[[#This Row],[Month]]) -> 2006 | C24: 2006-03-01 | D24: 151.9 | E24: - | F24: 0.02983050847 | G24: - | J24: 2018 | K24: =INDEX(Table5[Index Numbers ; All groups CPI ; Australia ;],MATCH($K$10,Table5[Calendar Year],0))/INDEX(Table5[Index Numbers ; All groups CPI ; Australia ;],MATCH($J24,Table5[Calendar Year],0)) -> 1.220248668
A25: 2007/08 | B25: =YEAR(Table5[[#This Row],[Month]]) -> 2007 | C25: 2007-03-01 | D25: 155.6 | E25: - | F25: 0.02435813035 | G25: - | J25: 2019 | K25: =INDEX(Table5[Index Numbers ; All groups CPI ; Australia ;],MATCH($K$10,Table5[Calendar Year],0))/INDEX(Table5[Index Numbers ; All groups CPI ; Australia ;],MATCH($J25,Table5[Calendar Year],0)) -> 1.204206836
A26: 2008/09 | B26: =YEAR(Table5[[#This Row],[Month]]) -> 2008 | C26: 2008-03-01 | D26: 162.2 | E26: - | F26: 0.04241645244 | G26: - | J26: 2020 | K26: =INDEX(Table5[Index Numbers ; All groups CPI ; Australia ;],MATCH($K$10,Table5[Calendar Year],0))/INDEX(Table5[Index Numbers ; All groups CPI ; Australia ;],MATCH($J26,Table5[Calendar Year],0)) -> 1.17838765
A27: 2009/10 | B27: =YEAR(Table5[[#This Row],[Month]]) -> 2009 | C27: 2009-03-01 | D27: 166.2 | E27: - | F27: 0.02466091245 | G27: - | J27: 2021 | K27: =INDEX(Table5[Index Numbers ; All groups CPI ; Australia ;],MATCH($K$10,Table5[Calendar Year],0))/INDEX(Table5[Index Numbers ; All groups CPI ; Australia ;],MATCH($J27,Table5[Calendar Year],0)) -> 1.165394402
A28: 2010/11 | B28: =YEAR(Table5[[#This Row],[Month]]) -> 2010 | C28: 2010-03-01 | D28: 171 | E28: - | F28: 0.02888086643 | G28: - | J28: 2022 | K28: =INDEX(Table5[Index Numbers ; All groups CPI ; Australia ;],MATCH($K$10,Table5[Calendar Year],0))/INDEX(Table5[Index Numbers ; All groups CPI ; Australia ;],MATCH($J28,Table5[Calendar Year],0)) -> 1.108958838
A29: 2011/12 | B29: =YEAR(Table5[[#This Row],[Month]]) -> 2011 | C29: 2011-03-01 | D29: 176.7 | E29: - | F29: 0.03333333333 | G29: - | J29: 2023 | K29: =INDEX(Table5[Index Numbers ; All groups CPI ; Australia ;],MATCH($K$10,Table5[Calendar Year],0))/INDEX(Table5[Index Numbers ; All groups CPI ; Australia ;],MATCH($J29,Table5[Calendar Year],0)) -> 1.036199095
A30: 2012/13 | B30: =YEAR(Table5[[#This Row],[Month]]) -> 2012 | C30: 2012-03-01 | D30: 179.5 | E30: 99.9 | F30: 0.01584606678 | G30: Index reset to 99.9 in 2013 | J30: 2024 | K30: =INDEX(Table5[Index Numbers ; All groups CPI ; Australia ;],MATCH($K$10,Table5[Calendar Year],0))/INDEX(Table5[Index Numbers ; All groups CPI ; Australia ;],MATCH($J30,Table5[Calendar Year],0)) -> 1
A31: 2013/14 | B31: =YEAR(Table5[[#This Row],[Month]]) -> 2013 | C31: 2013-03-01 | D31: =IF(E31="","",D30*(1+F31)) -> 183.991992 | E31: 102.4 | F31: =IF(E31="","",E31/E30-1) -> 0.02502502503 | G31: =IF(D31="","","Column C indices are calculated from reset column D indices") -> Column C indices are calculated from reset column D indices | J31: 2025 | K31: =IFERROR(INDEX(Table5[Index Numbers ; All groups CPI ; Australia ;],MATCH($K$10,Table5[Calendar Year],0))/INDEX(Table5[Index Numbers ; All groups CPI ; Australia ;],MATCH($J31,Table5[Calendar Year],0)),0) -> 0
A32: 2014/15 | B32: =YEAR(Table5[[#This Row],[Month]]) -> 2014 | C32: 2014-03-01 | D32: =IF(E32="","",D31*(1+F32)) -> 189.3823824 | E32: 105.4 | F32: =IF(E32="","",E32/E31-1) -> 0.029296875 | G32: =IF(D32="","","Column C indices are calculated from reset column D indices") -> Column C indices are calculated from reset column D indices
A33: 2015/16 | B33: =YEAR(Table5[[#This Row],[Month]]) -> 2015 | C33: 2015-03-01 | D33: 191.8978979 | E33: 106.8 | F33: 0.01328273245 | G33: Column C indices are calculated from reset column D indices
A34: 2016/17 | B34: =YEAR(Table5[[#This Row],[Month]]) -> 2016 | C34: 2016-03-01 | D34: =IF(E34="","",D33*(1+F34)) -> 194.4134134 | E34: 108.2 | F34: 0.01310861423 | G34: Column C indices are calculated from reset column D indices
A35: 2017/18 | B35: =YEAR(Table5[[#This Row],[Month]]) -> 2017 | C35: 2017-03-01 | D35: =IF(E35="","",D34*(1+F35)) -> 198.546046 | E35: 110.5 | F35: 0.02125693161 | G35: Column C indices are calculated from reset column D indices
A36: 2018/19 | B36: =YEAR(Table5[[#This Row],[Month]]) -> 2018 | C36: 2018-03-01 | D36: 202.3193193 | E36: 112.6 | F36: 0.01900452489 | G36: Column C indices are calculated from reset column D indices
A37: 2019/20 | B37: =YEAR(Table5[[#This Row],[Month]]) -> 2019 | C37: 2019-03-01 | D37: =IF(E37="","",D36*(1+F37)) -> 205.0145145 | E37: 114.1 | F37: =IF(E37="","",E37/E36-1) -> 0.01332149201 | G37: Column C indices are calculated from reset column D indices
A38: 2020/21 | B38: =YEAR(Table5[[#This Row],[Month]]) -> 2020 | C38: 2020-03-01 | D38: 209.5065065 | E38: 116.6 | F38: 0.02191060473 | G38: Column C indices are calculated from reset column D indices
A39: 2021/22 | B39: =YEAR(Table5[[#This Row],[Month]]) -> 2021 | C39: 2021-03-01 | D39: 211.8423423 | E39: 117.9 | F39: =IF(E39="","",E39/E38-1) -> 0.01114922813 | G39: Column C indices are calculated from reset column D indices
A40: 2022/23 | B40: =YEAR(Table5[[#This Row],[Month]]) -> 2022 | C40: 2022-03-01 | D40: 222.6231231 | E40: 123.9 | F40: 0.05089058524 | G40: Column C indices are calculated from reset column D indices
A41: 2023/24 | B41: =YEAR(Table5[[#This Row],[Month]]) -> 2023 | C41: 2023-03-01 | D41: 238.2552553 | E41: 132.6 | F41: 0.07021791768 | G41: Column C indices are calculated from reset column D indices
A42: 2024/25 | B42: =YEAR(Table5[[#This Row],[Month]]) -> 2024 | C42: 2024-03-01 | D42: 246.8798799 | E42: 137.4 | F42: 0.03619909502 | G42: Column C indices are calculated from reset column D indices

Sheet Summary and Inputs > (hidden)
A1: Return to Contents

Sheet Hide - AllMunicipalities (hidden)
A1: State | B1: City | C1: Municipality | D1: Postcode | E1: Locality | F1: Average total site $/kgN | G1: Country | H1: SA3 | I1: Included
A2: Victoria | B2: Melbourne | C2: Darebin City Council | D2: 3070 | E2: NORTHCOTE | F2: 111374.2766 | G2: Australia | H2: Yarra | I2: 1
A3: Victoria | B3: Melbourne | C3: Darebin City Council | D3: 3071 | E3: THORNBURY | F3: 92975.76505 | G3: Australia | H3: Darebin - South | I3: 1
A4: Victoria | B4: Melbourne | C4: Darebin City Council | D4: 3072 | E4: GILBERTON | F4: 113137.4858 | G4: Australia | H4: Darebin - North | I4: 1
A5: Victoria | B5: Melbourne | C5: Darebin City Council | D5: 3073 | E5: KEON PARK | F5: 113751.378 | G5: Australia | H5: Darebin - North | I5: 1
A6: Victoria | B6: Melbourne | C6: Darebin City Council | D6: 3078 | E6: ALPHINGTON | F6: 103740.2563 | G6: Australia | H6: Yarra | I6: 1
A7: Victoria | B7: Melbourne | C7: Darebin City Council | D7: 3083 | E7: BUNDOORA | F7: 103979.1221 | G7: Australia | H7: Whittlesea - Wallan | I7: 1
A8: Victoria | B8: Melbourne | C8: Moonee Valley City Council | D8: 3032 | E8: ASCOT VALE | F8: 320173.5098 | G8: Australia | H8: Maribyrnong | I8: 1
A9: Victoria | B9: Melbourne | C9: Moonee Valley City Council | D9: 3033 | E9: KEILOR EAST | F9: 44856.78151 | G9: Australia | H9: Brimbank | I9: 1
A10: Victoria | B10: Melbourne | C10: Moonee Valley City Council | D10: 3034 | E10: AVONDALE HEIGHTS | F10: 50144.1052 | G10: Australia | H10: Keilor | I10: 1
A11: Victoria | B11: Melbourne | C11: Moonee Valley City Council | D11: 3039 | E11: MOONEE PONDS | F11: 294565.8513 | G11: Australia | H11: Essendon | I11: 1
A12: Victoria | B12: Melbourne | C12: Moonee Valley City Council | D12: 3040 | E12: ABERFELDIE | F12: 170929.6558 | G12: Australia | H12: Keilor | I12: 1
A13: Victoria | B13: Melbourne | C13: Moonee Valley City Council | D13: 3041 | E13: ESSENDON FIELDS | F13: 78897.33943 | G13: Australia | H13: Moreland - North | I13: 1
A14: Victoria | B14: Melbourne | C14: Moonee Valley City Council | D14: 3042 | E14: AIRPORT WEST | F14: 104994.0293 | G14: Australia | H14: Keilor | I14: 1
A15: Victoria | B15: Melbourne | C15: Melbourne City Council | D15: 3000 | E15: MELBOURNE | F15: 131039.9659 | G15: Australia | H15: Melbourne City | I15: 1
A16: Victoria | B16: Melbourne | C16: Melbourne City Council | D16: 3002 | E16: EAST MELBOURNE | F16: 131039.9659 | G16: Australia | H16: Melbourne City | I16: 1
A17: Victoria | B17: Melbourne | C17: Melbourne City Council | D17: 3003 | E17: WEST MELBOURNE | F17: 131039.9659 | G17: Australia | H17: Melbourne City | I17: 1
A18: Victoria | B18: Melbourne | C18: Melbourne City Council | D18: 3004 | E18: MELBOURNE | F18: 131039.9659 | G18: Australia | H18: Port Phillip | I18: 1
A19: Victoria | B19: Melbourne | C19: Melbourne City Council | D19: 3006 | E19: SOUTH WHARF | F19: 131039.9659 | G19: Australia | H19: Port Phillip | I19: 1
A20: Victoria | B20: Melbourne | C20: Melbourne City Council | D20: 3008 | E20: DOCKLANDS | F20: 131039.9659 | G20: Australia | H20: Melbourne City | I20: 1
A21: Victoria | B21: Melbourne | C21: Maribyrnong City Council | D21: 3011 | E21: FOOTSCRAY | F21: 131039.9659 | G21: Australia | H21: Maribyrnong | I21: 1
A22: Victoria | B22: Melbourne | C22: Maribyrnong City Council | D22: 3012 | E22: BROOKLYN | F22: 131039.9659 | G22: Australia | H22: Maribyrnong | I22: 1
A23: Victoria | B23: Melbourne | C23: Maribyrnong City Council | D23: 3013 | E23: YARRAVILLE | F23: 131039.9659 | G23: Australia | H23: Maribyrnong | I23: 1
A24: Victoria | B24: Melbourne | C24: Hobsons Bay City Council | D24: 3015 | E24: NEWPORT | F24: 131039.9659 | G24: Australia | H24: Hobsons Bay | I24: 1
A25: Victoria | B25: Melbourne | C25: Hobsons Bay City Council | D25: 3016 | E25: WILLIAMSTOWN | F25: 131039.9659 | G25: Australia | H25: Hobsons Bay | I25: 1
A26: Victoria | B26: Melbourne | C26: Hobsons Bay City Council | D26: 3018 | E26: ALTONA | F26: 131039.9659 | G26: Australia | H26: Hobsons Bay | I26: 1
A27: Victoria | B27: Melbourne | C27: Maribyrnong City Council | D27: 3019 | E27: BRAYBROOK | F27: 131039.9659 | G27: Australia | H27: Maribyrnong | I27: 1
A28: Victoria | B28: Melbourne | C28: Brimbank City Council | D28: 3020 | E28: ALBION | F28: 131039.9659 | G28: Australia | H28: Brimbank | I28: 1
A29: Victoria | B29: Melbourne | C29: Brimbank City Council | D29: 3021 | E29: ALBANVALE | F29: 131039.9659 | G29: Australia | H29: Brimbank | I29: 1
A30: Victoria | B30: Melbourne | C30: Brimbank City Council | D30: 3022 | E30: ARDEER | F30: 131039.9659 | G30: Australia | H30: Brimbank | I30: 1
A31: Victoria | B31: Melbourne | C31: Melton City Council | D31: 3023 | E31: BURNSIDE | F31: 131039.9659 | G31: Australia | H31: Melton - Bacchus Marsh | I31: 1
A32: Victoria | B32: Melbourne | C32: Wyndham City Council | D32: 3024 | E32: FIELDSTONE | F32: 131039.9659 | G32: Australia | H32: Wyndham | I32: 1
A33: Victoria | B33: Melbourne | C33: Hobsons Bay City Council | D33: 3025 | E33: ALTONA EAST | F33: 131039.9659 | G33: Australia | H33: Wyndham | I33: 1 | N33: Display
A34: Victoria | B34: Melbourne | C34: Wyndham City Council | D34: 3026 | E34: LAVERTON NORTH | F34: 131039.9659 | G34: Australia | H34: Wyndham | I34: 1 | M34: Wyndham | N34: 1 | P34: Darebin City Council
A35: Victoria | B35: Melbourne | C35: Wyndham City Council | D35: 3027 | E35: LAVERTON RAAF | F35: 131039.9659 | G35: Australia | H35: Wyndham | I35: 1 | M35: Melton | N35: 1 | P35: Moonee Valley City Council
A36: Victoria | B36: Melbourne | C36: Hobsons Bay City Council | D36: 3028 | E36: ALTONA MEADOWS | F36: 131039.9659 | G36: Australia | H36: Wyndham | I36: 1 | M36: Hume | N36: 1 | P36: Melbourne City Council
A37: Victoria | B37: Melbourne | C37: Wyndham City Council | D37: 3029 | E37: HOPPERS CROSSING | F37: 131039.9659 | G37: Australia | H37: Wyndham | I37: 1 | M37: Brimbank | N37: 1 | P37: Maribyrnong City Council
A38: Victoria | B38: Melbourne | C38: Wyndham City Council | D38: 3030 | E38: CHARTWELL | F38: 131039.9659 | G38: Australia | H38: Wyndham | I38: 1 | M38: Hobsons Bay | N38: 1 | P38: Hobsons Bay City Council
A39: Victoria | B39: Melbourne | C39: Melbourne City Council | D39: 3031 | E39: FLEMINGTON | F39: 131039.9659 | G39: Australia | H39: Melbourne City | I39: 1 | M39: Maribyrnong | N39: 1 | P39: Brimbank City Council
A40: Victoria | B40: Melbourne | C40: Brimbank City Council | D40: 3036 | E40: KEILOR | F40: 131039.9659 | G40: Australia | H40: Brimbank | I40: 1 | M40: Moonee Valley | N40: 1 | P40: Melton City Council
A41: Victoria | B41: Melbourne | C41: Melton City Council | D41: 3037 | E41: CALDER PARK | F41: 131039.9659 | G41: Australia | H41: Melton - Bacchus Marsh | I41: 1 | M41: Moreland | N41: 1 | P41: Wyndham City Council
A42: Victoria | B42: Melbourne | C42: Brimbank City Council | D42: 3038 | E42: KEILOR DOWNS | F42: 131039.9659 | G42: Australia | H42: Brimbank | I42: 1 | M42: Darebin | N42: 1 | P42: Hume City Council
A43: Victoria | B43: Melbourne | C43: Hume City Council | D43: 3043 | E43: GLADSTONE PARK | F43: 131039.9659 | G43: Australia | H43: Tullamarine - Broadmeadows | I43: 1 | M43: Whittlesea | N43: 1 | P43: Merri-bek City Council
A44: Victoria | B44: Melbourne | C44: Merri-bek City Council | D44: 3044 | E44: PASCOE VALE | F44: 131039.9659 | G44: Australia | H44: Moreland - North | I44: 1 | M44: Yarra | N44: 1 | P44: Yarra City Council
A45: Victoria | B45: Melbourne | C45: Hume City Council | D45: 3045 | E45: MELBOURNE AIRPORT | F45: 131039.9659 | G45: Australia | H45: Tullamarine - Broadmeadows | I45: 1 | M45: Melb | N45: 1 | P45: Whittlesea City Council
A46: Victoria | B46: Melbourne | C46: Merri-bek City Council | D46: 3046 | E46: GLENROY | F46: 131039.9659 | G46: Australia | H46: Moreland - North | I46: 1 | M46: Pt Phillip | N46: 1 | P46: Banyule City Council
A47: Victoria | B47: Melbourne | C47: Hume City Council | D47: 3047 | E47: BROADMEADOWS | F47: 131039.9659 | G47: Australia | H47: Tullamarine - Broadmeadows | I47: 1 | M47: Banyule | N47: 1 | P47: Nillumbik Shire Council
A48: Victoria | B48: Melbourne | C48: Hume City Council | D48: 3048 | E48: COOLAROO | F48: 131039.9659 | G48: Australia | H48: Tullamarine - Broadmeadows | I48: 1 | M48: Nillumbik | N48: 1 | P48: Boroondara City Council
A49: Victoria | B49: Melbourne | C49: Hume City Council | D49: 3049 | E49: ATTWOOD | F49: 131039.9659 | G49: Australia | H49: Tullamarine - Broadmeadows | I49: 1 | M49: Stonngington | N49: 1 | P49: Manningham City Council
A50: Victoria | B50: Melbourne | C50: Melbourne City Council | D50: 3051 | E50: HOTHAM HILL | F50: 131039.9659 | G50: Australia | H50: Melbourne City | I50: 1 | M50: Boroondara | N50: 1 | P50: Yarra Ranges Shire Council
A51: Victoria | B51: Melbourne | C51: Melbourne City Council | D51: 3052 | E51: MELBOURNE UNIVERSITY | F51: 131039.9659 | G51: Australia | H51: Melbourne City | I51: 1 | M51: Manningham | N51: 1 | P51: Whitehorse City Council
A52: Victoria | B52: Melbourne | C52: Melbourne City Council | D52: 3053 | E52: CARLTON | F52: 131039.9659 | G52: Australia | H52: Melbourne City | I52: 1 | M52: Yarra Ranges | N52: 1 | P52: Maroondah City Council
A53: Victoria | B53: Melbourne | C53: Yarra City Council | D53: 3054 | E53: CARLTON NORTH | F53: 131039.9659 | G53: Australia | H53: Yarra | I53: 1 | M53: Maroonda | N53: 1 | P53: Stonnington City Council
A54: Victoria | B54: Melbourne | C54: Merri-bek City Council | D54: 3055 | E54: BRUNSWICK SOUTH | F54: 131039.9659 | G54: Australia | H54: Essendon | I54: 1 | M54: Whitehorse | N54: 1 | P54: Monash City Council
A55: Victoria | B55: Melbourne | C55: Merri-bek City Council | D55: 3056 | E55: BRUNSWICK | F55: 131039.9659 | G55: Australia | H55: Brunswick - Coburg | I55: 1 | M55: Glen Eira | N55: 1 | P55: Knox City Council
A56: Victoria | B56: Melbourne | C56: Merri-bek City Council | D56: 3057 | E56: BRUNSWICK EAST | F56: 131039.9659 | G56: Australia | H56: Brunswick - Coburg | I56: 1 | M56: Monash | N56: 1 | P56: Glen Eira City Council
A57: Victoria | B57: Melbourne | C57: Merri-bek City Council | D57: 3058 | E57: BATMAN | F57: 131039.9659 | G57: Australia | H57: Moreland - North | I57: 1 | M57: Knox | N57: 1 | P57: Kingston City Council
A58: Victoria | B58: Melbourne | C58: Hume City Council | D58: 3059 | E58: GREENVALE | F58: 131039.9659 | G58: Australia | H58: Tullamarine - Broadmeadows | I58: 1 | M58: Kingston | N58: 1 | P58: Greater Dandenong City Council
A59: Victoria | B59: Melbourne | C59: Merri-bek City Council | D59: 3060 | E59: FAWKNER | F59: 131039.9659 | G59: Australia | H59: Tullamarine - Broadmeadows | I59: 1 | M59: Greater Dandenong | N59: 1 | P59: Casey City Council
A60: Victoria | B60: Melbourne | C60: Hume City Council | D60: 3061 | E60: CAMPBELLFIELD | F60: 131039.9659 | G60: Australia | H60: Tullamarine - Broadmeadows | I60: 1 | M60: Casey | N60: 1 | P60: Port Phillip City Council
A61: Victoria | B61: Melbourne | C61: Hume City Council | D61: 3062 | E61: SOMERTON | F61: 131039.9659 | G61: Australia | H61: Tullamarine - Broadmeadows | I61: 1 | M61: Cardinia | N61: 1 | P61: Bayside City Council
A62: Victoria | B62: Melbourne | C62: Hume City Council | D62: 3063 | E62: OAKLANDS JUNCTION | F62: 131039.9659 | G62: Australia | H62: Tullamarine - Broadmeadows | I62: 1 | M62: Frankston | N62: 1 | P62: Frankston City Council
A63: Victoria | B63: Melbourne | C63: Hume City Council | D63: 3064 | E63: CRAIGIEBURN | F63: 131039.9659 | G63: Australia | H63: Tullamarine - Broadmeadows | I63: 1 | M63: Mornington Peninsula | P63: Greater Geelong City Council
A64: Victoria | B64: Melbourne | C64: Yarra City Council | D64: 3065 | E64: FITZROY | F64: 131039.9659 | G64: Australia | H64: Yarra | I64: 1 | M64: Bayside | P64: Surf Coast Shire Council
A65: Victoria | B65: Melbourne | C65: Yarra City Council | D65: 3066 | E65: COLLINGWOOD | F65: 131039.9659 | G65: Australia | H65: Yarra | I65: 1 | M65: 31 | P65: Golden Plains Shire Council
A66: Victoria | B66: Melbourne | C66: Yarra City Council | D66: 3067 | E66: ABBOTSFORD | F66: 131039.9659 | G66: Australia | H66: Yarra | I66: 1 | P66: Colac Otway Shire Council
A67: Victoria | B67: Melbourne | C67: Yarra City Council | D67: 3068 | E67: CLIFTON HILL | F67: 131039.9659 | G67: Australia | H67: Yarra | I67: 1 | P67: Corangamite Shire Council
A68: Victoria | B68: Melbourne | C68: Whittlesea City Council | D68: 3074 | E68: THOMASTOWN | F68: 131039.9659 | G68: Australia | H68: Tullamarine - Broadmeadows | I68: 1 | P68: Moyne Shire Council
A69: Victoria | B69: Melbourne | C69: Whittlesea City Council | D69: 3075 | E69: LALOR | F69: 131039.9659 | G69: Australia | H69: Whittlesea - Wallan | I69: 1 | P69: Warrnambool City Council
A70: Victoria | B70: Melbourne | C70: Whittlesea City Council | D70: 3076 | E70: EPPING | F70: 131039.9659 | G70: Australia | H70: Whittlesea - Wallan | I70: 1 | P70: Southern Grampians Shire Council
A71: Victoria | B71: Melbourne | C71: Banyule City Council | D71: 3079 | E71: IVANHOE | F71: 131039.9659 | G71: Australia | H71: Banyule | I71: 1 | P71: Glenelg Shire Council
A72: Victoria | B72: Melbourne | C72: Banyule City Council | D72: 3081 | E72: BELLFIELD | F72: 131039.9659 | G72: Australia | H72: Banyule | I72: 1 | P72: West Wimmera Shire Council
A73: Victoria | B73: Melbourne | C73: Whittlesea City Council | D73: 3082 | E73: MILL PARK | F73: 131039.9659 | G73: Australia | H73: Whittlesea - Wallan | I73: 1 | P73: Moorabool Shire Council
A74: Victoria | B74: Melbourne | C74: Banyule City Council | D74: 3084 | E74: BANYULE | F74: 131039.9659 | G74: Australia | H74: Banyule | I74: 1 | P74: Ballarat City Council
A75: Victoria | B75: Melbourne | C75: Banyule City Council | D75: 3085 | E75: MACLEOD | F75: 131039.9659 | G75: Australia | H75: Darebin - North | I75: 1 | P75: Ararat Rural City Council
A76: Victoria | B76: Melbourne | C76: Banyule City Council | D76: 3087 | E76: WATSONIA | F76: 131039.9659 | G76: Australia | H76: Nillumbik - Kinglake | I76: 1 | P76: Hepburn Shire Council
A77: Victoria | B77: Melbourne | C77: Banyule City Council | D77: 3088 | E77: BRIAR HILL | F77: 131039.9659 | G77: Australia | H77: Nillumbik - Kinglake | I77: 1 | P77: Central Goldfields Shire Council
A78: Victoria | B78: Melbourne | C78: Nillumbik Shire Council | D78: 3089 | E78: DIAMOND CREEK | F78: 131039.9659 | G78: Australia | H78: Nillumbik - Kinglake | I78: 1 | P78: Pyrenees Shire Council
A79: Victoria | B79: Melbourne | C79: Nillumbik Shire Council | D79: 3090 | E79: PLENTY | F79: 131039.9659 | G79: Australia | H79: Nillumbik - Kinglake | I79: 1 | P79: Northern Grampians Shire Council
A80: Victoria | B80: Melbourne | C80: Nillumbik Shire Council | D80: 3091 | E80: YARRAMBAT | F80: 131039.9659 | G80: Australia | H80: Nillumbik - Kinglake | I80: 1 | P80: Yarriambiack Shire Council
A81: Victoria | B81: Melbourne | C81: Banyule City Council | D81: 3093 | E81: LOWER PLENTY | F81: 131039.9659 | G81: Australia | H81: Banyule | I81: 1 | P81: Horsham Rural City Council
A82: Victoria | B82: Melbourne | C82: Banyule City Council | D82: 3094 | E82: MONTMORENCY | F82: 131039.9659 | G82: Australia | H82: Banyule | I82: 1 | P82: Hindmarsh Shire Council
A83: Victoria | B83: Melbourne | C83: Nillumbik Shire Council | D83: 3095 | E83: ELTHAM | F83: 131039.9659 | G83: Australia | H83: Nillumbik - Kinglake | I83: 1 | P83: Macedon Ranges Shire Council
A84: Victoria | B84: Melbourne | C84: Nillumbik Shire Council | D84: 3096 | E84: WATTLE GLEN | F84: 131039.9659 | G84: Australia | H84: Nillumbik - Kinglake | I84: 1 | P84: Mount Alexander Shire Council
A85: Victoria | B85: Melbourne | C85: Nillumbik Shire Council | D85: 3097 | E85: BEND OF ISLANDS | F85: 131039.9659 | G85: Australia | H85: Nillumbik - Kinglake | I85: 1 | P85: Greater Bendigo City Council
A86: Victoria | B86: Melbourne | C86: Nillumbik Shire Council | D86: 3099 | E86: ARTHURS CREEK | F86: 131039.9659 | G86: Australia | H86: Nillumbik - Kinglake | I86: 1 | P86: Loddon Shire Council
A87: Victoria | B87: Melbourne | C87: Boroondara City Council | D87: 3101 | E87: COTHAM | F87: 131039.9659 | G87: Australia | H87: Boroondara | I87: 1 | P87: Buloke Shire Council
A88: Victoria | B88: Melbourne | C88: Boroondara City Council | D88: 3102 | E88: KEW EAST | F88: 131039.9659 | G88: Australia | H88: Boroondara | I88: 1 | P88: Mildura Rural City Council
A89: Victoria | B89: Melbourne | C89: Boroondara City Council | D89: 3103 | E89: BALWYN | F89: 131039.9659 | G89: Australia | H89: Boroondara | I89: 1 | P89: Mitchell Shire Council
A90: Victoria | B90: Melbourne | C90: Boroondara City Council | D90: 3104 | E90: BALWYN NORTH | F90: 131039.9659 | G90: Australia | H90: Whitehorse - West | I90: 1 | P90: Gannawarra Shire Council
A91: Victoria | B91: Melbourne | C91: Manningham City Council | D91: 3105 | E91: BULLEEN | F91: 131039.9659 | G91: Australia | H91: Banyule | I91: 1 | P91: Swan Hill Rural City Council
A92: Victoria | B92: Melbourne | C92: Manningham City Council | D92: 3106 | E92: TEMPLESTOWE | F92: 131039.9659 | G92: Australia | H92: Manningham - West | I92: 1 | P92: Campaspe Shire Council
A93: Victoria | B93: Melbourne | C93: Manningham City Council | D93: 3107 | E93: TEMPLESTOWE LOWER | F93: 131039.9659 | G93: Australia | H93: Manningham - West | I93: 1 | P93: Strathbogie Shire Council
A94: Victoria | B94: Melbourne | C94: Manningham City Council | D94: 3108 | E94: DONCASTER | F94: 131039.9659 | G94: Australia | H94: Whitehorse - West | I94: 1 | P94: Greater Shepparton City Council
A95: Victoria | B95: Melbourne | C95: Manningham City Council | D95: 3109 | E95: DONCASTER EAST | F95: 131039.9659 | G95: Australia | H95: Manningham - East | I95: 1 | P95: Moira Shire Council
A96: Victoria | B96: Melbourne | C96: Manningham City Council | D96: 3111 | E96: DONVALE | F96: 131039.9659 | G96: Australia | H96: Manningham - East | I96: 1 | P96: Benalla Rural City Council
A97: Victoria | B97: Melbourne | C97: Manningham City Council | D97: 3113 | E97: NORTH WARRANDYTE | F97: 131039.9659 | G97: Australia | H97: Manningham - East | I97: 1 | P97: Wangaratta Rural City Council
A98: Victoria | B98: Melbourne | C98: Manningham City Council | D98: 3114 | E98: PARK ORCHARDS | F98: 131039.9659 | G98: Australia | H98: Maroondah | I98: 1 | P98: Indigo Shire Council
A99: Victoria | B99: Melbourne | C99: Manningham City Council | D99: 3115 | E99: WONGA PARK | F99: 131039.9659 | G99: Australia | H99: Maroondah | I99: 1 | P99: Wodonga City Council
A100: Victoria | B100: Melbourne | C100: Yarra Ranges Shire Council | D100: 3116 | E100: CHIRNSIDE PARK | F100: 131039.9659 | G100: Australia | H100: Yarra Ranges | I100: 1 | P100: Alpine Shire Council
A101: Victoria | B101: Melbourne | C101: Yarra City Council | D101: 3121 | E101: BURNLEY | F101: 131039.9659 | G101: Australia | H101: Yarra | I101: 1 | P101: Towong Shire Council
A102: Victoria | B102: Melbourne | C102: Boroondara City Council | D102: 3122 | E102: AUBURN SOUTH | F102: 131039.9659 | G102: Australia | H102: Stonnington - East | I102: 1 | P102: Murrindindi Shire Council
A103: Victoria | B103: Melbourne | C103: Boroondara City Council | D103: 3123 | E103: AUBURN | F103: 131039.9659 | G103: Australia | H103: Boroondara | I103: 1 | P103: Mansfield Shire Council
A104: Victoria | B104: Melbourne | C104: Boroondara City Council | D104: 3124 | E104: CAMBERWELL | F104: 131039.9659 | G104: Australia | H104: Boroondara | I104: 1 | P104: Cardinia Shire Council
A105: Victoria | B105: Melbourne | C105: Whitehorse City Council | D105: 3125 | E105: BENNETTSWOOD | F105: 131039.9659 | G105: Australia | H105: Monash | I105: 1 | P105: Baw Baw Shire Council
A106: Victoria | B106: Melbourne | C106: Boroondara City Council | D106: 3126 | E106: CAMBERWELL EAST | F106: 131039.9659 | G106: Australia | H106: Boroondara | I106: 1 | P106: Latrobe City Council
A107: Victoria | B107: Melbourne | C107: Whitehorse City Council | D107: 3127 | E107: MONT ALBERT | F107: 131039.9659 | G107: Australia | H107: Whitehorse - West | I107: 1 | P107: Wellington Shire Council
A108: Victoria | B108: Melbourne | C108: Whitehorse City Council | D108: 3128 | E108: BOX HILL | F108: 131039.9659 | G108: Australia | H108: Whitehorse - West | I108: 1 | P108: East Gippsland Shire Council
A109: Victoria | B109: Melbourne | C109: Whitehorse City Council | D109: 3129 | E109: BOX HILL NORTH | F109: 131039.9659 | G109: Australia | H109: Whitehorse - West | I109: 1 | P109: South Gippsland Shire Council
A110: Victoria | B110: Melbourne | C110: Whitehorse City Council | D110: 3130 | E110: BLACKBURN | F110: 131039.9659 | G110: Australia | H110: Whitehorse - West | I110: 1 | P110: Mornington Peninsula Shire Council
A111: Victoria | B111: Melbourne | C111: Whitehorse City Council | D111: 3131 | E111: BRENTFORD SQUARE | F111: 131039.9659 | G111: Australia | H111: Whitehorse - East | I111: 1 | P111: Unincorporated Vic
A112: Victoria | B112: Melbourne | C112: Whitehorse City Council | D112: 3132 | E112: MITCHAM | F112: 131039.9659 | G112: Australia | H112: Whitehorse - East | I112: 1 | P112: Bass Coast Shire Council
A113: Victoria | B113: Melbourne | C113: Whitehorse City Council | D113: 3133 | E113: VERMONT | F113: 131039.9659 | G113: Australia | H113: Whitehorse - East | I113: 1
A114: Victoria | B114: Melbourne | C114: Maroondah City Council | D114: 3134 | E114: HEATHWOOD | F114: 131039.9659 | G114: Australia | H114: Whitehorse - East | I114: 1
A115: Victoria | B115: Melbourne | C115: Maroondah City Council | D115: 3135 | E115: BEDFORD ROAD | F115: 131039.9659 | G115: Australia | H115: Maroondah | I115: 1
A116: Victoria | B116: Melbourne | C116: Maroondah City Council | D116: 3136 | E116: CROYDON | F116: 131039.9659 | G116: Australia | H116: Maroondah | I116: 1
A117: Victoria | B117: Melbourne | C117: Maroondah City Council | D117: 3137 | E117: KILSYTH | F117: 131039.9659 | G117: Australia | H117: Yarra Ranges | I117: 1
A118: Victoria | B118: Melbourne | C118: Yarra Ranges Shire Council | D118: 3138 | E118: MOOROOLBARK | F118: 131039.9659 | G118: Australia | H118: Yarra Ranges | I118: 1
A119: Victoria | B119: Melbourne | C119: Yarra Ranges Shire Council | D119: 3139 | E119: BEENAK | F119: 131039.9659 | G119: Australia | H119: Cardinia | I119: 1
A120: Victoria | B120: Melbourne | C120: Yarra Ranges Shire Council | D120: 3140 | E120: LILYDALE | F120: 131039.9659 | G120: Australia | H120: Yarra Ranges | I120: 1
A121: Victoria | B121: Melbourne | C121: Stonnington City Council | D121: 3141 | E121: CHAPEL STREET NORTH | F121: 131039.9659 | G121: Australia | H121: Stonnington - West | I121: 1
A122: Victoria | B122: Melbourne | C122: Stonnington City Council | D122: 3142 | E122: HAWKSBURN | F122: 131039.9659 | G122: Australia | H122: Boroondara | I122: 1
A123: Victoria | B123: Melbourne | C123: Stonnington City Council | D123: 3143 | E123: ARMADALE | F123: 131039.9659 | G123: Australia | H123: Stonnington - West | I123: 1
A124: Victoria | B124: Melbourne | C124: Stonnington City Council | D124: 3144 | E124: KOOYONG | F124: 131039.9659 | G124: Australia | H124: Stonnington - East | I124: 1
A125: Victoria | B125: Melbourne | C125: Stonnington City Council | D125: 3145 | E125: CAULFIELD EAST | F125: 131039.9659 | G125: Australia | H125: Stonnington - East | I125: 1
A126: Victoria | B126: Melbourne | C126: Boroondara City Council | D126: 3146 | E126: GLEN IRIS | F126: 131039.9659 | G126: Australia | H126: Stonnington - East | I126: 1
A127: Victoria | B127: Melbourne | C127: Boroondara City Council | D127: 3147 | E127: ASHBURTON | F127: 131039.9659 | G127: Australia | H127: Monash | I127: 1
A128: Victoria | B128: Melbourne | C128: Monash City Council | D128: 3148 | E128: CHADSTONE | F128: 131039.9659 | G128: Australia | H128: Monash | I128: 1
A129: Victoria | B129: Melbourne | C129: Monash City Council | D129: 3149 | E129: MOUNT WAVERLEY | F129: 131039.9659 | G129: Australia | H129: Monash | I129: 1
A130: Victoria | B130: Melbourne | C130: Monash City Council | D130: 3150 | E130: BRANDON PARK | F130: 131039.9659 | G130: Australia | H130: Monash | I130: 1
A131: Victoria | B131: Melbourne | C131: Whitehorse City Council | D131: 3151 | E131: BURWOOD EAST | F131: 131039.9659 | G131: Australia | H131: Whitehorse - West | I131: 1
A132: Victoria | B132: Melbourne | C132: Knox City Council | D132: 3152 | E132: KNOX CITY CENTRE | F132: 131039.9659 | G132: Australia | H132: Knox | I132: 1
A133: Victoria | B133: Melbourne | C133: Knox City Council | D133: 3153 | E133: BAYSWATER | F133: 131039.9659 | G133: Australia | H133: Maroondah | I133: 1
A134: Victoria | B134: Melbourne | C134: Knox City Council | D134: 3154 | E134: THE BASIN | F134: 131039.9659 | G134: Australia | H134: Knox | I134: 1
A135: Victoria | B135: Melbourne | C135: Knox City Council | D135: 3155 | E135: BORONIA | F135: 131039.9659 | G135: Australia | H135: Knox | I135: 1
A136: Victoria | B136: Melbourne | C136: Knox City Council | D136: 3156 | E136: FERNTREE GULLY | F136: 131039.9659 | G136: Australia | H136: Casey - North | I136: 1
A137: Victoria | B137: Melbourne | C137: Yarra Ranges Shire Council | D137: 3158 | E137: UPWEY | F137: 131039.9659 | G137: Australia | H137: Yarra Ranges | I137: 1
A138: Victoria | B138: Melbourne | C138: Yarra Ranges Shire Council | D138: 3159 | E138: MENZIES CREEK | F138: 131039.9659 | G138: Australia | H138: Yarra Ranges | I138: 1
A139: Victoria | B139: Melbourne | C139: Yarra Ranges Shire Council | D139: 3160 | E139: BELGRAVE | F139: 131039.9659 | G139: Australia | H139: Yarra Ranges | I139: 1
A140: Victoria | B140: Melbourne | C140: Glen Eira City Council | D140: 3161 | E140: CAULFIELD JUNCTION | F140: 131039.9659 | G140: Australia | H140: Glen Eira | I140: 1
A141: Victoria | B141: Melbourne | C141: Glen Eira City Council | D141: 3162 | E141: CAULFIELD | F141: 131039.9659 | G141: Australia | H141: Glen Eira | I141: 1
A142: Victoria | B142: Melbourne | C142: Glen Eira City Council | D142: 3163 | E142: BOORAN ROAD PO | F142: 131039.9659 | G142: Australia | H142: Glen Eira | I142: 1
A143: Victoria | B143: Melbourne | C143: Glen Eira City Council | D143: 3165 | E143: BENTLEIGH EAST | F143: 131039.9659 | G143: Australia | H143: Glen Eira | I143: 1
A144: Victoria | B144: Melbourne | C144: Monash City Council | D144: 3166 | E144: HUGHESDALE | F144: 131039.9659 | G144: Australia | H144: Monash | I144: 1
A145: Victoria | B145: Melbourne | C145: Monash City Council | D145: 3167 | E145: OAKLEIGH SOUTH | F145: 131039.9659 | G145: Australia | H145: Monash | I145: 1
A146: Victoria | B146: Melbourne | C146: Monash City Council | D146: 3168 | E146: CLAYTON | F146: 131039.9659 | G146: Australia | H146: Monash | I146: 1
A147: Victoria | B147: Melbourne | C147: Kingston City Council | D147: 3169 | E147: CLARINDA | F147: 131039.9659 | G147: Australia | H147: Dandenong | I147: 1
A148: Victoria | B148: Melbourne | C148: Monash City Council | D148: 3170 | E148: MULGRAVE | F148: 131039.9659 | G148: Australia | H148: Monash | I148: 1
A149: Victoria | B149: Melbourne | C149: Greater Dandenong City Council | D149: 3171 | E149: SANDOWN VILLAGE | F149: 131039.9659 | G149: Australia | H149: Dandenong | I149: 1
A150: Victoria | B150: Melbourne | C150: Kingston City Council | D150: 3172 | E150: DINGLEY VILLAGE | F150: 131039.9659 | G150: Australia | H150: Dandenong | I150: 1
A151: Victoria | B151: Melbourne | C151: Greater Dandenong City Council | D151: 3173 | E151: KEYSBOROUGH | F151: 131039.9659 | G151: Australia | H151: Dandenong | I151: 1
A152: Victoria | B152: Melbourne | C152: Greater Dandenong City Council | D152: 3174 | E152: NOBLE PARK | F152: 131039.9659 | G152: Australia | H152: Dandenong | I152: 1
A153: Victoria | B153: Melbourne | C153: Greater Dandenong City Council | D153: 3175 | E153: BANGHOLME | F153: 131039.9659 | G153: Australia | H153: Dandenong | I153: 1
A154: Victoria | B154: Melbourne | C154: Casey City Council | D154: 3177 | E154: DOVETON | F154: 131039.9659 | G154: Australia | H154: Casey - North | I154: 1
A155: Victoria | B155: Melbourne | C155: Knox City Council | D155: 3178 | E155: ROWVILLE | F155: 131039.9659 | G155: Australia | H155: Knox | I155: 1
A156: Victoria | B156: Melbourne | C156: Knox City Council | D156: 3179 | E156: SCORESBY | F156: 131039.9659 | G156: Australia | H156: Knox | I156: 1
A157: Victoria | B157: Melbourne | C157: Knox City Council | D157: 3180 | E157: KNOXFIELD | F157: 131039.9659 | G157: Australia | H157: Knox | I157: 1
A158: Victoria | B158: Melbourne | C158: Stonnington City Council | D158: 3181 | E158: PRAHRAN | F158: 131039.9659 | G158: Australia | H158: Stonnington - West | I158: 1
A159: Victoria | B159: Melbourne | C159: Port Phillip City Council | D159: 3182 | E159: ST KILDA | F159: 131039.9659 | G159: Australia | H159: Port Phillip | I159: 1
A160: Victoria | B160: Melbourne | C160: Glen Eira City Council | D160: 3183 | E160: BALACLAVA | F160: 131039.9659 | G160: Australia | H160: Glen Eira | I160: 1
A161: Victoria | B161: Melbourne | C161: Port Phillip City Council | D161: 3184 | E161: BRIGHTON ROAD | F161: 131039.9659 | G161: Australia | H161: Port Phillip | I161: 1
A162: Victoria | B162: Melbourne | C162: Glen Eira City Council | D162: 3185 | E162: ELSTERNWICK | F162: 131039.9659 | G162: Australia | H162: Glen Eira | I162: 1
A163: Victoria | B163: Melbourne | C163: Bayside City Council | D163: 3186 | E163: BRIGHTON | F163: 131039.9659 | G163: Australia | H163: Bayside | I163: 1
A164: Victoria | B164: Melbourne | C164: Bayside City Council | D164: 3187 | E164: BRIGHTON EAST | F164: 131039.9659 | G164: Australia | H164: Glen Eira | I164: 1
A165: Victoria | B165: Melbourne | C165: Bayside City Council | D165: 3188 | E165: HAMPTON | F165: 131039.9659 | G165: Australia | H165: Bayside | I165: 1
A166: Victoria | B166: Melbourne | C166: Kingston City Council | D166: 3189 | E166: MOORABBIN | F166: 131039.9659 | G166: Australia | H166: Kingston | I166: 1
A167: Victoria | B167: Melbourne | C167: Bayside City Council | D167: 3190 | E167: HIGHETT | F167: 131039.9659 | G167: Australia | H167: Kingston | I167: 1
A168: Victoria | B168: Melbourne | C168: Bayside City Council | D168: 3191 | E168: SANDRINGHAM | F168: 131039.9659 | G168: Australia | H168: Bayside | I168: 1
A169: Victoria | B169: Melbourne | C169: Kingston City Council | D169: 3192 | E169: CHELTENHAM | F169: 131039.9659 | G169: Australia | H169: Kingston | I169: 1
A170: Victoria | B170: Melbourne | C170: Bayside City Council | D170: 3193 | E170: BEAUMARIS | F170: 131039.9659 | G170: Australia | H170: Bayside | I170: 1
A171: Victoria | B171: Melbourne | C171: Kingston City Council | D171: 3194 | E171: MENTONE | F171: 131039.9659 | G171: Australia | H171: Kingston | I171: 1
A172: Victoria | B172: Melbourne | C172: Kingston City Council | D172: 3195 | E172: ASPENDALE | F172: 131039.9659 | G172: Australia | H172: Kingston | I172: 1
A173: Victoria | B173: Melbourne | C173: Kingston City Council | D173: 3196 | E173: BONBEACH | F173: 131039.9659 | G173: Australia | H173: Kingston | I173: 1
A174: Victoria | B174: Melbourne | C174: Kingston City Council | D174: 3197 | E174: CARRUM | F174: 131039.9659 | G174: Australia | H174: Frankston | I174: 1
A175: Victoria | B175: Melbourne | C175: Frankston City Council | D175: 3198 | E175: BELVEDERE PARK | F175: 131039.9659 | G175: Australia | H175: Frankston | I175: 1
A176: Victoria | B176: Melbourne | C176: Frankston City Council | D176: 3199 | E176: FRANKSTON | F176: 131039.9659 | G176: Australia | H176: Mornington Peninsula | I176: 1
A177: Victoria | B177: Melbourne | C177: Frankston City Council | D177: 3200 | E177: FRANKSTON NORTH | F177: 131039.9659 | G177: Australia | H177: Frankston | I177: 1
A178: Victoria | B178: Melbourne | C178: Frankston City Council | D178: 3201 | E178: CARRUM DOWNS | F178: 131039.9659 | G178: Australia | H178: Frankston | I178: 1
A179: Victoria | B179: Melbourne | C179: Kingston City Council | D179: 3202 | E179: HEATHERTON | F179: 131039.9659 | G179: Australia | H179: Kingston | I179: 1
A180: Victoria | B180: Melbourne | C180: Glen Eira City Council | D180: 3204 | E180: BENTLEIGH | F180: 131039.9659 | G180: Australia | H180: Glen Eira | I180: 1
A181: Victoria | B181: Melbourne | C181: Port Phillip City Council | D181: 3205 | E181: SOUTH MELBOURNE | F181: 131039.9659 | G181: Australia | H181: Port Phillip | I181: 1
A182: Victoria | B182: Melbourne | C182: Port Phillip City Council | D182: 3206 | E182: ALBERT PARK | F182: 131039.9659 | G182: Australia | H182: Port Phillip | I182: 1
A183: Victoria | B183: Melbourne | C183: Port Phillip City Council | D183: 3207 | E183: GARDEN CITY | F183: 131039.9659 | G183: Australia | H183: Hobsons Bay | I183: 1
A184: Victoria | B184: Melbourne | C184: Greater Geelong City Council | D184: 3211 | E184: LITTLE RIVER | F184: 131039.9659 | G184: Australia | H184: Wyndham | I184: 1
A185: Victoria | B185: Melbourne | C185: Greater Geelong City Council | D185: 3212 | E185: 0 | F185: 131039.9659 | G185: Australia | H185: Geelong | I185: 1
A186: Victoria | B186: Melbourne | C186: Greater Geelong City Council | D186: 3213 | E186: 0 | F186: 131039.9659 | G186: Australia | H186: Warrnambool - Otway Ranges | I186: 1
A187: Victoria | B187: Melbourne | C187: Greater Geelong City Council | D187: 3214 | E187: 0 | F187: 131039.9659 | G187: Australia | H187: Geelong | I187: 1
A188: Victoria | B188: Melbourne | C188: Greater Geelong City Council | D188: 3215 | E188: 0 | F188: 131039.9659 | G188: Australia | H188: Geelong | I188: 1
A189: Victoria | B189: Melbourne | C189: Greater Geelong City Council | D189: 3216 | E189: 0 | F189: 131039.9659 | G189: Australia | H189: Surf Coast - Bellarine Peninsula | I189: 1
A190: Victoria | B190: Melbourne | C190: Surf Coast Shire Council | D190: 3217 | E190: 0 | F190: 131039.9659 | G190: Australia | H190: Geelong | I190: 0
A191: Victoria | B191: Melbourne | C191: Golden Plains Shire Council | D191: 3218 | E191: 0 | F191: 131039.9659 | G191: Australia | H191: Geelong
A192: Victoria | B192: Melbourne | C192: Greater Geelong City Council | D192: 3219 | E192: 0 | F192: 131039.9659 | G192: Australia | H192: Geelong | I192: 1
A193: Victoria | B193: Melbourne | C193: Greater Geelong City Council | D193: 3220 | E193: 0 | F193: 131039.9659 | G193: Australia | H193: Geelong | I193: 1
A194: Victoria | B194: Melbourne | C194: Surf Coast Shire Council | D194: 3221 | E194: 0 | F194: 131039.9659 | G194: Australia | H194: Warrnambool - Otway Ranges | I194: 0
A195: Victoria | B195: Melbourne | C195: Greater Geelong City Council | D195: 3222 | E195: 0 | F195: 131039.9659 | G195: Australia | H195: Surf Coast - Bellarine Peninsula | I195: 1
A196: Victoria | B196: Melbourne | C196: Greater Geelong City Council | D196: 3223 | E196: 0 | F196: 131039.9659 | G196: Australia | H196: Surf Coast - Bellarine Peninsula | I196: 1
A197: Victoria | B197: Melbourne | C197: Greater Geelong City Council | D197: 3224 | E197: 0 | F197: 131039.9659 | G197: Australia | H197: Geelong | I197: 1
A198: Victoria | B198: Melbourne | C198: Greater Geelong City Council | D198: 3225 | E198: 0 | F198: 131039.9659 | G198: Australia | H198: Surf Coast - Bellarine Peninsula | I198: 1
A199: Victoria | B199: Melbourne | C199: Greater Geelong City Council | D199: 3226 | E199: 0 | F199: 131039.9659 | G199: Australia | H199: Surf Coast - Bellarine Peninsula | I199: 1
A200: Victoria | B200: Melbourne | C200: Greater Geelong City Council | D200: 3227 | E200: 0 | F200: 131039.9659 | G200: Australia | H200: Surf Coast - Bellarine Peninsula | I200: 1
... 786 more rows

Sheet 2. Assumptions (hidden)
A1: Return to Contents
B2: WSUD In-Lieu Fee Assumptions
B7: Analysis Assumptions | G7: Asset Assumptions | T7: Land Assumptions
C9: Analysis
C10: Analysis Period | D10: 30 | E10: years
H11: Unit Rates for On Lot Storm water treatment $2025
C12: Annual Inflation Rate | D12: 0.036 | H12: Item | I12: Size | J12: Unit | K12: Tank Area (m2) | L12: Rate ($ 2024) | M12: Diameter | O12: Above Ground RW Tank | U12: Sample Category | V12: Lots
H13: Rainwater Tank | I13: 200 | J13: L | K13: 0.2827433388 | O13: from Tank Size (L) | P13: to Tank Size (L) | Q13: $/kl 2025 | U13: Separate Unit | V13: <2
C14: Discount Rate | D14: 0.045 | H14: Rainwater Tank | I14: 700 | J14: L | K14: 0.64232 | O14: 1 | P14: 2000 | Q14: 1093.270771 | U14: Medium Density | V14: 3-6
H15: Rainwater Tank | I15: 800 | J15: L | K15: 0.73408 | O15: 2000 | P15: 5000 | Q15: 874.6166165 | U15: High Density | V15: 7
C16: Calculated offset fee | D16: =Dashboard!F46 -> 68.72395767 | E16: per sqm impervious | H16: Rainwater Tank | I16: 1000 | J16: L | K16: 0.9176 | O16: 5000 | Q16: 546.6353853
H17: Rainwater Tank | I17: 1200 | J17: L | K17: 1.10112
C18: Council Costs | H18: Rainwater Tank | I18: 1300 | J18: L | K18: 1.12
C19: Council Average Levelised cost per kg N Removed | H19: Rainwater Tank | I19: 1500 | J19: L | K19: 1.14 | O19: Below Ground RW Tank
D20: ='4. Council Assets Costs'!Z37 -> 13253.014 | H20: Rainwater Tank | I20: 1666 | J20: L | K20: 1.19411277 | O20: from Tank Size (L) | P20: to Tank Size (L) | Q20: $/kl 2025
H21: Rainwater Tank | I21: 2000 | J21: L | K21: 1.547 | O21: 1 | P21: 2999 | Q21: 2711.000926
C22: Council Average Levelised cost per m2/ impervious | H22: Rainwater Tank | I22: 2100 | J22: L | K22: 1.626179464 | O22: 3000 | P22: 5000 | Q22: 2168.800741
D23: =D20*D35*D40 -> 9.919880978 | H23: Rainwater Tank | I23: 2200 | J23: L | K23: 1.703616581 | O23: 5000 | P23: 9999 | Q23: 1626.600555
H24: Rainwater Tank | I24: 2400 | J24: L | K24: 1.60704 | P24: 10000 | Q24: 1084.40037 | U24: Land Value ($/m2)
C25: Avoided Nitrogen Benefit | D25: 6645 | E25: Not used | H25: Rainwater Tank | I25: 2500 | J25: L | K25: 1.935927933
D26: Melbourne water published rate: https://www.melbournewater.com.au/building-and-works/developer-guides-and-resources/drainage-schemes-and-contribution-rates-2-0 | H26: Rainwater Tank | I26: 2700 | J26: L | K26: 1.80792 | U26: Unit low | V26: Unit High | W26: Modelled Asset type | X26: Value ($/m2) 2025
C27: Cost of Avoided Potable Water | D27: 3.36 | H27: Rainwater Tank | I27: 2800 | J27: L | K27: 1.87488 | U27: 0 | V27: 2 | W27: Separate Unit | X27: 1618.058063
H28: Rainwater Tank | I28: 3000 | J28: L | K28: 2.0088 | U28: 3 | V28: 6 | W28: Medium Density | X28: 1618.058063
D29: =INDEX('Update - Lists'!$E$4:$E$37,MATCH(Dashboard!C10,'Update - Lists'!$C$4:$C$37)) -> 0.001663333333 | H29: Rainwater Tank | I29: 3200 | J29: L | K29: 1.935927933 | U29: 7 | V29: 300 | W29: High Density | X29: 1618.058063
C30: Developer Costs | H30: Rainwater Tank | I30: 3500 | J30: L | K30: 1.935927933 | W30: Comercial | X30: 1618.058063
C31: Bespoke TN from Impervious Area | D31: =_xlfn.XLOOKUP(Dashboard!$C$10, 'Update - Lists'!$C$4:$C$37, 'Update - Lists'!$E$4:$E$37) -> 0.001663333333 | E31: kg/m2/Annum | H31: Rainwater Tank | I31: 4000 | J31: L | K31: 2.150420171 | W31: Industrial | X31: 1618.058063
H32: Rainwater Tank | I32: 4500 | J32: L | K32: =1.1*2.9 -> 3.19 | W32: Council Asset Land | X32: 151.2203797
C33: Dataset Average TN from Impervious Area | D33: ='Update - Lists'!E37 -> 0.001639707071 | E33: kg/m2/Annum | H33: Rainwater Tank | I33: 4800 | K33: 2.688025214
H34: Rainwater Tank | I34: 5000 | J34: L | K34: 2.688025214
C35: Modelled TN from Impervious Area | D35: =IF(Dashboard!G10="Bespoke",D31*Dashboard!I10,D33*Dashboard!I10) -> 0.001663333333 | E35: kg/m2/Annum | H35: Rainwater Tank | I35: 5500 | J35: L | K35: =PI()*(Table112139[[#This Row],[Diameter]]/2)^2 -> 3.463605901 | M35: 2.1 | U35: Land Value | V35: Value ($/m2) 2025 | W35: https://www.land.vic.gov.au/valuations/resources-and-reports/revaluation-2020-outcomes
H36: Rainwater Tank | I36: 6000 | J36: L | K36: 3.225630257 | U36: Single Strata Unit/Villa Unit/Townhouse | V36: =X27 -> 1618.058063 | W36: Not used
H37: Rainwater Tank | I37: 6500 | J37: L | K37: 3.225630257 | U37: Parks and Gardens | V37: =X32 -> 151.2203797 | W37: Not used
C38: STORM Accuracy Factor | D38: =Dashboard!I10 -> 1 | H38: Rainwater Tank | I38: 7000 | J38: L | K38: 3.7632353
H39: Rainwater Tank | I39: 7500 | J39: L | K39: =PI()*(Table112139[[#This Row],[Diameter]]/2)^2 -> 4.675946506 | M39: 2.44
C40: Nitrogen Treatment Constant | D40: 0.45 | H40: Rainwater Tank | I40: 8000 | J40: L | K40: 4.300840343
H41: Rainwater Tank | I41: 9000 | J41: L | K41: 7.306166415
H42: Rainwater Tank | I42: 10000 | J42: L | K42: 5.26852942
C43: Council Assets | H43: Rainwater Tank | I43: 11000 | J43: L | K43: =PI()*(Table112139[[#This Row],[Diameter]]/2)^2 -> 4.675946506 | M43: 2.44
C44: WSUD asset can be developed every | D44: 3 | H44: Rainwater Tank | I44: 12000 | J44: L | K44: =AVERAGE(K41:K42) -> 6.287347917
H45: Rainwater Tank | I45: 15000 | J45: L | K45: 7.306166415
H46: Rainwater Tank | I46: 16000 | J46: L | K46: 8.429647072
H47: Rainwater Tank | I47: 17000 | J47: L | K47: 8.956500014
H48: Rainwater Tank | I48: 18000 | J48: L | K48: =PI()*(Table112139[[#This Row],[Diameter]]/2)^2 -> 8.814130889 | M48: 3.35
H49: Rainwater Tank | I49: 20000 | J49: L | K49: 10.53705884 | M49: 3.78
H50: Rainwater Tank | I50: 22000 | J50: L | K50: =PI()*(Table112139[[#This Row],[Diameter]]/2)^2 -> 11.22208312 | M50: 3.78
H51: Rainwater Tank | I51: 22500 | J51: L | K51: =PI()*(Table112139[[#This Row],[Diameter]]/2)^2 -> 11.22208312 | M51: 3.78
H52: Rainwater Tank | I52: 24000 | J52: L | K52: 12.64447061
H53: Rainwater Tank | I53: 25000 | J53: L | K53: 13.17132355
H54: Rainwater Tank | I54: 27000 | J54: L | K54: 13.17132355
H55: Rainwater Tank | I55: 30000 | J55: L | K55: 18.43985297
H56: Rainwater Tank | I56: 34000 | J56: L | K56: 18.43985297
H57: Rainwater Tank | I57: 35000 | J57: L | K57: 18.43985297
H58: Rainwater Tank | I58: 36000 | J58: L | K58: =PI()*(Table112139[[#This Row],[Diameter]]/2)^2 -> 10.75210086 | M58: 3.7
H59: Rainwater Tank | I59: 40000 | J59: L | K59: =$K$42*4 -> 21.07411768
H60: Rainwater Tank | I60: 42000 | J60: L | K60: =PI()*(Table112139[[#This Row],[Diameter]]/2)^2 -> 16.61902514 | M60: 4.6
H61: Rainwater Tank | I61: 48000 | J61: L | K61: =PI()*(Table112139[[#This Row],[Diameter]]/2)^2 -> 16.61902514 | M61: 4.6
H62: Rainwater Tank | I62: 65000 | J62: L | K62: =PI()*(Table112139[[#This Row],[Diameter]]/2)^2 -> 16.61902514 | M62: 4.6
H63: Buffer Strip | J63: m2 | L63: 433.7601481
H64: Infiltration Sand | J64: m2 | L64: 216.8800741
H65: Raingarden 100mm | I65: 100 | J65: mm | L65: 759.0802592
H66: Raingarden 300mm | I66: 300 | J66: mm | L66: 867.5202962
H67: Pump (residential) | L67: 1951.920667
H68: Powerpoint for Pump | L68: 542.2001851
H69: Pump Total | L69: 2494.120852
H70: Plumbing Multi unit: Single Unit, Multi Toiled connection | L70: 2711.000926
G125: Development Application Results | U125: Economic Test Chart
H126: Average | I126: Number of Applications | J126: Impervious Area Per Lot (m2) | K126: Floor Space to Impervious area Ratio | L126: Developer $ per m2 of impervious area | M126: kg of N treated Per Lot to meet BPEM (kg/lot/year) | N126: Developer $/kg of N removed | O126: Developer $/kg of N removed (Without Land) | P126: Typical Potable Water Saving (kL/lot/year) | Q126: kg of N Generated Per Lot (kg/lot/year) | V126: Nitrogen | Y126: SQm Impervious
H127: Separate Dwelling | I127: ='8. Developer Cost Outputs'!C5 -> 99 | J127: ='8. Developer Cost Outputs'!D5 -> 240.7273232 | L127: ='8. Developer Cost Outputs'!E5 -> 120.1997214 | M127: ='8. Developer Cost Outputs'!F5 -> 0.1914681316 | N127: ='8. Developer Cost Outputs'!G5 -> 145503.5638 | O127: ='8. Developer Cost Outputs'!H5 -> 73277.59419 | P127: 13 | Q127: =M127/$D$40 -> 0.4254847369 | V127: =SUMPRODUCT('2. Assumptions'!N127:N131,'2. Assumptions'!I127:I131)/SUM('2. Assumptions'!I127:I131) -> 134363.5223 | W127: ='2. Assumptions'!D20 -> 13253.014
H128: Medium Density | I128: ='8. Developer Cost Outputs'!C6 -> 33 | J128: ='8. Developer Cost Outputs'!D6 -> 158.7549545 | L128: ='8. Developer Cost Outputs'!E6 -> 106.4355429 | M128: ='8. Developer Cost Outputs'!F6 -> 0.1241750985 | N128: ='8. Developer Cost Outputs'!G6 -> 135768.2741 | O128: ='8. Developer Cost Outputs'!H6 -> 77974.96599 | P128: 13 | Q128: =M128/$D$40 -> 0.2759446634 | U128: kg of N | V128: Developer | W128: Council
H129: High Density | I129: ='8. Developer Cost Outputs'!C7 -> 9 | J129: ='8. Developer Cost Outputs'!D7 -> 111.8892025 | L129: ='8. Developer Cost Outputs'!E7 -> 58.91381278 | M129: ='8. Developer Cost Outputs'!F7 -> 0.0875452993 | N129: ='8. Developer Cost Outputs'!G7 -> 74960.42341 | O129: ='8. Developer Cost Outputs'!H7 -> 48678.38892 | P129: 13 | Q129: =M129/$D$40 -> 0.1945451096 | U129: 10 | V129: =U129*$V$127 -> 1343635.223 | W129: =U129*$W$127 -> 132530.14
H130: Industrial | I130: ='8. Developer Cost Outputs'!C8 -> 7 | J130: ='8. Developer Cost Outputs'!D8 -> 608 | K130: ='5. Dwelling Forecast'!Q144 -> 1 | L130: ='8. Developer Cost Outputs'!E8 -> 54.97110634 | M130: ='8. Developer Cost Outputs'!F8 -> 0.460529595 | N130: ='8. Developer Cost Outputs'!G8 -> 63311.80331 | O130: ='8. Developer Cost Outputs'!H8 -> 23593.03893 | P130: 13 | Q130: =M130/$D$40 -> 1.0233991 | U130: 15 | V130: 2015452.834 | W130: 198795.21
H131: Commercial | I131: ='8. Developer Cost Outputs'!C9 -> 1 | J131: ='8. Developer Cost Outputs'!D9 -> 1948 | K131: ='5. Dwelling Forecast'!Q148 -> 5.464782036 | L131: ='8. Developer Cost Outputs'!E9 -> 12.7596425 | M131: ='8. Developer Cost Outputs'!F9 -> 1.450795095 | N131: ='8. Developer Cost Outputs'!G9 -> 17132.52524 | O131: ='8. Developer Cost Outputs'!H9 -> 5979.619722 | P131: 13 | Q131: =M131/$D$40 -> 3.2239891 | U131: 20 | V131: 2687270.445 | W131: 265060.28
U132: 30 | V132: 4030905.668 | W132: 397590.4199
U133: 40 | V133: 5374540.891 | W133: 530120.5599
U134: 50 | V134: 6718176.113 | W134: 662650.6999
U135: 60 | V135: 8061811.336 | W135: 795180.8399
U136: 60 | V136: 8061811.336 | W136: 795180.8399
U137: 80 | V137: 10749081.78 | W137: 1060241.12
U138: 100 | V138: 13436352.23 | W138: 1325301.4

Sheet 3. Developer Applications (hidden)
A1: ID No. | B1: Sample ID | C1: Year | D1: Municipality | E1: Property Address - Redacted | F1: Suburb | G1: Postcode | H1: Residential/Commercial/Industrial | I1: Size Category | J1: No. Of Dwellings/Units | K1: Residential Categories | L1: Total Land (Allotment) Size (m²) | M1: Unit/Dwelling no. | N1: Description | O1: Impervious Area (m²) | P1: Treatment Type | Q1: Treatment volume (m^2 or L) | R1: Treatment % | S1: Tank water Supply Relaibility (%) | T1: Treatment Notes | U1: Total Site Storm Rating (%) | V1: Storm Rating per area | W1: Total site Rainwater Tank Treatment | X1: Total Site Raingarden treatment | Y1: Total Site Infiltration Sand Treatment | Z1: Total Site Buffer Strip Treatment | AA1: Total Dev Roof Area (m²) | AB1: Impervious Area Per lot | AC1: % Impervious | AD1: Above Ground Tank Cost | AE1: Below Ground Tank Cost | AF1: Plumbing Cost | AG1: Raingarden Cost | AH1: Buffer Strip | AI1: Infiltration Sand | AJ1: Asset Land Cost ($) | AK1: Pump | AL1: $/% of Raingarden treatment | AM1: $/% of Watertank treatment | AN1: $/% of Buffer Strip treatment | AO1: $/% of Infiltration Strip treatment | AP1: Total site m2 Rainwater Tank Treatment | AQ1: Total Site m2 Raingarden treatment | AR1: Total Site m2 Infiltration Sand Treatment | AS1: Total Site m2 Buffer Strip Treatment | AT1: $/m2 of Raingarden treatment | AU1: $/m2 of Watertank treatment | AV1: $/m2 of Buffer Strip treatment | AW1: $/m2 of Infiltration Strip treatment | AX1: $/m2 Sub-catchment impervious | AY1: Total Site Impervious Area (m2) | AZ1: Treatment Cost $ Per Lot | BA1: Total Site $/m2/impervious area | BB1: Kg N from Impervious Area per year | BC1: kg of N Treated | BD1: kg of N Treated per lot | BE1: Total Site $/kgN Treated | BF1: Treatment Cost $ Per Lot (Without Land) | BG1: Total Site $/kgN Treated (Without Land) | BH1: Total Site $/m2/impervious area2 (Without Land)
A2: 1 | B2: 588584 | C2: 2019 | D2: Darebin City Council | E2: 1 McFarlane Street, NORTHCOTE | F2: Northcote | G2: 3070 | H2: Residential | I2: Dwelling | J2: 1 | K2: =_xlfn.IFS(AND(Table310[[#This Row],[Residential/Commercial/Industrial]]=$H$3,Table310[[#This Row],[No. Of Dwellings/Units]]>='2. Assumptions'!$U$27,Table310[[#This Row],[No. Of Dwellings/Units]]<='2. Assumptions'!$V$27),'2. Assumptions'!$W$27,AND(Table310[[#This Row],[Residential/Commercial/Industrial]]=$H$3,Table310[[#This Row],[No. Of Dwellings/Units]]>='2. Assumptions'!$U$28,Table310[[#This Row],[No. Of Dwellings/Units]]<='2. Assumptions'!$V$28),'2. Assumptions'!$W$28,AND(Table310[[#This Row],[Residential/Commercial/Industrial]]=$H$3,Table310[[#This Row],[No. Of Dwellings/Units]]>='2. Assumptions'!$U$29,Table310[[#This Row],[No. Of Dwellings/Units]]<='2. Assumptions'!$V$29),'2. Assumptions'!$W$29,Table310[[#This Row],[Residential/Commercial/Industrial]]<>$H$3,"Non-Residential") -> Separate Unit | L2: 287 | M2: =I2&1 -> Dwelling1 | N2: Roof | O2: 45 | P2: Above Ground RW Tank | Q2: 1000 | R2: 113.2 | S2: 96.4 | U2: =SUM(W2:Z2) -> 1.0312 | V2: =IFERROR(O2/SUMIF($A$2:$A$104775,A2,$O$2:$O$104775)*R2/100,0) -> 0.3396 | W2: =SUMIFS($V$2:$V$104775,$P$2:$P$104775,'2. Assumptions'!$O$12,$A$2:$A$104775,$A2) + SUMIFS($V$2:$V$104775,$P$2:$P$104775,'2. Assumptions'!$O$19,$A$2:$A$104775,$A2) -> 1.0312 | X2: =SUMIFS($V$2:$V$104775,$P$2:$P$104775,'2. Assumptions'!$H$65,$A$2:$A$104775,$A2) + SUMIFS($V$2:$V$104775,$P$2:$P$104775,'2. Assumptions'!$H$66,$A$2:$A$104775,$A2) -> 0 | Y2: =SUMIFS($V$2:$V$104775,$P$2:$P$104775,'2. Assumptions'!$H$64,$A$2:$A$104775,$A2) -> 0 | Z2: =SUMIFS($V$2:$V$104775,$P$2:$P$104775,'2. Assumptions'!$H$63,$A$2:$A$104775,$A2) -> 0 | AA2: =SUMIFS($O$2:$O$104775,$A$2:$A$104775,A2,$N$2:$N$104775,$N$2) -> 150 | AB2: =IFERROR(SUMIF($A$2:$A$104775,A2,$O$2:$O$104775)/J2,0) -> 150 | AC2: =IFERROR(SUMIF($A$2:$A$104775,A2,$O$2:$O$104775)/L2,0) -> 0.5226480836 | AD2: =(IF(P2=$P$2,_xlfn.IFS(AND(Q2>'2. Assumptions'!$O$14,Q2<='2. Assumptions'!$P$14),'2. Assumptions'!$Q$14,AND(Q2>'2. Assumptions'!$O$15,Q2<='2. Assumptions'!$P$15),'2. Assumptions'!$Q$15,(Q2>'2. Assumptions'!$O$16),'2. Assumptions'!$Q$16),0))*Q2/1000 -> 1093.270771 | AE2: =(IF(P2='2. Assumptions'!$O$19,_xlfn.IFS(AND(Q2>'2. Assumptions'!$O$21,Q2<='2. Assumptions'!$P$21),'2. Assumptions'!$Q$21,AND(Q2>'2. Assumptions'!$O$22,Q2<='2. Assumptions'!$P$22),'2. Assumptions'!$Q$22,AND(Q2>'2. Assumptions'!$O$23, Q2<='2. Assumptions'!$P$23),'2. Assumptions'!$Q$23,Q2>'2. Assumptions'!$P$24,'2. Assumptions'!$Q$24),0))*Q2/1000 -> 0 | AF2: =IF(SUM(AD2:AE2)<>0,'2. Assumptions'!$L$70,0) -> 2711.000926 | AG2: =IFERROR(_xlfn.IFS(P2='2. Assumptions'!$H$65,'2. Assumptions'!$L$65*Q2,P2='2. Assumptions'!$H$66,'2. Assumptions'!$L$66*Q2),0) -> 0 | AH2: =IF(P2='2. Assumptions'!$H$63,'2. Assumptions'!$L$63*Q2,0) -> 0 | AI2: =IF(P2='2. Assumptions'!$H$64,'2. Assumptions'!$L$64*Q2,0) -> 0 | AJ2: =IF(OR(Table310[[#This Row],[Treatment Type ]]="Above Ground RW Tank",Table310[[#This Row],[Treatment Type ]]="Below Ground RW Tank"),INDEX('2. Assumptions'!$K$13:$K$62,MATCH(Table310[[#This Row],[Treatment volume (m^2 or L) ]],'2. Assumptions'!$I$13:$I$62,1))*('2. Assumptions'!$X$27),Table310[[#This Row],[Treatment volume (m^2 or L) ]]*'2. Assumptions'!$X$27) -> 1484.730078 | AK2: =IF(SUM(AD2:AE2)<>0,'2. Assumptions'!$L$69,0) -> 2494.120852 | AL2: =IFERROR(IF(Table310[[#This Row],[Raingarden Cost]]<>0,(Table310[[#This Row],[Raingarden Cost]]+Table310[[#This Row],[Asset Land Cost ($)]])/(100*Table310[[#This Row],[Total Site Raingarden treatment]]),0),0) -> 0 | AM2: =IFERROR(IF(SUM(Table310[[#This Row],[Above Ground Tank Cost]:[Plumbing Cost]])<>0,(Table310[[#This Row],[Above Ground Tank Cost]]+Table310[[#This Row],[Below Ground Tank Cost]]+Table310[[#This Row],[Plumbing Cost]]+Table310[[#This Row],[Pump]]+Table310[[#This Row],[Asset Land Cost ($)]])/(100*Table310[[#This Row],[Total site Rainwater Tank Treatment]]),0),0) -> 75.47636371 | AN2: =IFERROR(IF(Table310[[#This Row],[Buffer Strip]]<>0,(Table310[[#This Row],[Buffer Strip]]+Table310[[#This Row],[Asset Land Cost ($)]])/(100*Table310[[#This Row],[Total Site Buffer Strip Treatment]]),0),0) -> 0 | AO2: =IFERROR(IF(Table310[[#This Row],[Infiltration Sand]]<>0,(Table310[[#This Row],[Infiltration Sand]]+Table310[[#This Row],[Asset Land Cost ($)]])/(100*Table310[[#This Row],[Total Site Infiltration Sand Treatment]]),0),0) -> 0 | AP2: =SUMIFS($O$2:$O$104775,$P$2:$P$104775,'2. Assumptions'!$O$12,$A$2:$A$104775,$A2) + SUMIFS($O$2:$O$104775,$P$2:$P$104775,'2. Assumptions'!$O$19,$A$2:$A$104775,$A2) -> 150 | AQ2: =SUMIFS($O$2:$O$104775,$P$2:$P$104775,'2. Assumptions'!$H$65,$A$2:$A$104775,$A2) + SUMIFS($O$2:$O$104775,$P$2:$P$104775,'2. Assumptions'!$H$66,$A$2:$A$104775,$A2) -> 0 | AR2: =SUMIFS($O$2:$O$104775,$P$2:$P$104775,'2. Assumptions'!$H$64,$A$2:$A$104775,$A2) -> 0 | AS2: =SUMIFS($O$2:$O$104775,$P$2:$P$104775,'2. Assumptions'!$H$63,$A$2:$A$104775,$A2) -> 0 | AT2: =IFERROR(IF(Table310[[#This Row],[Raingarden Cost]]<>0,(Table310[[#This Row],[Raingarden Cost]]+Table310[[#This Row],[Asset Land Cost ($)]])/(Table310[[#This Row],[Total Site m2 Raingarden treatment]]),0),0) -> 0 | AU2: =IFERROR(IF(SUM(Table310[[#This Row],[Above Ground Tank Cost]:[Plumbing Cost]])<>0,(Table310[[#This Row],[Above Ground Tank Cost]]+Table310[[#This Row],[Below Ground Tank Cost]]+Table310[[#This Row],[Plumbing Cost]]+Table310[[#This Row],[Pump]]+Table310[[#This Row],[Asset Land Cost ($)]])/(Table310[[#This Row],[Total site m2 Rainwater Tank Treatment]]),0),0) -> 51.88748418 | AV2: =IFERROR(IF(Table310[[#This Row],[Buffer Strip]]<>0,(Table310[[#This Row],[Buffer Strip]]+Table310[[#This Row],[Asset Land Cost ($)]])/(Table310[[#This Row],[Total Site m2 Buffer Strip Treatment]]),0),0) -> 0 | AW2: =IFERROR(IF(Table310[[#This Row],[Infiltration Sand]]<>0,(Table310[[#This Row],[Infiltration Sand]]+Table310[[#This Row],[Asset Land Cost ($)]])/(Table310[[#This Row],[Total Site m2 Infiltration Sand Treatment]]),0),0) -> 0 | AX2: =IFERROR((AD2+AE2+AF2+AG2+AH2+AI2+AK2+AJ2)/O2,0) -> 172.9582806 | AY2: =SUMIF($A$2:$A$104775,A2,$O$2:$O$104775) -> 150 | AZ2: =SUM(Table310[[#This Row],[Above Ground Tank Cost]:[Pump]]) -> 7783.122626 | BA2: =IFERROR(SUMIF($A$2:$A$104775,A2,$AZ$2:$AZ$104775)/SUMIF($A$2:$A$104775,A2,$O$2:$O$104775),0) -> 103.7749684 | BB2: =O2*'2. Assumptions'!$D$35 -> 0.07485 | BC2: =U2*'2. Assumptions'!$D$40*BB2*'2. Assumptions'!$D$38 -> 0.034733394 | BD2: =IFERROR(SUMIF($A$2:$A$104775,A2,$BC$2:$BC$104775)/J2,0) -> 0.11577798 | BE2: =IFERROR(SUMIF($A$2:$A$104775, A2, $AZ$2:$AZ$104775)/SUMIF($A$2:$A$104775, A2,$BC$2:$BC$104775),0) -> 134449.1004 | BF2: =SUM(AD2:AI2,AK2) -> 6298.392548 | BG2: =IFERROR(SUMIF($A$2:$A$104775, A2, $BF$2:$BF$104775)/SUMIF($A$2:$A$104775, A2,$BC$2:$BC$104775),0) -> 108801.2167 | BH2: =IFERROR(SUMIF($A$2:$A$104775,A2,$BF$2:$BF$104775)/SUMIF($A$2:$A$104775,A2,$O$2:$O$104775),0) -> 83.97856731
A3: 1 | B3: 588584 | C3: 2019 | D3: Darebin City Council | E3: 1 McFarlane Street, NORTHCOTE | F3: Northcote | G3: 3070 | H3: Residential | I3: Dwelling | J3: 1 | K3: =_xlfn.IFS(AND(Table310[[#This Row],[Residential/Commercial/Industrial]]=$H$3,Table310[[#This Row],[No. Of Dwellings/Units]]>='2. Assumptions'!$U$27,Table310[[#This Row],[No. Of Dwellings/Units]]<='2. Assumptions'!$V$27),'2. Assumptions'!$W$27,AND(Table310[[#This Row],[Residential/Commercial/Industrial]]=$H$3,Table310[[#This Row],[No. Of Dwellings/Units]]>='2. Assumptions'!$U$28,Table310[[#This Row],[No. Of Dwellings/Units]]<='2. Assumptions'!$V$28),'2. Assumptions'!$W$28,AND(Table310[[#This Row],[Residential/Commercial/Industrial]]=$H$3,Table310[[#This Row],[No. Of Dwellings/Units]]>='2. Assumptions'!$U$29,Table310[[#This Row],[No. Of Dwellings/Units]]<='2. Assumptions'!$V$29),'2. Assumptions'!$W$29,Table310[[#This Row],[Residential/Commercial/Industrial]]<>$H$3,"Non-Residential") -> Separate Unit | L3: 287 | M3: =I3&1 -> Dwelling1 | N3: Roof | O3: 105 | P3: Above Ground RW Tank | Q3: 1000 | R3: 98.8 | S3: 74.5 | U3: 1.0312 | V3: 0.6916 | W3: =SUMIFS($V$2:$V$104775,$P$2:$P$104775,'2. Assumptions'!$O$12,$A$2:$A$104775,$A3) + SUMIFS($V$2:$V$104775,$P$2:$P$104775,'2. Assumptions'!$O$19,$A$2:$A$104775,$A3) -> 1.0312 | X3: =SUMIFS($V$2:$V$104775,$P$2:$P$104775,'2. Assumptions'!$H$65,$A$2:$A$104775,$A3) + SUMIFS($V$2:$V$104775,$P$2:$P$104775,'2. Assumptions'!$H$66,$A$2:$A$104775,$A3) -> 0 | Y3: =SUMIFS($V$2:$V$104775,$P$2:$P$104775,'2. Assumptions'!$H$64,$A$2:$A$104775,$A3) -> 0 | Z3: =SUMIFS($V$2:$V$104775,$P$2:$P$104775,'2. Assumptions'!$H$63,$A$2:$A$104775,$A3) -> 0 | AA3: 150 | AB3: 150 | AC3: 0.5226480836 | AD3: =(IF(P3=$P$2,_xlfn.IFS(AND(Q3>'2. Assumptions'!$O$14,Q3<='2. Assumptions'!$P$14),'2. Assumptions'!$Q$14,AND(Q3>'2. Assumptions'!$O$15,Q3<='2. Assumptions'!$P$15),'2. Assumptions'!$Q$15,(Q3>'2. Assumptions'!$O$16),'2. Assumptions'!$Q$16),0))*Q3/1000 -> 1093.270771 | AE3: =(IF(P3='2. Assumptions'!$O$19,_xlfn.IFS(AND(Q3>'2. Assumptions'!$O$21,Q3<='2. Assumptions'!$P$21),'2. Assumptions'!$Q$21,AND(Q3>'2. Assumptions'!$O$22,Q3<='2. Assumptions'!$P$22),'2. Assumptions'!$Q$22,AND(Q3>'2. Assumptions'!$O$23, Q3<='2. Assumptions'!$P$23),'2. Assumptions'!$Q$23,Q3>'2. Assumptions'!$P$24,'2. Assumptions'!$Q$24),0))*Q3/1000 -> 0 | AF3: =IF(SUM(AD3:AE3)<>0,'2. Assumptions'!$L$70,0) -> 2711.000926 | AG3: =IFERROR(_xlfn.IFS(P3='2. Assumptions'!$H$65,'2. Assumptions'!$L$65*Q3,P3='2. Assumptions'!$H$66,'2. Assumptions'!$L$66*Q3),0) -> 0 | AH3: =IF(P3='2. Assumptions'!$H$63,'2. Assumptions'!$L$63*Q3,0) -> 0 | AI3: =IF(P3='2. Assumptions'!$H$64,'2. Assumptions'!$L$64*Q3,0) -> 0 | AJ3: =IF(OR(Table310[[#This Row],[Treatment Type ]]="Above Ground RW Tank",Table310[[#This Row],[Treatment Type ]]="Below Ground RW Tank"),INDEX('2. Assumptions'!$K$13:$K$62,MATCH(Table310[[#This Row],[Treatment volume (m^2 or L) ]],'2. Assumptions'!$I$13:$I$62,1))*('2. Assumptions'!$X$27),Table310[[#This Row],[Treatment volume (m^2 or L) ]]*'2. Assumptions'!$X$27) -> 1484.730078 | AK3: =IF(SUM(AD3:AE3)<>0,'2. Assumptions'!$L$69,0) -> 2494.120852 | AL3: =IFERROR(IF(Table310[[#This Row],[Raingarden Cost]]<>0,(Table310[[#This Row],[Raingarden Cost]]+Table310[[#This Row],[Asset Land Cost ($)]])/(100*Table310[[#This Row],[Total Site Raingarden treatment]]),0),0) -> 0 | AM3: =IFERROR(IF(SUM(Table310[[#This Row],[Above Ground Tank Cost]:[Plumbing Cost]])<>0,(Table310[[#This Row],[Above Ground Tank Cost]]+Table310[[#This Row],[Below Ground Tank Cost]]+Table310[[#This Row],[Plumbing Cost]]+Table310[[#This Row],[Pump]]+Table310[[#This Row],[Asset Land Cost ($)]])/(100*Table310[[#This Row],[Total site Rainwater Tank Treatment]]),0),0) -> 75.47636371 | AN3: =IFERROR(IF(Table310[[#This Row],[Buffer Strip]]<>0,(Table310[[#This Row],[Buffer Strip]]+Table310[[#This Row],[Asset Land Cost ($)]])/(100*Table310[[#This Row],[Total Site Buffer Strip Treatment]]),0),0) -> 0 | AO3: =IFERROR(IF(Table310[[#This Row],[Infiltration Sand]]<>0,(Table310[[#This Row],[Infiltration Sand]]+Table310[[#This Row],[Asset Land Cost ($)]])/(100*Table310[[#This Row],[Total Site Infiltration Sand Treatment]]),0),0) -> 0 | AP3: =SUMIFS($O$2:$O$104775,$P$2:$P$104775,'2. Assumptions'!$O$12,$A$2:$A$104775,$A3) + SUMIFS($O$2:$O$104775,$P$2:$P$104775,'2. Assumptions'!$O$19,$A$2:$A$104775,$A3) -> 150 | AQ3: =SUMIFS($O$2:$O$104775,$P$2:$P$104775,'2. Assumptions'!$H$65,$A$2:$A$104775,$A3) + SUMIFS($O$2:$O$104775,$P$2:$P$104775,'2. Assumptions'!$H$66,$A$2:$A$104775,$A3) -> 0 | AR3: =SUMIFS($O$2:$O$104775,$P$2:$P$104775,'2. Assumptions'!$H$64,$A$2:$A$104775,$A3) -> 0 | AS3: =SUMIFS($O$2:$O$104775,$P$2:$P$104775,'2. Assumptions'!$H$63,$A$2:$A$104775,$A3) -> 0 | AT3: =IFERROR(IF(Table310[[#This Row],[Raingarden Cost]]<>0,(Table310[[#This Row],[Raingarden Cost]]+Table310[[#This Row],[Asset Land Cost ($)]])/(Table310[[#This Row],[Total Site m2 Raingarden treatment]]),0),0) -> 0 | AU3: =IFERROR(IF(SUM(Table310[[#This Row],[Above Ground Tank Cost]:[Plumbing Cost]])<>0,(Table310[[#This Row],[Above Ground Tank Cost]]+Table310[[#This Row],[Below Ground Tank Cost]]+Table310[[#This Row],[Plumbing Cost]]+Table310[[#This Row],[Pump]]+Table310[[#This Row],[Asset Land Cost ($)]])/(Table310[[#This Row],[Total site m2 Rainwater Tank Treatment]]),0),0) -> 51.88748418 | AV3: =IFERROR(IF(Table310[[#This Row],[Buffer Strip]]<>0,(Table310[[#This Row],[Buffer Strip]]+Table310[[#This Row],[Asset Land Cost ($)]])/(Table310[[#This Row],[Total Site m2 Buffer Strip Treatment]]),0),0) -> 0 | AW3: =IFERROR(IF(Table310[[#This Row],[Infiltration Sand]]<>0,(Table310[[#This Row],[Infiltration Sand]]+Table310[[#This Row],[Asset Land Cost ($)]])/(Table310[[#This Row],[Total Site m2 Infiltration Sand Treatment]]),0),0) -> 0 | AX3: 74.12497739 | AY3: 150 | AZ3: =SUM(Table310[[#This Row],[Above Ground Tank Cost]:[Pump]]) -> 7783.122626 | BA3: 103.7749684 | BB3: =O3*'2. Assumptions'!$D$35 -> 0.17465 | BC3: =U3*'2. Assumptions'!$D$40*BB3*'2. Assumptions'!$D$38 -> 0.081044586 | BD3: 0.11577798 | BE3: 134449.1004 | BF3: 6298.392548 | BG3: 108801.2167 | BH3: 83.97856731
A4: 2 | B4: 787260 | C4: 2019 | D4: Darebin City Council | E4: 1017 High Street, RESERVOIR | F4: Reservoir | G4: 3073 | H4: Residential | I4: Multi Unit | J4: 4 | K4: =_xlfn.IFS(AND(Table310[[#This Row],[Residential/Commercial/Industrial]]=$H$3,Table310[[#This Row],[No. Of Dwellings/Units]]>='2. Assumptions'!$U$27,Table310[[#This Row],[No. Of Dwellings/Units]]<='2. Assumptions'!$V$27),'2. Assumptions'!$W$27,AND(Table310[[#This Row],[Residential/Commercial/Industrial]]=$H$3,Table310[[#This Row],[No. Of Dwellings/Units]]>='2. Assumptions'!$U$28,Table310[[#This Row],[No. Of Dwellings/Units]]<='2. Assumptions'!$V$28),'2. Assumptions'!$W$28,AND(Table310[[#This Row],[Residential/Commercial/Industrial]]=$H$3,Table310[[#This Row],[No. Of Dwellings/Units]]>='2. Assumptions'!$U$29,Table310[[#This Row],[No. Of Dwellings/Units]]<='2. Assumptions'!$V$29),'2. Assumptions'!$W$29,Table310[[#This Row],[Residential/Commercial/Industrial]]<>$H$3,"Non-Residential") -> Medium Density | L4: 955.69 | M4: =I4&1 -> Multi Unit1 | N4: Roof | O4: 120.06 | P4: Above Ground RW Tank | Q4: 2000 | R4: 123.2 | S4: 82 | U4: 1.169497554 | V4: 0.2772259769 | W4: =SUMIFS($V$2:$V$104775,$P$2:$P$104775,'2. Assumptions'!$O$12,$A$2:$A$104775,$A4) + SUMIFS($V$2:$V$104775,$P$2:$P$104775,'2. Assumptions'!$O$19,$A$2:$A$104775,$A4) -> 1.169497554 | X4: =SUMIFS($V$2:$V$104775,$P$2:$P$104775,'2. Assumptions'!$H$65,$A$2:$A$104775,$A4) + SUMIFS($V$2:$V$104775,$P$2:$P$104775,'2. Assumptions'!$H$66,$A$2:$A$104775,$A4) -> 0 | Y4: =SUMIFS($V$2:$V$104775,$P$2:$P$104775,'2. Assumptions'!$H$64,$A$2:$A$104775,$A4) -> 0 | Z4: =SUMIFS($V$2:$V$104775,$P$2:$P$104775,'2. Assumptions'!$H$63,$A$2:$A$104775,$A4) -> 0 | AA4: 443.58 | AB4: 133.3875 | AC4: 0.5582877293 | AD4: =(IF(P4=$P$2,_xlfn.IFS(AND(Q4>'2. Assumptions'!$O$14,Q4<='2. Assumptions'!$P$14),'2. Assumptions'!$Q$14,AND(Q4>'2. Assumptions'!$O$15,Q4<='2. Assumptions'!$P$15),'2. Assumptions'!$Q$15,(Q4>'2. Assumptions'!$O$16),'2. Assumptions'!$Q$16),0))*Q4/1000 -> 2186.541541 | AE4: =(IF(P4='2. Assumptions'!$O$19,_xlfn.IFS(AND(Q4>'2. Assumptions'!$O$21,Q4<='2. Assumptions'!$P$21),'2. Assumptions'!$Q$21,AND(Q4>'2. Assumptions'!$O$22,Q4<='2. Assumptions'!$P$22),'2. Assumptions'!$Q$22,AND(Q4>'2. Assumptions'!$O$23, Q4<='2. Assumptions'!$P$23),'2. Assumptions'!$Q$23,Q4>'2. Assumptions'!$P$24,'2. Assumptions'!$Q$24),0))*Q4/1000 -> 0 | AF4: =IF(SUM(AD4:AE4)<>0,'2. Assumptions'!$L$70,0) -> 2711.000926 | AG4: =IFERROR(_xlfn.IFS(P4='2. Assumptions'!$H$65,'2. Assumptions'!$L$65*Q4,P4='2. Assumptions'!$H$66,'2. Assumptions'!$L$66*Q4),0) -> 0 | AH4: =IF(P4='2. Assumptions'!$H$63,'2. Assumptions'!$L$63*Q4,0) -> 0 | AI4: =IF(P4='2. Assumptions'!$H$64,'2. Assumptions'!$L$64*Q4,0) -> 0 | AJ4: =IF(OR(Table310[[#This Row],[Treatment Type ]]="Above Ground RW Tank",Table310[[#This Row],[Treatment Type ]]="Below Ground RW Tank"),INDEX('2. Assumptions'!$K$13:$K$62,MATCH(Table310[[#This Row],[Treatment volume (m^2 or L) ]],'2. Assumptions'!$I$13:$I$62,1))*('2. Assumptions'!$X$27),Table310[[#This Row],[Treatment volume (m^2 or L) ]]*'2. Assumptions'!$X$27) -> 2503.135823 | AK4: =IF(SUM(AD4:AE4)<>0,'2. Assumptions'!$L$69,0) -> 2494.120852 | AL4: =IFERROR(IF(Table310[[#This Row],[Raingarden Cost]]<>0,(Table310[[#This Row],[Raingarden Cost]]+Table310[[#This Row],[Asset Land Cost ($)]])/(100*Table310[[#This Row],[Total Site Raingarden treatment]]),0),0) -> 0 | AM4: =IFERROR(IF(SUM(Table310[[#This Row],[Above Ground Tank Cost]:[Plumbing Cost]])<>0,(Table310[[#This Row],[Above Ground Tank Cost]]+Table310[[#This Row],[Below Ground Tank Cost]]+Table310[[#This Row],[Plumbing Cost]]+Table310[[#This Row],[Pump]]+Table310[[#This Row],[Asset Land Cost ($)]])/(100*Table310[[#This Row],[Total site Rainwater Tank Treatment]]),0),0) -> 84.60726666 | AN4: =IFERROR(IF(Table310[[#This Row],[Buffer Strip]]<>0,(Table310[[#This Row],[Buffer Strip]]+Table310[[#This Row],[Asset Land Cost ($)]])/(100*Table310[[#This Row],[Total Site Buffer Strip Treatment]]),0),0) -> 0 | AO4: =IFERROR(IF(Table310[[#This Row],[Infiltration Sand]]<>0,(Table310[[#This Row],[Infiltration Sand]]+Table310[[#This Row],[Asset Land Cost ($)]])/(100*Table310[[#This Row],[Total Site Infiltration Sand Treatment]]),0),0) -> 0 | AP4: =SUMIFS($O$2:$O$104775,$P$2:$P$104775,'2. Assumptions'!$O$12,$A$2:$A$104775,$A4) + SUMIFS($O$2:$O$104775,$P$2:$P$104775,'2. Assumptions'!$O$19,$A$2:$A$104775,$A4) -> 443.58 | AQ4: =SUMIFS($O$2:$O$104775,$P$2:$P$104775,'2. Assumptions'!$H$65,$A$2:$A$104775,$A4) + SUMIFS($O$2:$O$104775,$P$2:$P$104775,'2. Assumptions'!$H$66,$A$2:$A$104775,$A4) -> 0 | AR4: =SUMIFS($O$2:$O$104775,$P$2:$P$104775,'2. Assumptions'!$H$64,$A$2:$A$104775,$A4) -> 0 | AS4: =SUMIFS($O$2:$O$104775,$P$2:$P$104775,'2. Assumptions'!$H$63,$A$2:$A$104775,$A4) -> 0 | AT4: =IFERROR(IF(Table310[[#This Row],[Raingarden Cost]]<>0,(Table310[[#This Row],[Raingarden Cost]]+Table310[[#This Row],[Asset Land Cost ($)]])/(Table310[[#This Row],[Total Site m2 Raingarden treatment]]),0),0) -> 0 | AU4: =IFERROR(IF(SUM(Table310[[#This Row],[Above Ground Tank Cost]:[Plumbing Cost]])<>0,(Table310[[#This Row],[Above Ground Tank Cost]]+Table310[[#This Row],[Below Ground Tank Cost]]+Table310[[#This Row],[Plumbing Cost]]+Table310[[#This Row],[Pump]]+Table310[[#This Row],[Asset Land Cost ($)]])/(Table310[[#This Row],[Total site m2 Rainwater Tank Treatment]]),0),0) -> 22.30668457 | AV4: =IFERROR(IF(Table310[[#This Row],[Buffer Strip]]<>0,(Table310[[#This Row],[Buffer Strip]]+Table310[[#This Row],[Asset Land Cost ($)]])/(Table310[[#This Row],[Total Site m2 Buffer Strip Treatment]]),0),0) -> 0 | AW4: =IFERROR(IF(Table310[[#This Row],[Infiltration Sand]]<>0,(Table310[[#This Row],[Infiltration Sand]]+Table310[[#This Row],[Asset Land Cost ($)]])/(Table310[[#This Row],[Total Site m2 Infiltration Sand Treatment]]),0),0) -> 0 | AX4: 82.41545179 | AY4: 533.55 | AZ4: =SUM(Table310[[#This Row],[Above Ground Tank Cost]:[Pump]]) -> 9894.799141 | BA4: 74.18085759 | BB4: =O4*'2. Assumptions'!$D$35 -> 0.1996998 | BC4: =U4*'2. Assumptions'!$D$40*BB4*'2. Assumptions'!$D$38 -> 0.1050967924 | BD4: 0.1167632717 | BE4: 84742.3937 | BF4: 7391.663319 | BG4: 63304.69513 | BH4: 55.41496256
A5: 2 | B5: 787260 | C5: 2019 | D5: Darebin City Council | E5: 1017 High Street, RESERVOIR | F5: Reservoir | G5: 3073 | H5: Residential | I5: Multi Unit | J5: 4 | K5: =_xlfn.IFS(AND(Table310[[#This Row],[Residential/Commercial/Industrial]]=$H$3,Table310[[#This Row],[No. Of Dwellings/Units]]>='2. Assumptions'!$U$27,Table310[[#This Row],[No. Of Dwellings/Units]]<='2. Assumptions'!$V$27),'2. Assumptions'!$W$27,AND(Table310[[#This Row],[Residential/Commercial/Industrial]]=$H$3,Table310[[#This Row],[No. Of Dwellings/Units]]>='2. Assumptions'!$U$28,Table310[[#This Row],[No. Of Dwellings/Units]]<='2. Assumptions'!$V$28),'2. Assumptions'!$W$28,AND(Table310[[#This Row],[Residential/Commercial/Industrial]]=$H$3,Table310[[#This Row],[No. Of Dwellings/Units]]>='2. Assumptions'!$U$29,Table310[[#This Row],[No. Of Dwellings/Units]]<='2. Assumptions'!$V$29),'2. Assumptions'!$W$29,Table310[[#This Row],[Residential/Commercial/Industrial]]<>$H$3,"Non-Residential") -> Medium Density | L5: 955.69 | M5: =I5&2 -> Multi Unit2 | N5: Roof | O5: 107.14 | P5: Above Ground RW Tank | Q5: 2000 | R5: 154 | S5: 81.9 | U5: 1.169497554 | V5: 0.3092411208 | W5: =SUMIFS($V$2:$V$104775,$P$2:$P$104775,'2. Assumptions'!$O$12,$A$2:$A$104775,$A5) + SUMIFS($V$2:$V$104775,$P$2:$P$104775,'2. Assumptions'!$O$19,$A$2:$A$104775,$A5) -> 1.169497554 | X5: =SUMIFS($V$2:$V$104775,$P$2:$P$104775,'2. Assumptions'!$H$65,$A$2:$A$104775,$A5) + SUMIFS($V$2:$V$104775,$P$2:$P$104775,'2. Assumptions'!$H$66,$A$2:$A$104775,$A5) -> 0 | Y5: =SUMIFS($V$2:$V$104775,$P$2:$P$104775,'2. Assumptions'!$H$64,$A$2:$A$104775,$A5) -> 0 | Z5: =SUMIFS($V$2:$V$104775,$P$2:$P$104775,'2. Assumptions'!$H$63,$A$2:$A$104775,$A5) -> 0 | AA5: 443.58 | AB5: 133.3875 | AC5: 0.5582877293 | AD5: =(IF(P5=$P$2,_xlfn.IFS(AND(Q5>'2. Assumptions'!$O$14,Q5<='2. Assumptions'!$P$14),'2. Assumptions'!$Q$14,AND(Q5>'2. Assumptions'!$O$15,Q5<='2. Assumptions'!$P$15),'2. Assumptions'!$Q$15,(Q5>'2. Assumptions'!$O$16),'2. Assumptions'!$Q$16),0))*Q5/1000 -> 2186.541541 | AE5: =(IF(P5='2. Assumptions'!$O$19,_xlfn.IFS(AND(Q5>'2. Assumptions'!$O$21,Q5<='2. Assumptions'!$P$21),'2. Assumptions'!$Q$21,AND(Q5>'2. Assumptions'!$O$22,Q5<='2. Assumptions'!$P$22),'2. Assumptions'!$Q$22,AND(Q5>'2. Assumptions'!$O$23, Q5<='2. Assumptions'!$P$23),'2. Assumptions'!$Q$23,Q5>'2. Assumptions'!$P$24,'2. Assumptions'!$Q$24),0))*Q5/1000 -> 0 | AF5: =IF(SUM(AD5:AE5)<>0,'2. Assumptions'!$L$70,0) -> 2711.000926 | AG5: =IFERROR(_xlfn.IFS(P5='2. Assumptions'!$H$65,'2. Assumptions'!$L$65*Q5,P5='2. Assumptions'!$H$66,'2. Assumptions'!$L$66*Q5),0) -> 0 | AH5: =IF(P5='2. Assumptions'!$H$63,'2. Assumptions'!$L$63*Q5,0) -> 0 | AI5: =IF(P5='2. Assumptions'!$H$64,'2. Assumptions'!$L$64*Q5,0) -> 0 | AJ5: =IF(OR(Table310[[#This Row],[Treatment Type ]]="Above Ground RW Tank",Table310[[#This Row],[Treatment Type ]]="Below Ground RW Tank"),INDEX('2. Assumptions'!$K$13:$K$62,MATCH(Table310[[#This Row],[Treatment volume (m^2 or L) ]],'2. Assumptions'!$I$13:$I$62,1))*('2. Assumptions'!$X$27),Table310[[#This Row],[Treatment volume (m^2 or L) ]]*'2. Assumptions'!$X$27) -> 2503.135823 | AK5: =IF(SUM(AD5:AE5)<>0,'2. Assumptions'!$L$69,0) -> 2494.120852 | AL5: =IFERROR(IF(Table310[[#This Row],[Raingarden Cost]]<>0,(Table310[[#This Row],[Raingarden Cost]]+Table310[[#This Row],[Asset Land Cost ($)]])/(100*Table310[[#This Row],[Total Site Raingarden treatment]]),0),0) -> 0 | AM5: =IFERROR(IF(SUM(Table310[[#This Row],[Above Ground Tank Cost]:[Plumbing Cost]])<>0,(Table310[[#This Row],[Above Ground Tank Cost]]+Table310[[#This Row],[Below Ground Tank Cost]]+Table310[[#This Row],[Plumbing Cost]]+Table310[[#This Row],[Pump]]+Table310[[#This Row],[Asset Land Cost ($)]])/(100*Table310[[#This Row],[Total site Rainwater Tank Treatment]]),0),0) -> 84.60726666 | AN5: =IFERROR(IF(Table310[[#This Row],[Buffer Strip]]<>0,(Table310[[#This Row],[Buffer Strip]]+Table310[[#This Row],[Asset Land Cost ($)]])/(100*Table310[[#This Row],[Total Site Buffer Strip Treatment]]),0),0) -> 0 | AO5: =IFERROR(IF(Table310[[#This Row],[Infiltration Sand]]<>0,(Table310[[#This Row],[Infiltration Sand]]+Table310[[#This Row],[Asset Land Cost ($)]])/(100*Table310[[#This Row],[Total Site Infiltration Sand Treatment]]),0),0) -> 0 | AP5: =SUMIFS($O$2:$O$104775,$P$2:$P$104775,'2. Assumptions'!$O$12,$A$2:$A$104775,$A5) + SUMIFS($O$2:$O$104775,$P$2:$P$104775,'2. Assumptions'!$O$19,$A$2:$A$104775,$A5) -> 443.58 | AQ5: =SUMIFS($O$2:$O$104775,$P$2:$P$104775,'2. Assumptions'!$H$65,$A$2:$A$104775,$A5) + SUMIFS($O$2:$O$104775,$P$2:$P$104775,'2. Assumptions'!$H$66,$A$2:$A$104775,$A5) -> 0 | AR5: =SUMIFS($O$2:$O$104775,$P$2:$P$104775,'2. Assumptions'!$H$64,$A$2:$A$104775,$A5) -> 0 | AS5: =SUMIFS($O$2:$O$104775,$P$2:$P$104775,'2. Assumptions'!$H$63,$A$2:$A$104775,$A5) -> 0 | AT5: =IFERROR(IF(Table310[[#This Row],[Raingarden Cost]]<>0,(Table310[[#This Row],[Raingarden Cost]]+Table310[[#This Row],[Asset Land Cost ($)]])/(Table310[[#This Row],[Total Site m2 Raingarden treatment]]),0),0) -> 0 | AU5: =IFERROR(IF(SUM(Table310[[#This Row],[Above Ground Tank Cost]:[Plumbing Cost]])<>0,(Table310[[#This Row],[Above Ground Tank Cost]]+Table310[[#This Row],[Below Ground Tank Cost]]+Table310[[#This Row],[Plumbing Cost]]+Table310[[#This Row],[Pump]]+Table310[[#This Row],[Asset Land Cost ($)]])/(Table310[[#This Row],[Total site m2 Rainwater Tank Treatment]]),0),0) -> 22.30668457 | AV5: =IFERROR(IF(Table310[[#This Row],[Buffer Strip]]<>0,(Table310[[#This Row],[Buffer Strip]]+Table310[[#This Row],[Asset Land Cost ($)]])/(Table310[[#This Row],[Total Site m2 Buffer Strip Treatment]]),0),0) -> 0 | AW5: =IFERROR(IF(Table310[[#This Row],[Infiltration Sand]]<>0,(Table310[[#This Row],[Infiltration Sand]]+Table310[[#This Row],[Asset Land Cost ($)]])/(Table310[[#This Row],[Total Site m2 Infiltration Sand Treatment]]),0),0) -> 0 | AX5: 92.35392143 | AY5: 533.55 | AZ5: =SUM(Table310[[#This Row],[Above Ground Tank Cost]:[Pump]]) -> 9894.799141 | BA5: 74.18085759 | BB5: =O5*'2. Assumptions'!$D$35 -> 0.1782095333 | BC5: =U5*'2. Assumptions'!$D$40*BB5*'2. Assumptions'!$D$38 -> 0.09378702601 | BD5: 0.1167632717 | BE5: 84742.3937 | BF5: 7391.663319 | BG5: 63304.69513 | BH5: 55.41496256
A6: 2 | B6: 787260 | C6: 2019 | D6: Darebin City Council | E6: 1017 High Street, RESERVOIR | F6: Reservoir | G6: 3073 | H6: Residential | I6: Multi Unit | J6: 4 | K6: =_xlfn.IFS(AND(Table310[[#This Row],[Residential/Commercial/Industrial]]=$H$3,Table310[[#This Row],[No. Of Dwellings/Units]]>='2. Assumptions'!$U$27,Table310[[#This Row],[No. Of Dwellings/Units]]<='2. Assumptions'!$V$27),'2. Assumptions'!$W$27,AND(Table310[[#This Row],[Residential/Commercial/Industrial]]=$H$3,Table310[[#This Row],[No. Of Dwellings/Units]]>='2. Assumptions'!$U$28,Table310[[#This Row],[No. Of Dwellings/Units]]<='2. Assumptions'!$V$28),'2. Assumptions'!$W$28,AND(Table310[[#This Row],[Residential/Commercial/Industrial]]=$H$3,Table310[[#This Row],[No. Of Dwellings/Units]]>='2. Assumptions'!$U$29,Table310[[#This Row],[No. Of Dwellings/Units]]<='2. Assumptions'!$V$29),'2. Assumptions'!$W$29,Table310[[#This Row],[Residential/Commercial/Industrial]]<>$H$3,"Non-Residential") -> Medium Density | L6: 955.69 | M6: =I6&3 -> Multi Unit3 | N6: Roof | O6: 106.73 | P6: Above Ground RW Tank | Q6: 2000 | R6: 154 | S6: 81.9 | U6: 1.169497554 | V6: 0.3080577265 | W6: =SUMIFS($V$2:$V$104775,$P$2:$P$104775,'2. Assumptions'!$O$12,$A$2:$A$104775,$A6) + SUMIFS($V$2:$V$104775,$P$2:$P$104775,'2. Assumptions'!$O$19,$A$2:$A$104775,$A6) -> 1.169497554 | X6: =SUMIFS($V$2:$V$104775,$P$2:$P$104775,'2. Assumptions'!$H$65,$A$2:$A$104775,$A6) + SUMIFS($V$2:$V$104775,$P$2:$P$104775,'2. Assumptions'!$H$66,$A$2:$A$104775,$A6) -> 0 | Y6: =SUMIFS($V$2:$V$104775,$P$2:$P$104775,'2. Assumptions'!$H$64,$A$2:$A$104775,$A6) -> 0 | Z6: =SUMIFS($V$2:$V$104775,$P$2:$P$104775,'2. Assumptions'!$H$63,$A$2:$A$104775,$A6) -> 0 | AA6: 443.58 | AB6: 133.3875 | AC6: 0.5582877293 | AD6: =(IF(P6=$P$2,_xlfn.IFS(AND(Q6>'2. Assumptions'!$O$14,Q6<='2. Assumptions'!$P$14),'2. Assumptions'!$Q$14,AND(Q6>'2. Assumptions'!$O$15,Q6<='2. Assumptions'!$P$15),'2. Assumptions'!$Q$15,(Q6>'2. Assumptions'!$O$16),'2. Assumptions'!$Q$16),0))*Q6/1000 -> 2186.541541 | AE6: =(IF(P6='2. Assumptions'!$O$19,_xlfn.IFS(AND(Q6>'2. Assumptions'!$O$21,Q6<='2. Assumptions'!$P$21),'2. Assumptions'!$Q$21,AND(Q6>'2. Assumptions'!$O$22,Q6<='2. Assumptions'!$P$22),'2. Assumptions'!$Q$22,AND(Q6>'2. Assumptions'!$O$23, Q6<='2. Assumptions'!$P$23),'2. Assumptions'!$Q$23,Q6>'2. Assumptions'!$P$24,'2. Assumptions'!$Q$24),0))*Q6/1000 -> 0 | AF6: =IF(SUM(AD6:AE6)<>0,'2. Assumptions'!$L$70,0) -> 2711.000926 | AG6: =IFERROR(_xlfn.IFS(P6='2. Assumptions'!$H$65,'2. Assumptions'!$L$65*Q6,P6='2. Assumptions'!$H$66,'2. Assumptions'!$L$66*Q6),0) -> 0 | AH6: =IF(P6='2. Assumptions'!$H$63,'2. Assumptions'!$L$63*Q6,0) -> 0 | AI6: =IF(P6='2. Assumptions'!$H$64,'2. Assumptions'!$L$64*Q6,0) -> 0 | AJ6: =IF(OR(Table310[[#This Row],[Treatment Type ]]="Above Ground RW Tank",Table310[[#This Row],[Treatment Type ]]="Below Ground RW Tank"),INDEX('2. Assumptions'!$K$13:$K$62,MATCH(Table310[[#This Row],[Treatment volume (m^2 or L) ]],'2. Assumptions'!$I$13:$I$62,1))*('2. Assumptions'!$X$27),Table310[[#This Row],[Treatment volume (m^2 or L) ]]*'2. Assumptions'!$X$27) -> 2503.135823 | AK6: =IF(SUM(AD6:AE6)<>0,'2. Assumptions'!$L$69,0) -> 2494.120852 | AL6: =IFERROR(IF(Table310[[#This Row],[Raingarden Cost]]<>0,(Table310[[#This Row],[Raingarden Cost]]+Table310[[#This Row],[Asset Land Cost ($)]])/(100*Table310[[#This Row],[Total Site Raingarden treatment]]),0),0) -> 0 | AM6: =IFERROR(IF(SUM(Table310[[#This Row],[Above Ground Tank Cost]:[Plumbing Cost]])<>0,(Table310[[#This Row],[Above Ground Tank Cost]]+Table310[[#This Row],[Below Ground Tank Cost]]+Table310[[#This Row],[Plumbing Cost]]+Table310[[#This Row],[Pump]]+Table310[[#This Row],[Asset Land Cost ($)]])/(100*Table310[[#This Row],[Total site Rainwater Tank Treatment]]),0),0) -> 84.60726666 | AN6: =IFERROR(IF(Table310[[#This Row],[Buffer Strip]]<>0,(Table310[[#This Row],[Buffer Strip]]+Table310[[#This Row],[Asset Land Cost ($)]])/(100*Table310[[#This Row],[Total Site Buffer Strip Treatment]]),0),0) -> 0 | AO6: =IFERROR(IF(Table310[[#This Row],[Infiltration Sand]]<>0,(Table310[[#This Row],[Infiltration Sand]]+Table310[[#This Row],[Asset Land Cost ($)]])/(100*Table310[[#This Row],[Total Site Infiltration Sand Treatment]]),0),0) -> 0 | AP6: =SUMIFS($O$2:$O$104775,$P$2:$P$104775,'2. Assumptions'!$O$12,$A$2:$A$104775,$A6) + SUMIFS($O$2:$O$104775,$P$2:$P$104775,'2. Assumptions'!$O$19,$A$2:$A$104775,$A6) -> 443.58 | AQ6: =SUMIFS($O$2:$O$104775,$P$2:$P$104775,'2. Assumptions'!$H$65,$A$2:$A$104775,$A6) + SUMIFS($O$2:$O$104775,$P$2:$P$104775,'2. Assumptions'!$H$66,$A$2:$A$104775,$A6) -> 0 | AR6: =SUMIFS($O$2:$O$104775,$P$2:$P$104775,'2. Assumptions'!$H$64,$A$2:$A$104775,$A6) -> 0 | AS6: =SUMIFS($O$2:$O$104775,$P$2:$P$104775,'2. Assumptions'!$H$63,$A$2:$A$104775,$A6) -> 0 | AT6: =IFERROR(IF(Table310[[#This Row],[Raingarden Cost]]<>0,(Table310[[#This Row],[Raingarden Cost]]+Table310[[#This Row],[Asset Land Cost ($)]])/(Table310[[#This Row],[Total Site m2 Raingarden treatment]]),0),0) -> 0 | AU6: =IFERROR(IF(SUM(Table310[[#This Row],[Above Ground Tank Cost]:[Plumbing Cost]])<>0,(Table310[[#This Row],[Above Ground Tank Cost]]+Table310[[#This Row],[Below Ground Tank Cost]]+Table310[[#This Row],[Plumbing Cost]]+Table310[[#This Row],[Pump]]+Table310[[#This Row],[Asset Land Cost ($)]])/(Table310[[#This Row],[Total site m2 Rainwater Tank Treatment]]),0),0) -> 22.30668457 | AV6: =IFERROR(IF(Table310[[#This Row],[Buffer Strip]]<>0,(Table310[[#This Row],[Buffer Strip]]+Table310[[#This Row],[Asset Land Cost ($)]])/(Table310[[#This Row],[Total Site m2 Buffer Strip Treatment]]),0),0) -> 0 | AW6: =IFERROR(IF(Table310[[#This Row],[Infiltration Sand]]<>0,(Table310[[#This Row],[Infiltration Sand]]+Table310[[#This Row],[Asset Land Cost ($)]])/(Table310[[#This Row],[Total Site m2 Infiltration Sand Treatment]]),0),0) -> 0 | AX6: 92.70869616 | AY6: 533.55 | AZ6: =SUM(Table310[[#This Row],[Above Ground Tank Cost]:[Pump]]) -> 9894.799141 | BA6: 74.18085759 | BB6: =O6*'2. Assumptions'!$D$35 -> 0.1775275667 | BC6: =U6*'2. Assumptions'!$D$40*BB6*'2. Assumptions'!$D$38 -> 0.09342812475 | BD6: 0.1167632717 | BE6: 84742.3937 | BF6: 7391.663319 | BG6: 63304.69513 | BH6: 55.41496256
A7: 2 | B7: 787260 | C7: 2019 | D7: Darebin City Council | E7: 1017 High Street, RESERVOIR | F7: Reservoir | G7: 3073 | H7: Residential | I7: Multi Unit | J7: 4 | K7: =_xlfn.IFS(AND(Table310[[#This Row],[Residential/Commercial/Industrial]]=$H$3,Table310[[#This Row],[No. Of Dwellings/Units]]>='2. Assumptions'!$U$27,Table310[[#This Row],[No. Of Dwellings/Units]]<='2. Assumptions'!$V$27),'2. Assumptions'!$W$27,AND(Table310[[#This Row],[Residential/Commercial/Industrial]]=$H$3,Table310[[#This Row],[No. Of Dwellings/Units]]>='2. Assumptions'!$U$28,Table310[[#This Row],[No. Of Dwellings/Units]]<='2. Assumptions'!$V$28),'2. Assumptions'!$W$28,AND(Table310[[#This Row],[Residential/Commercial/Industrial]]=$H$3,Table310[[#This Row],[No. Of Dwellings/Units]]>='2. Assumptions'!$U$29,Table310[[#This Row],[No. Of Dwellings/Units]]<='2. Assumptions'!$V$29),'2. Assumptions'!$W$29,Table310[[#This Row],[Residential/Commercial/Industrial]]<>$H$3,"Non-Residential") -> Medium Density | L7: 955.69 | M7: =I7&4 -> Multi Unit4 | N7: Roof | O7: 109.65 | P7: Above Ground RW Tank | Q7: 2000 | R7: 133.8 | S7: 81.9 | U7: 1.169497554 | V7: 0.2749727298 | W7: =SUMIFS($V$2:$V$104775,$P$2:$P$104775,'2. Assumptions'!$O$12,$A$2:$A$104775,$A7) + SUMIFS($V$2:$V$104775,$P$2:$P$104775,'2. Assumptions'!$O$19,$A$2:$A$104775,$A7) -> 1.169497554 | X7: =SUMIFS($V$2:$V$104775,$P$2:$P$104775,'2. Assumptions'!$H$65,$A$2:$A$104775,$A7) + SUMIFS($V$2:$V$104775,$P$2:$P$104775,'2. Assumptions'!$H$66,$A$2:$A$104775,$A7) -> 0 | Y7: =SUMIFS($V$2:$V$104775,$P$2:$P$104775,'2. Assumptions'!$H$64,$A$2:$A$104775,$A7) -> 0 | Z7: =SUMIFS($V$2:$V$104775,$P$2:$P$104775,'2. Assumptions'!$H$63,$A$2:$A$104775,$A7) -> 0 | AA7: 443.58 | AB7: 133.3875 | AC7: 0.5582877293 | AD7: =(IF(P7=$P$2,_xlfn.IFS(AND(Q7>'2. Assumptions'!$O$14,Q7<='2. Assumptions'!$P$14),'2. Assumptions'!$Q$14,AND(Q7>'2. Assumptions'!$O$15,Q7<='2. Assumptions'!$P$15),'2. Assumptions'!$Q$15,(Q7>'2. Assumptions'!$O$16),'2. Assumptions'!$Q$16),0))*Q7/1000 -> 2186.541541 | AE7: =(IF(P7='2. Assumptions'!$O$19,_xlfn.IFS(AND(Q7>'2. Assumptions'!$O$21,Q7<='2. Assumptions'!$P$21),'2. Assumptions'!$Q$21,AND(Q7>'2. Assumptions'!$O$22,Q7<='2. Assumptions'!$P$22),'2. Assumptions'!$Q$22,AND(Q7>'2. Assumptions'!$O$23, Q7<='2. Assumptions'!$P$23),'2. Assumptions'!$Q$23,Q7>'2. Assumptions'!$P$24,'2. Assumptions'!$Q$24),0))*Q7/1000 -> 0 | AF7: =IF(SUM(AD7:AE7)<>0,'2. Assumptions'!$L$70,0) -> 2711.000926 | AG7: =IFERROR(_xlfn.IFS(P7='2. Assumptions'!$H$65,'2. Assumptions'!$L$65*Q7,P7='2. Assumptions'!$H$66,'2. Assumptions'!$L$66*Q7),0) -> 0 | AH7: =IF(P7='2. Assumptions'!$H$63,'2. Assumptions'!$L$63*Q7,0) -> 0 | AI7: =IF(P7='2. Assumptions'!$H$64,'2. Assumptions'!$L$64*Q7,0) -> 0 | AJ7: =IF(OR(Table310[[#This Row],[Treatment Type ]]="Above Ground RW Tank",Table310[[#This Row],[Treatment Type ]]="Below Ground RW Tank"),INDEX('2. Assumptions'!$K$13:$K$62,MATCH(Table310[[#This Row],[Treatment volume (m^2 or L) ]],'2. Assumptions'!$I$13:$I$62,1))*('2. Assumptions'!$X$27),Table310[[#This Row],[Treatment volume (m^2 or L) ]]*'2. Assumptions'!$X$27) -> 2503.135823 | AK7: =IF(SUM(AD7:AE7)<>0,'2. Assumptions'!$L$69,0) -> 2494.120852 | AL7: =IFERROR(IF(Table310[[#This Row],[Raingarden Cost]]<>0,(Table310[[#This Row],[Raingarden Cost]]+Table310[[#This Row],[Asset Land Cost ($)]])/(100*Table310[[#This Row],[Total Site Raingarden treatment]]),0),0) -> 0 | AM7: =IFERROR(IF(SUM(Table310[[#This Row],[Above Ground Tank Cost]:[Plumbing Cost]])<>0,(Table310[[#This Row],[Above Ground Tank Cost]]+Table310[[#This Row],[Below Ground Tank Cost]]+Table310[[#This Row],[Plumbing Cost]]+Table310[[#This Row],[Pump]]+Table310[[#This Row],[Asset Land Cost ($)]])/(100*Table310[[#This Row],[Total site Rainwater Tank Treatment]]),0),0) -> 84.60726666 | AN7: =IFERROR(IF(Table310[[#This Row],[Buffer Strip]]<>0,(Table310[[#This Row],[Buffer Strip]]+Table310[[#This Row],[Asset Land Cost ($)]])/(100*Table310[[#This Row],[Total Site Buffer Strip Treatment]]),0),0) -> 0 | AO7: =IFERROR(IF(Table310[[#This Row],[Infiltration Sand]]<>0,(Table310[[#This Row],[Infiltration Sand]]+Table310[[#This Row],[Asset Land Cost ($)]])/(100*Table310[[#This Row],[Total Site Infiltration Sand Treatment]]),0),0) -> 0 | AP7: =SUMIFS($O$2:$O$104775,$P$2:$P$104775,'2. Assumptions'!$O$12,$A$2:$A$104775,$A7) + SUMIFS($O$2:$O$104775,$P$2:$P$104775,'2. Assumptions'!$O$19,$A$2:$A$104775,$A7) -> 443.58 | AQ7: =SUMIFS($O$2:$O$104775,$P$2:$P$104775,'2. Assumptions'!$H$65,$A$2:$A$104775,$A7) + SUMIFS($O$2:$O$104775,$P$2:$P$104775,'2. Assumptions'!$H$66,$A$2:$A$104775,$A7) -> 0 | AR7: =SUMIFS($O$2:$O$104775,$P$2:$P$104775,'2. Assumptions'!$H$64,$A$2:$A$104775,$A7) -> 0 | AS7: =SUMIFS($O$2:$O$104775,$P$2:$P$104775,'2. Assumptions'!$H$63,$A$2:$A$104775,$A7) -> 0 | AT7: =IFERROR(IF(Table310[[#This Row],[Raingarden Cost]]<>0,(Table310[[#This Row],[Raingarden Cost]]+Table310[[#This Row],[Asset Land Cost ($)]])/(Table310[[#This Row],[Total Site m2 Raingarden treatment]]),0),0) -> 0 | AU7: =IFERROR(IF(SUM(Table310[[#This Row],[Above Ground Tank Cost]:[Plumbing Cost]])<>0,(Table310[[#This Row],[Above Ground Tank Cost]]+Table310[[#This Row],[Below Ground Tank Cost]]+Table310[[#This Row],[Plumbing Cost]]+Table310[[#This Row],[Pump]]+Table310[[#This Row],[Asset Land Cost ($)]])/(Table310[[#This Row],[Total site m2 Rainwater Tank Treatment]]),0),0) -> 22.30668457 | AV7: =IFERROR(IF(Table310[[#This Row],[Buffer Strip]]<>0,(Table310[[#This Row],[Buffer Strip]]+Table310[[#This Row],[Asset Land Cost ($)]])/(Table310[[#This Row],[Total Site m2 Buffer Strip Treatment]]),0),0) -> 0 | AW7: =IFERROR(IF(Table310[[#This Row],[Infiltration Sand]]<>0,(Table310[[#This Row],[Infiltration Sand]]+Table310[[#This Row],[Asset Land Cost ($)]])/(Table310[[#This Row],[Total Site m2 Infiltration Sand Treatment]]),0),0) -> 0 | AX7: 90.23984625 | AY7: 533.55 | AZ7: =SUM(Table310[[#This Row],[Above Ground Tank Cost]:[Pump]]) -> 9894.799141 | BA7: 74.18085759 | BB7: =O7*'2. Assumptions'!$D$35 -> 0.1823845 | BC7: =U7*'2. Assumptions'!$D$40*BB7*'2. Assumptions'!$D$38 -> 0.095984202 | BD7: 0.1167632717 | BE7: 84742.3937 | BF7: 7391.663319 | BG7: 63304.69513 | BH7: 55.41496256
A8: 2 | B8: 787260 | C8: 2019 | D8: Darebin City Council | E8: 1017 High Street, RESERVOIR | F8: Reservoir | G8: 3073 | H8: Residential | I8: Multi Unit | J8: 4 | K8: =_xlfn.IFS(AND(Table310[[#This Row],[Residential/Commercial/Industrial]]=$H$3,Table310[[#This Row],[No. Of Dwellings/Units]]>='2. Assumptions'!$U$27,Table310[[#This Row],[No. Of Dwellings/Units]]<='2. Assumptions'!$V$27),'2. Assumptions'!$W$27,AND(Table310[[#This Row],[Residential/Commercial/Industrial]]=$H$3,Table310[[#This Row],[No. Of Dwellings/Units]]>='2. Assumptions'!$U$28,Table310[[#This Row],[No. Of Dwellings/Units]]<='2. Assumptions'!$V$28),'2. Assumptions'!$W$28,AND(Table310[[#This Row],[Residential/Commercial/Industrial]]=$H$3,Table310[[#This Row],[No. Of Dwellings/Units]]>='2. Assumptions'!$U$29,Table310[[#This Row],[No. Of Dwellings/Units]]<='2. Assumptions'!$V$29),'2. Assumptions'!$W$29,Table310[[#This Row],[Residential/Commercial/Industrial]]<>$H$3,"Non-Residential") -> Medium Density | L8: 955.69 | M8: Shared Driveway | N8: Driveway | O8: 89.97 | P8: None | Q8: 0 | R8: 0 | S8: 0 | U8: 1.169497554 | V8: 0 | W8: =SUMIFS($V$2:$V$104775,$P$2:$P$104775,'2. Assumptions'!$O$12,$A$2:$A$104775,$A8) + SUMIFS($V$2:$V$104775,$P$2:$P$104775,'2. Assumptions'!$O$19,$A$2:$A$104775,$A8) -> 1.169497554 | X8: =SUMIFS($V$2:$V$104775,$P$2:$P$104775,'2. Assumptions'!$H$65,$A$2:$A$104775,$A8) + SUMIFS($V$2:$V$104775,$P$2:$P$104775,'2. Assumptions'!$H$66,$A$2:$A$104775,$A8) -> 0 | Y8: =SUMIFS($V$2:$V$104775,$P$2:$P$104775,'2. Assumptions'!$H$64,$A$2:$A$104775,$A8) -> 0 | Z8: =SUMIFS($V$2:$V$104775,$P$2:$P$104775,'2. Assumptions'!$H$63,$A$2:$A$104775,$A8) -> 0 | AA8: 443.58 | AB8: 133.3875 | AC8: 0.5582877293 | AD8: =(IF(P8=$P$2,_xlfn.IFS(AND(Q8>'2. Assumptions'!$O$14,Q8<='2. Assumptions'!$P$14),'2. Assumptions'!$Q$14,AND(Q8>'2. Assumptions'!$O$15,Q8<='2. Assumptions'!$P$15),'2. Assumptions'!$Q$15,(Q8>'2. Assumptions'!$O$16),'2. Assumptions'!$Q$16),0))*Q8/1000 -> 0 | AE8: =(IF(P8='2. Assumptions'!$O$19,_xlfn.IFS(AND(Q8>'2. Assumptions'!$O$21,Q8<='2. Assumptions'!$P$21),'2. Assumptions'!$Q$21,AND(Q8>'2. Assumptions'!$O$22,Q8<='2. Assumptions'!$P$22),'2. Assumptions'!$Q$22,AND(Q8>'2. Assumptions'!$O$23, Q8<='2. Assumptions'!$P$23),'2. Assumptions'!$Q$23,Q8>'2. Assumptions'!$P$24,'2. Assumptions'!$Q$24),0))*Q8/1000 -> 0 | AF8: =IF(SUM(AD8:AE8)<>0,'2. Assumptions'!$L$70,0) -> 0 | AG8: =IFERROR(_xlfn.IFS(P8='2. Assumptions'!$H$65,'2. Assumptions'!$L$65*Q8,P8='2. Assumptions'!$H$66,'2. Assumptions'!$L$66*Q8),0) -> 0 | AH8: =IF(P8='2. Assumptions'!$H$63,'2. Assumptions'!$L$63*Q8,0) -> 0 | AI8: =IF(P8='2. Assumptions'!$H$64,'2. Assumptions'!$L$64*Q8,0) -> 0 | AJ8: =IF(OR(Table310[[#This Row],[Treatment Type ]]="Above Ground RW Tank",Table310[[#This Row],[Treatment Type ]]="Below Ground RW Tank"),INDEX('2. Assumptions'!$K$13:$K$62,MATCH(Table310[[#This Row],[Treatment volume (m^2 or L) ]],'2. Assumptions'!$I$13:$I$62,1))*('2. Assumptions'!$X$27),Table310[[#This Row],[Treatment volume (m^2 or L) ]]*'2. Assumptions'!$X$27) -> 0 | AK8: =IF(SUM(AD8:AE8)<>0,'2. Assumptions'!$L$69,0) -> 0 | AL8: =IFERROR(IF(Table310[[#This Row],[Raingarden Cost]]<>0,(Table310[[#This Row],[Raingarden Cost]]+Table310[[#This Row],[Asset Land Cost ($)]])/(100*Table310[[#This Row],[Total Site Raingarden treatment]]),0),0) -> 0 | AM8: =IFERROR(IF(SUM(Table310[[#This Row],[Above Ground Tank Cost]:[Plumbing Cost]])<>0,(Table310[[#This Row],[Above Ground Tank Cost]]+Table310[[#This Row],[Below Ground Tank Cost]]+Table310[[#This Row],[Plumbing Cost]]+Table310[[#This Row],[Pump]]+Table310[[#This Row],[Asset Land Cost ($)]])/(100*Table310[[#This Row],[Total site Rainwater Tank Treatment]]),0),0) -> 0 | AN8: =IFERROR(IF(Table310[[#This Row],[Buffer Strip]]<>0,(Table310[[#This Row],[Buffer Strip]]+Table310[[#This Row],[Asset Land Cost ($)]])/(100*Table310[[#This Row],[Total Site Buffer Strip Treatment]]),0),0) -> 0 | AO8: =IFERROR(IF(Table310[[#This Row],[Infiltration Sand]]<>0,(Table310[[#This Row],[Infiltration Sand]]+Table310[[#This Row],[Asset Land Cost ($)]])/(100*Table310[[#This Row],[Total Site Infiltration Sand Treatment]]),0),0) -> 0 | AP8: =SUMIFS($O$2:$O$104775,$P$2:$P$104775,'2. Assumptions'!$O$12,$A$2:$A$104775,$A8) + SUMIFS($O$2:$O$104775,$P$2:$P$104775,'2. Assumptions'!$O$19,$A$2:$A$104775,$A8) -> 443.58 | AQ8: =SUMIFS($O$2:$O$104775,$P$2:$P$104775,'2. Assumptions'!$H$65,$A$2:$A$104775,$A8) + SUMIFS($O$2:$O$104775,$P$2:$P$104775,'2. Assumptions'!$H$66,$A$2:$A$104775,$A8) -> 0 | AR8: =SUMIFS($O$2:$O$104775,$P$2:$P$104775,'2. Assumptions'!$H$64,$A$2:$A$104775,$A8) -> 0 | AS8: =SUMIFS($O$2:$O$104775,$P$2:$P$104775,'2. Assumptions'!$H$63,$A$2:$A$104775,$A8) -> 0 | AT8: =IFERROR(IF(Table310[[#This Row],[Raingarden Cost]]<>0,(Table310[[#This Row],[Raingarden Cost]]+Table310[[#This Row],[Asset Land Cost ($)]])/(Table310[[#This Row],[Total Site m2 Raingarden treatment]]),0),0) -> 0 | AU8: =IFERROR(IF(SUM(Table310[[#This Row],[Above Ground Tank Cost]:[Plumbing Cost]])<>0,(Table310[[#This Row],[Above Ground Tank Cost]]+Table310[[#This Row],[Below Ground Tank Cost]]+Table310[[#This Row],[Plumbing Cost]]+Table310[[#This Row],[Pump]]+Table310[[#This Row],[Asset Land Cost ($)]])/(Table310[[#This Row],[Total site m2 Rainwater Tank Treatment]]),0),0) -> 0 | AV8: =IFERROR(IF(Table310[[#This Row],[Buffer Strip]]<>0,(Table310[[#This Row],[Buffer Strip]]+Table310[[#This Row],[Asset Land Cost ($)]])/(Table310[[#This Row],[Total Site m2 Buffer Strip Treatment]]),0),0) -> 0 | AW8: =IFERROR(IF(Table310[[#This Row],[Infiltration Sand]]<>0,(Table310[[#This Row],[Infiltration Sand]]+Table310[[#This Row],[Asset Land Cost ($)]])/(Table310[[#This Row],[Total Site m2 Infiltration Sand Treatment]]),0),0) -> 0 | AX8: 0 | AY8: 533.55 | AZ8: =SUM(Table310[[#This Row],[Above Ground Tank Cost]:[Pump]]) -> 0 | BA8: 74.18085759 | BB8: =O8*'2. Assumptions'!$D$35 -> 0.1496501 | BC8: =U8*'2. Assumptions'!$D$40*BB8*'2. Assumptions'!$D$38 -> 0.07875694167 | BD8: 0.1167632717 | BE8: 84742.3937 | BF8: 0 | BG8: 63304.69513 | BH8: 55.41496256
A9: 3 | B9: 825230 | C9: 2019 | D9: Darebin City Council | E9: 102 Winter Crescent, RESERVOIR | F9: Reservoir | G9: 3073 | H9: Residential | I9: Multi Unit | J9: 3 | K9: =_xlfn.IFS(AND(Table310[[#This Row],[Residential/Commercial/Industrial]]=$H$3,Table310[[#This Row],[No. Of Dwellings/Units]]>='2. Assumptions'!$U$27,Table310[[#This Row],[No. Of Dwellings/Units]]<='2. Assumptions'!$V$27),'2. Assumptions'!$W$27,AND(Table310[[#This Row],[Residential/Commercial/Industrial]]=$H$3,Table310[[#This Row],[No. Of Dwellings/Units]]>='2. Assumptions'!$U$28,Table310[[#This Row],[No. Of Dwellings/Units]]<='2. Assumptions'!$V$28),'2. Assumptions'!$W$28,AND(Table310[[#This Row],[Residential/Commercial/Industrial]]=$H$3,Table310[[#This Row],[No. Of Dwellings/Units]]>='2. Assumptions'!$U$29,Table310[[#This Row],[No. Of Dwellings/Units]]<='2. Assumptions'!$V$29),'2. Assumptions'!$W$29,Table310[[#This Row],[Residential/Commercial/Industrial]]<>$H$3,"Non-Residential") -> Medium Density | L9: 714 | M9: =I9&1 -> Multi Unit1 | N9: Roof | O9: 128 | P9: Above Ground RW Tank | Q9: 2500 | R9: 125.6 | S9: 87.7 | U9: 1.010845638 | V9: 0.3596599553 | W9: =SUMIFS($V$2:$V$104775,$P$2:$P$104775,'2. Assumptions'!$O$12,$A$2:$A$104775,$A9) + SUMIFS($V$2:$V$104775,$P$2:$P$104775,'2. Assumptions'!$O$19,$A$2:$A$104775,$A9) -> 0.8072662192 | X9: =SUMIFS($V$2:$V$104775,$P$2:$P$104775,'2. Assumptions'!$H$65,$A$2:$A$104775,$A9) + SUMIFS($V$2:$V$104775,$P$2:$P$104775,'2. Assumptions'!$H$66,$A$2:$A$104775,$A9) -> 0.2035794183 | Y9: =SUMIFS($V$2:$V$104775,$P$2:$P$104775,'2. Assumptions'!$H$64,$A$2:$A$104775,$A9) -> 0 | Z9: =SUMIFS($V$2:$V$104775,$P$2:$P$104775,'2. Assumptions'!$H$63,$A$2:$A$104775,$A9) -> 0 | AA9: 261 | AB9: 149 | AC9: 0.6260504202 | AD9: =(IF(P9=$P$2,_xlfn.IFS(AND(Q9>'2. Assumptions'!$O$14,Q9<='2. Assumptions'!$P$14),'2. Assumptions'!$Q$14,AND(Q9>'2. Assumptions'!$O$15,Q9<='2. Assumptions'!$P$15),'2. Assumptions'!$Q$15,(Q9>'2. Assumptions'!$O$16),'2. Assumptions'!$Q$16),0))*Q9/1000 -> 2186.541541 | AE9: =(IF(P9='2. Assumptions'!$O$19,_xlfn.IFS(AND(Q9>'2. Assumptions'!$O$21,Q9<='2. Assumptions'!$P$21),'2. Assumptions'!$Q$21,AND(Q9>'2. Assumptions'!$O$22,Q9<='2. Assumptions'!$P$22),'2. Assumptions'!$Q$22,AND(Q9>'2. Assumptions'!$O$23, Q9<='2. Assumptions'!$P$23),'2. Assumptions'!$Q$23,Q9>'2. Assumptions'!$P$24,'2. Assumptions'!$Q$24),0))*Q9/1000 -> 0 | AF9: =IF(SUM(AD9:AE9)<>0,'2. Assumptions'!$L$70,0) -> 2711.000926 | AG9: =IFERROR(_xlfn.IFS(P9='2. Assumptions'!$H$65,'2. Assumptions'!$L$65*Q9,P9='2. Assumptions'!$H$66,'2. Assumptions'!$L$66*Q9),0) -> 0 | AH9: =IF(P9='2. Assumptions'!$H$63,'2. Assumptions'!$L$63*Q9,0) -> 0 | AI9: =IF(P9='2. Assumptions'!$H$64,'2. Assumptions'!$L$64*Q9,0) -> 0 | AJ9: =IF(OR(Table310[[#This Row],[Treatment Type ]]="Above Ground RW Tank",Table310[[#This Row],[Treatment Type ]]="Below Ground RW Tank"),INDEX('2. Assumptions'!$K$13:$K$62,MATCH(Table310[[#This Row],[Treatment volume (m^2 or L) ]],'2. Assumptions'!$I$13:$I$62,1))*('2. Assumptions'!$X$27),Table310[[#This Row],[Treatment volume (m^2 or L) ]]*'2. Assumptions'!$X$27) -> 3132.4438 | AK9: =IF(SUM(AD9:AE9)<>0,'2. Assumptions'!$L$69,0) -> 2494.120852 | AL9: =IFERROR(IF(Table310[[#This Row],[Raingarden Cost]]<>0,(Table310[[#This Row],[Raingarden Cost]]+Table310[[#This Row],[Asset Land Cost ($)]])/(100*Table310[[#This Row],[Total Site Raingarden treatment]]),0),0) -> 0 | AM9: =IFERROR(IF(SUM(Table310[[#This Row],[Above Ground Tank Cost]:[Plumbing Cost]])<>0,(Table310[[#This Row],[Above Ground Tank Cost]]+Table310[[#This Row],[Below Ground Tank Cost]]+Table310[[#This Row],[Plumbing Cost]]+Table310[[#This Row],[Pump]]+Table310[[#This Row],[Asset Land Cost ($)]])/(100*Table310[[#This Row],[Total site Rainwater Tank Treatment]]),0),0) -> 130.3672428 | AN9: =IFERROR(IF(Table310[[#This Row],[Buffer Strip]]<>0,(Table310[[#This Row],[Buffer Strip]]+Table310[[#This Row],[Asset Land Cost ($)]])/(100*Table310[[#This Row],[Total Site Buffer Strip Treatment]]),0),0) -> 0 | AO9: =IFERROR(IF(Table310[[#This Row],[Infiltration Sand]]<>0,(Table310[[#This Row],[Infiltration Sand]]+Table310[[#This Row],[Asset Land Cost ($)]])/(100*Table310[[#This Row],[Total Site Infiltration Sand Treatment]]),0),0) -> 0 | AP9: =SUMIFS($O$2:$O$104775,$P$2:$P$104775,'2. Assumptions'!$O$12,$A$2:$A$104775,$A9) + SUMIFS($O$2:$O$104775,$P$2:$P$104775,'2. Assumptions'!$O$19,$A$2:$A$104775,$A9) -> 261 | AQ9: =SUMIFS($O$2:$O$104775,$P$2:$P$104775,'2. Assumptions'!$H$65,$A$2:$A$104775,$A9) + SUMIFS($O$2:$O$104775,$P$2:$P$104775,'2. Assumptions'!$H$66,$A$2:$A$104775,$A9) -> 70 | AR9: =SUMIFS($O$2:$O$104775,$P$2:$P$104775,'2. Assumptions'!$H$64,$A$2:$A$104775,$A9) -> 0 | AS9: =SUMIFS($O$2:$O$104775,$P$2:$P$104775,'2. Assumptions'!$H$63,$A$2:$A$104775,$A9) -> 0 | AT9: =IFERROR(IF(Table310[[#This Row],[Raingarden Cost]]<>0,(Table310[[#This Row],[Raingarden Cost]]+Table310[[#This Row],[Asset Land Cost ($)]])/(Table310[[#This Row],[Total Site m2 Raingarden treatment]]),0),0) -> 0 | AU9: =IFERROR(IF(SUM(Table310[[#This Row],[Above Ground Tank Cost]:[Plumbing Cost]])<>0,(Table310[[#This Row],[Above Ground Tank Cost]]+Table310[[#This Row],[Below Ground Tank Cost]]+Table310[[#This Row],[Plumbing Cost]]+Table310[[#This Row],[Pump]]+Table310[[#This Row],[Asset Land Cost ($)]])/(Table310[[#This Row],[Total site m2 Rainwater Tank Treatment]]),0),0) -> 40.3222495 | AV9: =IFERROR(IF(Table310[[#This Row],[Buffer Strip]]<>0,(Table310[[#This Row],[Buffer Strip]]+Table310[[#This Row],[Asset Land Cost ($)]])/(Table310[[#This Row],[Total Site m2 Buffer Strip Treatment]]),0),0) -> 0 | AW9: =IFERROR(IF(Table310[[#This Row],[Infiltration Sand]]<>0,(Table310[[#This Row],[Infiltration Sand]]+Table310[[#This Row],[Asset Land Cost ($)]])/(Table310[[#This Row],[Total Site m2 Infiltration Sand Treatment]]),0),0) -> 0 | AX9: 82.21958687 | AY9: 447 | AZ9: =SUM(Table310[[#This Row],[Above Ground Tank Cost]:[Pump]]) -> 10524.10712 | BA9: 81.26755705 | BB9: =O9*'2. Assumptions'!$D$35 -> 0.2129066667 | BC9: =U9*'2. Assumptions'!$D$40*BB9*'2. Assumptions'!$D$38 -> 0.09684709885 | BD9: 0.112736076 | BE9: 107408.9717 | BF9: 7391.663319 | BG9: 70054.92035 | BH9: 53.00481091
A10: 3 | B10: 825230 | C10: 2019 | D10: Darebin City Council | E10: 102 Winter Crescent, RESERVOIR | F10: Reservoir | G10: 3073 | H10: Residential | I10: Multi Unit | J10: 3 | K10: =_xlfn.IFS(AND(Table310[[#This Row],[Residential/Commercial/Industrial]]=$H$3,Table310[[#This Row],[No. Of Dwellings/Units]]>='2. Assumptions'!$U$27,Table310[[#This Row],[No. Of Dwellings/Units]]<='2. Assumptions'!$V$27),'2. Assumptions'!$W$27,AND(Table310[[#This Row],[Residential/Commercial/Industrial]]=$H$3,Table310[[#This Row],[No. Of Dwellings/Units]]>='2. Assumptions'!$U$28,Table310[[#This Row],[No. Of Dwellings/Units]]<='2. Assumptions'!$V$28),'2. Assumptions'!$W$28,AND(Table310[[#This Row],[Residential/Commercial/Industrial]]=$H$3,Table310[[#This Row],[No. Of Dwellings/Units]]>='2. Assumptions'!$U$29,Table310[[#This Row],[No. Of Dwellings/Units]]<='2. Assumptions'!$V$29),'2. Assumptions'!$W$29,Table310[[#This Row],[Residential/Commercial/Industrial]]<>$H$3,"Non-Residential") -> Medium Density | L10: 714 | M10: =I10&2 -> Multi Unit2 | N10: Roof | O10: 69 | P10: Above Ground RW Tank | Q10: 2500 | R10: 136 | S10: 93.5 | U10: 1.010845638 | V10: 0.2099328859 | W10: =SUMIFS($V$2:$V$104775,$P$2:$P$104775,'2. Assumptions'!$O$12,$A$2:$A$104775,$A10) + SUMIFS($V$2:$V$104775,$P$2:$P$104775,'2. Assumptions'!$O$19,$A$2:$A$104775,$A10) -> 0.8072662192 | X10: =SUMIFS($V$2:$V$104775,$P$2:$P$104775,'2. Assumptions'!$H$65,$A$2:$A$104775,$A10) + SUMIFS($V$2:$V$104775,$P$2:$P$104775,'2. Assumptions'!$H$66,$A$2:$A$104775,$A10) -> 0.2035794183 | Y10: =SUMIFS($V$2:$V$104775,$P$2:$P$104775,'2. Assumptions'!$H$64,$A$2:$A$104775,$A10) -> 0 | Z10: =SUMIFS($V$2:$V$104775,$P$2:$P$104775,'2. Assumptions'!$H$63,$A$2:$A$104775,$A10) -> 0 | AA10: 261 | AB10: 149 | AC10: 0.6260504202 | AD10: =(IF(P10=$P$2,_xlfn.IFS(AND(Q10>'2. Assumptions'!$O$14,Q10<='2. Assumptions'!$P$14),'2. Assumptions'!$Q$14,AND(Q10>'2. Assumptions'!$O$15,Q10<='2. Assumptions'!$P$15),'2. Assumptions'!$Q$15,(Q10>'2. Assumptions'!$O$16),'2. Assumptions'!$Q$16),0))*Q10/1000 -> 2186.541541 | AE10: =(IF(P10='2. Assumptions'!$O$19,_xlfn.IFS(AND(Q10>'2. Assumptions'!$O$21,Q10<='2. Assumptions'!$P$21),'2. Assumptions'!$Q$21,AND(Q10>'2. Assumptions'!$O$22,Q10<='2. Assumptions'!$P$22),'2. Assumptions'!$Q$22,AND(Q10>'2. Assumptions'!$O$23, Q10<='2. Assumptions'!$P$23),'2. Assumptions'!$Q$23,Q10>'2. Assumptions'!$P$24,'2. Assumptions'!$Q$24),0))*Q10/1000 -> 0 | AF10: =IF(SUM(AD10:AE10)<>0,'2. Assumptions'!$L$70,0) -> 2711.000926 | AG10: =IFERROR(_xlfn.IFS(P10='2. Assumptions'!$H$65,'2. Assumptions'!$L$65*Q10,P10='2. Assumptions'!$H$66,'2. Assumptions'!$L$66*Q10),0) -> 0 | AH10: =IF(P10='2. Assumptions'!$H$63,'2. Assumptions'!$L$63*Q10,0) -> 0 | AI10: =IF(P10='2. Assumptions'!$H$64,'2. Assumptions'!$L$64*Q10,0) -> 0 | AJ10: =IF(OR(Table310[[#This Row],[Treatment Type ]]="Above Ground RW Tank",Table310[[#This Row],[Treatment Type ]]="Below Ground RW Tank"),INDEX('2. Assumptions'!$K$13:$K$62,MATCH(Table310[[#This Row],[Treatment volume (m^2 or L) ]],'2. Assumptions'!$I$13:$I$62,1))*('2. Assumptions'!$X$27),Table310[[#This Row],[Treatment volume (m^2 or L) ]]*'2. Assumptions'!$X$27) -> 3132.4438 | AK10: =IF(SUM(AD10:AE10)<>0,'2. Assumptions'!$L$69,0) -> 2494.120852 | AL10: =IFERROR(IF(Table310[[#This Row],[Raingarden Cost]]<>0,(Table310[[#This Row],[Raingarden Cost]]+Table310[[#This Row],[Asset Land Cost ($)]])/(100*Table310[[#This Row],[Total Site Raingarden treatment]]),0),0) -> 0 | AM10: =IFERROR(IF(SUM(Table310[[#This Row],[Above Ground Tank Cost]:[Plumbing Cost]])<>0,(Table310[[#This Row],[Above Ground Tank Cost]]+Table310[[#This Row],[Below Ground Tank Cost]]+Table310[[#This Row],[Plumbing Cost]]+Table310[[#This Row],[Pump]]+Table310[[#This Row],[Asset Land Cost ($)]])/(100*Table310[[#This Row],[Total site Rainwater Tank Treatment]]),0),0) -> 130.3672428 | AN10: =IFERROR(IF(Table310[[#This Row],[Buffer Strip]]<>0,(Table310[[#This Row],[Buffer Strip]]+Table310[[#This Row],[Asset Land Cost ($)]])/(100*Table310[[#This Row],[Total Site Buffer Strip Treatment]]),0),0) -> 0 | AO10: =IFERROR(IF(Table310[[#This Row],[Infiltration Sand]]<>0,(Table310[[#This Row],[Infiltration Sand]]+Table310[[#This Row],[Asset Land Cost ($)]])/(100*Table310[[#This Row],[Total Site Infiltration Sand Treatment]]),0),0) -> 0 | AP10: =SUMIFS($O$2:$O$104775,$P$2:$P$104775,'2. Assumptions'!$O$12,$A$2:$A$104775,$A10) + SUMIFS($O$2:$O$104775,$P$2:$P$104775,'2. Assumptions'!$O$19,$A$2:$A$104775,$A10) -> 261 | AQ10: =SUMIFS($O$2:$O$104775,$P$2:$P$104775,'2. Assumptions'!$H$65,$A$2:$A$104775,$A10) + SUMIFS($O$2:$O$104775,$P$2:$P$104775,'2. Assumptions'!$H$66,$A$2:$A$104775,$A10) -> 70 | AR10: =SUMIFS($O$2:$O$104775,$P$2:$P$104775,'2. Assumptions'!$H$64,$A$2:$A$104775,$A10) -> 0 | AS10: =SUMIFS($O$2:$O$104775,$P$2:$P$104775,'2. Assumptions'!$H$63,$A$2:$A$104775,$A10) -> 0 | AT10: =IFERROR(IF(Table310[[#This Row],[Raingarden Cost]]<>0,(Table310[[#This Row],[Raingarden Cost]]+Table310[[#This Row],[Asset Land Cost ($)]])/(Table310[[#This Row],[Total Site m2 Raingarden treatment]]),0),0) -> 0 | AU10: =IFERROR(IF(SUM(Table310[[#This Row],[Above Ground Tank Cost]:[Plumbing Cost]])<>0,(Table310[[#This Row],[Above Ground Tank Cost]]+Table310[[#This Row],[Below Ground Tank Cost]]+Table310[[#This Row],[Plumbing Cost]]+Table310[[#This Row],[Pump]]+Table310[[#This Row],[Asset Land Cost ($)]])/(Table310[[#This Row],[Total site m2 Rainwater Tank Treatment]]),0),0) -> 40.3222495 | AV10: =IFERROR(IF(Table310[[#This Row],[Buffer Strip]]<>0,(Table310[[#This Row],[Buffer Strip]]+Table310[[#This Row],[Asset Land Cost ($)]])/(Table310[[#This Row],[Total Site m2 Buffer Strip Treatment]]),0),0) -> 0 | AW10: =IFERROR(IF(Table310[[#This Row],[Infiltration Sand]]<>0,(Table310[[#This Row],[Infiltration Sand]]+Table310[[#This Row],[Asset Land Cost ($)]])/(Table310[[#This Row],[Total Site m2 Infiltration Sand Treatment]]),0),0) -> 0 | AX10: 152.5232916 | AY10: 447 | AZ10: =SUM(Table310[[#This Row],[Above Ground Tank Cost]:[Pump]]) -> 10524.10712 | BA10: 81.26755705 | BB10: =O10*'2. Assumptions'!$D$35 -> 0.11477 | BC10: =U10*'2. Assumptions'!$D$40*BB10*'2. Assumptions'!$D$38 -> 0.05220663922 | BD10: 0.112736076 | BE10: 107408.9717 | BF10: 7391.663319 | BG10: 70054.92035 | BH10: 53.00481091
A11: 3 | B11: 825230 | C11: 2019 | D11: Darebin City Council | E11: 102 Winter Crescent, RESERVOIR | F11: Reservoir | G11: 3073 | H11: Residential | I11: Multi Unit | J11: 3 | K11: =_xlfn.IFS(AND(Table310[[#This Row],[Residential/Commercial/Industrial]]=$H$3,Table310[[#This Row],[No. Of Dwellings/Units]]>='2. Assumptions'!$U$27,Table310[[#This Row],[No. Of Dwellings/Units]]<='2. Assumptions'!$V$27),'2. Assumptions'!$W$27,AND(Table310[[#This Row],[Residential/Commercial/Industrial]]=$H$3,Table310[[#This Row],[No. Of Dwellings/Units]]>='2. Assumptions'!$U$28,Table310[[#This Row],[No. Of Dwellings/Units]]<='2. Assumptions'!$V$28),'2. Assumptions'!$W$28,AND(Table310[[#This Row],[Residential/Commercial/Industrial]]=$H$3,Table310[[#This Row],[No. Of Dwellings/Units]]>='2. Assumptions'!$U$29,Table310[[#This Row],[No. Of Dwellings/Units]]<='2. Assumptions'!$V$29),'2. Assumptions'!$W$29,Table310[[#This Row],[Residential/Commercial/Industrial]]<>$H$3,"Non-Residential") -> Medium Density | L11: 714 | M11: =I11&3 -> Multi Unit3 | N11: Roof | O11: 64 | P11: Above Ground RW Tank | Q11: 2500 | R11: 166 | S11: 82 | U11: 1.010845638 | V11: 0.2376733781 | W11: =SUMIFS($V$2:$V$104775,$P$2:$P$104775,'2. Assumptions'!$O$12,$A$2:$A$104775,$A11) + SUMIFS($V$2:$V$104775,$P$2:$P$104775,'2. Assumptions'!$O$19,$A$2:$A$104775,$A11) -> 0.8072662192 | X11: =SUMIFS($V$2:$V$104775,$P$2:$P$104775,'2. Assumptions'!$H$65,$A$2:$A$104775,$A11) + SUMIFS($V$2:$V$104775,$P$2:$P$104775,'2. Assumptions'!$H$66,$A$2:$A$104775,$A11) -> 0.2035794183 | Y11: =SUMIFS($V$2:$V$104775,$P$2:$P$104775,'2. Assumptions'!$H$64,$A$2:$A$104775,$A11) -> 0 | Z11: =SUMIFS($V$2:$V$104775,$P$2:$P$104775,'2. Assumptions'!$H$63,$A$2:$A$104775,$A11) -> 0 | AA11: 261 | AB11: 149 | AC11: 0.6260504202 | AD11: =(IF(P11=$P$2,_xlfn.IFS(AND(Q11>'2. Assumptions'!$O$14,Q11<='2. Assumptions'!$P$14),'2. Assumptions'!$Q$14,AND(Q11>'2. Assumptions'!$O$15,Q11<='2. Assumptions'!$P$15),'2. Assumptions'!$Q$15,(Q11>'2. Assumptions'!$O$16),'2. Assumptions'!$Q$16),0))*Q11/1000 -> 2186.541541 | AE11: =(IF(P11='2. Assumptions'!$O$19,_xlfn.IFS(AND(Q11>'2. Assumptions'!$O$21,Q11<='2. Assumptions'!$P$21),'2. Assumptions'!$Q$21,AND(Q11>'2. Assumptions'!$O$22,Q11<='2. Assumptions'!$P$22),'2. Assumptions'!$Q$22,AND(Q11>'2. Assumptions'!$O$23, Q11<='2. Assumptions'!$P$23),'2. Assumptions'!$Q$23,Q11>'2. Assumptions'!$P$24,'2. Assumptions'!$Q$24),0))*Q11/1000 -> 0 | AF11: =IF(SUM(AD11:AE11)<>0,'2. Assumptions'!$L$70,0) -> 2711.000926 | AG11: =IFERROR(_xlfn.IFS(P11='2. Assumptions'!$H$65,'2. Assumptions'!$L$65*Q11,P11='2. Assumptions'!$H$66,'2. Assumptions'!$L$66*Q11),0) -> 0 | AH11: =IF(P11='2. Assumptions'!$H$63,'2. Assumptions'!$L$63*Q11,0) -> 0 | AI11: =IF(P11='2. Assumptions'!$H$64,'2. Assumptions'!$L$64*Q11,0) -> 0 | AJ11: =IF(OR(Table310[[#This Row],[Treatment Type ]]="Above Ground RW Tank",Table310[[#This Row],[Treatment Type ]]="Below Ground RW Tank"),INDEX('2. Assumptions'!$K$13:$K$62,MATCH(Table310[[#This Row],[Treatment volume (m^2 or L) ]],'2. Assumptions'!$I$13:$I$62,1))*('2. Assumptions'!$X$27),Table310[[#This Row],[Treatment volume (m^2 or L) ]]*'2. Assumptions'!$X$27) -> 3132.4438 | AK11: =IF(SUM(AD11:AE11)<>0,'2. Assumptions'!$L$69,0) -> 2494.120852 | AL11: =IFERROR(IF(Table310[[#This Row],[Raingarden Cost]]<>0,(Table310[[#This Row],[Raingarden Cost]]+Table310[[#This Row],[Asset Land Cost ($)]])/(100*Table310[[#This Row],[Total Site Raingarden treatment]]),0),0) -> 0 | AM11: =IFERROR(IF(SUM(Table310[[#This Row],[Above Ground Tank Cost]:[Plumbing Cost]])<>0,(Table310[[#This Row],[Above Ground Tank Cost]]+Table310[[#This Row],[Below Ground Tank Cost]]+Table310[[#This Row],[Plumbing Cost]]+Table310[[#This Row],[Pump]]+Table310[[#This Row],[Asset Land Cost ($)]])/(100*Table310[[#This Row],[Total site Rainwater Tank Treatment]]),0),0) -> 130.3672428 | AN11: =IFERROR(IF(Table310[[#This Row],[Buffer Strip]]<>0,(Table310[[#This Row],[Buffer Strip]]+Table310[[#This Row],[Asset Land Cost ($)]])/(100*Table310[[#This Row],[Total Site Buffer Strip Treatment]]),0),0) -> 0 | AO11: =IFERROR(IF(Table310[[#This Row],[Infiltration Sand]]<>0,(Table310[[#This Row],[Infiltration Sand]]+Table310[[#This Row],[Asset Land Cost ($)]])/(100*Table310[[#This Row],[Total Site Infiltration Sand Treatment]]),0),0) -> 0 | AP11: =SUMIFS($O$2:$O$104775,$P$2:$P$104775,'2. Assumptions'!$O$12,$A$2:$A$104775,$A11) + SUMIFS($O$2:$O$104775,$P$2:$P$104775,'2. Assumptions'!$O$19,$A$2:$A$104775,$A11) -> 261 | AQ11: =SUMIFS($O$2:$O$104775,$P$2:$P$104775,'2. Assumptions'!$H$65,$A$2:$A$104775,$A11) + SUMIFS($O$2:$O$104775,$P$2:$P$104775,'2. Assumptions'!$H$66,$A$2:$A$104775,$A11) -> 70 | AR11: =SUMIFS($O$2:$O$104775,$P$2:$P$104775,'2. Assumptions'!$H$64,$A$2:$A$104775,$A11) -> 0 | AS11: =SUMIFS($O$2:$O$104775,$P$2:$P$104775,'2. Assumptions'!$H$63,$A$2:$A$104775,$A11) -> 0 | AT11: =IFERROR(IF(Table310[[#This Row],[Raingarden Cost]]<>0,(Table310[[#This Row],[Raingarden Cost]]+Table310[[#This Row],[Asset Land Cost ($)]])/(Table310[[#This Row],[Total Site m2 Raingarden treatment]]),0),0) -> 0 | AU11: =IFERROR(IF(SUM(Table310[[#This Row],[Above Ground Tank Cost]:[Plumbing Cost]])<>0,(Table310[[#This Row],[Above Ground Tank Cost]]+Table310[[#This Row],[Below Ground Tank Cost]]+Table310[[#This Row],[Plumbing Cost]]+Table310[[#This Row],[Pump]]+Table310[[#This Row],[Asset Land Cost ($)]])/(Table310[[#This Row],[Total site m2 Rainwater Tank Treatment]]),0),0) -> 40.3222495 | AV11: =IFERROR(IF(Table310[[#This Row],[Buffer Strip]]<>0,(Table310[[#This Row],[Buffer Strip]]+Table310[[#This Row],[Asset Land Cost ($)]])/(Table310[[#This Row],[Total Site m2 Buffer Strip Treatment]]),0),0) -> 0 | AW11: =IFERROR(IF(Table310[[#This Row],[Infiltration Sand]]<>0,(Table310[[#This Row],[Infiltration Sand]]+Table310[[#This Row],[Asset Land Cost ($)]])/(Table310[[#This Row],[Total Site m2 Infiltration Sand Treatment]]),0),0) -> 0 | AX11: 164.4391737 | AY11: 447 | AZ11: =SUM(Table310[[#This Row],[Above Ground Tank Cost]:[Pump]]) -> 10524.10712 | BA11: 81.26755705 | BB11: =O11*'2. Assumptions'!$D$35 -> 0.1064533333 | BC11: =U11*'2. Assumptions'!$D$40*BB11*'2. Assumptions'!$D$38 -> 0.04842354942 | BD11: 0.112736076 | BE11: 107408.9717 | BF11: 7391.663319 | BG11: 70054.92035 | BH11: 53.00481091
A12: 3 | B12: 825230 | C12: 2019 | D12: Darebin City Council | E12: 102 Winter Crescent, RESERVOIR | F12: Reservoir | G12: 3073 | H12: Residential | I12: Multi Unit | J12: 3 | K12: =_xlfn.IFS(AND(Table310[[#This Row],[Residential/Commercial/Industrial]]=$H$3,Table310[[#This Row],[No. Of Dwellings/Units]]>='2. Assumptions'!$U$27,Table310[[#This Row],[No. Of Dwellings/Units]]<='2. Assumptions'!$V$27),'2. Assumptions'!$W$27,AND(Table310[[#This Row],[Residential/Commercial/Industrial]]=$H$3,Table310[[#This Row],[No. Of Dwellings/Units]]>='2. Assumptions'!$U$28,Table310[[#This Row],[No. Of Dwellings/Units]]<='2. Assumptions'!$V$28),'2. Assumptions'!$W$28,AND(Table310[[#This Row],[Residential/Commercial/Industrial]]=$H$3,Table310[[#This Row],[No. Of Dwellings/Units]]>='2. Assumptions'!$U$29,Table310[[#This Row],[No. Of Dwellings/Units]]<='2. Assumptions'!$V$29),'2. Assumptions'!$W$29,Table310[[#This Row],[Residential/Commercial/Industrial]]<>$H$3,"Non-Residential") -> Medium Density | L12: 714 | M12: Remaining Impervious | N12: Untreated | O12: 116 | P12: None | Q12: 0 | R12: 0 | S12: 0 | T12: Includes remaining driveway, untreated roof areas & impermeable porch areas | U12: 1.010845638 | V12: 0 | W12: =SUMIFS($V$2:$V$104775,$P$2:$P$104775,'2. Assumptions'!$O$12,$A$2:$A$104775,$A12) + SUMIFS($V$2:$V$104775,$P$2:$P$104775,'2. Assumptions'!$O$19,$A$2:$A$104775,$A12) -> 0.8072662192 | X12: =SUMIFS($V$2:$V$104775,$P$2:$P$104775,'2. Assumptions'!$H$65,$A$2:$A$104775,$A12) + SUMIFS($V$2:$V$104775,$P$2:$P$104775,'2. Assumptions'!$H$66,$A$2:$A$104775,$A12) -> 0.2035794183 | Y12: =SUMIFS($V$2:$V$104775,$P$2:$P$104775,'2. Assumptions'!$H$64,$A$2:$A$104775,$A12) -> 0 | Z12: =SUMIFS($V$2:$V$104775,$P$2:$P$104775,'2. Assumptions'!$H$63,$A$2:$A$104775,$A12) -> 0 | AA12: 261 | AB12: 149 | AC12: 0.6260504202 | AD12: =(IF(P12=$P$2,_xlfn.IFS(AND(Q12>'2. Assumptions'!$O$14,Q12<='2. Assumptions'!$P$14),'2. Assumptions'!$Q$14,AND(Q12>'2. Assumptions'!$O$15,Q12<='2. Assumptions'!$P$15),'2. Assumptions'!$Q$15,(Q12>'2. Assumptions'!$O$16),'2. Assumptions'!$Q$16),0))*Q12/1000 -> 0 | AE12: =(IF(P12='2. Assumptions'!$O$19,_xlfn.IFS(AND(Q12>'2. Assumptions'!$O$21,Q12<='2. Assumptions'!$P$21),'2. Assumptions'!$Q$21,AND(Q12>'2. Assumptions'!$O$22,Q12<='2. Assumptions'!$P$22),'2. Assumptions'!$Q$22,AND(Q12>'2. Assumptions'!$O$23, Q12<='2. Assumptions'!$P$23),'2. Assumptions'!$Q$23,Q12>'2. Assumptions'!$P$24,'2. Assumptions'!$Q$24),0))*Q12/1000 -> 0 | AF12: =IF(SUM(AD12:AE12)<>0,'2. Assumptions'!$L$70,0) -> 0 | AG12: =IFERROR(_xlfn.IFS(P12='2. Assumptions'!$H$65,'2. Assumptions'!$L$65*Q12,P12='2. Assumptions'!$H$66,'2. Assumptions'!$L$66*Q12),0) -> 0 | AH12: =IF(P12='2. Assumptions'!$H$63,'2. Assumptions'!$L$63*Q12,0) -> 0 | AI12: =IF(P12='2. Assumptions'!$H$64,'2. Assumptions'!$L$64*Q12,0) -> 0 | AJ12: =IF(OR(Table310[[#This Row],[Treatment Type ]]="Above Ground RW Tank",Table310[[#This Row],[Treatment Type ]]="Below Ground RW Tank"),INDEX('2. Assumptions'!$K$13:$K$62,MATCH(Table310[[#This Row],[Treatment volume (m^2 or L) ]],'2. Assumptions'!$I$13:$I$62,1))*('2. Assumptions'!$X$27),Table310[[#This Row],[Treatment volume (m^2 or L) ]]*'2. Assumptions'!$X$27) -> 0 | AK12: =IF(SUM(AD12:AE12)<>0,'2. Assumptions'!$L$69,0) -> 0 | AL12: =IFERROR(IF(Table310[[#This Row],[Raingarden Cost]]<>0,(Table310[[#This Row],[Raingarden Cost]]+Table310[[#This Row],[Asset Land Cost ($)]])/(100*Table310[[#This Row],[Total Site Raingarden treatment]]),0),0) -> 0 | AM12: =IFERROR(IF(SUM(Table310[[#This Row],[Above Ground Tank Cost]:[Plumbing Cost]])<>0,(Table310[[#This Row],[Above Ground Tank Cost]]+Table310[[#This Row],[Below Ground Tank Cost]]+Table310[[#This Row],[Plumbing Cost]]+Table310[[#This Row],[Pump]]+Table310[[#This Row],[Asset Land Cost ($)]])/(100*Table310[[#This Row],[Total site Rainwater Tank Treatment]]),0),0) -> 0 | AN12: =IFERROR(IF(Table310[[#This Row],[Buffer Strip]]<>0,(Table310[[#This Row],[Buffer Strip]]+Table310[[#This Row],[Asset Land Cost ($)]])/(100*Table310[[#This Row],[Total Site Buffer Strip Treatment]]),0),0) -> 0 | AO12: =IFERROR(IF(Table310[[#This Row],[Infiltration Sand]]<>0,(Table310[[#This Row],[Infiltration Sand]]+Table310[[#This Row],[Asset Land Cost ($)]])/(100*Table310[[#This Row],[Total Site Infiltration Sand Treatment]]),0),0) -> 0 | AP12: =SUMIFS($O$2:$O$104775,$P$2:$P$104775,'2. Assumptions'!$O$12,$A$2:$A$104775,$A12) + SUMIFS($O$2:$O$104775,$P$2:$P$104775,'2. Assumptions'!$O$19,$A$2:$A$104775,$A12) -> 261 | AQ12: =SUMIFS($O$2:$O$104775,$P$2:$P$104775,'2. Assumptions'!$H$65,$A$2:$A$104775,$A12) + SUMIFS($O$2:$O$104775,$P$2:$P$104775,'2. Assumptions'!$H$66,$A$2:$A$104775,$A12) -> 70 | AR12: =SUMIFS($O$2:$O$104775,$P$2:$P$104775,'2. Assumptions'!$H$64,$A$2:$A$104775,$A12) -> 0 | AS12: =SUMIFS($O$2:$O$104775,$P$2:$P$104775,'2. Assumptions'!$H$63,$A$2:$A$104775,$A12) -> 0 | AT12: =IFERROR(IF(Table310[[#This Row],[Raingarden Cost]]<>0,(Table310[[#This Row],[Raingarden Cost]]+Table310[[#This Row],[Asset Land Cost ($)]])/(Table310[[#This Row],[Total Site m2 Raingarden treatment]]),0),0) -> 0 | AU12: =IFERROR(IF(SUM(Table310[[#This Row],[Above Ground Tank Cost]:[Plumbing Cost]])<>0,(Table310[[#This Row],[Above Ground Tank Cost]]+Table310[[#This Row],[Below Ground Tank Cost]]+Table310[[#This Row],[Plumbing Cost]]+Table310[[#This Row],[Pump]]+Table310[[#This Row],[Asset Land Cost ($)]])/(Table310[[#This Row],[Total site m2 Rainwater Tank Treatment]]),0),0) -> 0 | AV12: =IFERROR(IF(Table310[[#This Row],[Buffer Strip]]<>0,(Table310[[#This Row],[Buffer Strip]]+Table310[[#This Row],[Asset Land Cost ($)]])/(Table310[[#This Row],[Total Site m2 Buffer Strip Treatment]]),0),0) -> 0 | AW12: =IFERROR(IF(Table310[[#This Row],[Infiltration Sand]]<>0,(Table310[[#This Row],[Infiltration Sand]]+Table310[[#This Row],[Asset Land Cost ($)]])/(Table310[[#This Row],[Total Site m2 Infiltration Sand Treatment]]),0),0) -> 0 | AX12: 0 | AY12: 447 | AZ12: =SUM(Table310[[#This Row],[Above Ground Tank Cost]:[Pump]]) -> 0 | BA12: 81.26755705 | BB12: =O12*'2. Assumptions'!$D$35 -> 0.1929466667 | BC12: =U12*'2. Assumptions'!$D$40*BB12*'2. Assumptions'!$D$38 -> 0.08776768333 | BD12: 0.112736076 | BE12: 107408.9717 | BF12: 0 | BG12: 70054.92035 | BH12: 53.00481091
A13: 3 | B13: 825230 | C13: 2019 | D13: Darebin City Council | E13: 102 Winter Crescent, RESERVOIR | F13: Reservoir | G13: 3073 | H13: Residential | I13: Multi Unit | J13: 3 | K13: =_xlfn.IFS(AND(Table310[[#This Row],[Residential/Commercial/Industrial]]=$H$3,Table310[[#This Row],[No. Of Dwellings/Units]]>='2. Assumptions'!$U$27,Table310[[#This Row],[No. Of Dwellings/Units]]<='2. Assumptions'!$V$27),'2. Assumptions'!$W$27,AND(Table310[[#This Row],[Residential/Commercial/Industrial]]=$H$3,Table310[[#This Row],[No. Of Dwellings/Units]]>='2. Assumptions'!$U$28,Table310[[#This Row],[No. Of Dwellings/Units]]<='2. Assumptions'!$V$28),'2. Assumptions'!$W$28,AND(Table310[[#This Row],[Residential/Commercial/Industrial]]=$H$3,Table310[[#This Row],[No. Of Dwellings/Units]]>='2. Assumptions'!$U$29,Table310[[#This Row],[No. Of Dwellings/Units]]<='2. Assumptions'!$V$29),'2. Assumptions'!$W$29,Table310[[#This Row],[Residential/Commercial/Industrial]]<>$H$3,"Non-Residential") -> Medium Density | L13: 714 | M13: Shared Driveway | N13: Driveway | O13: 70 | P13: Raingarden 100mm | Q13: 2 | R13: 130 | S13: 0 | T13: Part of the driveway | U13: 1.010845638 | V13: 0.2035794183 | W13: =SUMIFS($V$2:$V$104775,$P$2:$P$104775,'2. Assumptions'!$O$12,$A$2:$A$104775,$A13) + SUMIFS($V$2:$V$104775,$P$2:$P$104775,'2. Assumptions'!$O$19,$A$2:$A$104775,$A13) -> 0.8072662192 | X13: =SUMIFS($V$2:$V$104775,$P$2:$P$104775,'2. Assumptions'!$H$65,$A$2:$A$104775,$A13) + SUMIFS($V$2:$V$104775,$P$2:$P$104775,'2. Assumptions'!$H$66,$A$2:$A$104775,$A13) -> 0.2035794183 | Y13: =SUMIFS($V$2:$V$104775,$P$2:$P$104775,'2. Assumptions'!$H$64,$A$2:$A$104775,$A13) -> 0 | Z13: =SUMIFS($V$2:$V$104775,$P$2:$P$104775,'2. Assumptions'!$H$63,$A$2:$A$104775,$A13) -> 0 | AA13: 261 | AB13: 149 | AC13: 0.6260504202 | AD13: =(IF(P13=$P$2,_xlfn.IFS(AND(Q13>'2. Assumptions'!$O$14,Q13<='2. Assumptions'!$P$14),'2. Assumptions'!$Q$14,AND(Q13>'2. Assumptions'!$O$15,Q13<='2. Assumptions'!$P$15),'2. Assumptions'!$Q$15,(Q13>'2. Assumptions'!$O$16),'2. Assumptions'!$Q$16),0))*Q13/1000 -> 0 | AE13: =(IF(P13='2. Assumptions'!$O$19,_xlfn.IFS(AND(Q13>'2. Assumptions'!$O$21,Q13<='2. Assumptions'!$P$21),'2. Assumptions'!$Q$21,AND(Q13>'2. Assumptions'!$O$22,Q13<='2. Assumptions'!$P$22),'2. Assumptions'!$Q$22,AND(Q13>'2. Assumptions'!$O$23, Q13<='2. Assumptions'!$P$23),'2. Assumptions'!$Q$23,Q13>'2. Assumptions'!$P$24,'2. Assumptions'!$Q$24),0))*Q13/1000 -> 0 | AF13: =IF(SUM(AD13:AE13)<>0,'2. Assumptions'!$L$70,0) -> 0 | AG13: =IFERROR(_xlfn.IFS(P13='2. Assumptions'!$H$65,'2. Assumptions'!$L$65*Q13,P13='2. Assumptions'!$H$66,'2. Assumptions'!$L$66*Q13),0) -> 1518.160518 | AH13: =IF(P13='2. Assumptions'!$H$63,'2. Assumptions'!$L$63*Q13,0) -> 0 | AI13: =IF(P13='2. Assumptions'!$H$64,'2. Assumptions'!$L$64*Q13,0) -> 0 | AJ13: =IF(OR(Table310[[#This Row],[Treatment Type ]]="Above Ground RW Tank",Table310[[#This Row],[Treatment Type ]]="Below Ground RW Tank"),INDEX('2. Assumptions'!$K$13:$K$62,MATCH(Table310[[#This Row],[Treatment volume (m^2 or L) ]],'2. Assumptions'!$I$13:$I$62,1))*('2. Assumptions'!$X$27),Table310[[#This Row],[Treatment volume (m^2 or L) ]]*'2. Assumptions'!$X$27) -> 3236.116125 | AK13: =IF(SUM(AD13:AE13)<>0,'2. Assumptions'!$L$69,0) -> 0 | AL13: =IFERROR(IF(Table310[[#This Row],[Raingarden Cost]]<>0,(Table310[[#This Row],[Raingarden Cost]]+Table310[[#This Row],[Asset Land Cost ($)]])/(100*Table310[[#This Row],[Total Site Raingarden treatment]]),0),0) -> 233.5342483 | AM13: =IFERROR(IF(SUM(Table310[[#This Row],[Above Ground Tank Cost]:[Plumbing Cost]])<>0,(Table310[[#This Row],[Above Ground Tank Cost]]+Table310[[#This Row],[Below Ground Tank Cost]]+Table310[[#This Row],[Plumbing Cost]]+Table310[[#This Row],[Pump]]+Table310[[#This Row],[Asset Land Cost ($)]])/(100*Table310[[#This Row],[Total site Rainwater Tank Treatment]]),0),0) -> 0 | AN13: =IFERROR(IF(Table310[[#This Row],[Buffer Strip]]<>0,(Table310[[#This Row],[Buffer Strip]]+Table310[[#This Row],[Asset Land Cost ($)]])/(100*Table310[[#This Row],[Total Site Buffer Strip Treatment]]),0),0) -> 0 | AO13: =IFERROR(IF(Table310[[#This Row],[Infiltration Sand]]<>0,(Table310[[#This Row],[Infiltration Sand]]+Table310[[#This Row],[Asset Land Cost ($)]])/(100*Table310[[#This Row],[Total Site Infiltration Sand Treatment]]),0),0) -> 0 | AP13: =SUMIFS($O$2:$O$104775,$P$2:$P$104775,'2. Assumptions'!$O$12,$A$2:$A$104775,$A13) + SUMIFS($O$2:$O$104775,$P$2:$P$104775,'2. Assumptions'!$O$19,$A$2:$A$104775,$A13) -> 261 | AQ13: =SUMIFS($O$2:$O$104775,$P$2:$P$104775,'2. Assumptions'!$H$65,$A$2:$A$104775,$A13) + SUMIFS($O$2:$O$104775,$P$2:$P$104775,'2. Assumptions'!$H$66,$A$2:$A$104775,$A13) -> 70 | AR13: =SUMIFS($O$2:$O$104775,$P$2:$P$104775,'2. Assumptions'!$H$64,$A$2:$A$104775,$A13) -> 0 | AS13: =SUMIFS($O$2:$O$104775,$P$2:$P$104775,'2. Assumptions'!$H$63,$A$2:$A$104775,$A13) -> 0 | AT13: =IFERROR(IF(Table310[[#This Row],[Raingarden Cost]]<>0,(Table310[[#This Row],[Raingarden Cost]]+Table310[[#This Row],[Asset Land Cost ($)]])/(Table310[[#This Row],[Total Site m2 Raingarden treatment]]),0),0) -> 67.91823776 | AU13: =IFERROR(IF(SUM(Table310[[#This Row],[Above Ground Tank Cost]:[Plumbing Cost]])<>0,(Table310[[#This Row],[Above Ground Tank Cost]]+Table310[[#This Row],[Below Ground Tank Cost]]+Table310[[#This Row],[Plumbing Cost]]+Table310[[#This Row],[Pump]]+Table310[[#This Row],[Asset Land Cost ($)]])/(Table310[[#This Row],[Total site m2 Rainwater Tank Treatment]]),0),0) -> 0 | AV13: =IFERROR(IF(Table310[[#This Row],[Buffer Strip]]<>0,(Table310[[#This Row],[Buffer Strip]]+Table310[[#This Row],[Asset Land Cost ($)]])/(Table310[[#This Row],[Total Site m2 Buffer Strip Treatment]]),0),0) -> 0 | AW13: =IFERROR(IF(Table310[[#This Row],[Infiltration Sand]]<>0,(Table310[[#This Row],[Infiltration Sand]]+Table310[[#This Row],[Asset Land Cost ($)]])/(Table310[[#This Row],[Total Site m2 Infiltration Sand Treatment]]),0),0) -> 0 | AX13: 67.91823776 | AY13: 447 | AZ13: =SUM(Table310[[#This Row],[Above Ground Tank Cost]:[Pump]]) -> 4754.276643 | BA13: 81.26755705 | BB13: =O13*'2. Assumptions'!$D$35 -> 0.1164333333 | BC13: =U13*'2. Assumptions'!$D$40*BB13*'2. Assumptions'!$D$38 -> 0.05296325718 | BD13: 0.112736076 | BE13: 107408.9717 | BF13: 1518.160518 | BG13: 70054.92035 | BH13: 53.00481091
A14: 4 | B14: 804764 | C14: 2019 | D14: Darebin City Council | E14: 104 Collins Street, THORNBURY | F14: Thornbury | G14: 3071 | H14: Residential | I14: Multi Unit | J14: 2 | K14: =_xlfn.IFS(AND(Table310[[#This Row],[Residential/Commercial/Industrial]]=$H$3,Table310[[#This Row],[No. Of Dwellings/Units]]>='2. Assumptions'!$U$27,Table310[[#This Row],[No. Of Dwellings/Units]]<='2. Assumptions'!$V$27),'2. Assumptions'!$W$27,AND(Table310[[#This Row],[Residential/Commercial/Industrial]]=$H$3,Table310[[#This Row],[No. Of Dwellings/Units]]>='2. Assumptions'!$U$28,Table310[[#This Row],[No. Of Dwellings/Units]]<='2. Assumptions'!$V$28),'2. Assumptions'!$W$28,AND(Table310[[#This Row],[Residential/Commercial/Industrial]]=$H$3,Table310[[#This Row],[No. Of Dwellings/Units]]>='2. Assumptions'!$U$29,Table310[[#This Row],[No. Of Dwellings/Units]]<='2. Assumptions'!$V$29),'2. Assumptions'!$W$29,Table310[[#This Row],[Residential/Commercial/Industrial]]<>$H$3,"Non-Residential") -> Separate Unit | L14: 739.7 | M14: =I14&1 -> Multi Unit1 | N14: Roof | O14: 143.95 | P14: Above Ground RW Tank | Q14: 2500 | R14: 113.8 | S14: 89.3 | U14: 1.015844128 | V14: 0.3809653488 | W14: =SUMIFS($V$2:$V$104775,$P$2:$P$104775,'2. Assumptions'!$O$12,$A$2:$A$104775,$A14) + SUMIFS($V$2:$V$104775,$P$2:$P$104775,'2. Assumptions'!$O$19,$A$2:$A$104775,$A14) -> 0.7619306977 | X14: =SUMIFS($V$2:$V$104775,$P$2:$P$104775,'2. Assumptions'!$H$65,$A$2:$A$104775,$A14) + SUMIFS($V$2:$V$104775,$P$2:$P$104775,'2. Assumptions'!$H$66,$A$2:$A$104775,$A14) -> 0.2539134302 | Y14: =SUMIFS($V$2:$V$104775,$P$2:$P$104775,'2. Assumptions'!$H$64,$A$2:$A$104775,$A14) -> 0 | Z14: =SUMIFS($V$2:$V$104775,$P$2:$P$104775,'2. Assumptions'!$H$63,$A$2:$A$104775,$A14) -> 0 | AA14: 372 | AB14: 215 | AC14: 0.58131675 | AD14: =(IF(P14=$P$2,_xlfn.IFS(AND(Q14>'2. Assumptions'!$O$14,Q14<='2. Assumptions'!$P$14),'2. Assumptions'!$Q$14,AND(Q14>'2. Assumptions'!$O$15,Q14<='2. Assumptions'!$P$15),'2. Assumptions'!$Q$15,(Q14>'2. Assumptions'!$O$16),'2. Assumptions'!$Q$16),0))*Q14/1000 -> 2186.541541 | AE14: =(IF(P14='2. Assumptions'!$O$19,_xlfn.IFS(AND(Q14>'2. Assumptions'!$O$21,Q14<='2. Assumptions'!$P$21),'2. Assumptions'!$Q$21,AND(Q14>'2. Assumptions'!$O$22,Q14<='2. Assumptions'!$P$22),'2. Assumptions'!$Q$22,AND(Q14>'2. Assumptions'!$O$23, Q14<='2. Assumptions'!$P$23),'2. Assumptions'!$Q$23,Q14>'2. Assumptions'!$P$24,'2. Assumptions'!$Q$24),0))*Q14/1000 -> 0 | AF14: =IF(SUM(AD14:AE14)<>0,'2. Assumptions'!$L$70,0) -> 2711.000926 | AG14: =IFERROR(_xlfn.IFS(P14='2. Assumptions'!$H$65,'2. Assumptions'!$L$65*Q14,P14='2. Assumptions'!$H$66,'2. Assumptions'!$L$66*Q14),0) -> 0 | AH14: =IF(P14='2. Assumptions'!$H$63,'2. Assumptions'!$L$63*Q14,0) -> 0 | AI14: =IF(P14='2. Assumptions'!$H$64,'2. Assumptions'!$L$64*Q14,0) -> 0 | AJ14: =IF(OR(Table310[[#This Row],[Treatment Type ]]="Above Ground RW Tank",Table310[[#This Row],[Treatment Type ]]="Below Ground RW Tank"),INDEX('2. Assumptions'!$K$13:$K$62,MATCH(Table310[[#This Row],[Treatment volume (m^2 or L) ]],'2. Assumptions'!$I$13:$I$62,1))*('2. Assumptions'!$X$27),Table310[[#This Row],[Treatment volume (m^2 or L) ]]*'2. Assumptions'!$X$27) -> 3132.4438 | AK14: =IF(SUM(AD14:AE14)<>0,'2. Assumptions'!$L$69,0) -> 2494.120852 | AL14: =IFERROR(IF(Table310[[#This Row],[Raingarden Cost]]<>0,(Table310[[#This Row],[Raingarden Cost]]+Table310[[#This Row],[Asset Land Cost ($)]])/(100*Table310[[#This Row],[Total Site Raingarden treatment]]),0),0) -> 0 | AM14: =IFERROR(IF(SUM(Table310[[#This Row],[Above Ground Tank Cost]:[Plumbing Cost]])<>0,(Table310[[#This Row],[Above Ground Tank Cost]]+Table310[[#This Row],[Below Ground Tank Cost]]+Table310[[#This Row],[Plumbing Cost]]+Table310[[#This Row],[Pump]]+Table310[[#This Row],[Asset Land Cost ($)]])/(100*Table310[[#This Row],[Total site Rainwater Tank Treatment]]),0),0) -> 138.1242041 | AN14: =IFERROR(IF(Table310[[#This Row],[Buffer Strip]]<>0,(Table310[[#This Row],[Buffer Strip]]+Table310[[#This Row],[Asset Land Cost ($)]])/(100*Table310[[#This Row],[Total Site Buffer Strip Treatment]]),0),0) -> 0 | AO14: =IFERROR(IF(Table310[[#This Row],[Infiltration Sand]]<>0,(Table310[[#This Row],[Infiltration Sand]]+Table310[[#This Row],[Asset Land Cost ($)]])/(100*Table310[[#This Row],[Total Site Infiltration Sand Treatment]]),0),0) -> 0 | AP14: =SUMIFS($O$2:$O$104775,$P$2:$P$104775,'2. Assumptions'!$O$12,$A$2:$A$104775,$A14) + SUMIFS($O$2:$O$104775,$P$2:$P$104775,'2. Assumptions'!$O$19,$A$2:$A$104775,$A14) -> 287.9 | AQ14: =SUMIFS($O$2:$O$104775,$P$2:$P$104775,'2. Assumptions'!$H$65,$A$2:$A$104775,$A14) + SUMIFS($O$2:$O$104775,$P$2:$P$104775,'2. Assumptions'!$H$66,$A$2:$A$104775,$A14) -> 84.1 | AR14: =SUMIFS($O$2:$O$104775,$P$2:$P$104775,'2. Assumptions'!$H$64,$A$2:$A$104775,$A14) -> 0 | AS14: =SUMIFS($O$2:$O$104775,$P$2:$P$104775,'2. Assumptions'!$H$63,$A$2:$A$104775,$A14) -> 0 | AT14: =IFERROR(IF(Table310[[#This Row],[Raingarden Cost]]<>0,(Table310[[#This Row],[Raingarden Cost]]+Table310[[#This Row],[Asset Land Cost ($)]])/(Table310[[#This Row],[Total Site m2 Raingarden treatment]]),0),0) -> 0 | AU14: =IFERROR(IF(SUM(Table310[[#This Row],[Above Ground Tank Cost]:[Plumbing Cost]])<>0,(Table310[[#This Row],[Above Ground Tank Cost]]+Table310[[#This Row],[Below Ground Tank Cost]]+Table310[[#This Row],[Plumbing Cost]]+Table310[[#This Row],[Pump]]+Table310[[#This Row],[Asset Land Cost ($)]])/(Table310[[#This Row],[Total site m2 Rainwater Tank Treatment]]),0),0) -> 36.55473122 | AV14: =IFERROR(IF(Table310[[#This Row],[Buffer Strip]]<>0,(Table310[[#This Row],[Buffer Strip]]+Table310[[#This Row],[Asset Land Cost ($)]])/(Table310[[#This Row],[Total Site m2 Buffer Strip Treatment]]),0),0) -> 0 | AW14: =IFERROR(IF(Table310[[#This Row],[Infiltration Sand]]<>0,(Table310[[#This Row],[Infiltration Sand]]+Table310[[#This Row],[Asset Land Cost ($)]])/(Table310[[#This Row],[Total Site m2 Infiltration Sand Treatment]]),0),0) -> 0 | AX14: 73.10946245 | AY14: 430 | AZ14: =SUM(Table310[[#This Row],[Above Ground Tank Cost]:[Pump]]) -> 10524.10712 | BA14: 60.00579275 | BB14: =O14*'2. Assumptions'!$D$35 -> 0.2394368333 | BC14: =U14*'2. Assumptions'!$D$40*BB14*'2. Assumptions'!$D$38 -> 0.1094537255 | BD14: 0.1634772559 | BE14: 78917.678 | BF14: 7391.663319 | BG14: 49858.57839 | BH14: 37.91043525
A15: 4 | B15: 804764 | C15: 2019 | D15: Darebin City Council | E15: 104 Collins Street, THORNBURY | F15: Thornbury | G15: 3071 | H15: Residential | I15: Multi Unit | J15: 2 | K15: =_xlfn.IFS(AND(Table310[[#This Row],[Residential/Commercial/Industrial]]=$H$3,Table310[[#This Row],[No. Of Dwellings/Units]]>='2. Assumptions'!$U$27,Table310[[#This Row],[No. Of Dwellings/Units]]<='2. Assumptions'!$V$27),'2. Assumptions'!$W$27,AND(Table310[[#This Row],[Residential/Commercial/Industrial]]=$H$3,Table310[[#This Row],[No. Of Dwellings/Units]]>='2. Assumptions'!$U$28,Table310[[#This Row],[No. Of Dwellings/Units]]<='2. Assumptions'!$V$28),'2. Assumptions'!$W$28,AND(Table310[[#This Row],[Residential/Commercial/Industrial]]=$H$3,Table310[[#This Row],[No. Of Dwellings/Units]]>='2. Assumptions'!$U$29,Table310[[#This Row],[No. Of Dwellings/Units]]<='2. Assumptions'!$V$29),'2. Assumptions'!$W$29,Table310[[#This Row],[Residential/Commercial/Industrial]]<>$H$3,"Non-Residential") -> Separate Unit | L15: 739.7 | M15: =I15&2 -> Multi Unit2 | N15: Roof | O15: 143.95 | P15: Above Ground RW Tank | Q15: 2500 | R15: 113.8 | S15: 89.3 | U15: 1.015844128 | V15: 0.3809653488 | W15: =SUMIFS($V$2:$V$104775,$P$2:$P$104775,'2. Assumptions'!$O$12,$A$2:$A$104775,$A15) + SUMIFS($V$2:$V$104775,$P$2:$P$104775,'2. Assumptions'!$O$19,$A$2:$A$104775,$A15) -> 0.7619306977 | X15: =SUMIFS($V$2:$V$104775,$P$2:$P$104775,'2. Assumptions'!$H$65,$A$2:$A$104775,$A15) + SUMIFS($V$2:$V$104775,$P$2:$P$104775,'2. Assumptions'!$H$66,$A$2:$A$104775,$A15) -> 0.2539134302 | Y15: =SUMIFS($V$2:$V$104775,$P$2:$P$104775,'2. Assumptions'!$H$64,$A$2:$A$104775,$A15) -> 0 | Z15: =SUMIFS($V$2:$V$104775,$P$2:$P$104775,'2. Assumptions'!$H$63,$A$2:$A$104775,$A15) -> 0 | AA15: 372 | AB15: 215 | AC15: 0.58131675 | AD15: =(IF(P15=$P$2,_xlfn.IFS(AND(Q15>'2. Assumptions'!$O$14,Q15<='2. Assumptions'!$P$14),'2. Assumptions'!$Q$14,AND(Q15>'2. Assumptions'!$O$15,Q15<='2. Assumptions'!$P$15),'2. Assumptions'!$Q$15,(Q15>'2. Assumptions'!$O$16),'2. Assumptions'!$Q$16),0))*Q15/1000 -> 2186.541541 | AE15: =(IF(P15='2. Assumptions'!$O$19,_xlfn.IFS(AND(Q15>'2. Assumptions'!$O$21,Q15<='2. Assumptions'!$P$21),'2. Assumptions'!$Q$21,AND(Q15>'2. Assumptions'!$O$22,Q15<='2. Assumptions'!$P$22),'2. Assumptions'!$Q$22,AND(Q15>'2. Assumptions'!$O$23, Q15<='2. Assumptions'!$P$23),'2. Assumptions'!$Q$23,Q15>'2. Assumptions'!$P$24,'2. Assumptions'!$Q$24),0))*Q15/1000 -> 0 | AF15: =IF(SUM(AD15:AE15)<>0,'2. Assumptions'!$L$70,0) -> 2711.000926 | AG15: =IFERROR(_xlfn.IFS(P15='2. Assumptions'!$H$65,'2. Assumptions'!$L$65*Q15,P15='2. Assumptions'!$H$66,'2. Assumptions'!$L$66*Q15),0) -> 0 | AH15: =IF(P15='2. Assumptions'!$H$63,'2. Assumptions'!$L$63*Q15,0) -> 0 | AI15: =IF(P15='2. Assumptions'!$H$64,'2. Assumptions'!$L$64*Q15,0) -> 0 | AJ15: =IF(OR(Table310[[#This Row],[Treatment Type ]]="Above Ground RW Tank",Table310[[#This Row],[Treatment Type ]]="Below Ground RW Tank"),INDEX('2. Assumptions'!$K$13:$K$62,MATCH(Table310[[#This Row],[Treatment volume (m^2 or L) ]],'2. Assumptions'!$I$13:$I$62,1))*('2. Assumptions'!$X$27),Table310[[#This Row],[Treatment volume (m^2 or L) ]]*'2. Assumptions'!$X$27) -> 3132.4438 | AK15: =IF(SUM(AD15:AE15)<>0,'2. Assumptions'!$L$69,0) -> 2494.120852 | AL15: =IFERROR(IF(Table310[[#This Row],[Raingarden Cost]]<>0,(Table310[[#This Row],[Raingarden Cost]]+Table310[[#This Row],[Asset Land Cost ($)]])/(100*Table310[[#This Row],[Total Site Raingarden treatment]]),0),0) -> 0 | AM15: =IFERROR(IF(SUM(Table310[[#This Row],[Above Ground Tank Cost]:[Plumbing Cost]])<>0,(Table310[[#This Row],[Above Ground Tank Cost]]+Table310[[#This Row],[Below Ground Tank Cost]]+Table310[[#This Row],[Plumbing Cost]]+Table310[[#This Row],[Pump]]+Table310[[#This Row],[Asset Land Cost ($)]])/(100*Table310[[#This Row],[Total site Rainwater Tank Treatment]]),0),0) -> 138.1242041 | AN15: =IFERROR(IF(Table310[[#This Row],[Buffer Strip]]<>0,(Table310[[#This Row],[Buffer Strip]]+Table310[[#This Row],[Asset Land Cost ($)]])/(100*Table310[[#This Row],[Total Site Buffer Strip Treatment]]),0),0) -> 0 | AO15: =IFERROR(IF(Table310[[#This Row],[Infiltration Sand]]<>0,(Table310[[#This Row],[Infiltration Sand]]+Table310[[#This Row],[Asset Land Cost ($)]])/(100*Table310[[#This Row],[Total Site Infiltration Sand Treatment]]),0),0) -> 0 | AP15: =SUMIFS($O$2:$O$104775,$P$2:$P$104775,'2. Assumptions'!$O$12,$A$2:$A$104775,$A15) + SUMIFS($O$2:$O$104775,$P$2:$P$104775,'2. Assumptions'!$O$19,$A$2:$A$104775,$A15) -> 287.9 | AQ15: =SUMIFS($O$2:$O$104775,$P$2:$P$104775,'2. Assumptions'!$H$65,$A$2:$A$104775,$A15) + SUMIFS($O$2:$O$104775,$P$2:$P$104775,'2. Assumptions'!$H$66,$A$2:$A$104775,$A15) -> 84.1 | AR15: =SUMIFS($O$2:$O$104775,$P$2:$P$104775,'2. Assumptions'!$H$64,$A$2:$A$104775,$A15) -> 0 | AS15: =SUMIFS($O$2:$O$104775,$P$2:$P$104775,'2. Assumptions'!$H$63,$A$2:$A$104775,$A15) -> 0 | AT15: =IFERROR(IF(Table310[[#This Row],[Raingarden Cost]]<>0,(Table310[[#This Row],[Raingarden Cost]]+Table310[[#This Row],[Asset Land Cost ($)]])/(Table310[[#This Row],[Total Site m2 Raingarden treatment]]),0),0) -> 0 | AU15: =IFERROR(IF(SUM(Table310[[#This Row],[Above Ground Tank Cost]:[Plumbing Cost]])<>0,(Table310[[#This Row],[Above Ground Tank Cost]]+Table310[[#This Row],[Below Ground Tank Cost]]+Table310[[#This Row],[Plumbing Cost]]+Table310[[#This Row],[Pump]]+Table310[[#This Row],[Asset Land Cost ($)]])/(Table310[[#This Row],[Total site m2 Rainwater Tank Treatment]]),0),0) -> 36.55473122 | AV15: =IFERROR(IF(Table310[[#This Row],[Buffer Strip]]<>0,(Table310[[#This Row],[Buffer Strip]]+Table310[[#This Row],[Asset Land Cost ($)]])/(Table310[[#This Row],[Total Site m2 Buffer Strip Treatment]]),0),0) -> 0 | AW15: =IFERROR(IF(Table310[[#This Row],[Infiltration Sand]]<>0,(Table310[[#This Row],[Infiltration Sand]]+Table310[[#This Row],[Asset Land Cost ($)]])/(Table310[[#This Row],[Total Site m2 Infiltration Sand Treatment]]),0),0) -> 0 | AX15: 73.10946245 | AY15: 430 | AZ15: =SUM(Table310[[#This Row],[Above Ground Tank Cost]:[Pump]]) -> 10524.10712 | BA15: 60.00579275 | BB15: =O15*'2. Assumptions'!$D$35 -> 0.2394368333 | BC15: =U15*'2. Assumptions'!$D$40*BB15*'2. Assumptions'!$D$38 -> 0.1094537255 | BD15: 0.1634772559 | BE15: 78917.678 | BF15: 7391.663319 | BG15: 49858.57839 | BH15: 37.91043525
A16: 4 | B16: 804764 | C16: 2019 | D16: Darebin City Council | E16: 104 Collins Street, THORNBURY | F16: Thornbury | G16: 3071 | H16: Residential | I16: Multi Unit | J16: 2 | K16: =_xlfn.IFS(AND(Table310[[#This Row],[Residential/Commercial/Industrial]]=$H$3,Table310[[#This Row],[No. Of Dwellings/Units]]>='2. Assumptions'!$U$27,Table310[[#This Row],[No. Of Dwellings/Units]]<='2. Assumptions'!$V$27),'2. Assumptions'!$W$27,AND(Table310[[#This Row],[Residential/Commercial/Industrial]]=$H$3,Table310[[#This Row],[No. Of Dwellings/Units]]>='2. Assumptions'!$U$28,Table310[[#This Row],[No. Of Dwellings/Units]]<='2. Assumptions'!$V$28),'2. Assumptions'!$W$28,AND(Table310[[#This Row],[Residential/Commercial/Industrial]]=$H$3,Table310[[#This Row],[No. Of Dwellings/Units]]>='2. Assumptions'!$U$29,Table310[[#This Row],[No. Of Dwellings/Units]]<='2. Assumptions'!$V$29),'2. Assumptions'!$W$29,Table310[[#This Row],[Residential/Commercial/Industrial]]<>$H$3,"Non-Residential") -> Separate Unit | L16: 739.7 | M16: =I16&1 -> Multi Unit1 | N16: Roof | O16: 42.15 | P16: Raingarden 100mm | Q16: 1 | R16: 129.8 | S16: 0 | U16: 1.015844128 | V16: 0.127234186 | W16: =SUMIFS($V$2:$V$104775,$P$2:$P$104775,'2. Assumptions'!$O$12,$A$2:$A$104775,$A16) + SUMIFS($V$2:$V$104775,$P$2:$P$104775,'2. Assumptions'!$O$19,$A$2:$A$104775,$A16) -> 0.7619306977 | X16: =SUMIFS($V$2:$V$104775,$P$2:$P$104775,'2. Assumptions'!$H$65,$A$2:$A$104775,$A16) + SUMIFS($V$2:$V$104775,$P$2:$P$104775,'2. Assumptions'!$H$66,$A$2:$A$104775,$A16) -> 0.2539134302 | Y16: =SUMIFS($V$2:$V$104775,$P$2:$P$104775,'2. Assumptions'!$H$64,$A$2:$A$104775,$A16) -> 0 | Z16: =SUMIFS($V$2:$V$104775,$P$2:$P$104775,'2. Assumptions'!$H$63,$A$2:$A$104775,$A16) -> 0 | AA16: 372 | AB16: 215 | AC16: 0.58131675 | AD16: =(IF(P16=$P$2,_xlfn.IFS(AND(Q16>'2. Assumptions'!$O$14,Q16<='2. Assumptions'!$P$14),'2. Assumptions'!$Q$14,AND(Q16>'2. Assumptions'!$O$15,Q16<='2. Assumptions'!$P$15),'2. Assumptions'!$Q$15,(Q16>'2. Assumptions'!$O$16),'2. Assumptions'!$Q$16),0))*Q16/1000 -> 0 | AE16: =(IF(P16='2. Assumptions'!$O$19,_xlfn.IFS(AND(Q16>'2. Assumptions'!$O$21,Q16<='2. Assumptions'!$P$21),'2. Assumptions'!$Q$21,AND(Q16>'2. Assumptions'!$O$22,Q16<='2. Assumptions'!$P$22),'2. Assumptions'!$Q$22,AND(Q16>'2. Assumptions'!$O$23, Q16<='2. Assumptions'!$P$23),'2. Assumptions'!$Q$23,Q16>'2. Assumptions'!$P$24,'2. Assumptions'!$Q$24),0))*Q16/1000 -> 0 | AF16: =IF(SUM(AD16:AE16)<>0,'2. Assumptions'!$L$70,0) -> 0 | AG16: =IFERROR(_xlfn.IFS(P16='2. Assumptions'!$H$65,'2. Assumptions'!$L$65*Q16,P16='2. Assumptions'!$H$66,'2. Assumptions'!$L$66*Q16),0) -> 759.0802592 | AH16: =IF(P16='2. Assumptions'!$H$63,'2. Assumptions'!$L$63*Q16,0) -> 0 | AI16: =IF(P16='2. Assumptions'!$H$64,'2. Assumptions'!$L$64*Q16,0) -> 0 | AJ16: =IF(OR(Table310[[#This Row],[Treatment Type ]]="Above Ground RW Tank",Table310[[#This Row],[Treatment Type ]]="Below Ground RW Tank"),INDEX('2. Assumptions'!$K$13:$K$62,MATCH(Table310[[#This Row],[Treatment volume (m^2 or L) ]],'2. Assumptions'!$I$13:$I$62,1))*('2. Assumptions'!$X$27),Table310[[#This Row],[Treatment volume (m^2 or L) ]]*'2. Assumptions'!$X$27) -> 1618.058063 | AK16: =IF(SUM(AD16:AE16)<>0,'2. Assumptions'!$L$69,0) -> 0 | AL16: =IFERROR(IF(Table310[[#This Row],[Raingarden Cost]]<>0,(Table310[[#This Row],[Raingarden Cost]]+Table310[[#This Row],[Asset Land Cost ($)]])/(100*Table310[[#This Row],[Total Site Raingarden treatment]]),0),0) -> 93.62003103 | AM16: =IFERROR(IF(SUM(Table310[[#This Row],[Above Ground Tank Cost]:[Plumbing Cost]])<>0,(Table310[[#This Row],[Above Ground Tank Cost]]+Table310[[#This Row],[Below Ground Tank Cost]]+Table310[[#This Row],[Plumbing Cost]]+Table310[[#This Row],[Pump]]+Table310[[#This Row],[Asset Land Cost ($)]])/(100*Table310[[#This Row],[Total site Rainwater Tank Treatment]]),0),0) -> 0 | AN16: =IFERROR(IF(Table310[[#This Row],[Buffer Strip]]<>0,(Table310[[#This Row],[Buffer Strip]]+Table310[[#This Row],[Asset Land Cost ($)]])/(100*Table310[[#This Row],[Total Site Buffer Strip Treatment]]),0),0) -> 0 | AO16: =IFERROR(IF(Table310[[#This Row],[Infiltration Sand]]<>0,(Table310[[#This Row],[Infiltration Sand]]+Table310[[#This Row],[Asset Land Cost ($)]])/(100*Table310[[#This Row],[Total Site Infiltration Sand Treatment]]),0),0) -> 0 | AP16: =SUMIFS($O$2:$O$104775,$P$2:$P$104775,'2. Assumptions'!$O$12,$A$2:$A$104775,$A16) + SUMIFS($O$2:$O$104775,$P$2:$P$104775,'2. Assumptions'!$O$19,$A$2:$A$104775,$A16) -> 287.9 | AQ16: =SUMIFS($O$2:$O$104775,$P$2:$P$104775,'2. Assumptions'!$H$65,$A$2:$A$104775,$A16) + SUMIFS($O$2:$O$104775,$P$2:$P$104775,'2. Assumptions'!$H$66,$A$2:$A$104775,$A16) -> 84.1 | AR16: =SUMIFS($O$2:$O$104775,$P$2:$P$104775,'2. Assumptions'!$H$64,$A$2:$A$104775,$A16) -> 0 | AS16: =SUMIFS($O$2:$O$104775,$P$2:$P$104775,'2. Assumptions'!$H$63,$A$2:$A$104775,$A16) -> 0 | AT16: =IFERROR(IF(Table310[[#This Row],[Raingarden Cost]]<>0,(Table310[[#This Row],[Raingarden Cost]]+Table310[[#This Row],[Asset Land Cost ($)]])/(Table310[[#This Row],[Total Site m2 Raingarden treatment]]),0),0) -> 28.26561619 | AU16: =IFERROR(IF(SUM(Table310[[#This Row],[Above Ground Tank Cost]:[Plumbing Cost]])<>0,(Table310[[#This Row],[Above Ground Tank Cost]]+Table310[[#This Row],[Below Ground Tank Cost]]+Table310[[#This Row],[Plumbing Cost]]+Table310[[#This Row],[Pump]]+Table310[[#This Row],[Asset Land Cost ($)]])/(Table310[[#This Row],[Total site m2 Rainwater Tank Treatment]]),0),0) -> 0 | AV16: =IFERROR(IF(Table310[[#This Row],[Buffer Strip]]<>0,(Table310[[#This Row],[Buffer Strip]]+Table310[[#This Row],[Asset Land Cost ($)]])/(Table310[[#This Row],[Total Site m2 Buffer Strip Treatment]]),0),0) -> 0 | AW16: =IFERROR(IF(Table310[[#This Row],[Infiltration Sand]]<>0,(Table310[[#This Row],[Infiltration Sand]]+Table310[[#This Row],[Asset Land Cost ($)]])/(Table310[[#This Row],[Total Site m2 Infiltration Sand Treatment]]),0),0) -> 0 | AX16: 56.39711321 | AY16: 430 | AZ16: =SUM(Table310[[#This Row],[Above Ground Tank Cost]:[Pump]]) -> 2377.138322 | BA16: 60.00579275 | BB16: =O16*'2. Assumptions'!$D$35 -> 0.0701095 | BC16: =U16*'2. Assumptions'!$D$40*BB16*'2. Assumptions'!$D$38 -> 0.03204914575 | BD16: 0.1634772559 | BE16: 78917.678 | BF16: 759.0802592 | BG16: 49858.57839 | BH16: 37.91043525
A17: 4 | B17: 804764 | C17: 2019 | D17: Darebin City Council | E17: 104 Collins Street, THORNBURY | F17: Thornbury | G17: 3071 | H17: Residential | I17: Multi Unit | J17: 2 | K17: =_xlfn.IFS(AND(Table310[[#This Row],[Residential/Commercial/Industrial]]=$H$3,Table310[[#This Row],[No. Of Dwellings/Units]]>='2. Assumptions'!$U$27,Table310[[#This Row],[No. Of Dwellings/Units]]<='2. Assumptions'!$V$27),'2. Assumptions'!$W$27,AND(Table310[[#This Row],[Residential/Commercial/Industrial]]=$H$3,Table310[[#This Row],[No. Of Dwellings/Units]]>='2. Assumptions'!$U$28,Table310[[#This Row],[No. Of Dwellings/Units]]<='2. Assumptions'!$V$28),'2. Assumptions'!$W$28,AND(Table310[[#This Row],[Residential/Commercial/Industrial]]=$H$3,Table310[[#This Row],[No. Of Dwellings/Units]]>='2. Assumptions'!$U$29,Table310[[#This Row],[No. Of Dwellings/Units]]<='2. Assumptions'!$V$29),'2. Assumptions'!$W$29,Table310[[#This Row],[Residential/Commercial/Industrial]]<>$H$3,"Non-Residential") -> Separate Unit | L17: 739.7 | M17: =I17&2 -> Multi Unit2 | N17: Roof | O17: 41.95 | P17: Raingarden 100mm | Q17: 1 | R17: 129.85 | S17: 0 | U17: 1.015844128 | V17: 0.1266792442 | W17: =SUMIFS($V$2:$V$104775,$P$2:$P$104775,'2. Assumptions'!$O$12,$A$2:$A$104775,$A17) + SUMIFS($V$2:$V$104775,$P$2:$P$104775,'2. Assumptions'!$O$19,$A$2:$A$104775,$A17) -> 0.7619306977 | X17: =SUMIFS($V$2:$V$104775,$P$2:$P$104775,'2. Assumptions'!$H$65,$A$2:$A$104775,$A17) + SUMIFS($V$2:$V$104775,$P$2:$P$104775,'2. Assumptions'!$H$66,$A$2:$A$104775,$A17) -> 0.2539134302 | Y17: =SUMIFS($V$2:$V$104775,$P$2:$P$104775,'2. Assumptions'!$H$64,$A$2:$A$104775,$A17) -> 0 | Z17: =SUMIFS($V$2:$V$104775,$P$2:$P$104775,'2. Assumptions'!$H$63,$A$2:$A$104775,$A17) -> 0 | AA17: 372 | AB17: 215 | AC17: 0.58131675 | AD17: =(IF(P17=$P$2,_xlfn.IFS(AND(Q17>'2. Assumptions'!$O$14,Q17<='2. Assumptions'!$P$14),'2. Assumptions'!$Q$14,AND(Q17>'2. Assumptions'!$O$15,Q17<='2. Assumptions'!$P$15),'2. Assumptions'!$Q$15,(Q17>'2. Assumptions'!$O$16),'2. Assumptions'!$Q$16),0))*Q17/1000 -> 0 | AE17: =(IF(P17='2. Assumptions'!$O$19,_xlfn.IFS(AND(Q17>'2. Assumptions'!$O$21,Q17<='2. Assumptions'!$P$21),'2. Assumptions'!$Q$21,AND(Q17>'2. Assumptions'!$O$22,Q17<='2. Assumptions'!$P$22),'2. Assumptions'!$Q$22,AND(Q17>'2. Assumptions'!$O$23, Q17<='2. Assumptions'!$P$23),'2. Assumptions'!$Q$23,Q17>'2. Assumptions'!$P$24,'2. Assumptions'!$Q$24),0))*Q17/1000 -> 0 | AF17: =IF(SUM(AD17:AE17)<>0,'2. Assumptions'!$L$70,0) -> 0 | AG17: =IFERROR(_xlfn.IFS(P17='2. Assumptions'!$H$65,'2. Assumptions'!$L$65*Q17,P17='2. Assumptions'!$H$66,'2. Assumptions'!$L$66*Q17),0) -> 759.0802592 | AH17: =IF(P17='2. Assumptions'!$H$63,'2. Assumptions'!$L$63*Q17,0) -> 0 | AI17: =IF(P17='2. Assumptions'!$H$64,'2. Assumptions'!$L$64*Q17,0) -> 0 | AJ17: =IF(OR(Table310[[#This Row],[Treatment Type ]]="Above Ground RW Tank",Table310[[#This Row],[Treatment Type ]]="Below Ground RW Tank"),INDEX('2. Assumptions'!$K$13:$K$62,MATCH(Table310[[#This Row],[Treatment volume (m^2 or L) ]],'2. Assumptions'!$I$13:$I$62,1))*('2. Assumptions'!$X$27),Table310[[#This Row],[Treatment volume (m^2 or L) ]]*'2. Assumptions'!$X$27) -> 1618.058063 | AK17: =IF(SUM(AD17:AE17)<>0,'2. Assumptions'!$L$69,0) -> 0 | AL17: =IFERROR(IF(Table310[[#This Row],[Raingarden Cost]]<>0,(Table310[[#This Row],[Raingarden Cost]]+Table310[[#This Row],[Asset Land Cost ($)]])/(100*Table310[[#This Row],[Total Site Raingarden treatment]]),0),0) -> 93.62003103 | AM17: =IFERROR(IF(SUM(Table310[[#This Row],[Above Ground Tank Cost]:[Plumbing Cost]])<>0,(Table310[[#This Row],[Above Ground Tank Cost]]+Table310[[#This Row],[Below Ground Tank Cost]]+Table310[[#This Row],[Plumbing Cost]]+Table310[[#This Row],[Pump]]+Table310[[#This Row],[Asset Land Cost ($)]])/(100*Table310[[#This Row],[Total site Rainwater Tank Treatment]]),0),0) -> 0 | AN17: =IFERROR(IF(Table310[[#This Row],[Buffer Strip]]<>0,(Table310[[#This Row],[Buffer Strip]]+Table310[[#This Row],[Asset Land Cost ($)]])/(100*Table310[[#This Row],[Total Site Buffer Strip Treatment]]),0),0) -> 0 | AO17: =IFERROR(IF(Table310[[#This Row],[Infiltration Sand]]<>0,(Table310[[#This Row],[Infiltration Sand]]+Table310[[#This Row],[Asset Land Cost ($)]])/(100*Table310[[#This Row],[Total Site Infiltration Sand Treatment]]),0),0) -> 0 | AP17: =SUMIFS($O$2:$O$104775,$P$2:$P$104775,'2. Assumptions'!$O$12,$A$2:$A$104775,$A17) + SUMIFS($O$2:$O$104775,$P$2:$P$104775,'2. Assumptions'!$O$19,$A$2:$A$104775,$A17) -> 287.9 | AQ17: =SUMIFS($O$2:$O$104775,$P$2:$P$104775,'2. Assumptions'!$H$65,$A$2:$A$104775,$A17) + SUMIFS($O$2:$O$104775,$P$2:$P$104775,'2. Assumptions'!$H$66,$A$2:$A$104775,$A17) -> 84.1 | AR17: =SUMIFS($O$2:$O$104775,$P$2:$P$104775,'2. Assumptions'!$H$64,$A$2:$A$104775,$A17) -> 0 | AS17: =SUMIFS($O$2:$O$104775,$P$2:$P$104775,'2. Assumptions'!$H$63,$A$2:$A$104775,$A17) -> 0 | AT17: =IFERROR(IF(Table310[[#This Row],[Raingarden Cost]]<>0,(Table310[[#This Row],[Raingarden Cost]]+Table310[[#This Row],[Asset Land Cost ($)]])/(Table310[[#This Row],[Total Site m2 Raingarden treatment]]),0),0) -> 28.26561619 | AU17: =IFERROR(IF(SUM(Table310[[#This Row],[Above Ground Tank Cost]:[Plumbing Cost]])<>0,(Table310[[#This Row],[Above Ground Tank Cost]]+Table310[[#This Row],[Below Ground Tank Cost]]+Table310[[#This Row],[Plumbing Cost]]+Table310[[#This Row],[Pump]]+Table310[[#This Row],[Asset Land Cost ($)]])/(Table310[[#This Row],[Total site m2 Rainwater Tank Treatment]]),0),0) -> 0 | AV17: =IFERROR(IF(Table310[[#This Row],[Buffer Strip]]<>0,(Table310[[#This Row],[Buffer Strip]]+Table310[[#This Row],[Asset Land Cost ($)]])/(Table310[[#This Row],[Total Site m2 Buffer Strip Treatment]]),0),0) -> 0 | AW17: =IFERROR(IF(Table310[[#This Row],[Infiltration Sand]]<>0,(Table310[[#This Row],[Infiltration Sand]]+Table310[[#This Row],[Asset Land Cost ($)]])/(Table310[[#This Row],[Total Site m2 Infiltration Sand Treatment]]),0),0) -> 0 | AX17: 56.66599098 | AY17: 430 | AZ17: =SUM(Table310[[#This Row],[Above Ground Tank Cost]:[Pump]]) -> 2377.138322 | BA17: 60.00579275 | BB17: =O17*'2. Assumptions'!$D$35 -> 0.06977683333 | BC17: =U17*'2. Assumptions'!$D$40*BB17*'2. Assumptions'!$D$38 -> 0.03189707388 | BD17: 0.1634772559 | BE17: 78917.678 | BF17: 759.0802592 | BG17: 49858.57839 | BH17: 37.91043525
A18: 4 | B18: 804764 | C18: 2019 | D18: Darebin City Council | E18: 104 Collins Street, THORNBURY | F18: Thornbury | G18: 3071 | H18: Residential | I18: Multi Unit | J18: 2 | K18: =_xlfn.IFS(AND(Table310[[#This Row],[Residential/Commercial/Industrial]]=$H$3,Table310[[#This Row],[No. Of Dwellings/Units]]>='2. Assumptions'!$U$27,Table310[[#This Row],[No. Of Dwellings/Units]]<='2. Assumptions'!$V$27),'2. Assumptions'!$W$27,AND(Table310[[#This Row],[Residential/Commercial/Industrial]]=$H$3,Table310[[#This Row],[No. Of Dwellings/Units]]>='2. Assumptions'!$U$28,Table310[[#This Row],[No. Of Dwellings/Units]]<='2. Assumptions'!$V$28),'2. Assumptions'!$W$28,AND(Table310[[#This Row],[Residential/Commercial/Industrial]]=$H$3,Table310[[#This Row],[No. Of Dwellings/Units]]>='2. Assumptions'!$U$29,Table310[[#This Row],[No. Of Dwellings/Units]]<='2. Assumptions'!$V$29),'2. Assumptions'!$W$29,Table310[[#This Row],[Residential/Commercial/Industrial]]<>$H$3,"Non-Residential") -> Separate Unit | L18: 739.7 | M18: Remaining Impervious | N18: Untreated | O18: 58 | P18: None | Q18: 0 | R18: 0 | S18: 0 | U18: 1.015844128 | V18: 0 | W18: =SUMIFS($V$2:$V$104775,$P$2:$P$104775,'2. Assumptions'!$O$12,$A$2:$A$104775,$A18) + SUMIFS($V$2:$V$104775,$P$2:$P$104775,'2. Assumptions'!$O$19,$A$2:$A$104775,$A18) -> 0.7619306977 | X18: =SUMIFS($V$2:$V$104775,$P$2:$P$104775,'2. Assumptions'!$H$65,$A$2:$A$104775,$A18) + SUMIFS($V$2:$V$104775,$P$2:$P$104775,'2. Assumptions'!$H$66,$A$2:$A$104775,$A18) -> 0.2539134302 | Y18: =SUMIFS($V$2:$V$104775,$P$2:$P$104775,'2. Assumptions'!$H$64,$A$2:$A$104775,$A18) -> 0 | Z18: =SUMIFS($V$2:$V$104775,$P$2:$P$104775,'2. Assumptions'!$H$63,$A$2:$A$104775,$A18) -> 0 | AA18: 372 | AB18: 215 | AC18: 0.58131675 | AD18: =(IF(P18=$P$2,_xlfn.IFS(AND(Q18>'2. Assumptions'!$O$14,Q18<='2. Assumptions'!$P$14),'2. Assumptions'!$Q$14,AND(Q18>'2. Assumptions'!$O$15,Q18<='2. Assumptions'!$P$15),'2. Assumptions'!$Q$15,(Q18>'2. Assumptions'!$O$16),'2. Assumptions'!$Q$16),0))*Q18/1000 -> 0 | AE18: =(IF(P18='2. Assumptions'!$O$19,_xlfn.IFS(AND(Q18>'2. Assumptions'!$O$21,Q18<='2. Assumptions'!$P$21),'2. Assumptions'!$Q$21,AND(Q18>'2. Assumptions'!$O$22,Q18<='2. Assumptions'!$P$22),'2. Assumptions'!$Q$22,AND(Q18>'2. Assumptions'!$O$23, Q18<='2. Assumptions'!$P$23),'2. Assumptions'!$Q$23,Q18>'2. Assumptions'!$P$24,'2. Assumptions'!$Q$24),0))*Q18/1000 -> 0 | AF18: =IF(SUM(AD18:AE18)<>0,'2. Assumptions'!$L$70,0) -> 0 | AG18: =IFERROR(_xlfn.IFS(P18='2. Assumptions'!$H$65,'2. Assumptions'!$L$65*Q18,P18='2. Assumptions'!$H$66,'2. Assumptions'!$L$66*Q18),0) -> 0 | AH18: =IF(P18='2. Assumptions'!$H$63,'2. Assumptions'!$L$63*Q18,0) -> 0 | AI18: =IF(P18='2. Assumptions'!$H$64,'2. Assumptions'!$L$64*Q18,0) -> 0 | AJ18: =IF(OR(Table310[[#This Row],[Treatment Type ]]="Above Ground RW Tank",Table310[[#This Row],[Treatment Type ]]="Below Ground RW Tank"),INDEX('2. Assumptions'!$K$13:$K$62,MATCH(Table310[[#This Row],[Treatment volume (m^2 or L) ]],'2. Assumptions'!$I$13:$I$62,1))*('2. Assumptions'!$X$27),Table310[[#This Row],[Treatment volume (m^2 or L) ]]*'2. Assumptions'!$X$27) -> 0 | AK18: =IF(SUM(AD18:AE18)<>0,'2. Assumptions'!$L$69,0) -> 0 | AL18: =IFERROR(IF(Table310[[#This Row],[Raingarden Cost]]<>0,(Table310[[#This Row],[Raingarden Cost]]+Table310[[#This Row],[Asset Land Cost ($)]])/(100*Table310[[#This Row],[Total Site Raingarden treatment]]),0),0) -> 0 | AM18: =IFERROR(IF(SUM(Table310[[#This Row],[Above Ground Tank Cost]:[Plumbing Cost]])<>0,(Table310[[#This Row],[Above Ground Tank Cost]]+Table310[[#This Row],[Below Ground Tank Cost]]+Table310[[#This Row],[Plumbing Cost]]+Table310[[#This Row],[Pump]]+Table310[[#This Row],[Asset Land Cost ($)]])/(100*Table310[[#This Row],[Total site Rainwater Tank Treatment]]),0),0) -> 0 | AN18: =IFERROR(IF(Table310[[#This Row],[Buffer Strip]]<>0,(Table310[[#This Row],[Buffer Strip]]+Table310[[#This Row],[Asset Land Cost ($)]])/(100*Table310[[#This Row],[Total Site Buffer Strip Treatment]]),0),0) -> 0 | AO18: =IFERROR(IF(Table310[[#This Row],[Infiltration Sand]]<>0,(Table310[[#This Row],[Infiltration Sand]]+Table310[[#This Row],[Asset Land Cost ($)]])/(100*Table310[[#This Row],[Total Site Infiltration Sand Treatment]]),0),0) -> 0 | AP18: =SUMIFS($O$2:$O$104775,$P$2:$P$104775,'2. Assumptions'!$O$12,$A$2:$A$104775,$A18) + SUMIFS($O$2:$O$104775,$P$2:$P$104775,'2. Assumptions'!$O$19,$A$2:$A$104775,$A18) -> 287.9 | AQ18: =SUMIFS($O$2:$O$104775,$P$2:$P$104775,'2. Assumptions'!$H$65,$A$2:$A$104775,$A18) + SUMIFS($O$2:$O$104775,$P$2:$P$104775,'2. Assumptions'!$H$66,$A$2:$A$104775,$A18) -> 84.1 | AR18: =SUMIFS($O$2:$O$104775,$P$2:$P$104775,'2. Assumptions'!$H$64,$A$2:$A$104775,$A18) -> 0 | AS18: =SUMIFS($O$2:$O$104775,$P$2:$P$104775,'2. Assumptions'!$H$63,$A$2:$A$104775,$A18) -> 0 | AT18: =IFERROR(IF(Table310[[#This Row],[Raingarden Cost]]<>0,(Table310[[#This Row],[Raingarden Cost]]+Table310[[#This Row],[Asset Land Cost ($)]])/(Table310[[#This Row],[Total Site m2 Raingarden treatment]]),0),0) -> 0 | AU18: =IFERROR(IF(SUM(Table310[[#This Row],[Above Ground Tank Cost]:[Plumbing Cost]])<>0,(Table310[[#This Row],[Above Ground Tank Cost]]+Table310[[#This Row],[Below Ground Tank Cost]]+Table310[[#This Row],[Plumbing Cost]]+Table310[[#This Row],[Pump]]+Table310[[#This Row],[Asset Land Cost ($)]])/(Table310[[#This Row],[Total site m2 Rainwater Tank Treatment]]),0),0) -> 0 | AV18: =IFERROR(IF(Table310[[#This Row],[Buffer Strip]]<>0,(Table310[[#This Row],[Buffer Strip]]+Table310[[#This Row],[Asset Land Cost ($)]])/(Table310[[#This Row],[Total Site m2 Buffer Strip Treatment]]),0),0) -> 0 | AW18: =IFERROR(IF(Table310[[#This Row],[Infiltration Sand]]<>0,(Table310[[#This Row],[Infiltration Sand]]+Table310[[#This Row],[Asset Land Cost ($)]])/(Table310[[#This Row],[Total Site m2 Infiltration Sand Treatment]]),0),0) -> 0 | AX18: 0 | AY18: 430 | AZ18: =SUM(Table310[[#This Row],[Above Ground Tank Cost]:[Pump]]) -> 0 | BA18: 60.00579275 | BB18: =O18*'2. Assumptions'!$D$35 -> 0.09647333333 | BC18: =U18*'2. Assumptions'!$D$40*BB18*'2. Assumptions'!$D$38 -> 0.04410084112 | BD18: 0.1634772559 | BE18: 78917.678 | BF18: 0 | BG18: 49858.57839 | BH18: 37.91043525
A19: 5 | B19: 684997 | C19: 2019 | D19: Darebin City Council | E19: 11 Chenies Street, RESERVOIR | F19: Reservoir | G19: 3073 | H19: Residential | I19: Multi Unit | J19: 3 | K19: =_xlfn.IFS(AND(Table310[[#This Row],[Residential/Commercial/Industrial]]=$H$3,Table310[[#This Row],[No. Of Dwellings/Units]]>='2. Assumptions'!$U$27,Table310[[#This Row],[No. Of Dwellings/Units]]<='2. Assumptions'!$V$27),'2. Assumptions'!$W$27,AND(Table310[[#This Row],[Residential/Commercial/Industrial]]=$H$3,Table310[[#This Row],[No. Of Dwellings/Units]]>='2. Assumptions'!$U$28,Table310[[#This Row],[No. Of Dwellings/Units]]<='2. Assumptions'!$V$28),'2. Assumptions'!$W$28,AND(Table310[[#This Row],[Residential/Commercial/Industrial]]=$H$3,Table310[[#This Row],[No. Of Dwellings/Units]]>='2. Assumptions'!$U$29,Table310[[#This Row],[No. Of Dwellings/Units]]<='2. Assumptions'!$V$29),'2. Assumptions'!$W$29,Table310[[#This Row],[Residential/Commercial/Industrial]]<>$H$3,"Non-Residential") -> Medium Density | L19: 969 | M19: =I19&1 -> Multi Unit1 | N19: Roof | O19: 108 | P19: Above Ground RW Tank | Q19: 2500 | R19: 154 | S19: 85.6 | T19: TH abbreviation. Town House? | U19: 0.9973325635 | V19: 0.3841108545 | W19: =SUMIFS($V$2:$V$104775,$P$2:$P$104775,'2. Assumptions'!$O$12,$A$2:$A$104775,$A19) + SUMIFS($V$2:$V$104775,$P$2:$P$104775,'2. Assumptions'!$O$19,$A$2:$A$104775,$A19) -> 0.9169907621 | X19: =SUMIFS($V$2:$V$104775,$P$2:$P$104775,'2. Assumptions'!$H$65,$A$2:$A$104775,$A19) + SUMIFS($V$2:$V$104775,$P$2:$P$104775,'2. Assumptions'!$H$66,$A$2:$A$104775,$A19) -> 0.08034180139 | Y19: =SUMIFS($V$2:$V$104775,$P$2:$P$104775,'2. Assumptions'!$H$64,$A$2:$A$104775,$A19) -> 0 | Z19: =SUMIFS($V$2:$V$104775,$P$2:$P$104775,'2. Assumptions'!$H$63,$A$2:$A$104775,$A19) -> 0 | AA19: 285 | AB19: 144.3333333 | AC19: 0.4468524252 | AD19: =(IF(P19=$P$2,_xlfn.IFS(AND(Q19>'2. Assumptions'!$O$14,Q19<='2. Assumptions'!$P$14),'2. Assumptions'!$Q$14,AND(Q19>'2. Assumptions'!$O$15,Q19<='2. Assumptions'!$P$15),'2. Assumptions'!$Q$15,(Q19>'2. Assumptions'!$O$16),'2. Assumptions'!$Q$16),0))*Q19/1000 -> 2186.541541 | AE19: =(IF(P19='2. Assumptions'!$O$19,_xlfn.IFS(AND(Q19>'2. Assumptions'!$O$21,Q19<='2. Assumptions'!$P$21),'2. Assumptions'!$Q$21,AND(Q19>'2. Assumptions'!$O$22,Q19<='2. Assumptions'!$P$22),'2. Assumptions'!$Q$22,AND(Q19>'2. Assumptions'!$O$23, Q19<='2. Assumptions'!$P$23),'2. Assumptions'!$Q$23,Q19>'2. Assumptions'!$P$24,'2. Assumptions'!$Q$24),0))*Q19/1000 -> 0 | AF19: =IF(SUM(AD19:AE19)<>0,'2. Assumptions'!$L$70,0) -> 2711.000926 | AG19: =IFERROR(_xlfn.IFS(P19='2. Assumptions'!$H$65,'2. Assumptions'!$L$65*Q19,P19='2. Assumptions'!$H$66,'2. Assumptions'!$L$66*Q19),0) -> 0 | AH19: =IF(P19='2. Assumptions'!$H$63,'2. Assumptions'!$L$63*Q19,0) -> 0 | AI19: =IF(P19='2. Assumptions'!$H$64,'2. Assumptions'!$L$64*Q19,0) -> 0 | AJ19: =IF(OR(Table310[[#This Row],[Treatment Type ]]="Above Ground RW Tank",Table310[[#This Row],[Treatment Type ]]="Below Ground RW Tank"),INDEX('2. Assumptions'!$K$13:$K$62,MATCH(Table310[[#This Row],[Treatment volume (m^2 or L) ]],'2. Assumptions'!$I$13:$I$62,1))*('2. Assumptions'!$X$27),Table310[[#This Row],[Treatment volume (m^2 or L) ]]*'2. Assumptions'!$X$27) -> 3132.4438 | AK19: =IF(SUM(AD19:AE19)<>0,'2. Assumptions'!$L$69,0) -> 2494.120852 | AL19: =IFERROR(IF(Table310[[#This Row],[Raingarden Cost]]<>0,(Table310[[#This Row],[Raingarden Cost]]+Table310[[#This Row],[Asset Land Cost ($)]])/(100*Table310[[#This Row],[Total Site Raingarden treatment]]),0),0) -> 0 | AM19: =IFERROR(IF(SUM(Table310[[#This Row],[Above Ground Tank Cost]:[Plumbing Cost]])<>0,(Table310[[#This Row],[Above Ground Tank Cost]]+Table310[[#This Row],[Below Ground Tank Cost]]+Table310[[#This Row],[Plumbing Cost]]+Table310[[#This Row],[Pump]]+Table310[[#This Row],[Asset Land Cost ($)]])/(100*Table310[[#This Row],[Total site Rainwater Tank Treatment]]),0),0) -> 114.7678641 | AN19: =IFERROR(IF(Table310[[#This Row],[Buffer Strip]]<>0,(Table310[[#This Row],[Buffer Strip]]+Table310[[#This Row],[Asset Land Cost ($)]])/(100*Table310[[#This Row],[Total Site Buffer Strip Treatment]]),0),0) -> 0 | AO19: =IFERROR(IF(Table310[[#This Row],[Infiltration Sand]]<>0,(Table310[[#This Row],[Infiltration Sand]]+Table310[[#This Row],[Asset Land Cost ($)]])/(100*Table310[[#This Row],[Total Site Infiltration Sand Treatment]]),0),0) -> 0 | AP19: =SUMIFS($O$2:$O$104775,$P$2:$P$104775,'2. Assumptions'!$O$12,$A$2:$A$104775,$A19) + SUMIFS($O$2:$O$104775,$P$2:$P$104775,'2. Assumptions'!$O$19,$A$2:$A$104775,$A19) -> 259 | AQ19: =SUMIFS($O$2:$O$104775,$P$2:$P$104775,'2. Assumptions'!$H$65,$A$2:$A$104775,$A19) + SUMIFS($O$2:$O$104775,$P$2:$P$104775,'2. Assumptions'!$H$66,$A$2:$A$104775,$A19) -> 26 | AR19: =SUMIFS($O$2:$O$104775,$P$2:$P$104775,'2. Assumptions'!$H$64,$A$2:$A$104775,$A19) -> 0 | AS19: =SUMIFS($O$2:$O$104775,$P$2:$P$104775,'2. Assumptions'!$H$63,$A$2:$A$104775,$A19) -> 0 | AT19: =IFERROR(IF(Table310[[#This Row],[Raingarden Cost]]<>0,(Table310[[#This Row],[Raingarden Cost]]+Table310[[#This Row],[Asset Land Cost ($)]])/(Table310[[#This Row],[Total Site m2 Raingarden treatment]]),0),0) -> 0 | AU19: =IFERROR(IF(SUM(Table310[[#This Row],[Above Ground Tank Cost]:[Plumbing Cost]])<>0,(Table310[[#This Row],[Above Ground Tank Cost]]+Table310[[#This Row],[Below Ground Tank Cost]]+Table310[[#This Row],[Plumbing Cost]]+Table310[[#This Row],[Pump]]+Table310[[#This Row],[Asset Land Cost ($)]])/(Table310[[#This Row],[Total site m2 Rainwater Tank Treatment]]),0),0) -> 40.63361822 | AV19: =IFERROR(IF(Table310[[#This Row],[Buffer Strip]]<>0,(Table310[[#This Row],[Buffer Strip]]+Table310[[#This Row],[Asset Land Cost ($)]])/(Table310[[#This Row],[Total Site m2 Buffer Strip Treatment]]),0),0) -> 0 | AW19: =IFERROR(IF(Table310[[#This Row],[Infiltration Sand]]<>0,(Table310[[#This Row],[Infiltration Sand]]+Table310[[#This Row],[Asset Land Cost ($)]])/(Table310[[#This Row],[Total Site m2 Infiltration Sand Treatment]]),0),0) -> 0 | AX19: 97.44543629 | AY19: 433 | AZ19: =SUM(Table310[[#This Row],[Above Ground Tank Cost]:[Pump]]) -> 10524.10712 | BA19: 79.69681492 | BB19: =O19*'2. Assumptions'!$D$35 -> 0.17964 | BC19: =U19*'2. Assumptions'!$D$40*BB19*'2. Assumptions'!$D$38 -> 0.08062236977 | BD19: 0.1077453275 | BE19: 106760.1466 | BF19: 7391.663319 | BG19: 72125.66548 | BH19: 53.84205622
A20: 5 | B20: 684997 | C20: 2019 | D20: Darebin City Council | E20: 11 Chenies Street, RESERVOIR | F20: Reservoir | G20: 3073 | H20: Residential | I20: Multi Unit | J20: 3 | K20: =_xlfn.IFS(AND(Table310[[#This Row],[Residential/Commercial/Industrial]]=$H$3,Table310[[#This Row],[No. Of Dwellings/Units]]>='2. Assumptions'!$U$27,Table310[[#This Row],[No. Of Dwellings/Units]]<='2. Assumptions'!$V$27),'2. Assumptions'!$W$27,AND(Table310[[#This Row],[Residential/Commercial/Industrial]]=$H$3,Table310[[#This Row],[No. Of Dwellings/Units]]>='2. Assumptions'!$U$28,Table310[[#This Row],[No. Of Dwellings/Units]]<='2. Assumptions'!$V$28),'2. Assumptions'!$W$28,AND(Table310[[#This Row],[Residential/Commercial/Industrial]]=$H$3,Table310[[#This Row],[No. Of Dwellings/Units]]>='2. Assumptions'!$U$29,Table310[[#This Row],[No. Of Dwellings/Units]]<='2. Assumptions'!$V$29),'2. Assumptions'!$W$29,Table310[[#This Row],[Residential/Commercial/Industrial]]<>$H$3,"Non-Residential") -> Medium Density | L20: 969 | M20: =I20&2 -> Multi Unit2 | N20: Roof | O20: 64 | P20: Above Ground RW Tank | Q20: 2000 | R20: 166 | S20: 82 | U20: 0.9973325635 | V20: 0.2453579677 | W20: =SUMIFS($V$2:$V$104775,$P$2:$P$104775,'2. Assumptions'!$O$12,$A$2:$A$104775,$A20) + SUMIFS($V$2:$V$104775,$P$2:$P$104775,'2. Assumptions'!$O$19,$A$2:$A$104775,$A20) -> 0.9169907621 | X20: =SUMIFS($V$2:$V$104775,$P$2:$P$104775,'2. Assumptions'!$H$65,$A$2:$A$104775,$A20) + SUMIFS($V$2:$V$104775,$P$2:$P$104775,'2. Assumptions'!$H$66,$A$2:$A$104775,$A20) -> 0.08034180139 | Y20: =SUMIFS($V$2:$V$104775,$P$2:$P$104775,'2. Assumptions'!$H$64,$A$2:$A$104775,$A20) -> 0 | Z20: =SUMIFS($V$2:$V$104775,$P$2:$P$104775,'2. Assumptions'!$H$63,$A$2:$A$104775,$A20) -> 0 | AA20: 285 | AB20: 144.3333333 | AC20: 0.4468524252 | AD20: =(IF(P20=$P$2,_xlfn.IFS(AND(Q20>'2. Assumptions'!$O$14,Q20<='2. Assumptions'!$P$14),'2. Assumptions'!$Q$14,AND(Q20>'2. Assumptions'!$O$15,Q20<='2. Assumptions'!$P$15),'2. Assumptions'!$Q$15,(Q20>'2. Assumptions'!$O$16),'2. Assumptions'!$Q$16),0))*Q20/1000 -> 2186.541541 | AE20: =(IF(P20='2. Assumptions'!$O$19,_xlfn.IFS(AND(Q20>'2. Assumptions'!$O$21,Q20<='2. Assumptions'!$P$21),'2. Assumptions'!$Q$21,AND(Q20>'2. Assumptions'!$O$22,Q20<='2. Assumptions'!$P$22),'2. Assumptions'!$Q$22,AND(Q20>'2. Assumptions'!$O$23, Q20<='2. Assumptions'!$P$23),'2. Assumptions'!$Q$23,Q20>'2. Assumptions'!$P$24,'2. Assumptions'!$Q$24),0))*Q20/1000 -> 0 | AF20: =IF(SUM(AD20:AE20)<>0,'2. Assumptions'!$L$70,0) -> 2711.000926 | AG20: =IFERROR(_xlfn.IFS(P20='2. Assumptions'!$H$65,'2. Assumptions'!$L$65*Q20,P20='2. Assumptions'!$H$66,'2. Assumptions'!$L$66*Q20),0) -> 0 | AH20: =IF(P20='2. Assumptions'!$H$63,'2. Assumptions'!$L$63*Q20,0) -> 0 | AI20: =IF(P20='2. Assumptions'!$H$64,'2. Assumptions'!$L$64*Q20,0) -> 0 | AJ20: =IF(OR(Table310[[#This Row],[Treatment Type ]]="Above Ground RW Tank",Table310[[#This Row],[Treatment Type ]]="Below Ground RW Tank"),INDEX('2. Assumptions'!$K$13:$K$62,MATCH(Table310[[#This Row],[Treatment volume (m^2 or L) ]],'2. Assumptions'!$I$13:$I$62,1))*('2. Assumptions'!$X$27),Table310[[#This Row],[Treatment volume (m^2 or L) ]]*'2. Assumptions'!$X$27) -> 2503.135823 | AK20: =IF(SUM(AD20:AE20)<>0,'2. Assumptions'!$L$69,0) -> 2494.120852 | AL20: =IFERROR(IF(Table310[[#This Row],[Raingarden Cost]]<>0,(Table310[[#This Row],[Raingarden Cost]]+Table310[[#This Row],[Asset Land Cost ($)]])/(100*Table310[[#This Row],[Total Site Raingarden treatment]]),0),0) -> 0 | AM20: =IFERROR(IF(SUM(Table310[[#This Row],[Above Ground Tank Cost]:[Plumbing Cost]])<>0,(Table310[[#This Row],[Above Ground Tank Cost]]+Table310[[#This Row],[Below Ground Tank Cost]]+Table310[[#This Row],[Plumbing Cost]]+Table310[[#This Row],[Pump]]+Table310[[#This Row],[Asset Land Cost ($)]])/(100*Table310[[#This Row],[Total site Rainwater Tank Treatment]]),0),0) -> 107.9051126 | AN20: =IFERROR(IF(Table310[[#This Row],[Buffer Strip]]<>0,(Table310[[#This Row],[Buffer Strip]]+Table310[[#This Row],[Asset Land Cost ($)]])/(100*Table310[[#This Row],[Total Site Buffer Strip Treatment]]),0),0) -> 0 | AO20: =IFERROR(IF(Table310[[#This Row],[Infiltration Sand]]<>0,(Table310[[#This Row],[Infiltration Sand]]+Table310[[#This Row],[Asset Land Cost ($)]])/(100*Table310[[#This Row],[Total Site Infiltration Sand Treatment]]),0),0) -> 0 | AP20: =SUMIFS($O$2:$O$104775,$P$2:$P$104775,'2. Assumptions'!$O$12,$A$2:$A$104775,$A20) + SUMIFS($O$2:$O$104775,$P$2:$P$104775,'2. Assumptions'!$O$19,$A$2:$A$104775,$A20) -> 259 | AQ20: =SUMIFS($O$2:$O$104775,$P$2:$P$104775,'2. Assumptions'!$H$65,$A$2:$A$104775,$A20) + SUMIFS($O$2:$O$104775,$P$2:$P$104775,'2. Assumptions'!$H$66,$A$2:$A$104775,$A20) -> 26 | AR20: =SUMIFS($O$2:$O$104775,$P$2:$P$104775,'2. Assumptions'!$H$64,$A$2:$A$104775,$A20) -> 0 | AS20: =SUMIFS($O$2:$O$104775,$P$2:$P$104775,'2. Assumptions'!$H$63,$A$2:$A$104775,$A20) -> 0 | AT20: =IFERROR(IF(Table310[[#This Row],[Raingarden Cost]]<>0,(Table310[[#This Row],[Raingarden Cost]]+Table310[[#This Row],[Asset Land Cost ($)]])/(Table310[[#This Row],[Total Site m2 Raingarden treatment]]),0),0) -> 0 | AU20: =IFERROR(IF(SUM(Table310[[#This Row],[Above Ground Tank Cost]:[Plumbing Cost]])<>0,(Table310[[#This Row],[Above Ground Tank Cost]]+Table310[[#This Row],[Below Ground Tank Cost]]+Table310[[#This Row],[Plumbing Cost]]+Table310[[#This Row],[Pump]]+Table310[[#This Row],[Asset Land Cost ($)]])/(Table310[[#This Row],[Total site m2 Rainwater Tank Treatment]]),0),0) -> 38.20385769 | AV20: =IFERROR(IF(Table310[[#This Row],[Buffer Strip]]<>0,(Table310[[#This Row],[Buffer Strip]]+Table310[[#This Row],[Asset Land Cost ($)]])/(Table310[[#This Row],[Total Site m2 Buffer Strip Treatment]]),0),0) -> 0 | AW20: =IFERROR(IF(Table310[[#This Row],[Infiltration Sand]]<>0,(Table310[[#This Row],[Infiltration Sand]]+Table310[[#This Row],[Asset Land Cost ($)]])/(Table310[[#This Row],[Total Site m2 Infiltration Sand Treatment]]),0),0) -> 0 | AX20: 154.6062366 | AY20: 433 | AZ20: =SUM(Table310[[#This Row],[Above Ground Tank Cost]:[Pump]]) -> 9894.799141 | BA20: 79.69681492 | BB20: =O20*'2. Assumptions'!$D$35 -> 0.1064533333 | BC20: =U20*'2. Assumptions'!$D$40*BB20*'2. Assumptions'!$D$38 -> 0.04777621912 | BD20: 0.1077453275 | BE20: 106760.1466 | BF20: 7391.663319 | BG20: 72125.66548 | BH20: 53.84205622
A21: 5 | B21: 684997 | C21: 2019 | D21: Darebin City Council | E21: 11 Chenies Street, RESERVOIR | F21: Reservoir | G21: 3073 | H21: Residential | I21: Multi Unit | J21: 3 | K21: =_xlfn.IFS(AND(Table310[[#This Row],[Residential/Commercial/Industrial]]=$H$3,Table310[[#This Row],[No. Of Dwellings/Units]]>='2. Assumptions'!$U$27,Table310[[#This Row],[No. Of Dwellings/Units]]<='2. Assumptions'!$V$27),'2. Assumptions'!$W$27,AND(Table310[[#This Row],[Residential/Commercial/Industrial]]=$H$3,Table310[[#This Row],[No. Of Dwellings/Units]]>='2. Assumptions'!$U$28,Table310[[#This Row],[No. Of Dwellings/Units]]<='2. Assumptions'!$V$28),'2. Assumptions'!$W$28,AND(Table310[[#This Row],[Residential/Commercial/Industrial]]=$H$3,Table310[[#This Row],[No. Of Dwellings/Units]]>='2. Assumptions'!$U$29,Table310[[#This Row],[No. Of Dwellings/Units]]<='2. Assumptions'!$V$29),'2. Assumptions'!$W$29,Table310[[#This Row],[Residential/Commercial/Industrial]]<>$H$3,"Non-Residential") -> Medium Density | L21: 969 | M21: =I21&3 -> Multi Unit3 | N21: Roof | O21: 87 | P21: Above Ground RW Tank | Q21: 2500 | R21: 143.1 | S21: 89.2 | U21: 0.9973325635 | V21: 0.28752194 | W21: =SUMIFS($V$2:$V$104775,$P$2:$P$104775,'2. Assumptions'!$O$12,$A$2:$A$104775,$A21) + SUMIFS($V$2:$V$104775,$P$2:$P$104775,'2. Assumptions'!$O$19,$A$2:$A$104775,$A21) -> 0.9169907621 | X21: =SUMIFS($V$2:$V$104775,$P$2:$P$104775,'2. Assumptions'!$H$65,$A$2:$A$104775,$A21) + SUMIFS($V$2:$V$104775,$P$2:$P$104775,'2. Assumptions'!$H$66,$A$2:$A$104775,$A21) -> 0.08034180139 | Y21: =SUMIFS($V$2:$V$104775,$P$2:$P$104775,'2. Assumptions'!$H$64,$A$2:$A$104775,$A21) -> 0 | Z21: =SUMIFS($V$2:$V$104775,$P$2:$P$104775,'2. Assumptions'!$H$63,$A$2:$A$104775,$A21) -> 0 | AA21: 285 | AB21: 144.3333333 | AC21: 0.4468524252 | AD21: =(IF(P21=$P$2,_xlfn.IFS(AND(Q21>'2. Assumptions'!$O$14,Q21<='2. Assumptions'!$P$14),'2. Assumptions'!$Q$14,AND(Q21>'2. Assumptions'!$O$15,Q21<='2. Assumptions'!$P$15),'2. Assumptions'!$Q$15,(Q21>'2. Assumptions'!$O$16),'2. Assumptions'!$Q$16),0))*Q21/1000 -> 2186.541541 | AE21: =(IF(P21='2. Assumptions'!$O$19,_xlfn.IFS(AND(Q21>'2. Assumptions'!$O$21,Q21<='2. Assumptions'!$P$21),'2. Assumptions'!$Q$21,AND(Q21>'2. Assumptions'!$O$22,Q21<='2. Assumptions'!$P$22),'2. Assumptions'!$Q$22,AND(Q21>'2. Assumptions'!$O$23, Q21<='2. Assumptions'!$P$23),'2. Assumptions'!$Q$23,Q21>'2. Assumptions'!$P$24,'2. Assumptions'!$Q$24),0))*Q21/1000 -> 0 | AF21: =IF(SUM(AD21:AE21)<>0,'2. Assumptions'!$L$70,0) -> 2711.000926 | AG21: =IFERROR(_xlfn.IFS(P21='2. Assumptions'!$H$65,'2. Assumptions'!$L$65*Q21,P21='2. Assumptions'!$H$66,'2. Assumptions'!$L$66*Q21),0) -> 0 | AH21: =IF(P21='2. Assumptions'!$H$63,'2. Assumptions'!$L$63*Q21,0) -> 0 | AI21: =IF(P21='2. Assumptions'!$H$64,'2. Assumptions'!$L$64*Q21,0) -> 0 | AJ21: =IF(OR(Table310[[#This Row],[Treatment Type ]]="Above Ground RW Tank",Table310[[#This Row],[Treatment Type ]]="Below Ground RW Tank"),INDEX('2. Assumptions'!$K$13:$K$62,MATCH(Table310[[#This Row],[Treatment volume (m^2 or L) ]],'2. Assumptions'!$I$13:$I$62,1))*('2. Assumptions'!$X$27),Table310[[#This Row],[Treatment volume (m^2 or L) ]]*'2. Assumptions'!$X$27) -> 3132.4438 | AK21: =IF(SUM(AD21:AE21)<>0,'2. Assumptions'!$L$69,0) -> 2494.120852 | AL21: =IFERROR(IF(Table310[[#This Row],[Raingarden Cost]]<>0,(Table310[[#This Row],[Raingarden Cost]]+Table310[[#This Row],[Asset Land Cost ($)]])/(100*Table310[[#This Row],[Total Site Raingarden treatment]]),0),0) -> 0 | AM21: =IFERROR(IF(SUM(Table310[[#This Row],[Above Ground Tank Cost]:[Plumbing Cost]])<>0,(Table310[[#This Row],[Above Ground Tank Cost]]+Table310[[#This Row],[Below Ground Tank Cost]]+Table310[[#This Row],[Plumbing Cost]]+Table310[[#This Row],[Pump]]+Table310[[#This Row],[Asset Land Cost ($)]])/(100*Table310[[#This Row],[Total site Rainwater Tank Treatment]]),0),0) -> 114.7678641 | AN21: =IFERROR(IF(Table310[[#This Row],[Buffer Strip]]<>0,(Table310[[#This Row],[Buffer Strip]]+Table310[[#This Row],[Asset Land Cost ($)]])/(100*Table310[[#This Row],[Total Site Buffer Strip Treatment]]),0),0) -> 0 | AO21: =IFERROR(IF(Table310[[#This Row],[Infiltration Sand]]<>0,(Table310[[#This Row],[Infiltration Sand]]+Table310[[#This Row],[Asset Land Cost ($)]])/(100*Table310[[#This Row],[Total Site Infiltration Sand Treatment]]),0),0) -> 0 | AP21: =SUMIFS($O$2:$O$104775,$P$2:$P$104775,'2. Assumptions'!$O$12,$A$2:$A$104775,$A21) + SUMIFS($O$2:$O$104775,$P$2:$P$104775,'2. Assumptions'!$O$19,$A$2:$A$104775,$A21) -> 259 | AQ21: =SUMIFS($O$2:$O$104775,$P$2:$P$104775,'2. Assumptions'!$H$65,$A$2:$A$104775,$A21) + SUMIFS($O$2:$O$104775,$P$2:$P$104775,'2. Assumptions'!$H$66,$A$2:$A$104775,$A21) -> 26 | AR21: =SUMIFS($O$2:$O$104775,$P$2:$P$104775,'2. Assumptions'!$H$64,$A$2:$A$104775,$A21) -> 0 | AS21: =SUMIFS($O$2:$O$104775,$P$2:$P$104775,'2. Assumptions'!$H$63,$A$2:$A$104775,$A21) -> 0 | AT21: =IFERROR(IF(Table310[[#This Row],[Raingarden Cost]]<>0,(Table310[[#This Row],[Raingarden Cost]]+Table310[[#This Row],[Asset Land Cost ($)]])/(Table310[[#This Row],[Total Site m2 Raingarden treatment]]),0),0) -> 0 | AU21: =IFERROR(IF(SUM(Table310[[#This Row],[Above Ground Tank Cost]:[Plumbing Cost]])<>0,(Table310[[#This Row],[Above Ground Tank Cost]]+Table310[[#This Row],[Below Ground Tank Cost]]+Table310[[#This Row],[Plumbing Cost]]+Table310[[#This Row],[Pump]]+Table310[[#This Row],[Asset Land Cost ($)]])/(Table310[[#This Row],[Total site m2 Rainwater Tank Treatment]]),0),0) -> 40.63361822 | AV21: =IFERROR(IF(Table310[[#This Row],[Buffer Strip]]<>0,(Table310[[#This Row],[Buffer Strip]]+Table310[[#This Row],[Asset Land Cost ($)]])/(Table310[[#This Row],[Total Site m2 Buffer Strip Treatment]]),0),0) -> 0 | AW21: =IFERROR(IF(Table310[[#This Row],[Infiltration Sand]]<>0,(Table310[[#This Row],[Infiltration Sand]]+Table310[[#This Row],[Asset Land Cost ($)]])/(Table310[[#This Row],[Total Site m2 Infiltration Sand Treatment]]),0),0) -> 0 | AX21: 120.9667485 | AY21: 433 | AZ21: =SUM(Table310[[#This Row],[Above Ground Tank Cost]:[Pump]]) -> 10524.10712 | BA21: 79.69681492 | BB21: =O21*'2. Assumptions'!$D$35 -> 0.14471 | BC21: =U21*'2. Assumptions'!$D$40*BB21*'2. Assumptions'!$D$38 -> 0.06494579787 | BD21: 0.1077453275 | BE21: 106760.1466 | BF21: 7391.663319 | BG21: 72125.66548 | BH21: 53.84205622
A22: 5 | B22: 684997 | C22: 2019 | D22: Darebin City Council | E22: 11 Chenies Street, RESERVOIR | F22: Reservoir | G22: 3073 | H22: Residential | I22: Multi Unit | J22: 3 | K22: =_xlfn.IFS(AND(Table310[[#This Row],[Residential/Commercial/Industrial]]=$H$3,Table310[[#This Row],[No. Of Dwellings/Units]]>='2. Assumptions'!$U$27,Table310[[#This Row],[No. Of Dwellings/Units]]<='2. Assumptions'!$V$27),'2. Assumptions'!$W$27,AND(Table310[[#This Row],[Residential/Commercial/Industrial]]=$H$3,Table310[[#This Row],[No. Of Dwellings/Units]]>='2. Assumptions'!$U$28,Table310[[#This Row],[No. Of Dwellings/Units]]<='2. Assumptions'!$V$28),'2. Assumptions'!$W$28,AND(Table310[[#This Row],[Residential/Commercial/Industrial]]=$H$3,Table310[[#This Row],[No. Of Dwellings/Units]]>='2. Assumptions'!$U$29,Table310[[#This Row],[No. Of Dwellings/Units]]<='2. Assumptions'!$V$29),'2. Assumptions'!$W$29,Table310[[#This Row],[Residential/Commercial/Industrial]]<>$H$3,"Non-Residential") -> Medium Density | L22: 969 | M22: =I22&1 -> Multi Unit1 | N22: Driveway | O22: 21 | P22: None | Q22: 0 | R22: 0 | S22: 0 | U22: 0.9973325635 | V22: 0 | W22: =SUMIFS($V$2:$V$104775,$P$2:$P$104775,'2. Assumptions'!$O$12,$A$2:$A$104775,$A22) + SUMIFS($V$2:$V$104775,$P$2:$P$104775,'2. Assumptions'!$O$19,$A$2:$A$104775,$A22) -> 0.9169907621 | X22: =SUMIFS($V$2:$V$104775,$P$2:$P$104775,'2. Assumptions'!$H$65,$A$2:$A$104775,$A22) + SUMIFS($V$2:$V$104775,$P$2:$P$104775,'2. Assumptions'!$H$66,$A$2:$A$104775,$A22) -> 0.08034180139 | Y22: =SUMIFS($V$2:$V$104775,$P$2:$P$104775,'2. Assumptions'!$H$64,$A$2:$A$104775,$A22) -> 0 | Z22: =SUMIFS($V$2:$V$104775,$P$2:$P$104775,'2. Assumptions'!$H$63,$A$2:$A$104775,$A22) -> 0 | AA22: 285 | AB22: 144.3333333 | AC22: 0.4468524252 | AD22: =(IF(P22=$P$2,_xlfn.IFS(AND(Q22>'2. Assumptions'!$O$14,Q22<='2. Assumptions'!$P$14),'2. Assumptions'!$Q$14,AND(Q22>'2. Assumptions'!$O$15,Q22<='2. Assumptions'!$P$15),'2. Assumptions'!$Q$15,(Q22>'2. Assumptions'!$O$16),'2. Assumptions'!$Q$16),0))*Q22/1000 -> 0 | AE22: =(IF(P22='2. Assumptions'!$O$19,_xlfn.IFS(AND(Q22>'2. Assumptions'!$O$21,Q22<='2. Assumptions'!$P$21),'2. Assumptions'!$Q$21,AND(Q22>'2. Assumptions'!$O$22,Q22<='2. Assumptions'!$P$22),'2. Assumptions'!$Q$22,AND(Q22>'2. Assumptions'!$O$23, Q22<='2. Assumptions'!$P$23),'2. Assumptions'!$Q$23,Q22>'2. Assumptions'!$P$24,'2. Assumptions'!$Q$24),0))*Q22/1000 -> 0 | AF22: =IF(SUM(AD22:AE22)<>0,'2. Assumptions'!$L$70,0) -> 0 | AG22: =IFERROR(_xlfn.IFS(P22='2. Assumptions'!$H$65,'2. Assumptions'!$L$65*Q22,P22='2. Assumptions'!$H$66,'2. Assumptions'!$L$66*Q22),0) -> 0 | AH22: =IF(P22='2. Assumptions'!$H$63,'2. Assumptions'!$L$63*Q22,0) -> 0 | AI22: =IF(P22='2. Assumptions'!$H$64,'2. Assumptions'!$L$64*Q22,0) -> 0 | AJ22: =IF(OR(Table310[[#This Row],[Treatment Type ]]="Above Ground RW Tank",Table310[[#This Row],[Treatment Type ]]="Below Ground RW Tank"),INDEX('2. Assumptions'!$K$13:$K$62,MATCH(Table310[[#This Row],[Treatment volume (m^2 or L) ]],'2. Assumptions'!$I$13:$I$62,1))*('2. Assumptions'!$X$27),Table310[[#This Row],[Treatment volume (m^2 or L) ]]*'2. Assumptions'!$X$27) -> 0 | AK22: =IF(SUM(AD22:AE22)<>0,'2. Assumptions'!$L$69,0) -> 0 | AL22: =IFERROR(IF(Table310[[#This Row],[Raingarden Cost]]<>0,(Table310[[#This Row],[Raingarden Cost]]+Table310[[#This Row],[Asset Land Cost ($)]])/(100*Table310[[#This Row],[Total Site Raingarden treatment]]),0),0) -> 0 | AM22: =IFERROR(IF(SUM(Table310[[#This Row],[Above Ground Tank Cost]:[Plumbing Cost]])<>0,(Table310[[#This Row],[Above Ground Tank Cost]]+Table310[[#This Row],[Below Ground Tank Cost]]+Table310[[#This Row],[Plumbing Cost]]+Table310[[#This Row],[Pump]]+Table310[[#This Row],[Asset Land Cost ($)]])/(100*Table310[[#This Row],[Total site Rainwater Tank Treatment]]),0),0) -> 0 | AN22: =IFERROR(IF(Table310[[#This Row],[Buffer Strip]]<>0,(Table310[[#This Row],[Buffer Strip]]+Table310[[#This Row],[Asset Land Cost ($)]])/(100*Table310[[#This Row],[Total Site Buffer Strip Treatment]]),0),0) -> 0 | AO22: =IFERROR(IF(Table310[[#This Row],[Infiltration Sand]]<>0,(Table310[[#This Row],[Infiltration Sand]]+Table310[[#This Row],[Asset Land Cost ($)]])/(100*Table310[[#This Row],[Total Site Infiltration Sand Treatment]]),0),0) -> 0 | AP22: =SUMIFS($O$2:$O$104775,$P$2:$P$104775,'2. Assumptions'!$O$12,$A$2:$A$104775,$A22) + SUMIFS($O$2:$O$104775,$P$2:$P$104775,'2. Assumptions'!$O$19,$A$2:$A$104775,$A22) -> 259 | AQ22: =SUMIFS($O$2:$O$104775,$P$2:$P$104775,'2. Assumptions'!$H$65,$A$2:$A$104775,$A22) + SUMIFS($O$2:$O$104775,$P$2:$P$104775,'2. Assumptions'!$H$66,$A$2:$A$104775,$A22) -> 26 | AR22: =SUMIFS($O$2:$O$104775,$P$2:$P$104775,'2. Assumptions'!$H$64,$A$2:$A$104775,$A22) -> 0 | AS22: =SUMIFS($O$2:$O$104775,$P$2:$P$104775,'2. Assumptions'!$H$63,$A$2:$A$104775,$A22) -> 0 | AT22: =IFERROR(IF(Table310[[#This Row],[Raingarden Cost]]<>0,(Table310[[#This Row],[Raingarden Cost]]+Table310[[#This Row],[Asset Land Cost ($)]])/(Table310[[#This Row],[Total Site m2 Raingarden treatment]]),0),0) -> 0 | AU22: =IFERROR(IF(SUM(Table310[[#This Row],[Above Ground Tank Cost]:[Plumbing Cost]])<>0,(Table310[[#This Row],[Above Ground Tank Cost]]+Table310[[#This Row],[Below Ground Tank Cost]]+Table310[[#This Row],[Plumbing Cost]]+Table310[[#This Row],[Pump]]+Table310[[#This Row],[Asset Land Cost ($)]])/(Table310[[#This Row],[Total site m2 Rainwater Tank Treatment]]),0),0) -> 0 | AV22: =IFERROR(IF(Table310[[#This Row],[Buffer Strip]]<>0,(Table310[[#This Row],[Buffer Strip]]+Table310[[#This Row],[Asset Land Cost ($)]])/(Table310[[#This Row],[Total Site m2 Buffer Strip Treatment]]),0),0) -> 0 | AW22: =IFERROR(IF(Table310[[#This Row],[Infiltration Sand]]<>0,(Table310[[#This Row],[Infiltration Sand]]+Table310[[#This Row],[Asset Land Cost ($)]])/(Table310[[#This Row],[Total Site m2 Infiltration Sand Treatment]]),0),0) -> 0 | AX22: 0 | AY22: 433 | AZ22: =SUM(Table310[[#This Row],[Above Ground Tank Cost]:[Pump]]) -> 0 | BA22: 79.69681492 | BB22: =O22*'2. Assumptions'!$D$35 -> 0.03493 | BC22: =U22*'2. Assumptions'!$D$40*BB22*'2. Assumptions'!$D$38 -> 0.0156765719 | BD22: 0.1077453275 | BE22: 106760.1466 | BF22: 0 | BG22: 72125.66548 | BH22: 53.84205622
A23: 5 | B23: 684997 | C23: 2019 | D23: Darebin City Council | E23: 11 Chenies Street, RESERVOIR | F23: Reservoir | G23: 3073 | H23: Residential | I23: Multi Unit | J23: 3 | K23: =_xlfn.IFS(AND(Table310[[#This Row],[Residential/Commercial/Industrial]]=$H$3,Table310[[#This Row],[No. Of Dwellings/Units]]>='2. Assumptions'!$U$27,Table310[[#This Row],[No. Of Dwellings/Units]]<='2. Assumptions'!$V$27),'2. Assumptions'!$W$27,AND(Table310[[#This Row],[Residential/Commercial/Industrial]]=$H$3,Table310[[#This Row],[No. Of Dwellings/Units]]>='2. Assumptions'!$U$28,Table310[[#This Row],[No. Of Dwellings/Units]]<='2. Assumptions'!$V$28),'2. Assumptions'!$W$28,AND(Table310[[#This Row],[Residential/Commercial/Industrial]]=$H$3,Table310[[#This Row],[No. Of Dwellings/Units]]>='2. Assumptions'!$U$29,Table310[[#This Row],[No. Of Dwellings/Units]]<='2. Assumptions'!$V$29),'2. Assumptions'!$W$29,Table310[[#This Row],[Residential/Commercial/Industrial]]<>$H$3,"Non-Residential") -> Medium Density | L23: 969 | M23: Shared Driveway | N23: Driveway | O23: 127 | P23: None | Q23: 0 | R23: 0 | S23: 0 | T23: Shared | U23: 0.9973325635 | V23: 0 | W23: =SUMIFS($V$2:$V$104775,$P$2:$P$104775,'2. Assumptions'!$O$12,$A$2:$A$104775,$A23) + SUMIFS($V$2:$V$104775,$P$2:$P$104775,'2. Assumptions'!$O$19,$A$2:$A$104775,$A23) -> 0.9169907621 | X23: =SUMIFS($V$2:$V$104775,$P$2:$P$104775,'2. Assumptions'!$H$65,$A$2:$A$104775,$A23) + SUMIFS($V$2:$V$104775,$P$2:$P$104775,'2. Assumptions'!$H$66,$A$2:$A$104775,$A23) -> 0.08034180139 | Y23: =SUMIFS($V$2:$V$104775,$P$2:$P$104775,'2. Assumptions'!$H$64,$A$2:$A$104775,$A23) -> 0 | Z23: =SUMIFS($V$2:$V$104775,$P$2:$P$104775,'2. Assumptions'!$H$63,$A$2:$A$104775,$A23) -> 0 | AA23: 285 | AB23: 144.3333333 | AC23: 0.4468524252 | AD23: =(IF(P23=$P$2,_xlfn.IFS(AND(Q23>'2. Assumptions'!$O$14,Q23<='2. Assumptions'!$P$14),'2. Assumptions'!$Q$14,AND(Q23>'2. Assumptions'!$O$15,Q23<='2. Assumptions'!$P$15),'2. Assumptions'!$Q$15,(Q23>'2. Assumptions'!$O$16),'2. Assumptions'!$Q$16),0))*Q23/1000 -> 0 | AE23: =(IF(P23='2. Assumptions'!$O$19,_xlfn.IFS(AND(Q23>'2. Assumptions'!$O$21,Q23<='2. Assumptions'!$P$21),'2. Assumptions'!$Q$21,AND(Q23>'2. Assumptions'!$O$22,Q23<='2. Assumptions'!$P$22),'2. Assumptions'!$Q$22,AND(Q23>'2. Assumptions'!$O$23, Q23<='2. Assumptions'!$P$23),'2. Assumptions'!$Q$23,Q23>'2. Assumptions'!$P$24,'2. Assumptions'!$Q$24),0))*Q23/1000 -> 0 | AF23: =IF(SUM(AD23:AE23)<>0,'2. Assumptions'!$L$70,0) -> 0 | AG23: =IFERROR(_xlfn.IFS(P23='2. Assumptions'!$H$65,'2. Assumptions'!$L$65*Q23,P23='2. Assumptions'!$H$66,'2. Assumptions'!$L$66*Q23),0) -> 0 | AH23: =IF(P23='2. Assumptions'!$H$63,'2. Assumptions'!$L$63*Q23,0) -> 0 | AI23: =IF(P23='2. Assumptions'!$H$64,'2. Assumptions'!$L$64*Q23,0) -> 0 | AJ23: =IF(OR(Table310[[#This Row],[Treatment Type ]]="Above Ground RW Tank",Table310[[#This Row],[Treatment Type ]]="Below Ground RW Tank"),INDEX('2. Assumptions'!$K$13:$K$62,MATCH(Table310[[#This Row],[Treatment volume (m^2 or L) ]],'2. Assumptions'!$I$13:$I$62,1))*('2. Assumptions'!$X$27),Table310[[#This Row],[Treatment volume (m^2 or L) ]]*'2. Assumptions'!$X$27) -> 0 | AK23: =IF(SUM(AD23:AE23)<>0,'2. Assumptions'!$L$69,0) -> 0 | AL23: =IFERROR(IF(Table310[[#This Row],[Raingarden Cost]]<>0,(Table310[[#This Row],[Raingarden Cost]]+Table310[[#This Row],[Asset Land Cost ($)]])/(100*Table310[[#This Row],[Total Site Raingarden treatment]]),0),0) -> 0 | AM23: =IFERROR(IF(SUM(Table310[[#This Row],[Above Ground Tank Cost]:[Plumbing Cost]])<>0,(Table310[[#This Row],[Above Ground Tank Cost]]+Table310[[#This Row],[Below Ground Tank Cost]]+Table310[[#This Row],[Plumbing Cost]]+Table310[[#This Row],[Pump]]+Table310[[#This Row],[Asset Land Cost ($)]])/(100*Table310[[#This Row],[Total site Rainwater Tank Treatment]]),0),0) -> 0 | AN23: =IFERROR(IF(Table310[[#This Row],[Buffer Strip]]<>0,(Table310[[#This Row],[Buffer Strip]]+Table310[[#This Row],[Asset Land Cost ($)]])/(100*Table310[[#This Row],[Total Site Buffer Strip Treatment]]),0),0) -> 0 | AO23: =IFERROR(IF(Table310[[#This Row],[Infiltration Sand]]<>0,(Table310[[#This Row],[Infiltration Sand]]+Table310[[#This Row],[Asset Land Cost ($)]])/(100*Table310[[#This Row],[Total Site Infiltration Sand Treatment]]),0),0) -> 0 | AP23: =SUMIFS($O$2:$O$104775,$P$2:$P$104775,'2. Assumptions'!$O$12,$A$2:$A$104775,$A23) + SUMIFS($O$2:$O$104775,$P$2:$P$104775,'2. Assumptions'!$O$19,$A$2:$A$104775,$A23) -> 259 | AQ23: =SUMIFS($O$2:$O$104775,$P$2:$P$104775,'2. Assumptions'!$H$65,$A$2:$A$104775,$A23) + SUMIFS($O$2:$O$104775,$P$2:$P$104775,'2. Assumptions'!$H$66,$A$2:$A$104775,$A23) -> 26 | AR23: =SUMIFS($O$2:$O$104775,$P$2:$P$104775,'2. Assumptions'!$H$64,$A$2:$A$104775,$A23) -> 0 | AS23: =SUMIFS($O$2:$O$104775,$P$2:$P$104775,'2. Assumptions'!$H$63,$A$2:$A$104775,$A23) -> 0 | AT23: =IFERROR(IF(Table310[[#This Row],[Raingarden Cost]]<>0,(Table310[[#This Row],[Raingarden Cost]]+Table310[[#This Row],[Asset Land Cost ($)]])/(Table310[[#This Row],[Total Site m2 Raingarden treatment]]),0),0) -> 0 | AU23: =IFERROR(IF(SUM(Table310[[#This Row],[Above Ground Tank Cost]:[Plumbing Cost]])<>0,(Table310[[#This Row],[Above Ground Tank Cost]]+Table310[[#This Row],[Below Ground Tank Cost]]+Table310[[#This Row],[Plumbing Cost]]+Table310[[#This Row],[Pump]]+Table310[[#This Row],[Asset Land Cost ($)]])/(Table310[[#This Row],[Total site m2 Rainwater Tank Treatment]]),0),0) -> 0 | AV23: =IFERROR(IF(Table310[[#This Row],[Buffer Strip]]<>0,(Table310[[#This Row],[Buffer Strip]]+Table310[[#This Row],[Asset Land Cost ($)]])/(Table310[[#This Row],[Total Site m2 Buffer Strip Treatment]]),0),0) -> 0 | AW23: =IFERROR(IF(Table310[[#This Row],[Infiltration Sand]]<>0,(Table310[[#This Row],[Infiltration Sand]]+Table310[[#This Row],[Asset Land Cost ($)]])/(Table310[[#This Row],[Total Site m2 Infiltration Sand Treatment]]),0),0) -> 0 | AX23: 0 | AY23: 433 | AZ23: =SUM(Table310[[#This Row],[Above Ground Tank Cost]:[Pump]]) -> 0 | BA23: 79.69681492 | BB23: =O23*'2. Assumptions'!$D$35 -> 0.2112433333 | BC23: =U23*'2. Assumptions'!$D$40*BB23*'2. Assumptions'!$D$38 -> 0.09480593482 | BD23: 0.1077453275 | BE23: 106760.1466 | BF23: 0 | BG23: 72125.66548 | BH23: 53.84205622
A24: 5 | B24: 684997 | C24: 2019 | D24: Darebin City Council | E24: 11 Chenies Street, RESERVOIR | F24: Reservoir | G24: 3073 | H24: Residential | I24: Multi Unit | J24: 3 | K24: =_xlfn.IFS(AND(Table310[[#This Row],[Residential/Commercial/Industrial]]=$H$3,Table310[[#This Row],[No. Of Dwellings/Units]]>='2. Assumptions'!$U$27,Table310[[#This Row],[No. Of Dwellings/Units]]<='2. Assumptions'!$V$27),'2. Assumptions'!$W$27,AND(Table310[[#This Row],[Residential/Commercial/Industrial]]=$H$3,Table310[[#This Row],[No. Of Dwellings/Units]]>='2. Assumptions'!$U$28,Table310[[#This Row],[No. Of Dwellings/Units]]<='2. Assumptions'!$V$28),'2. Assumptions'!$W$28,AND(Table310[[#This Row],[Residential/Commercial/Industrial]]=$H$3,Table310[[#This Row],[No. Of Dwellings/Units]]>='2. Assumptions'!$U$29,Table310[[#This Row],[No. Of Dwellings/Units]]<='2. Assumptions'!$V$29),'2. Assumptions'!$W$29,Table310[[#This Row],[Residential/Commercial/Industrial]]<>$H$3,"Non-Residential") -> Medium Density | L24: 969 | M24: =I24&2 -> Multi Unit2 | N24: Roof | O24: 26 | P24: Raingarden 100mm | Q24: 1.5 | R24: 133.8 | S24: 0 | U24: 0.9973325635 | V24: 0.08034180139 | W24: =SUMIFS($V$2:$V$104775,$P$2:$P$104775,'2. Assumptions'!$O$12,$A$2:$A$104775,$A24) + SUMIFS($V$2:$V$104775,$P$2:$P$104775,'2. Assumptions'!$O$19,$A$2:$A$104775,$A24) -> 0.9169907621 | X24: =SUMIFS($V$2:$V$104775,$P$2:$P$104775,'2. Assumptions'!$H$65,$A$2:$A$104775,$A24) + SUMIFS($V$2:$V$104775,$P$2:$P$104775,'2. Assumptions'!$H$66,$A$2:$A$104775,$A24) -> 0.08034180139 | Y24: =SUMIFS($V$2:$V$104775,$P$2:$P$104775,'2. Assumptions'!$H$64,$A$2:$A$104775,$A24) -> 0 | Z24: =SUMIFS($V$2:$V$104775,$P$2:$P$104775,'2. Assumptions'!$H$63,$A$2:$A$104775,$A24) -> 0 | AA24: 285 | AB24: 144.3333333 | AC24: 0.4468524252 | AD24: =(IF(P24=$P$2,_xlfn.IFS(AND(Q24>'2. Assumptions'!$O$14,Q24<='2. Assumptions'!$P$14),'2. Assumptions'!$Q$14,AND(Q24>'2. Assumptions'!$O$15,Q24<='2. Assumptions'!$P$15),'2. Assumptions'!$Q$15,(Q24>'2. Assumptions'!$O$16),'2. Assumptions'!$Q$16),0))*Q24/1000 -> 0 | AE24: =(IF(P24='2. Assumptions'!$O$19,_xlfn.IFS(AND(Q24>'2. Assumptions'!$O$21,Q24<='2. Assumptions'!$P$21),'2. Assumptions'!$Q$21,AND(Q24>'2. Assumptions'!$O$22,Q24<='2. Assumptions'!$P$22),'2. Assumptions'!$Q$22,AND(Q24>'2. Assumptions'!$O$23, Q24<='2. Assumptions'!$P$23),'2. Assumptions'!$Q$23,Q24>'2. Assumptions'!$P$24,'2. Assumptions'!$Q$24),0))*Q24/1000 -> 0 | AF24: =IF(SUM(AD24:AE24)<>0,'2. Assumptions'!$L$70,0) -> 0 | AG24: =IFERROR(_xlfn.IFS(P24='2. Assumptions'!$H$65,'2. Assumptions'!$L$65*Q24,P24='2. Assumptions'!$H$66,'2. Assumptions'!$L$66*Q24),0) -> 1138.620389 | AH24: =IF(P24='2. Assumptions'!$H$63,'2. Assumptions'!$L$63*Q24,0) -> 0 | AI24: =IF(P24='2. Assumptions'!$H$64,'2. Assumptions'!$L$64*Q24,0) -> 0 | AJ24: =IF(OR(Table310[[#This Row],[Treatment Type ]]="Above Ground RW Tank",Table310[[#This Row],[Treatment Type ]]="Below Ground RW Tank"),INDEX('2. Assumptions'!$K$13:$K$62,MATCH(Table310[[#This Row],[Treatment volume (m^2 or L) ]],'2. Assumptions'!$I$13:$I$62,1))*('2. Assumptions'!$X$27),Table310[[#This Row],[Treatment volume (m^2 or L) ]]*'2. Assumptions'!$X$27) -> 2427.087094 | AK24: =IF(SUM(AD24:AE24)<>0,'2. Assumptions'!$L$69,0) -> 0 | AL24: =IFERROR(IF(Table310[[#This Row],[Raingarden Cost]]<>0,(Table310[[#This Row],[Raingarden Cost]]+Table310[[#This Row],[Asset Land Cost ($)]])/(100*Table310[[#This Row],[Total Site Raingarden treatment]]),0),0) -> 443.8172186 | AM24: =IFERROR(IF(SUM(Table310[[#This Row],[Above Ground Tank Cost]:[Plumbing Cost]])<>0,(Table310[[#This Row],[Above Ground Tank Cost]]+Table310[[#This Row],[Below Ground Tank Cost]]+Table310[[#This Row],[Plumbing Cost]]+Table310[[#This Row],[Pump]]+Table310[[#This Row],[Asset Land Cost ($)]])/(100*Table310[[#This Row],[Total site Rainwater Tank Treatment]]),0),0) -> 0 | AN24: =IFERROR(IF(Table310[[#This Row],[Buffer Strip]]<>0,(Table310[[#This Row],[Buffer Strip]]+Table310[[#This Row],[Asset Land Cost ($)]])/(100*Table310[[#This Row],[Total Site Buffer Strip Treatment]]),0),0) -> 0 | AO24: =IFERROR(IF(Table310[[#This Row],[Infiltration Sand]]<>0,(Table310[[#This Row],[Infiltration Sand]]+Table310[[#This Row],[Asset Land Cost ($)]])/(100*Table310[[#This Row],[Total Site Infiltration Sand Treatment]]),0),0) -> 0 | AP24: =SUMIFS($O$2:$O$104775,$P$2:$P$104775,'2. Assumptions'!$O$12,$A$2:$A$104775,$A24) + SUMIFS($O$2:$O$104775,$P$2:$P$104775,'2. Assumptions'!$O$19,$A$2:$A$104775,$A24) -> 259 | AQ24: =SUMIFS($O$2:$O$104775,$P$2:$P$104775,'2. Assumptions'!$H$65,$A$2:$A$104775,$A24) + SUMIFS($O$2:$O$104775,$P$2:$P$104775,'2. Assumptions'!$H$66,$A$2:$A$104775,$A24) -> 26 | AR24: =SUMIFS($O$2:$O$104775,$P$2:$P$104775,'2. Assumptions'!$H$64,$A$2:$A$104775,$A24) -> 0 | AS24: =SUMIFS($O$2:$O$104775,$P$2:$P$104775,'2. Assumptions'!$H$63,$A$2:$A$104775,$A24) -> 0 | AT24: =IFERROR(IF(Table310[[#This Row],[Raingarden Cost]]<>0,(Table310[[#This Row],[Raingarden Cost]]+Table310[[#This Row],[Asset Land Cost ($)]])/(Table310[[#This Row],[Total Site m2 Raingarden treatment]]),0),0) -> 137.1425955 | AU24: =IFERROR(IF(SUM(Table310[[#This Row],[Above Ground Tank Cost]:[Plumbing Cost]])<>0,(Table310[[#This Row],[Above Ground Tank Cost]]+Table310[[#This Row],[Below Ground Tank Cost]]+Table310[[#This Row],[Plumbing Cost]]+Table310[[#This Row],[Pump]]+Table310[[#This Row],[Asset Land Cost ($)]])/(Table310[[#This Row],[Total site m2 Rainwater Tank Treatment]]),0),0) -> 0 | AV24: =IFERROR(IF(Table310[[#This Row],[Buffer Strip]]<>0,(Table310[[#This Row],[Buffer Strip]]+Table310[[#This Row],[Asset Land Cost ($)]])/(Table310[[#This Row],[Total Site m2 Buffer Strip Treatment]]),0),0) -> 0 | AW24: =IFERROR(IF(Table310[[#This Row],[Infiltration Sand]]<>0,(Table310[[#This Row],[Infiltration Sand]]+Table310[[#This Row],[Asset Land Cost ($)]])/(Table310[[#This Row],[Total Site m2 Infiltration Sand Treatment]]),0),0) -> 0 | AX24: 137.1425955 | AY24: 433 | AZ24: =SUM(Table310[[#This Row],[Above Ground Tank Cost]:[Pump]]) -> 3565.707483 | BA24: 79.69681492 | BB24: =O24*'2. Assumptions'!$D$35 -> 0.04324666667 | BC24: =U24*'2. Assumptions'!$D$40*BB24*'2. Assumptions'!$D$38 -> 0.01940908902 | BD24: 0.1077453275 | BE24: 106760.1466 | BF24: 1138.620389 | BG24: 72125.66548 | BH24: 53.84205622
A25: 6 | B25: 817394 | C25: 2019 | D25: Darebin City Council | E25: 11 Townhall Avenue, PRESTON | F25: Preston | G25: 3072 | H25: Residential | I25: Multi Unit | J25: 2 | K25: =_xlfn.IFS(AND(Table310[[#This Row],[Residential/Commercial/Industrial]]=$H$3,Table310[[#This Row],[No. Of Dwellings/Units]]>='2. Assumptions'!$U$27,Table310[[#This Row],[No. Of Dwellings/Units]]<='2. Assumptions'!$V$27),'2. Assumptions'!$W$27,AND(Table310[[#This Row],[Residential/Commercial/Industrial]]=$H$3,Table310[[#This Row],[No. Of Dwellings/Units]]>='2. Assumptions'!$U$28,Table310[[#This Row],[No. Of Dwellings/Units]]<='2. Assumptions'!$V$28),'2. Assumptions'!$W$28,AND(Table310[[#This Row],[Residential/Commercial/Industrial]]=$H$3,Table310[[#This Row],[No. Of Dwellings/Units]]>='2. Assumptions'!$U$29,Table310[[#This Row],[No. Of Dwellings/Units]]<='2. Assumptions'!$V$29),'2. Assumptions'!$W$29,Table310[[#This Row],[Residential/Commercial/Industrial]]<>$H$3,"Non-Residential") -> Separate Unit | L25: 420 | M25: =I25&1 -> Multi Unit1 | N25: Roof | O25: 70 | P25: Above Ground RW Tank | Q25: 5000 | R25: 168 | S25: 82.8 | U25: 0.9977112676 | V25: 0.414084507 | W25: =SUMIFS($V$2:$V$104775,$P$2:$P$104775,'2. Assumptions'!$O$12,$A$2:$A$104775,$A25) + SUMIFS($V$2:$V$104775,$P$2:$P$104775,'2. Assumptions'!$O$19,$A$2:$A$104775,$A25) -> 0.8281690141 | X25: =SUMIFS($V$2:$V$104775,$P$2:$P$104775,'2. Assumptions'!$H$65,$A$2:$A$104775,$A25) + SUMIFS($V$2:$V$104775,$P$2:$P$104775,'2. Assumptions'!$H$66,$A$2:$A$104775,$A25) -> 0.1695422535 | Y25: =SUMIFS($V$2:$V$104775,$P$2:$P$104775,'2. Assumptions'!$H$64,$A$2:$A$104775,$A25) -> 0 | Z25: =SUMIFS($V$2:$V$104775,$P$2:$P$104775,'2. Assumptions'!$H$63,$A$2:$A$104775,$A25) -> 0 | AA25: 248 | AB25: 142 | AC25: 0.6761904762 | AD25: =(IF(P25=$P$2,_xlfn.IFS(AND(Q25>'2. Assumptions'!$O$14,Q25<='2. Assumptions'!$P$14),'2. Assumptions'!$Q$14,AND(Q25>'2. Assumptions'!$O$15,Q25<='2. Assumptions'!$P$15),'2. Assumptions'!$Q$15,(Q25>'2. Assumptions'!$O$16),'2. Assumptions'!$Q$16),0))*Q25/1000 -> 4373.083083 | AE25: =(IF(P25='2. Assumptions'!$O$19,_xlfn.IFS(AND(Q25>'2. Assumptions'!$O$21,Q25<='2. Assumptions'!$P$21),'2. Assumptions'!$Q$21,AND(Q25>'2. Assumptions'!$O$22,Q25<='2. Assumptions'!$P$22),'2. Assumptions'!$Q$22,AND(Q25>'2. Assumptions'!$O$23, Q25<='2. Assumptions'!$P$23),'2. Assumptions'!$Q$23,Q25>'2. Assumptions'!$P$24,'2. Assumptions'!$Q$24),0))*Q25/1000 -> 0 | AF25: =IF(SUM(AD25:AE25)<>0,'2. Assumptions'!$L$70,0) -> 2711.000926 | AG25: =IFERROR(_xlfn.IFS(P25='2. Assumptions'!$H$65,'2. Assumptions'!$L$65*Q25,P25='2. Assumptions'!$H$66,'2. Assumptions'!$L$66*Q25),0) -> 0 | AH25: =IF(P25='2. Assumptions'!$H$63,'2. Assumptions'!$L$63*Q25,0) -> 0 | AI25: =IF(P25='2. Assumptions'!$H$64,'2. Assumptions'!$L$64*Q25,0) -> 0 | AJ25: =IF(OR(Table310[[#This Row],[Treatment Type ]]="Above Ground RW Tank",Table310[[#This Row],[Treatment Type ]]="Below Ground RW Tank"),INDEX('2. Assumptions'!$K$13:$K$62,MATCH(Table310[[#This Row],[Treatment volume (m^2 or L) ]],'2. Assumptions'!$I$13:$I$62,1))*('2. Assumptions'!$X$27),Table310[[#This Row],[Treatment volume (m^2 or L) ]]*'2. Assumptions'!$X$27) -> 4349.38087 | AK25: =IF(SUM(AD25:AE25)<>0,'2. Assumptions'!$L$69,0) -> 2494.120852 | AL25: =IFERROR(IF(Table310[[#This Row],[Raingarden Cost]]<>0,(Table310[[#This Row],[Raingarden Cost]]+Table310[[#This Row],[Asset Land Cost ($)]])/(100*Table310[[#This Row],[Total Site Raingarden treatment]]),0),0) -> 0 | AM25: =IFERROR(IF(SUM(Table310[[#This Row],[Above Ground Tank Cost]:[Plumbing Cost]])<>0,(Table310[[#This Row],[Above Ground Tank Cost]]+Table310[[#This Row],[Below Ground Tank Cost]]+Table310[[#This Row],[Plumbing Cost]]+Table310[[#This Row],[Pump]]+Table310[[#This Row],[Asset Land Cost ($)]])/(100*Table310[[#This Row],[Total site Rainwater Tank Treatment]]),0),0) -> 168.1732291 | AN25: =IFERROR(IF(Table310[[#This Row],[Buffer Strip]]<>0,(Table310[[#This Row],[Buffer Strip]]+Table310[[#This Row],[Asset Land Cost ($)]])/(100*Table310[[#This Row],[Total Site Buffer Strip Treatment]]),0),0) -> 0 | AO25: =IFERROR(IF(Table310[[#This Row],[Infiltration Sand]]<>0,(Table310[[#This Row],[Infiltration Sand]]+Table310[[#This Row],[Asset Land Cost ($)]])/(100*Table310[[#This Row],[Total Site Infiltration Sand Treatment]]),0),0) -> 0 | AP25: =SUMIFS($O$2:$O$104775,$P$2:$P$104775,'2. Assumptions'!$O$12,$A$2:$A$104775,$A25) + SUMIFS($O$2:$O$104775,$P$2:$P$104775,'2. Assumptions'!$O$19,$A$2:$A$104775,$A25) -> 140 | AQ25: =SUMIFS($O$2:$O$104775,$P$2:$P$104775,'2. Assumptions'!$H$65,$A$2:$A$104775,$A25) + SUMIFS($O$2:$O$104775,$P$2:$P$104775,'2. Assumptions'!$H$66,$A$2:$A$104775,$A25) -> 36 | AR25: =SUMIFS($O$2:$O$104775,$P$2:$P$104775,'2. Assumptions'!$H$64,$A$2:$A$104775,$A25) -> 0 | AS25: =SUMIFS($O$2:$O$104775,$P$2:$P$104775,'2. Assumptions'!$H$63,$A$2:$A$104775,$A25) -> 0 | AT25: =IFERROR(IF(Table310[[#This Row],[Raingarden Cost]]<>0,(Table310[[#This Row],[Raingarden Cost]]+Table310[[#This Row],[Asset Land Cost ($)]])/(Table310[[#This Row],[Total Site m2 Raingarden treatment]]),0),0) -> 0 | AU25: =IFERROR(IF(SUM(Table310[[#This Row],[Above Ground Tank Cost]:[Plumbing Cost]])<>0,(Table310[[#This Row],[Above Ground Tank Cost]]+Table310[[#This Row],[Below Ground Tank Cost]]+Table310[[#This Row],[Plumbing Cost]]+Table310[[#This Row],[Pump]]+Table310[[#This Row],[Asset Land Cost ($)]])/(Table310[[#This Row],[Total site m2 Rainwater Tank Treatment]]),0),0) -> 99.48275522 | AV25: =IFERROR(IF(Table310[[#This Row],[Buffer Strip]]<>0,(Table310[[#This Row],[Buffer Strip]]+Table310[[#This Row],[Asset Land Cost ($)]])/(Table310[[#This Row],[Total Site m2 Buffer Strip Treatment]]),0),0) -> 0 | AW25: =IFERROR(IF(Table310[[#This Row],[Infiltration Sand]]<>0,(Table310[[#This Row],[Infiltration Sand]]+Table310[[#This Row],[Asset Land Cost ($)]])/(Table310[[#This Row],[Total Site m2 Infiltration Sand Treatment]]),0),0) -> 0 | AX25: 198.9655104 | AY25: 284 | AZ25: =SUM(Table310[[#This Row],[Above Ground Tank Cost]:[Pump]]) -> 13927.58573 | BA25: 114.8220004 | BB25: =O25*'2. Assumptions'!$D$35 -> 0.1164333333 | BC25: =U25*'2. Assumptions'!$D$40*BB25*'2. Assumptions'!$D$38 -> 0.05227508187 | BD25: 0.1060437375 | BE25: 153754.7095 | BF25: 9578.20486 | BG25: 97481.33518 | BH25: 72.79778253
A26: 6 | B26: 817394 | C26: 2019 | D26: Darebin City Council | E26: 11 Townhall Avenue, PRESTON | F26: Preston | G26: 3072 | H26: Residential | I26: Multi Unit | J26: 2 | K26: =_xlfn.IFS(AND(Table310[[#This Row],[Residential/Commercial/Industrial]]=$H$3,Table310[[#This Row],[No. Of Dwellings/Units]]>='2. Assumptions'!$U$27,Table310[[#This Row],[No. Of Dwellings/Units]]<='2. Assumptions'!$V$27),'2. Assumptions'!$W$27,AND(Table310[[#This Row],[Residential/Commercial/Industrial]]=$H$3,Table310[[#This Row],[No. Of Dwellings/Units]]>='2. Assumptions'!$U$28,Table310[[#This Row],[No. Of Dwellings/Units]]<='2. Assumptions'!$V$28),'2. Assumptions'!$W$28,AND(Table310[[#This Row],[Residential/Commercial/Industrial]]=$H$3,Table310[[#This Row],[No. Of Dwellings/Units]]>='2. Assumptions'!$U$29,Table310[[#This Row],[No. Of Dwellings/Units]]<='2. Assumptions'!$V$29),'2. Assumptions'!$W$29,Table310[[#This Row],[Residential/Commercial/Industrial]]<>$H$3,"Non-Residential") -> Separate Unit | L26: 420 | M26: =I26&1 -> Multi Unit1 | N26: Roof | O26: 18 | P26: Raingarden 100mm | Q26: 1 | R26: 133.75 | S26: 0 | U26: 0.9977112676 | V26: 0.08477112676 | W26: =SUMIFS($V$2:$V$104775,$P$2:$P$104775,'2. Assumptions'!$O$12,$A$2:$A$104775,$A26) + SUMIFS($V$2:$V$104775,$P$2:$P$104775,'2. Assumptions'!$O$19,$A$2:$A$104775,$A26) -> 0.8281690141 | X26: =SUMIFS($V$2:$V$104775,$P$2:$P$104775,'2. Assumptions'!$H$65,$A$2:$A$104775,$A26) + SUMIFS($V$2:$V$104775,$P$2:$P$104775,'2. Assumptions'!$H$66,$A$2:$A$104775,$A26) -> 0.1695422535 | Y26: =SUMIFS($V$2:$V$104775,$P$2:$P$104775,'2. Assumptions'!$H$64,$A$2:$A$104775,$A26) -> 0 | Z26: =SUMIFS($V$2:$V$104775,$P$2:$P$104775,'2. Assumptions'!$H$63,$A$2:$A$104775,$A26) -> 0 | AA26: 248 | AB26: 142 | AC26: 0.6761904762 | AD26: =(IF(P26=$P$2,_xlfn.IFS(AND(Q26>'2. Assumptions'!$O$14,Q26<='2. Assumptions'!$P$14),'2. Assumptions'!$Q$14,AND(Q26>'2. Assumptions'!$O$15,Q26<='2. Assumptions'!$P$15),'2. Assumptions'!$Q$15,(Q26>'2. Assumptions'!$O$16),'2. Assumptions'!$Q$16),0))*Q26/1000 -> 0 | AE26: =(IF(P26='2. Assumptions'!$O$19,_xlfn.IFS(AND(Q26>'2. Assumptions'!$O$21,Q26<='2. Assumptions'!$P$21),'2. Assumptions'!$Q$21,AND(Q26>'2. Assumptions'!$O$22,Q26<='2. Assumptions'!$P$22),'2. Assumptions'!$Q$22,AND(Q26>'2. Assumptions'!$O$23, Q26<='2. Assumptions'!$P$23),'2. Assumptions'!$Q$23,Q26>'2. Assumptions'!$P$24,'2. Assumptions'!$Q$24),0))*Q26/1000 -> 0 | AF26: =IF(SUM(AD26:AE26)<>0,'2. Assumptions'!$L$70,0) -> 0 | AG26: =IFERROR(_xlfn.IFS(P26='2. Assumptions'!$H$65,'2. Assumptions'!$L$65*Q26,P26='2. Assumptions'!$H$66,'2. Assumptions'!$L$66*Q26),0) -> 759.0802592 | AH26: =IF(P26='2. Assumptions'!$H$63,'2. Assumptions'!$L$63*Q26,0) -> 0 | AI26: =IF(P26='2. Assumptions'!$H$64,'2. Assumptions'!$L$64*Q26,0) -> 0 | AJ26: =IF(OR(Table310[[#This Row],[Treatment Type ]]="Above Ground RW Tank",Table310[[#This Row],[Treatment Type ]]="Below Ground RW Tank"),INDEX('2. Assumptions'!$K$13:$K$62,MATCH(Table310[[#This Row],[Treatment volume (m^2 or L) ]],'2. Assumptions'!$I$13:$I$62,1))*('2. Assumptions'!$X$27),Table310[[#This Row],[Treatment volume (m^2 or L) ]]*'2. Assumptions'!$X$27) -> 1618.058063 | AK26: =IF(SUM(AD26:AE26)<>0,'2. Assumptions'!$L$69,0) -> 0 | AL26: =IFERROR(IF(Table310[[#This Row],[Raingarden Cost]]<>0,(Table310[[#This Row],[Raingarden Cost]]+Table310[[#This Row],[Asset Land Cost ($)]])/(100*Table310[[#This Row],[Total Site Raingarden treatment]]),0),0) -> 140.209197 | AM26: =IFERROR(IF(SUM(Table310[[#This Row],[Above Ground Tank Cost]:[Plumbing Cost]])<>0,(Table310[[#This Row],[Above Ground Tank Cost]]+Table310[[#This Row],[Below Ground Tank Cost]]+Table310[[#This Row],[Plumbing Cost]]+Table310[[#This Row],[Pump]]+Table310[[#This Row],[Asset Land Cost ($)]])/(100*Table310[[#This Row],[Total site Rainwater Tank Treatment]]),0),0) -> 0 | AN26: =IFERROR(IF(Table310[[#This Row],[Buffer Strip]]<>0,(Table310[[#This Row],[Buffer Strip]]+Table310[[#This Row],[Asset Land Cost ($)]])/(100*Table310[[#This Row],[Total Site Buffer Strip Treatment]]),0),0) -> 0 | AO26: =IFERROR(IF(Table310[[#This Row],[Infiltration Sand]]<>0,(Table310[[#This Row],[Infiltration Sand]]+Table310[[#This Row],[Asset Land Cost ($)]])/(100*Table310[[#This Row],[Total Site Infiltration Sand Treatment]]),0),0) -> 0 | AP26: =SUMIFS($O$2:$O$104775,$P$2:$P$104775,'2. Assumptions'!$O$12,$A$2:$A$104775,$A26) + SUMIFS($O$2:$O$104775,$P$2:$P$104775,'2. Assumptions'!$O$19,$A$2:$A$104775,$A26) -> 140 | AQ26: =SUMIFS($O$2:$O$104775,$P$2:$P$104775,'2. Assumptions'!$H$65,$A$2:$A$104775,$A26) + SUMIFS($O$2:$O$104775,$P$2:$P$104775,'2. Assumptions'!$H$66,$A$2:$A$104775,$A26) -> 36 | AR26: =SUMIFS($O$2:$O$104775,$P$2:$P$104775,'2. Assumptions'!$H$64,$A$2:$A$104775,$A26) -> 0 | AS26: =SUMIFS($O$2:$O$104775,$P$2:$P$104775,'2. Assumptions'!$H$63,$A$2:$A$104775,$A26) -> 0 | AT26: =IFERROR(IF(Table310[[#This Row],[Raingarden Cost]]<>0,(Table310[[#This Row],[Raingarden Cost]]+Table310[[#This Row],[Asset Land Cost ($)]])/(Table310[[#This Row],[Total Site m2 Raingarden treatment]]),0),0) -> 66.03162005 | AU26: =IFERROR(IF(SUM(Table310[[#This Row],[Above Ground Tank Cost]:[Plumbing Cost]])<>0,(Table310[[#This Row],[Above Ground Tank Cost]]+Table310[[#This Row],[Below Ground Tank Cost]]+Table310[[#This Row],[Plumbing Cost]]+Table310[[#This Row],[Pump]]+Table310[[#This Row],[Asset Land Cost ($)]])/(Table310[[#This Row],[Total site m2 Rainwater Tank Treatment]]),0),0) -> 0 | AV26: =IFERROR(IF(Table310[[#This Row],[Buffer Strip]]<>0,(Table310[[#This Row],[Buffer Strip]]+Table310[[#This Row],[Asset Land Cost ($)]])/(Table310[[#This Row],[Total Site m2 Buffer Strip Treatment]]),0),0) -> 0 | AW26: =IFERROR(IF(Table310[[#This Row],[Infiltration Sand]]<>0,(Table310[[#This Row],[Infiltration Sand]]+Table310[[#This Row],[Asset Land Cost ($)]])/(Table310[[#This Row],[Total Site m2 Infiltration Sand Treatment]]),0),0) -> 0 | AX26: 132.0632401 | AY26: 284 | AZ26: =SUM(Table310[[#This Row],[Above Ground Tank Cost]:[Pump]]) -> 2377.138322 | BA26: 114.8220004 | BB26: =O26*'2. Assumptions'!$D$35 -> 0.02994 | BC26: =U26*'2. Assumptions'!$D$40*BB26*'2. Assumptions'!$D$38 -> 0.01344216391 | BD26: 0.1060437375 | BE26: 153754.7095 | BF26: 759.0802592 | BG26: 97481.33518 | BH26: 72.79778253
A27: 6 | B27: 817394 | C27: 2019 | D27: Darebin City Council | E27: 11 Townhall Avenue, PRESTON | F27: Preston | G27: 3072 | H27: Residential | I27: Multi Unit | J27: 2 | K27: =_xlfn.IFS(AND(Table310[[#This Row],[Residential/Commercial/Industrial]]=$H$3,Table310[[#This Row],[No. Of Dwellings/Units]]>='2. Assumptions'!$U$27,Table310[[#This Row],[No. Of Dwellings/Units]]<='2. Assumptions'!$V$27),'2. Assumptions'!$W$27,AND(Table310[[#This Row],[Residential/Commercial/Industrial]]=$H$3,Table310[[#This Row],[No. Of Dwellings/Units]]>='2. Assumptions'!$U$28,Table310[[#This Row],[No. Of Dwellings/Units]]<='2. Assumptions'!$V$28),'2. Assumptions'!$W$28,AND(Table310[[#This Row],[Residential/Commercial/Industrial]]=$H$3,Table310[[#This Row],[No. Of Dwellings/Units]]>='2. Assumptions'!$U$29,Table310[[#This Row],[No. Of Dwellings/Units]]<='2. Assumptions'!$V$29),'2. Assumptions'!$W$29,Table310[[#This Row],[Residential/Commercial/Industrial]]<>$H$3,"Non-Residential") -> Separate Unit | L27: 420 | M27: =I27&1 -> Multi Unit1 | N27: Roof | O27: 36 | P27: None | Q27: 0 | R27: 0 | S27: 0 | U27: 0.9977112676 | V27: 0 | W27: =SUMIFS($V$2:$V$104775,$P$2:$P$104775,'2. Assumptions'!$O$12,$A$2:$A$104775,$A27) + SUMIFS($V$2:$V$104775,$P$2:$P$104775,'2. Assumptions'!$O$19,$A$2:$A$104775,$A27) -> 0.8281690141 | X27: =SUMIFS($V$2:$V$104775,$P$2:$P$104775,'2. Assumptions'!$H$65,$A$2:$A$104775,$A27) + SUMIFS($V$2:$V$104775,$P$2:$P$104775,'2. Assumptions'!$H$66,$A$2:$A$104775,$A27) -> 0.1695422535 | Y27: =SUMIFS($V$2:$V$104775,$P$2:$P$104775,'2. Assumptions'!$H$64,$A$2:$A$104775,$A27) -> 0 | Z27: =SUMIFS($V$2:$V$104775,$P$2:$P$104775,'2. Assumptions'!$H$63,$A$2:$A$104775,$A27) -> 0 | AA27: 248 | AB27: 142 | AC27: 0.6761904762 | AD27: =(IF(P27=$P$2,_xlfn.IFS(AND(Q27>'2. Assumptions'!$O$14,Q27<='2. Assumptions'!$P$14),'2. Assumptions'!$Q$14,AND(Q27>'2. Assumptions'!$O$15,Q27<='2. Assumptions'!$P$15),'2. Assumptions'!$Q$15,(Q27>'2. Assumptions'!$O$16),'2. Assumptions'!$Q$16),0))*Q27/1000 -> 0 | AE27: =(IF(P27='2. Assumptions'!$O$19,_xlfn.IFS(AND(Q27>'2. Assumptions'!$O$21,Q27<='2. Assumptions'!$P$21),'2. Assumptions'!$Q$21,AND(Q27>'2. Assumptions'!$O$22,Q27<='2. Assumptions'!$P$22),'2. Assumptions'!$Q$22,AND(Q27>'2. Assumptions'!$O$23, Q27<='2. Assumptions'!$P$23),'2. Assumptions'!$Q$23,Q27>'2. Assumptions'!$P$24,'2. Assumptions'!$Q$24),0))*Q27/1000 -> 0 | AF27: =IF(SUM(AD27:AE27)<>0,'2. Assumptions'!$L$70,0) -> 0 | AG27: =IFERROR(_xlfn.IFS(P27='2. Assumptions'!$H$65,'2. Assumptions'!$L$65*Q27,P27='2. Assumptions'!$H$66,'2. Assumptions'!$L$66*Q27),0) -> 0 | AH27: =IF(P27='2. Assumptions'!$H$63,'2. Assumptions'!$L$63*Q27,0) -> 0 | AI27: =IF(P27='2. Assumptions'!$H$64,'2. Assumptions'!$L$64*Q27,0) -> 0 | AJ27: =IF(OR(Table310[[#This Row],[Treatment Type ]]="Above Ground RW Tank",Table310[[#This Row],[Treatment Type ]]="Below Ground RW Tank"),INDEX('2. Assumptions'!$K$13:$K$62,MATCH(Table310[[#This Row],[Treatment volume (m^2 or L) ]],'2. Assumptions'!$I$13:$I$62,1))*('2. Assumptions'!$X$27),Table310[[#This Row],[Treatment volume (m^2 or L) ]]*'2. Assumptions'!$X$27) -> 0 | AK27: =IF(SUM(AD27:AE27)<>0,'2. Assumptions'!$L$69,0) -> 0 | AL27: =IFERROR(IF(Table310[[#This Row],[Raingarden Cost]]<>0,(Table310[[#This Row],[Raingarden Cost]]+Table310[[#This Row],[Asset Land Cost ($)]])/(100*Table310[[#This Row],[Total Site Raingarden treatment]]),0),0) -> 0 | AM27: =IFERROR(IF(SUM(Table310[[#This Row],[Above Ground Tank Cost]:[Plumbing Cost]])<>0,(Table310[[#This Row],[Above Ground Tank Cost]]+Table310[[#This Row],[Below Ground Tank Cost]]+Table310[[#This Row],[Plumbing Cost]]+Table310[[#This Row],[Pump]]+Table310[[#This Row],[Asset Land Cost ($)]])/(100*Table310[[#This Row],[Total site Rainwater Tank Treatment]]),0),0) -> 0 | AN27: =IFERROR(IF(Table310[[#This Row],[Buffer Strip]]<>0,(Table310[[#This Row],[Buffer Strip]]+Table310[[#This Row],[Asset Land Cost ($)]])/(100*Table310[[#This Row],[Total Site Buffer Strip Treatment]]),0),0) -> 0 | AO27: =IFERROR(IF(Table310[[#This Row],[Infiltration Sand]]<>0,(Table310[[#This Row],[Infiltration Sand]]+Table310[[#This Row],[Asset Land Cost ($)]])/(100*Table310[[#This Row],[Total Site Infiltration Sand Treatment]]),0),0) -> 0 | AP27: =SUMIFS($O$2:$O$104775,$P$2:$P$104775,'2. Assumptions'!$O$12,$A$2:$A$104775,$A27) + SUMIFS($O$2:$O$104775,$P$2:$P$104775,'2. Assumptions'!$O$19,$A$2:$A$104775,$A27) -> 140 | AQ27: =SUMIFS($O$2:$O$104775,$P$2:$P$104775,'2. Assumptions'!$H$65,$A$2:$A$104775,$A27) + SUMIFS($O$2:$O$104775,$P$2:$P$104775,'2. Assumptions'!$H$66,$A$2:$A$104775,$A27) -> 36 | AR27: =SUMIFS($O$2:$O$104775,$P$2:$P$104775,'2. Assumptions'!$H$64,$A$2:$A$104775,$A27) -> 0 | AS27: =SUMIFS($O$2:$O$104775,$P$2:$P$104775,'2. Assumptions'!$H$63,$A$2:$A$104775,$A27) -> 0 | AT27: =IFERROR(IF(Table310[[#This Row],[Raingarden Cost]]<>0,(Table310[[#This Row],[Raingarden Cost]]+Table310[[#This Row],[Asset Land Cost ($)]])/(Table310[[#This Row],[Total Site m2 Raingarden treatment]]),0),0) -> 0 | AU27: =IFERROR(IF(SUM(Table310[[#This Row],[Above Ground Tank Cost]:[Plumbing Cost]])<>0,(Table310[[#This Row],[Above Ground Tank Cost]]+Table310[[#This Row],[Below Ground Tank Cost]]+Table310[[#This Row],[Plumbing Cost]]+Table310[[#This Row],[Pump]]+Table310[[#This Row],[Asset Land Cost ($)]])/(Table310[[#This Row],[Total site m2 Rainwater Tank Treatment]]),0),0) -> 0 | AV27: =IFERROR(IF(Table310[[#This Row],[Buffer Strip]]<>0,(Table310[[#This Row],[Buffer Strip]]+Table310[[#This Row],[Asset Land Cost ($)]])/(Table310[[#This Row],[Total Site m2 Buffer Strip Treatment]]),0),0) -> 0 | AW27: =IFERROR(IF(Table310[[#This Row],[Infiltration Sand]]<>0,(Table310[[#This Row],[Infiltration Sand]]+Table310[[#This Row],[Asset Land Cost ($)]])/(Table310[[#This Row],[Total Site m2 Infiltration Sand Treatment]]),0),0) -> 0 | AX27: 0 | AY27: 284 | AZ27: =SUM(Table310[[#This Row],[Above Ground Tank Cost]:[Pump]]) -> 0 | BA27: 114.8220004 | BB27: =O27*'2. Assumptions'!$D$35 -> 0.05988 | BC27: =U27*'2. Assumptions'!$D$40*BB27*'2. Assumptions'!$D$38 -> 0.02688432782 | BD27: 0.1060437375 | BE27: 153754.7095 | BF27: 0 | BG27: 97481.33518 | BH27: 72.79778253
A28: 6 | B28: 817394 | C28: 2019 | D28: Darebin City Council | E28: 11 Townhall Avenue, PRESTON | F28: Preston | G28: 3072 | H28: Residential | I28: Multi Unit | J28: 2 | K28: =_xlfn.IFS(AND(Table310[[#This Row],[Residential/Commercial/Industrial]]=$H$3,Table310[[#This Row],[No. Of Dwellings/Units]]>='2. Assumptions'!$U$27,Table310[[#This Row],[No. Of Dwellings/Units]]<='2. Assumptions'!$V$27),'2. Assumptions'!$W$27,AND(Table310[[#This Row],[Residential/Commercial/Industrial]]=$H$3,Table310[[#This Row],[No. Of Dwellings/Units]]>='2. Assumptions'!$U$28,Table310[[#This Row],[No. Of Dwellings/Units]]<='2. Assumptions'!$V$28),'2. Assumptions'!$W$28,AND(Table310[[#This Row],[Residential/Commercial/Industrial]]=$H$3,Table310[[#This Row],[No. Of Dwellings/Units]]>='2. Assumptions'!$U$29,Table310[[#This Row],[No. Of Dwellings/Units]]<='2. Assumptions'!$V$29),'2. Assumptions'!$W$29,Table310[[#This Row],[Residential/Commercial/Industrial]]<>$H$3,"Non-Residential") -> Separate Unit | L28: 420 | M28: =I28&2 -> Multi Unit2 | N28: Roof | O28: 70 | P28: Above Ground RW Tank | Q28: 5000 | R28: 168 | S28: 82.8 | U28: 0.9977112676 | V28: 0.414084507 | W28: =SUMIFS($V$2:$V$104775,$P$2:$P$104775,'2. Assumptions'!$O$12,$A$2:$A$104775,$A28) + SUMIFS($V$2:$V$104775,$P$2:$P$104775,'2. Assumptions'!$O$19,$A$2:$A$104775,$A28) -> 0.8281690141 | X28: =SUMIFS($V$2:$V$104775,$P$2:$P$104775,'2. Assumptions'!$H$65,$A$2:$A$104775,$A28) + SUMIFS($V$2:$V$104775,$P$2:$P$104775,'2. Assumptions'!$H$66,$A$2:$A$104775,$A28) -> 0.1695422535 | Y28: =SUMIFS($V$2:$V$104775,$P$2:$P$104775,'2. Assumptions'!$H$64,$A$2:$A$104775,$A28) -> 0 | Z28: =SUMIFS($V$2:$V$104775,$P$2:$P$104775,'2. Assumptions'!$H$63,$A$2:$A$104775,$A28) -> 0 | AA28: 248 | AB28: 142 | AC28: 0.6761904762 | AD28: =(IF(P28=$P$2,_xlfn.IFS(AND(Q28>'2. Assumptions'!$O$14,Q28<='2. Assumptions'!$P$14),'2. Assumptions'!$Q$14,AND(Q28>'2. Assumptions'!$O$15,Q28<='2. Assumptions'!$P$15),'2. Assumptions'!$Q$15,(Q28>'2. Assumptions'!$O$16),'2. Assumptions'!$Q$16),0))*Q28/1000 -> 4373.083083 | AE28: =(IF(P28='2. Assumptions'!$O$19,_xlfn.IFS(AND(Q28>'2. Assumptions'!$O$21,Q28<='2. Assumptions'!$P$21),'2. Assumptions'!$Q$21,AND(Q28>'2. Assumptions'!$O$22,Q28<='2. Assumptions'!$P$22),'2. Assumptions'!$Q$22,AND(Q28>'2. Assumptions'!$O$23, Q28<='2. Assumptions'!$P$23),'2. Assumptions'!$Q$23,Q28>'2. Assumptions'!$P$24,'2. Assumptions'!$Q$24),0))*Q28/1000 -> 0 | AF28: =IF(SUM(AD28:AE28)<>0,'2. Assumptions'!$L$70,0) -> 2711.000926 | AG28: =IFERROR(_xlfn.IFS(P28='2. Assumptions'!$H$65,'2. Assumptions'!$L$65*Q28,P28='2. Assumptions'!$H$66,'2. Assumptions'!$L$66*Q28),0) -> 0 | AH28: =IF(P28='2. Assumptions'!$H$63,'2. Assumptions'!$L$63*Q28,0) -> 0 | AI28: =IF(P28='2. Assumptions'!$H$64,'2. Assumptions'!$L$64*Q28,0) -> 0 | AJ28: =IF(OR(Table310[[#This Row],[Treatment Type ]]="Above Ground RW Tank",Table310[[#This Row],[Treatment Type ]]="Below Ground RW Tank"),INDEX('2. Assumptions'!$K$13:$K$62,MATCH(Table310[[#This Row],[Treatment volume (m^2 or L) ]],'2. Assumptions'!$I$13:$I$62,1))*('2. Assumptions'!$X$27),Table310[[#This Row],[Treatment volume (m^2 or L) ]]*'2. Assumptions'!$X$27) -> 4349.38087 | AK28: =IF(SUM(AD28:AE28)<>0,'2. Assumptions'!$L$69,0) -> 2494.120852 | AL28: =IFERROR(IF(Table310[[#This Row],[Raingarden Cost]]<>0,(Table310[[#This Row],[Raingarden Cost]]+Table310[[#This Row],[Asset Land Cost ($)]])/(100*Table310[[#This Row],[Total Site Raingarden treatment]]),0),0) -> 0 | AM28: =IFERROR(IF(SUM(Table310[[#This Row],[Above Ground Tank Cost]:[Plumbing Cost]])<>0,(Table310[[#This Row],[Above Ground Tank Cost]]+Table310[[#This Row],[Below Ground Tank Cost]]+Table310[[#This Row],[Plumbing Cost]]+Table310[[#This Row],[Pump]]+Table310[[#This Row],[Asset Land Cost ($)]])/(100*Table310[[#This Row],[Total site Rainwater Tank Treatment]]),0),0) -> 168.1732291 | AN28: =IFERROR(IF(Table310[[#This Row],[Buffer Strip]]<>0,(Table310[[#This Row],[Buffer Strip]]+Table310[[#This Row],[Asset Land Cost ($)]])/(100*Table310[[#This Row],[Total Site Buffer Strip Treatment]]),0),0) -> 0 | AO28: =IFERROR(IF(Table310[[#This Row],[Infiltration Sand]]<>0,(Table310[[#This Row],[Infiltration Sand]]+Table310[[#This Row],[Asset Land Cost ($)]])/(100*Table310[[#This Row],[Total Site Infiltration Sand Treatment]]),0),0) -> 0 | AP28: =SUMIFS($O$2:$O$104775,$P$2:$P$104775,'2. Assumptions'!$O$12,$A$2:$A$104775,$A28) + SUMIFS($O$2:$O$104775,$P$2:$P$104775,'2. Assumptions'!$O$19,$A$2:$A$104775,$A28) -> 140 | AQ28: =SUMIFS($O$2:$O$104775,$P$2:$P$104775,'2. Assumptions'!$H$65,$A$2:$A$104775,$A28) + SUMIFS($O$2:$O$104775,$P$2:$P$104775,'2. Assumptions'!$H$66,$A$2:$A$104775,$A28) -> 36 | AR28: =SUMIFS($O$2:$O$104775,$P$2:$P$104775,'2. Assumptions'!$H$64,$A$2:$A$104775,$A28) -> 0 | AS28: =SUMIFS($O$2:$O$104775,$P$2:$P$104775,'2. Assumptions'!$H$63,$A$2:$A$104775,$A28) -> 0 | AT28: =IFERROR(IF(Table310[[#This Row],[Raingarden Cost]]<>0,(Table310[[#This Row],[Raingarden Cost]]+Table310[[#This Row],[Asset Land Cost ($)]])/(Table310[[#This Row],[Total Site m2 Raingarden treatment]]),0),0) -> 0 | AU28: =IFERROR(IF(SUM(Table310[[#This Row],[Above Ground Tank Cost]:[Plumbing Cost]])<>0,(Table310[[#This Row],[Above Ground Tank Cost]]+Table310[[#This Row],[Below Ground Tank Cost]]+Table310[[#This Row],[Plumbing Cost]]+Table310[[#This Row],[Pump]]+Table310[[#This Row],[Asset Land Cost ($)]])/(Table310[[#This Row],[Total site m2 Rainwater Tank Treatment]]),0),0) -> 99.48275522 | AV28: =IFERROR(IF(Table310[[#This Row],[Buffer Strip]]<>0,(Table310[[#This Row],[Buffer Strip]]+Table310[[#This Row],[Asset Land Cost ($)]])/(Table310[[#This Row],[Total Site m2 Buffer Strip Treatment]]),0),0) -> 0 | AW28: =IFERROR(IF(Table310[[#This Row],[Infiltration Sand]]<>0,(Table310[[#This Row],[Infiltration Sand]]+Table310[[#This Row],[Asset Land Cost ($)]])/(Table310[[#This Row],[Total Site m2 Infiltration Sand Treatment]]),0),0) -> 0 | AX28: 198.9655104 | AY28: 284 | AZ28: =SUM(Table310[[#This Row],[Above Ground Tank Cost]:[Pump]]) -> 13927.58573 | BA28: 114.8220004 | BB28: =O28*'2. Assumptions'!$D$35 -> 0.1164333333 | BC28: =U28*'2. Assumptions'!$D$40*BB28*'2. Assumptions'!$D$38 -> 0.05227508187 | BD28: 0.1060437375 | BE28: 153754.7095 | BF28: 9578.20486 | BG28: 97481.33518 | BH28: 72.79778253
A29: 6 | B29: 817394 | C29: 2019 | D29: Darebin City Council | E29: 11 Townhall Avenue, PRESTON | F29: Preston | G29: 3072 | H29: Residential | I29: Multi Unit | J29: 2 | K29: =_xlfn.IFS(AND(Table310[[#This Row],[Residential/Commercial/Industrial]]=$H$3,Table310[[#This Row],[No. Of Dwellings/Units]]>='2. Assumptions'!$U$27,Table310[[#This Row],[No. Of Dwellings/Units]]<='2. Assumptions'!$V$27),'2. Assumptions'!$W$27,AND(Table310[[#This Row],[Residential/Commercial/Industrial]]=$H$3,Table310[[#This Row],[No. Of Dwellings/Units]]>='2. Assumptions'!$U$28,Table310[[#This Row],[No. Of Dwellings/Units]]<='2. Assumptions'!$V$28),'2. Assumptions'!$W$28,AND(Table310[[#This Row],[Residential/Commercial/Industrial]]=$H$3,Table310[[#This Row],[No. Of Dwellings/Units]]>='2. Assumptions'!$U$29,Table310[[#This Row],[No. Of Dwellings/Units]]<='2. Assumptions'!$V$29),'2. Assumptions'!$W$29,Table310[[#This Row],[Residential/Commercial/Industrial]]<>$H$3,"Non-Residential") -> Separate Unit | L29: 420 | M29: =I29&2 -> Multi Unit2 | N29: Roof | O29: 18 | P29: Raingarden 100mm | Q29: 1 | R29: 133.75 | S29: 0 | U29: 0.9977112676 | V29: 0.08477112676 | W29: =SUMIFS($V$2:$V$104775,$P$2:$P$104775,'2. Assumptions'!$O$12,$A$2:$A$104775,$A29) + SUMIFS($V$2:$V$104775,$P$2:$P$104775,'2. Assumptions'!$O$19,$A$2:$A$104775,$A29) -> 0.8281690141 | X29: =SUMIFS($V$2:$V$104775,$P$2:$P$104775,'2. Assumptions'!$H$65,$A$2:$A$104775,$A29) + SUMIFS($V$2:$V$104775,$P$2:$P$104775,'2. Assumptions'!$H$66,$A$2:$A$104775,$A29) -> 0.1695422535 | Y29: =SUMIFS($V$2:$V$104775,$P$2:$P$104775,'2. Assumptions'!$H$64,$A$2:$A$104775,$A29) -> 0 | Z29: =SUMIFS($V$2:$V$104775,$P$2:$P$104775,'2. Assumptions'!$H$63,$A$2:$A$104775,$A29) -> 0 | AA29: 248 | AB29: 142 | AC29: 0.6761904762 | AD29: =(IF(P29=$P$2,_xlfn.IFS(AND(Q29>'2. Assumptions'!$O$14,Q29<='2. Assumptions'!$P$14),'2. Assumptions'!$Q$14,AND(Q29>'2. Assumptions'!$O$15,Q29<='2. Assumptions'!$P$15),'2. Assumptions'!$Q$15,(Q29>'2. Assumptions'!$O$16),'2. Assumptions'!$Q$16),0))*Q29/1000 -> 0 | AE29: =(IF(P29='2. Assumptions'!$O$19,_xlfn.IFS(AND(Q29>'2. Assumptions'!$O$21,Q29<='2. Assumptions'!$P$21),'2. Assumptions'!$Q$21,AND(Q29>'2. Assumptions'!$O$22,Q29<='2. Assumptions'!$P$22),'2. Assumptions'!$Q$22,AND(Q29>'2. Assumptions'!$O$23, Q29<='2. Assumptions'!$P$23),'2. Assumptions'!$Q$23,Q29>'2. Assumptions'!$P$24,'2. Assumptions'!$Q$24),0))*Q29/1000 -> 0 | AF29: =IF(SUM(AD29:AE29)<>0,'2. Assumptions'!$L$70,0) -> 0 | AG29: =IFERROR(_xlfn.IFS(P29='2. Assumptions'!$H$65,'2. Assumptions'!$L$65*Q29,P29='2. Assumptions'!$H$66,'2. Assumptions'!$L$66*Q29),0) -> 759.0802592 | AH29: =IF(P29='2. Assumptions'!$H$63,'2. Assumptions'!$L$63*Q29,0) -> 0 | AI29: =IF(P29='2. Assumptions'!$H$64,'2. Assumptions'!$L$64*Q29,0) -> 0 | AJ29: =IF(OR(Table310[[#This Row],[Treatment Type ]]="Above Ground RW Tank",Table310[[#This Row],[Treatment Type ]]="Below Ground RW Tank"),INDEX('2. Assumptions'!$K$13:$K$62,MATCH(Table310[[#This Row],[Treatment volume (m^2 or L) ]],'2. Assumptions'!$I$13:$I$62,1))*('2. Assumptions'!$X$27),Table310[[#This Row],[Treatment volume (m^2 or L) ]]*'2. Assumptions'!$X$27) -> 1618.058063 | AK29: =IF(SUM(AD29:AE29)<>0,'2. Assumptions'!$L$69,0) -> 0 | AL29: =IFERROR(IF(Table310[[#This Row],[Raingarden Cost]]<>0,(Table310[[#This Row],[Raingarden Cost]]+Table310[[#This Row],[Asset Land Cost ($)]])/(100*Table310[[#This Row],[Total Site Raingarden treatment]]),0),0) -> 140.209197 | AM29: =IFERROR(IF(SUM(Table310[[#This Row],[Above Ground Tank Cost]:[Plumbing Cost]])<>0,(Table310[[#This Row],[Above Ground Tank Cost]]+Table310[[#This Row],[Below Ground Tank Cost]]+Table310[[#This Row],[Plumbing Cost]]+Table310[[#This Row],[Pump]]+Table310[[#This Row],[Asset Land Cost ($)]])/(100*Table310[[#This Row],[Total site Rainwater Tank Treatment]]),0),0) -> 0 | AN29: =IFERROR(IF(Table310[[#This Row],[Buffer Strip]]<>0,(Table310[[#This Row],[Buffer Strip]]+Table310[[#This Row],[Asset Land Cost ($)]])/(100*Table310[[#This Row],[Total Site Buffer Strip Treatment]]),0),0) -> 0 | AO29: =IFERROR(IF(Table310[[#This Row],[Infiltration Sand]]<>0,(Table310[[#This Row],[Infiltration Sand]]+Table310[[#This Row],[Asset Land Cost ($)]])/(100*Table310[[#This Row],[Total Site Infiltration Sand Treatment]]),0),0) -> 0 | AP29: =SUMIFS($O$2:$O$104775,$P$2:$P$104775,'2. Assumptions'!$O$12,$A$2:$A$104775,$A29) + SUMIFS($O$2:$O$104775,$P$2:$P$104775,'2. Assumptions'!$O$19,$A$2:$A$104775,$A29) -> 140 | AQ29: =SUMIFS($O$2:$O$104775,$P$2:$P$104775,'2. Assumptions'!$H$65,$A$2:$A$104775,$A29) + SUMIFS($O$2:$O$104775,$P$2:$P$104775,'2. Assumptions'!$H$66,$A$2:$A$104775,$A29) -> 36 | AR29: =SUMIFS($O$2:$O$104775,$P$2:$P$104775,'2. Assumptions'!$H$64,$A$2:$A$104775,$A29) -> 0 | AS29: =SUMIFS($O$2:$O$104775,$P$2:$P$104775,'2. Assumptions'!$H$63,$A$2:$A$104775,$A29) -> 0 | AT29: =IFERROR(IF(Table310[[#This Row],[Raingarden Cost]]<>0,(Table310[[#This Row],[Raingarden Cost]]+Table310[[#This Row],[Asset Land Cost ($)]])/(Table310[[#This Row],[Total Site m2 Raingarden treatment]]),0),0) -> 66.03162005 | AU29: =IFERROR(IF(SUM(Table310[[#This Row],[Above Ground Tank Cost]:[Plumbing Cost]])<>0,(Table310[[#This Row],[Above Ground Tank Cost]]+Table310[[#This Row],[Below Ground Tank Cost]]+Table310[[#This Row],[Plumbing Cost]]+Table310[[#This Row],[Pump]]+Table310[[#This Row],[Asset Land Cost ($)]])/(Table310[[#This Row],[Total site m2 Rainwater Tank Treatment]]),0),0) -> 0 | AV29: =IFERROR(IF(Table310[[#This Row],[Buffer Strip]]<>0,(Table310[[#This Row],[Buffer Strip]]+Table310[[#This Row],[Asset Land Cost ($)]])/(Table310[[#This Row],[Total Site m2 Buffer Strip Treatment]]),0),0) -> 0 | AW29: =IFERROR(IF(Table310[[#This Row],[Infiltration Sand]]<>0,(Table310[[#This Row],[Infiltration Sand]]+Table310[[#This Row],[Asset Land Cost ($)]])/(Table310[[#This Row],[Total Site m2 Infiltration Sand Treatment]]),0),0) -> 0 | AX29: 132.0632401 | AY29: 284 | AZ29: =SUM(Table310[[#This Row],[Above Ground Tank Cost]:[Pump]]) -> 2377.138322 | BA29: 114.8220004 | BB29: =O29*'2. Assumptions'!$D$35 -> 0.02994 | BC29: =U29*'2. Assumptions'!$D$40*BB29*'2. Assumptions'!$D$38 -> 0.01344216391 | BD29: 0.1060437375 | BE29: 153754.7095 | BF29: 759.0802592 | BG29: 97481.33518 | BH29: 72.79778253
A30: 6 | B30: 817394 | C30: 2019 | D30: Darebin City Council | E30: 11 Townhall Avenue, PRESTON | F30: Preston | G30: 3072 | H30: Residential | I30: Multi Unit | J30: 2 | K30: =_xlfn.IFS(AND(Table310[[#This Row],[Residential/Commercial/Industrial]]=$H$3,Table310[[#This Row],[No. Of Dwellings/Units]]>='2. Assumptions'!$U$27,Table310[[#This Row],[No. Of Dwellings/Units]]<='2. Assumptions'!$V$27),'2. Assumptions'!$W$27,AND(Table310[[#This Row],[Residential/Commercial/Industrial]]=$H$3,Table310[[#This Row],[No. Of Dwellings/Units]]>='2. Assumptions'!$U$28,Table310[[#This Row],[No. Of Dwellings/Units]]<='2. Assumptions'!$V$28),'2. Assumptions'!$W$28,AND(Table310[[#This Row],[Residential/Commercial/Industrial]]=$H$3,Table310[[#This Row],[No. Of Dwellings/Units]]>='2. Assumptions'!$U$29,Table310[[#This Row],[No. Of Dwellings/Units]]<='2. Assumptions'!$V$29),'2. Assumptions'!$W$29,Table310[[#This Row],[Residential/Commercial/Industrial]]<>$H$3,"Non-Residential") -> Separate Unit | L30: 420 | M30: =I30&2 -> Multi Unit2 | N30: Roof | O30: 36 | P30: None | Q30: 0 | R30: 0 | S30: 0 | U30: 0.9977112676 | V30: 0 | W30: =SUMIFS($V$2:$V$104775,$P$2:$P$104775,'2. Assumptions'!$O$12,$A$2:$A$104775,$A30) + SUMIFS($V$2:$V$104775,$P$2:$P$104775,'2. Assumptions'!$O$19,$A$2:$A$104775,$A30) -> 0.8281690141 | X30: =SUMIFS($V$2:$V$104775,$P$2:$P$104775,'2. Assumptions'!$H$65,$A$2:$A$104775,$A30) + SUMIFS($V$2:$V$104775,$P$2:$P$104775,'2. Assumptions'!$H$66,$A$2:$A$104775,$A30) -> 0.1695422535 | Y30: =SUMIFS($V$2:$V$104775,$P$2:$P$104775,'2. Assumptions'!$H$64,$A$2:$A$104775,$A30) -> 0 | Z30: =SUMIFS($V$2:$V$104775,$P$2:$P$104775,'2. Assumptions'!$H$63,$A$2:$A$104775,$A30) -> 0 | AA30: 248 | AB30: 142 | AC30: 0.6761904762 | AD30: =(IF(P30=$P$2,_xlfn.IFS(AND(Q30>'2. Assumptions'!$O$14,Q30<='2. Assumptions'!$P$14),'2. Assumptions'!$Q$14,AND(Q30>'2. Assumptions'!$O$15,Q30<='2. Assumptions'!$P$15),'2. Assumptions'!$Q$15,(Q30>'2. Assumptions'!$O$16),'2. Assumptions'!$Q$16),0))*Q30/1000 -> 0 | AE30: =(IF(P30='2. Assumptions'!$O$19,_xlfn.IFS(AND(Q30>'2. Assumptions'!$O$21,Q30<='2. Assumptions'!$P$21),'2. Assumptions'!$Q$21,AND(Q30>'2. Assumptions'!$O$22,Q30<='2. Assumptions'!$P$22),'2. Assumptions'!$Q$22,AND(Q30>'2. Assumptions'!$O$23, Q30<='2. Assumptions'!$P$23),'2. Assumptions'!$Q$23,Q30>'2. Assumptions'!$P$24,'2. Assumptions'!$Q$24),0))*Q30/1000 -> 0 | AF30: =IF(SUM(AD30:AE30)<>0,'2. Assumptions'!$L$70,0) -> 0 | AG30: =IFERROR(_xlfn.IFS(P30='2. Assumptions'!$H$65,'2. Assumptions'!$L$65*Q30,P30='2. Assumptions'!$H$66,'2. Assumptions'!$L$66*Q30),0) -> 0 | AH30: =IF(P30='2. Assumptions'!$H$63,'2. Assumptions'!$L$63*Q30,0) -> 0 | AI30: =IF(P30='2. Assumptions'!$H$64,'2. Assumptions'!$L$64*Q30,0) -> 0 | AJ30: =IF(OR(Table310[[#This Row],[Treatment Type ]]="Above Ground RW Tank",Table310[[#This Row],[Treatment Type ]]="Below Ground RW Tank"),INDEX('2. Assumptions'!$K$13:$K$62,MATCH(Table310[[#This Row],[Treatment volume (m^2 or L) ]],'2. Assumptions'!$I$13:$I$62,1))*('2. Assumptions'!$X$27),Table310[[#This Row],[Treatment volume (m^2 or L) ]]*'2. Assumptions'!$X$27) -> 0 | AK30: =IF(SUM(AD30:AE30)<>0,'2. Assumptions'!$L$69,0) -> 0 | AL30: =IFERROR(IF(Table310[[#This Row],[Raingarden Cost]]<>0,(Table310[[#This Row],[Raingarden Cost]]+Table310[[#This Row],[Asset Land Cost ($)]])/(100*Table310[[#This Row],[Total Site Raingarden treatment]]),0),0) -> 0 | AM30: =IFERROR(IF(SUM(Table310[[#This Row],[Above Ground Tank Cost]:[Plumbing Cost]])<>0,(Table310[[#This Row],[Above Ground Tank Cost]]+Table310[[#This Row],[Below Ground Tank Cost]]+Table310[[#This Row],[Plumbing Cost]]+Table310[[#This Row],[Pump]]+Table310[[#This Row],[Asset Land Cost ($)]])/(100*Table310[[#This Row],[Total site Rainwater Tank Treatment]]),0),0) -> 0 | AN30: =IFERROR(IF(Table310[[#This Row],[Buffer Strip]]<>0,(Table310[[#This Row],[Buffer Strip]]+Table310[[#This Row],[Asset Land Cost ($)]])/(100*Table310[[#This Row],[Total Site Buffer Strip Treatment]]),0),0) -> 0 | AO30: =IFERROR(IF(Table310[[#This Row],[Infiltration Sand]]<>0,(Table310[[#This Row],[Infiltration Sand]]+Table310[[#This Row],[Asset Land Cost ($)]])/(100*Table310[[#This Row],[Total Site Infiltration Sand Treatment]]),0),0) -> 0 | AP30: =SUMIFS($O$2:$O$104775,$P$2:$P$104775,'2. Assumptions'!$O$12,$A$2:$A$104775,$A30) + SUMIFS($O$2:$O$104775,$P$2:$P$104775,'2. Assumptions'!$O$19,$A$2:$A$104775,$A30) -> 140 | AQ30: =SUMIFS($O$2:$O$104775,$P$2:$P$104775,'2. Assumptions'!$H$65,$A$2:$A$104775,$A30) + SUMIFS($O$2:$O$104775,$P$2:$P$104775,'2. Assumptions'!$H$66,$A$2:$A$104775,$A30) -> 36 | AR30: =SUMIFS($O$2:$O$104775,$P$2:$P$104775,'2. Assumptions'!$H$64,$A$2:$A$104775,$A30) -> 0 | AS30: =SUMIFS($O$2:$O$104775,$P$2:$P$104775,'2. Assumptions'!$H$63,$A$2:$A$104775,$A30) -> 0 | AT30: =IFERROR(IF(Table310[[#This Row],[Raingarden Cost]]<>0,(Table310[[#This Row],[Raingarden Cost]]+Table310[[#This Row],[Asset Land Cost ($)]])/(Table310[[#This Row],[Total Site m2 Raingarden treatment]]),0),0) -> 0 | AU30: =IFERROR(IF(SUM(Table310[[#This Row],[Above Ground Tank Cost]:[Plumbing Cost]])<>0,(Table310[[#This Row],[Above Ground Tank Cost]]+Table310[[#This Row],[Below Ground Tank Cost]]+Table310[[#This Row],[Plumbing Cost]]+Table310[[#This Row],[Pump]]+Table310[[#This Row],[Asset Land Cost ($)]])/(Table310[[#This Row],[Total site m2 Rainwater Tank Treatment]]),0),0) -> 0 | AV30: =IFERROR(IF(Table310[[#This Row],[Buffer Strip]]<>0,(Table310[[#This Row],[Buffer Strip]]+Table310[[#This Row],[Asset Land Cost ($)]])/(Table310[[#This Row],[Total Site m2 Buffer Strip Treatment]]),0),0) -> 0 | AW30: =IFERROR(IF(Table310[[#This Row],[Infiltration Sand]]<>0,(Table310[[#This Row],[Infiltration Sand]]+Table310[[#This Row],[Asset Land Cost ($)]])/(Table310[[#This Row],[Total Site m2 Infiltration Sand Treatment]]),0),0) -> 0 | AX30: 0 | AY30: 284 | AZ30: =SUM(Table310[[#This Row],[Above Ground Tank Cost]:[Pump]]) -> 0 | BA30: 114.8220004 | BB30: =O30*'2. Assumptions'!$D$35 -> 0.05988 | BC30: =U30*'2. Assumptions'!$D$40*BB30*'2. Assumptions'!$D$38 -> 0.02688432782 | BD30: 0.1060437375 | BE30: 153754.7095 | BF30: 0 | BG30: 97481.33518 | BH30: 72.79778253
A31: 6 | B31: 817394 | C31: 2019 | D31: Darebin City Council | E31: 11 Townhall Avenue, PRESTON | F31: Preston | G31: 3072 | H31: Residential | I31: Multi Unit | J31: 2 | K31: =_xlfn.IFS(AND(Table310[[#This Row],[Residential/Commercial/Industrial]]=$H$3,Table310[[#This Row],[No. Of Dwellings/Units]]>='2. Assumptions'!$U$27,Table310[[#This Row],[No. Of Dwellings/Units]]<='2. Assumptions'!$V$27),'2. Assumptions'!$W$27,AND(Table310[[#This Row],[Residential/Commercial/Industrial]]=$H$3,Table310[[#This Row],[No. Of Dwellings/Units]]>='2. Assumptions'!$U$28,Table310[[#This Row],[No. Of Dwellings/Units]]<='2. Assumptions'!$V$28),'2. Assumptions'!$W$28,AND(Table310[[#This Row],[Residential/Commercial/Industrial]]=$H$3,Table310[[#This Row],[No. Of Dwellings/Units]]>='2. Assumptions'!$U$29,Table310[[#This Row],[No. Of Dwellings/Units]]<='2. Assumptions'!$V$29),'2. Assumptions'!$W$29,Table310[[#This Row],[Residential/Commercial/Industrial]]<>$H$3,"Non-Residential") -> Separate Unit | L31: 420 | M31: Shared Driveway | N31: Driveway | O31: 36 | P31: None | Q31: 0 | R31: 0 | S31: 0 | T31: and Pathway | U31: 0.9977112676 | V31: 0 | W31: =SUMIFS($V$2:$V$104775,$P$2:$P$104775,'2. Assumptions'!$O$12,$A$2:$A$104775,$A31) + SUMIFS($V$2:$V$104775,$P$2:$P$104775,'2. Assumptions'!$O$19,$A$2:$A$104775,$A31) -> 0.8281690141 | X31: =SUMIFS($V$2:$V$104775,$P$2:$P$104775,'2. Assumptions'!$H$65,$A$2:$A$104775,$A31) + SUMIFS($V$2:$V$104775,$P$2:$P$104775,'2. Assumptions'!$H$66,$A$2:$A$104775,$A31) -> 0.1695422535 | Y31: =SUMIFS($V$2:$V$104775,$P$2:$P$104775,'2. Assumptions'!$H$64,$A$2:$A$104775,$A31) -> 0 | Z31: =SUMIFS($V$2:$V$104775,$P$2:$P$104775,'2. Assumptions'!$H$63,$A$2:$A$104775,$A31) -> 0 | AA31: 248 | AB31: 142 | AC31: 0.6761904762 | AD31: =(IF(P31=$P$2,_xlfn.IFS(AND(Q31>'2. Assumptions'!$O$14,Q31<='2. Assumptions'!$P$14),'2. Assumptions'!$Q$14,AND(Q31>'2. Assumptions'!$O$15,Q31<='2. Assumptions'!$P$15),'2. Assumptions'!$Q$15,(Q31>'2. Assumptions'!$O$16),'2. Assumptions'!$Q$16),0))*Q31/1000 -> 0 | AE31: =(IF(P31='2. Assumptions'!$O$19,_xlfn.IFS(AND(Q31>'2. Assumptions'!$O$21,Q31<='2. Assumptions'!$P$21),'2. Assumptions'!$Q$21,AND(Q31>'2. Assumptions'!$O$22,Q31<='2. Assumptions'!$P$22),'2. Assumptions'!$Q$22,AND(Q31>'2. Assumptions'!$O$23, Q31<='2. Assumptions'!$P$23),'2. Assumptions'!$Q$23,Q31>'2. Assumptions'!$P$24,'2. Assumptions'!$Q$24),0))*Q31/1000 -> 0 | AF31: =IF(SUM(AD31:AE31)<>0,'2. Assumptions'!$L$70,0) -> 0 | AG31: =IFERROR(_xlfn.IFS(P31='2. Assumptions'!$H$65,'2. Assumptions'!$L$65*Q31,P31='2. Assumptions'!$H$66,'2. Assumptions'!$L$66*Q31),0) -> 0 | AH31: =IF(P31='2. Assumptions'!$H$63,'2. Assumptions'!$L$63*Q31,0) -> 0 | AI31: =IF(P31='2. Assumptions'!$H$64,'2. Assumptions'!$L$64*Q31,0) -> 0 | AJ31: =IF(OR(Table310[[#This Row],[Treatment Type ]]="Above Ground RW Tank",Table310[[#This Row],[Treatment Type ]]="Below Ground RW Tank"),INDEX('2. Assumptions'!$K$13:$K$62,MATCH(Table310[[#This Row],[Treatment volume (m^2 or L) ]],'2. Assumptions'!$I$13:$I$62,1))*('2. Assumptions'!$X$27),Table310[[#This Row],[Treatment volume (m^2 or L) ]]*'2. Assumptions'!$X$27) -> 0 | AK31: =IF(SUM(AD31:AE31)<>0,'2. Assumptions'!$L$69,0) -> 0 | AL31: =IFERROR(IF(Table310[[#This Row],[Raingarden Cost]]<>0,(Table310[[#This Row],[Raingarden Cost]]+Table310[[#This Row],[Asset Land Cost ($)]])/(100*Table310[[#This Row],[Total Site Raingarden treatment]]),0),0) -> 0 | AM31: =IFERROR(IF(SUM(Table310[[#This Row],[Above Ground Tank Cost]:[Plumbing Cost]])<>0,(Table310[[#This Row],[Above Ground Tank Cost]]+Table310[[#This Row],[Below Ground Tank Cost]]+Table310[[#This Row],[Plumbing Cost]]+Table310[[#This Row],[Pump]]+Table310[[#This Row],[Asset Land Cost ($)]])/(100*Table310[[#This Row],[Total site Rainwater Tank Treatment]]),0),0) -> 0 | AN31: =IFERROR(IF(Table310[[#This Row],[Buffer Strip]]<>0,(Table310[[#This Row],[Buffer Strip]]+Table310[[#This Row],[Asset Land Cost ($)]])/(100*Table310[[#This Row],[Total Site Buffer Strip Treatment]]),0),0) -> 0 | AO31: =IFERROR(IF(Table310[[#This Row],[Infiltration Sand]]<>0,(Table310[[#This Row],[Infiltration Sand]]+Table310[[#This Row],[Asset Land Cost ($)]])/(100*Table310[[#This Row],[Total Site Infiltration Sand Treatment]]),0),0) -> 0 | AP31: =SUMIFS($O$2:$O$104775,$P$2:$P$104775,'2. Assumptions'!$O$12,$A$2:$A$104775,$A31) + SUMIFS($O$2:$O$104775,$P$2:$P$104775,'2. Assumptions'!$O$19,$A$2:$A$104775,$A31) -> 140 | AQ31: =SUMIFS($O$2:$O$104775,$P$2:$P$104775,'2. Assumptions'!$H$65,$A$2:$A$104775,$A31) + SUMIFS($O$2:$O$104775,$P$2:$P$104775,'2. Assumptions'!$H$66,$A$2:$A$104775,$A31) -> 36 | AR31: =SUMIFS($O$2:$O$104775,$P$2:$P$104775,'2. Assumptions'!$H$64,$A$2:$A$104775,$A31) -> 0 | AS31: =SUMIFS($O$2:$O$104775,$P$2:$P$104775,'2. Assumptions'!$H$63,$A$2:$A$104775,$A31) -> 0 | AT31: =IFERROR(IF(Table310[[#This Row],[Raingarden Cost]]<>0,(Table310[[#This Row],[Raingarden Cost]]+Table310[[#This Row],[Asset Land Cost ($)]])/(Table310[[#This Row],[Total Site m2 Raingarden treatment]]),0),0) -> 0 | AU31: =IFERROR(IF(SUM(Table310[[#This Row],[Above Ground Tank Cost]:[Plumbing Cost]])<>0,(Table310[[#This Row],[Above Ground Tank Cost]]+Table310[[#This Row],[Below Ground Tank Cost]]+Table310[[#This Row],[Plumbing Cost]]+Table310[[#This Row],[Pump]]+Table310[[#This Row],[Asset Land Cost ($)]])/(Table310[[#This Row],[Total site m2 Rainwater Tank Treatment]]),0),0) -> 0 | AV31: =IFERROR(IF(Table310[[#This Row],[Buffer Strip]]<>0,(Table310[[#This Row],[Buffer Strip]]+Table310[[#This Row],[Asset Land Cost ($)]])/(Table310[[#This Row],[Total Site m2 Buffer Strip Treatment]]),0),0) -> 0 | AW31: =IFERROR(IF(Table310[[#This Row],[Infiltration Sand]]<>0,(Table310[[#This Row],[Infiltration Sand]]+Table310[[#This Row],[Asset Land Cost ($)]])/(Table310[[#This Row],[Total Site m2 Infiltration Sand Treatment]]),0),0) -> 0 | AX31: 0 | AY31: 284 | AZ31: =SUM(Table310[[#This Row],[Above Ground Tank Cost]:[Pump]]) -> 0 | BA31: 114.8220004 | BB31: =O31*'2. Assumptions'!$D$35 -> 0.05988 | BC31: =U31*'2. Assumptions'!$D$40*BB31*'2. Assumptions'!$D$38 -> 0.02688432782 | BD31: 0.1060437375 | BE31: 153754.7095 | BF31: 0 | BG31: 97481.33518 | BH31: 72.79778253
A32: 7 | B32: 785921 | C32: 2019 | D32: Darebin City Council | E32: 12-14 Young St, PRESTON | F32: Preston | G32: 3072 | H32: Residential | I32: Multi Unit | J32: 4 | K32: =_xlfn.IFS(AND(Table310[[#This Row],[Residential/Commercial/Industrial]]=$H$3,Table310[[#This Row],[No. Of Dwellings/Units]]>='2. Assumptions'!$U$27,Table310[[#This Row],[No. Of Dwellings/Units]]<='2. Assumptions'!$V$27),'2. Assumptions'!$W$27,AND(Table310[[#This Row],[Residential/Commercial/Industrial]]=$H$3,Table310[[#This Row],[No. Of Dwellings/Units]]>='2. Assumptions'!$U$28,Table310[[#This Row],[No. Of Dwellings/Units]]<='2. Assumptions'!$V$28),'2. Assumptions'!$W$28,AND(Table310[[#This Row],[Residential/Commercial/Industrial]]=$H$3,Table310[[#This Row],[No. Of Dwellings/Units]]>='2. Assumptions'!$U$29,Table310[[#This Row],[No. Of Dwellings/Units]]<='2. Assumptions'!$V$29),'2. Assumptions'!$W$29,Table310[[#This Row],[Residential/Commercial/Industrial]]<>$H$3,"Non-Residential") -> Medium Density | L32: 933.4 | M32: =I32&1 -> Multi Unit1 | N32: Roof | O32: 106.9 | P32: Above Ground RW Tank | Q32: 2000 | R32: 154 | S32: 81.9 | U32: 1.035903215 | V32: 0.2785549915 | W32: =SUMIFS($V$2:$V$104775,$P$2:$P$104775,'2. Assumptions'!$O$12,$A$2:$A$104775,$A32) + SUMIFS($V$2:$V$104775,$P$2:$P$104775,'2. Assumptions'!$O$19,$A$2:$A$104775,$A32) -> 1.035903215 | X32: =SUMIFS($V$2:$V$104775,$P$2:$P$104775,'2. Assumptions'!$H$65,$A$2:$A$104775,$A32) + SUMIFS($V$2:$V$104775,$P$2:$P$104775,'2. Assumptions'!$H$66,$A$2:$A$104775,$A32) -> 0 | Y32: =SUMIFS($V$2:$V$104775,$P$2:$P$104775,'2. Assumptions'!$H$64,$A$2:$A$104775,$A32) -> 0 | Z32: =SUMIFS($V$2:$V$104775,$P$2:$P$104775,'2. Assumptions'!$H$63,$A$2:$A$104775,$A32) -> 0 | AA32: 591 | AB32: 147.75 | AC32: 0.6331690594 | AD32: =(IF(P32=$P$2,_xlfn.IFS(AND(Q32>'2. Assumptions'!$O$14,Q32<='2. Assumptions'!$P$14),'2. Assumptions'!$Q$14,AND(Q32>'2. Assumptions'!$O$15,Q32<='2. Assumptions'!$P$15),'2. Assumptions'!$Q$15,(Q32>'2. Assumptions'!$O$16),'2. Assumptions'!$Q$16),0))*Q32/1000 -> 2186.541541 | AE32: =(IF(P32='2. Assumptions'!$O$19,_xlfn.IFS(AND(Q32>'2. Assumptions'!$O$21,Q32<='2. Assumptions'!$P$21),'2. Assumptions'!$Q$21,AND(Q32>'2. Assumptions'!$O$22,Q32<='2. Assumptions'!$P$22),'2. Assumptions'!$Q$22,AND(Q32>'2. Assumptions'!$O$23, Q32<='2. Assumptions'!$P$23),'2. Assumptions'!$Q$23,Q32>'2. Assumptions'!$P$24,'2. Assumptions'!$Q$24),0))*Q32/1000 -> 0 | AF32: =IF(SUM(AD32:AE32)<>0,'2. Assumptions'!$L$70,0) -> 2711.000926 | AG32: =IFERROR(_xlfn.IFS(P32='2. Assumptions'!$H$65,'2. Assumptions'!$L$65*Q32,P32='2. Assumptions'!$H$66,'2. Assumptions'!$L$66*Q32),0) -> 0 | AH32: =IF(P32='2. Assumptions'!$H$63,'2. Assumptions'!$L$63*Q32,0) -> 0 | AI32: =IF(P32='2. Assumptions'!$H$64,'2. Assumptions'!$L$64*Q32,0) -> 0 | AJ32: =IF(OR(Table310[[#This Row],[Treatment Type ]]="Above Ground RW Tank",Table310[[#This Row],[Treatment Type ]]="Below Ground RW Tank"),INDEX('2. Assumptions'!$K$13:$K$62,MATCH(Table310[[#This Row],[Treatment volume (m^2 or L) ]],'2. Assumptions'!$I$13:$I$62,1))*('2. Assumptions'!$X$27),Table310[[#This Row],[Treatment volume (m^2 or L) ]]*'2. Assumptions'!$X$27) -> 2503.135823 | AK32: =IF(SUM(AD32:AE32)<>0,'2. Assumptions'!$L$69,0) -> 2494.120852 | AL32: =IFERROR(IF(Table310[[#This Row],[Raingarden Cost]]<>0,(Table310[[#This Row],[Raingarden Cost]]+Table310[[#This Row],[Asset Land Cost ($)]])/(100*Table310[[#This Row],[Total Site Raingarden treatment]]),0),0) -> 0 | AM32: =IFERROR(IF(SUM(Table310[[#This Row],[Above Ground Tank Cost]:[Plumbing Cost]])<>0,(Table310[[#This Row],[Above Ground Tank Cost]]+Table310[[#This Row],[Below Ground Tank Cost]]+Table310[[#This Row],[Plumbing Cost]]+Table310[[#This Row],[Pump]]+Table310[[#This Row],[Asset Land Cost ($)]])/(100*Table310[[#This Row],[Total site Rainwater Tank Treatment]]),0),0) -> 95.51856775 | AN32: =IFERROR(IF(Table310[[#This Row],[Buffer Strip]]<>0,(Table310[[#This Row],[Buffer Strip]]+Table310[[#This Row],[Asset Land Cost ($)]])/(100*Table310[[#This Row],[Total Site Buffer Strip Treatment]]),0),0) -> 0 | AO32: =IFERROR(IF(Table310[[#This Row],[Infiltration Sand]]<>0,(Table310[[#This Row],[Infiltration Sand]]+Table310[[#This Row],[Asset Land Cost ($)]])/(100*Table310[[#This Row],[Total Site Infiltration Sand Treatment]]),0),0) -> 0 | AP32: =SUMIFS($O$2:$O$104775,$P$2:$P$104775,'2. Assumptions'!$O$12,$A$2:$A$104775,$A32) + SUMIFS($O$2:$O$104775,$P$2:$P$104775,'2. Assumptions'!$O$19,$A$2:$A$104775,$A32) -> 424.6 | AQ32: =SUMIFS($O$2:$O$104775,$P$2:$P$104775,'2. Assumptions'!$H$65,$A$2:$A$104775,$A32) + SUMIFS($O$2:$O$104775,$P$2:$P$104775,'2. Assumptions'!$H$66,$A$2:$A$104775,$A32) -> 0 | AR32: =SUMIFS($O$2:$O$104775,$P$2:$P$104775,'2. Assumptions'!$H$64,$A$2:$A$104775,$A32) -> 0 | AS32: =SUMIFS($O$2:$O$104775,$P$2:$P$104775,'2. Assumptions'!$H$63,$A$2:$A$104775,$A32) -> 0 | AT32: =IFERROR(IF(Table310[[#This Row],[Raingarden Cost]]<>0,(Table310[[#This Row],[Raingarden Cost]]+Table310[[#This Row],[Asset Land Cost ($)]])/(Table310[[#This Row],[Total Site m2 Raingarden treatment]]),0),0) -> 0 | AU32: =IFERROR(IF(SUM(Table310[[#This Row],[Above Ground Tank Cost]:[Plumbing Cost]])<>0,(Table310[[#This Row],[Above Ground Tank Cost]]+Table310[[#This Row],[Below Ground Tank Cost]]+Table310[[#This Row],[Plumbing Cost]]+Table310[[#This Row],[Pump]]+Table310[[#This Row],[Asset Land Cost ($)]])/(Table310[[#This Row],[Total site m2 Rainwater Tank Treatment]]),0),0) -> 23.30381333 | AV32: =IFERROR(IF(Table310[[#This Row],[Buffer Strip]]<>0,(Table310[[#This Row],[Buffer Strip]]+Table310[[#This Row],[Asset Land Cost ($)]])/(Table310[[#This Row],[Total Site m2 Buffer Strip Treatment]]),0),0) -> 0 | AW32: =IFERROR(IF(Table310[[#This Row],[Infiltration Sand]]<>0,(Table310[[#This Row],[Infiltration Sand]]+Table310[[#This Row],[Asset Land Cost ($)]])/(Table310[[#This Row],[Total Site m2 Infiltration Sand Treatment]]),0),0) -> 0 | AX32: 92.56126419 | AY32: 591 | AZ32: =SUM(Table310[[#This Row],[Above Ground Tank Cost]:[Pump]]) -> 9894.799141 | BA32: 66.96987575 | BB32: =O32*'2. Assumptions'!$D$35 -> 0.1778103333 | BC32: =U32*'2. Assumptions'!$D$40*BB32*'2. Assumptions'!$D$38 -> 0.08288743317 | BD32: 0.1145614429 | BE32: 86371.11132 | BF32: 7391.663319 | BG32: 64521.38807 | BH32: 50.02817813
A33: 7 | B33: 785921 | C33: 2019 | D33: Darebin City Council | E33: 12-14 Young St, PRESTON | F33: Preston | G33: 3072 | H33: Residential | I33: Multi Unit | J33: 4 | K33: =_xlfn.IFS(AND(Table310[[#This Row],[Residential/Commercial/Industrial]]=$H$3,Table310[[#This Row],[No. Of Dwellings/Units]]>='2. Assumptions'!$U$27,Table310[[#This Row],[No. Of Dwellings/Units]]<='2. Assumptions'!$V$27),'2. Assumptions'!$W$27,AND(Table310[[#This Row],[Residential/Commercial/Industrial]]=$H$3,Table310[[#This Row],[No. Of Dwellings/Units]]>='2. Assumptions'!$U$28,Table310[[#This Row],[No. Of Dwellings/Units]]<='2. Assumptions'!$V$28),'2. Assumptions'!$W$28,AND(Table310[[#This Row],[Residential/Commercial/Industrial]]=$H$3,Table310[[#This Row],[No. Of Dwellings/Units]]>='2. Assumptions'!$U$29,Table310[[#This Row],[No. Of Dwellings/Units]]<='2. Assumptions'!$V$29),'2. Assumptions'!$W$29,Table310[[#This Row],[Residential/Commercial/Industrial]]<>$H$3,"Non-Residential") -> Medium Density | L33: 933.4 | M33: =I33&2 -> Multi Unit2 | N33: Roof | O33: 105.9 | P33: Above Ground RW Tank | Q33: 2000 | R33: 150.2 | S33: 81.9 | U33: 1.035903215 | V33: 0.2691401015 | W33: =SUMIFS($V$2:$V$104775,$P$2:$P$104775,'2. Assumptions'!$O$12,$A$2:$A$104775,$A33) + SUMIFS($V$2:$V$104775,$P$2:$P$104775,'2. Assumptions'!$O$19,$A$2:$A$104775,$A33) -> 1.035903215 | X33: =SUMIFS($V$2:$V$104775,$P$2:$P$104775,'2. Assumptions'!$H$65,$A$2:$A$104775,$A33) + SUMIFS($V$2:$V$104775,$P$2:$P$104775,'2. Assumptions'!$H$66,$A$2:$A$104775,$A33) -> 0 | Y33: =SUMIFS($V$2:$V$104775,$P$2:$P$104775,'2. Assumptions'!$H$64,$A$2:$A$104775,$A33) -> 0 | Z33: =SUMIFS($V$2:$V$104775,$P$2:$P$104775,'2. Assumptions'!$H$63,$A$2:$A$104775,$A33) -> 0 | AA33: 591 | AB33: 147.75 | AC33: 0.6331690594 | AD33: =(IF(P33=$P$2,_xlfn.IFS(AND(Q33>'2. Assumptions'!$O$14,Q33<='2. Assumptions'!$P$14),'2. Assumptions'!$Q$14,AND(Q33>'2. Assumptions'!$O$15,Q33<='2. Assumptions'!$P$15),'2. Assumptions'!$Q$15,(Q33>'2. Assumptions'!$O$16),'2. Assumptions'!$Q$16),0))*Q33/1000 -> 2186.541541 | AE33: =(IF(P33='2. Assumptions'!$O$19,_xlfn.IFS(AND(Q33>'2. Assumptions'!$O$21,Q33<='2. Assumptions'!$P$21),'2. Assumptions'!$Q$21,AND(Q33>'2. Assumptions'!$O$22,Q33<='2. Assumptions'!$P$22),'2. Assumptions'!$Q$22,AND(Q33>'2. Assumptions'!$O$23, Q33<='2. Assumptions'!$P$23),'2. Assumptions'!$Q$23,Q33>'2. Assumptions'!$P$24,'2. Assumptions'!$Q$24),0))*Q33/1000 -> 0 | AF33: =IF(SUM(AD33:AE33)<>0,'2. Assumptions'!$L$70,0) -> 2711.000926 | AG33: =IFERROR(_xlfn.IFS(P33='2. Assumptions'!$H$65,'2. Assumptions'!$L$65*Q33,P33='2. Assumptions'!$H$66,'2. Assumptions'!$L$66*Q33),0) -> 0 | AH33: =IF(P33='2. Assumptions'!$H$63,'2. Assumptions'!$L$63*Q33,0) -> 0 | AI33: =IF(P33='2. Assumptions'!$H$64,'2. Assumptions'!$L$64*Q33,0) -> 0 | AJ33: =IF(OR(Table310[[#This Row],[Treatment Type ]]="Above Ground RW Tank",Table310[[#This Row],[Treatment Type ]]="Below Ground RW Tank"),INDEX('2. Assumptions'!$K$13:$K$62,MATCH(Table310[[#This Row],[Treatment volume (m^2 or L) ]],'2. Assumptions'!$I$13:$I$62,1))*('2. Assumptions'!$X$27),Table310[[#This Row],[Treatment volume (m^2 or L) ]]*'2. Assumptions'!$X$27) -> 2503.135823 | AK33: =IF(SUM(AD33:AE33)<>0,'2. Assumptions'!$L$69,0) -> 2494.120852 | AL33: =IFERROR(IF(Table310[[#This Row],[Raingarden Cost]]<>0,(Table310[[#This Row],[Raingarden Cost]]+Table310[[#This Row],[Asset Land Cost ($)]])/(100*Table310[[#This Row],[Total Site Raingarden treatment]]),0),0) -> 0 | AM33: =IFERROR(IF(SUM(Table310[[#This Row],[Above Ground Tank Cost]:[Plumbing Cost]])<>0,(Table310[[#This Row],[Above Ground Tank Cost]]+Table310[[#This Row],[Below Ground Tank Cost]]+Table310[[#This Row],[Plumbing Cost]]+Table310[[#This Row],[Pump]]+Table310[[#This Row],[Asset Land Cost ($)]])/(100*Table310[[#This Row],[Total site Rainwater Tank Treatment]]),0),0) -> 95.51856775 | AN33: =IFERROR(IF(Table310[[#This Row],[Buffer Strip]]<>0,(Table310[[#This Row],[Buffer Strip]]+Table310[[#This Row],[Asset Land Cost ($)]])/(100*Table310[[#This Row],[Total Site Buffer Strip Treatment]]),0),0) -> 0 | AO33: =IFERROR(IF(Table310[[#This Row],[Infiltration Sand]]<>0,(Table310[[#This Row],[Infiltration Sand]]+Table310[[#This Row],[Asset Land Cost ($)]])/(100*Table310[[#This Row],[Total Site Infiltration Sand Treatment]]),0),0) -> 0 | AP33: =SUMIFS($O$2:$O$104775,$P$2:$P$104775,'2. Assumptions'!$O$12,$A$2:$A$104775,$A33) + SUMIFS($O$2:$O$104775,$P$2:$P$104775,'2. Assumptions'!$O$19,$A$2:$A$104775,$A33) -> 424.6 | AQ33: =SUMIFS($O$2:$O$104775,$P$2:$P$104775,'2. Assumptions'!$H$65,$A$2:$A$104775,$A33) + SUMIFS($O$2:$O$104775,$P$2:$P$104775,'2. Assumptions'!$H$66,$A$2:$A$104775,$A33) -> 0 | AR33: =SUMIFS($O$2:$O$104775,$P$2:$P$104775,'2. Assumptions'!$H$64,$A$2:$A$104775,$A33) -> 0 | AS33: =SUMIFS($O$2:$O$104775,$P$2:$P$104775,'2. Assumptions'!$H$63,$A$2:$A$104775,$A33) -> 0 | AT33: =IFERROR(IF(Table310[[#This Row],[Raingarden Cost]]<>0,(Table310[[#This Row],[Raingarden Cost]]+Table310[[#This Row],[Asset Land Cost ($)]])/(Table310[[#This Row],[Total Site m2 Raingarden treatment]]),0),0) -> 0 | AU33: =IFERROR(IF(SUM(Table310[[#This Row],[Above Ground Tank Cost]:[Plumbing Cost]])<>0,(Table310[[#This Row],[Above Ground Tank Cost]]+Table310[[#This Row],[Below Ground Tank Cost]]+Table310[[#This Row],[Plumbing Cost]]+Table310[[#This Row],[Pump]]+Table310[[#This Row],[Asset Land Cost ($)]])/(Table310[[#This Row],[Total site m2 Rainwater Tank Treatment]]),0),0) -> 23.30381333 | AV33: =IFERROR(IF(Table310[[#This Row],[Buffer Strip]]<>0,(Table310[[#This Row],[Buffer Strip]]+Table310[[#This Row],[Asset Land Cost ($)]])/(Table310[[#This Row],[Total Site m2 Buffer Strip Treatment]]),0),0) -> 0 | AW33: =IFERROR(IF(Table310[[#This Row],[Infiltration Sand]]<>0,(Table310[[#This Row],[Infiltration Sand]]+Table310[[#This Row],[Asset Land Cost ($)]])/(Table310[[#This Row],[Total Site m2 Infiltration Sand Treatment]]),0),0) -> 0 | AX33: 93.43530823 | AY33: 591 | AZ33: =SUM(Table310[[#This Row],[Above Ground Tank Cost]:[Pump]]) -> 9894.799141 | BA33: 66.96987575 | BB33: =O33*'2. Assumptions'!$D$35 -> 0.176147 | BC33: =U33*'2. Assumptions'!$D$40*BB33*'2. Assumptions'!$D$38 -> 0.08211205962 | BD33: 0.1145614429 | BE33: 86371.11132 | BF33: 7391.663319 | BG33: 64521.38807 | BH33: 50.02817813
A34: 7 | B34: 785921 | C34: 2019 | D34: Darebin City Council | E34: 12-14 Young St, PRESTON | F34: Preston | G34: 3072 | H34: Residential | I34: Multi Unit | J34: 4 | K34: =_xlfn.IFS(AND(Table310[[#This Row],[Residential/Commercial/Industrial]]=$H$3,Table310[[#This Row],[No. Of Dwellings/Units]]>='2. Assumptions'!$U$27,Table310[[#This Row],[No. Of Dwellings/Units]]<='2. Assumptions'!$V$27),'2. Assumptions'!$W$27,AND(Table310[[#This Row],[Residential/Commercial/Industrial]]=$H$3,Table310[[#This Row],[No. Of Dwellings/Units]]>='2. Assumptions'!$U$28,Table310[[#This Row],[No. Of Dwellings/Units]]<='2. Assumptions'!$V$28),'2. Assumptions'!$W$28,AND(Table310[[#This Row],[Residential/Commercial/Industrial]]=$H$3,Table310[[#This Row],[No. Of Dwellings/Units]]>='2. Assumptions'!$U$29,Table310[[#This Row],[No. Of Dwellings/Units]]<='2. Assumptions'!$V$29),'2. Assumptions'!$W$29,Table310[[#This Row],[Residential/Commercial/Industrial]]<>$H$3,"Non-Residential") -> Medium Density | L34: 933.4 | M34: =I34&3 -> Multi Unit3 | N34: Roof | O34: 104.4 | P34: Above Ground RW Tank | Q34: 2000 | R34: 137.8 | S34: 80.5 | U34: 1.035903215 | V34: 0.2434233503 | W34: =SUMIFS($V$2:$V$104775,$P$2:$P$104775,'2. Assumptions'!$O$12,$A$2:$A$104775,$A34) + SUMIFS($V$2:$V$104775,$P$2:$P$104775,'2. Assumptions'!$O$19,$A$2:$A$104775,$A34) -> 1.035903215 | X34: =SUMIFS($V$2:$V$104775,$P$2:$P$104775,'2. Assumptions'!$H$65,$A$2:$A$104775,$A34) + SUMIFS($V$2:$V$104775,$P$2:$P$104775,'2. Assumptions'!$H$66,$A$2:$A$104775,$A34) -> 0 | Y34: =SUMIFS($V$2:$V$104775,$P$2:$P$104775,'2. Assumptions'!$H$64,$A$2:$A$104775,$A34) -> 0 | Z34: =SUMIFS($V$2:$V$104775,$P$2:$P$104775,'2. Assumptions'!$H$63,$A$2:$A$104775,$A34) -> 0 | AA34: 591 | AB34: 147.75 | AC34: 0.6331690594 | AD34: =(IF(P34=$P$2,_xlfn.IFS(AND(Q34>'2. Assumptions'!$O$14,Q34<='2. Assumptions'!$P$14),'2. Assumptions'!$Q$14,AND(Q34>'2. Assumptions'!$O$15,Q34<='2. Assumptions'!$P$15),'2. Assumptions'!$Q$15,(Q34>'2. Assumptions'!$O$16),'2. Assumptions'!$Q$16),0))*Q34/1000 -> 2186.541541 | AE34: =(IF(P34='2. Assumptions'!$O$19,_xlfn.IFS(AND(Q34>'2. Assumptions'!$O$21,Q34<='2. Assumptions'!$P$21),'2. Assumptions'!$Q$21,AND(Q34>'2. Assumptions'!$O$22,Q34<='2. Assumptions'!$P$22),'2. Assumptions'!$Q$22,AND(Q34>'2. Assumptions'!$O$23, Q34<='2. Assumptions'!$P$23),'2. Assumptions'!$Q$23,Q34>'2. Assumptions'!$P$24,'2. Assumptions'!$Q$24),0))*Q34/1000 -> 0 | AF34: =IF(SUM(AD34:AE34)<>0,'2. Assumptions'!$L$70,0) -> 2711.000926 | AG34: =IFERROR(_xlfn.IFS(P34='2. Assumptions'!$H$65,'2. Assumptions'!$L$65*Q34,P34='2. Assumptions'!$H$66,'2. Assumptions'!$L$66*Q34),0) -> 0 | AH34: =IF(P34='2. Assumptions'!$H$63,'2. Assumptions'!$L$63*Q34,0) -> 0 | AI34: =IF(P34='2. Assumptions'!$H$64,'2. Assumptions'!$L$64*Q34,0) -> 0 | AJ34: =IF(OR(Table310[[#This Row],[Treatment Type ]]="Above Ground RW Tank",Table310[[#This Row],[Treatment Type ]]="Below Ground RW Tank"),INDEX('2. Assumptions'!$K$13:$K$62,MATCH(Table310[[#This Row],[Treatment volume (m^2 or L) ]],'2. Assumptions'!$I$13:$I$62,1))*('2. Assumptions'!$X$27),Table310[[#This Row],[Treatment volume (m^2 or L) ]]*'2. Assumptions'!$X$27) -> 2503.135823 | AK34: =IF(SUM(AD34:AE34)<>0,'2. Assumptions'!$L$69,0) -> 2494.120852 | AL34: =IFERROR(IF(Table310[[#This Row],[Raingarden Cost]]<>0,(Table310[[#This Row],[Raingarden Cost]]+Table310[[#This Row],[Asset Land Cost ($)]])/(100*Table310[[#This Row],[Total Site Raingarden treatment]]),0),0) -> 0 | AM34: =IFERROR(IF(SUM(Table310[[#This Row],[Above Ground Tank Cost]:[Plumbing Cost]])<>0,(Table310[[#This Row],[Above Ground Tank Cost]]+Table310[[#This Row],[Below Ground Tank Cost]]+Table310[[#This Row],[Plumbing Cost]]+Table310[[#This Row],[Pump]]+Table310[[#This Row],[Asset Land Cost ($)]])/(100*Table310[[#This Row],[Total site Rainwater Tank Treatment]]),0),0) -> 95.51856775 | AN34: =IFERROR(IF(Table310[[#This Row],[Buffer Strip]]<>0,(Table310[[#This Row],[Buffer Strip]]+Table310[[#This Row],[Asset Land Cost ($)]])/(100*Table310[[#This Row],[Total Site Buffer Strip Treatment]]),0),0) -> 0 | AO34: =IFERROR(IF(Table310[[#This Row],[Infiltration Sand]]<>0,(Table310[[#This Row],[Infiltration Sand]]+Table310[[#This Row],[Asset Land Cost ($)]])/(100*Table310[[#This Row],[Total Site Infiltration Sand Treatment]]),0),0) -> 0 | AP34: =SUMIFS($O$2:$O$104775,$P$2:$P$104775,'2. Assumptions'!$O$12,$A$2:$A$104775,$A34) + SUMIFS($O$2:$O$104775,$P$2:$P$104775,'2. Assumptions'!$O$19,$A$2:$A$104775,$A34) -> 424.6 | AQ34: =SUMIFS($O$2:$O$104775,$P$2:$P$104775,'2. Assumptions'!$H$65,$A$2:$A$104775,$A34) + SUMIFS($O$2:$O$104775,$P$2:$P$104775,'2. Assumptions'!$H$66,$A$2:$A$104775,$A34) -> 0 | AR34: =SUMIFS($O$2:$O$104775,$P$2:$P$104775,'2. Assumptions'!$H$64,$A$2:$A$104775,$A34) -> 0 | AS34: =SUMIFS($O$2:$O$104775,$P$2:$P$104775,'2. Assumptions'!$H$63,$A$2:$A$104775,$A34) -> 0 | AT34: =IFERROR(IF(Table310[[#This Row],[Raingarden Cost]]<>0,(Table310[[#This Row],[Raingarden Cost]]+Table310[[#This Row],[Asset Land Cost ($)]])/(Table310[[#This Row],[Total Site m2 Raingarden treatment]]),0),0) -> 0 | AU34: =IFERROR(IF(SUM(Table310[[#This Row],[Above Ground Tank Cost]:[Plumbing Cost]])<>0,(Table310[[#This Row],[Above Ground Tank Cost]]+Table310[[#This Row],[Below Ground Tank Cost]]+Table310[[#This Row],[Plumbing Cost]]+Table310[[#This Row],[Pump]]+Table310[[#This Row],[Asset Land Cost ($)]])/(Table310[[#This Row],[Total site m2 Rainwater Tank Treatment]]),0),0) -> 23.30381333 | AV34: =IFERROR(IF(Table310[[#This Row],[Buffer Strip]]<>0,(Table310[[#This Row],[Buffer Strip]]+Table310[[#This Row],[Asset Land Cost ($)]])/(Table310[[#This Row],[Total Site m2 Buffer Strip Treatment]]),0),0) -> 0 | AW34: =IFERROR(IF(Table310[[#This Row],[Infiltration Sand]]<>0,(Table310[[#This Row],[Infiltration Sand]]+Table310[[#This Row],[Asset Land Cost ($)]])/(Table310[[#This Row],[Total Site m2 Infiltration Sand Treatment]]),0),0) -> 0 | AX34: 94.77776955 | AY34: 591 | AZ34: =SUM(Table310[[#This Row],[Above Ground Tank Cost]:[Pump]]) -> 9894.799141 | BA34: 66.96987575 | BB34: =O34*'2. Assumptions'!$D$35 -> 0.173652 | BC34: =U34*'2. Assumptions'!$D$40*BB34*'2. Assumptions'!$D$38 -> 0.08094899928 | BD34: 0.1145614429 | BE34: 86371.11132 | BF34: 7391.663319 | BG34: 64521.38807 | BH34: 50.02817813
A35: 7 | B35: 785921 | C35: 2019 | D35: Darebin City Council | E35: 12-14 Young St, PRESTON | F35: Preston | G35: 3072 | H35: Residential | I35: Multi Unit | J35: 4 | K35: =_xlfn.IFS(AND(Table310[[#This Row],[Residential/Commercial/Industrial]]=$H$3,Table310[[#This Row],[No. Of Dwellings/Units]]>='2. Assumptions'!$U$27,Table310[[#This Row],[No. Of Dwellings/Units]]<='2. Assumptions'!$V$27),'2. Assumptions'!$W$27,AND(Table310[[#This Row],[Residential/Commercial/Industrial]]=$H$3,Table310[[#This Row],[No. Of Dwellings/Units]]>='2. Assumptions'!$U$28,Table310[[#This Row],[No. Of Dwellings/Units]]<='2. Assumptions'!$V$28),'2. Assumptions'!$W$28,AND(Table310[[#This Row],[Residential/Commercial/Industrial]]=$H$3,Table310[[#This Row],[No. Of Dwellings/Units]]>='2. Assumptions'!$U$29,Table310[[#This Row],[No. Of Dwellings/Units]]<='2. Assumptions'!$V$29),'2. Assumptions'!$W$29,Table310[[#This Row],[Residential/Commercial/Industrial]]<>$H$3,"Non-Residential") -> Medium Density | L35: 933.4 | M35: =I35&4 -> Multi Unit4 | N35: Roof | O35: 107.4 | P35: Above Ground RW Tank | Q35: 2000 | R35: 134.7 | S35: 81.9 | U35: 1.035903215 | V35: 0.2447847716 | W35: =SUMIFS($V$2:$V$104775,$P$2:$P$104775,'2. Assumptions'!$O$12,$A$2:$A$104775,$A35) + SUMIFS($V$2:$V$104775,$P$2:$P$104775,'2. Assumptions'!$O$19,$A$2:$A$104775,$A35) -> 1.035903215 | X35: =SUMIFS($V$2:$V$104775,$P$2:$P$104775,'2. Assumptions'!$H$65,$A$2:$A$104775,$A35) + SUMIFS($V$2:$V$104775,$P$2:$P$104775,'2. Assumptions'!$H$66,$A$2:$A$104775,$A35) -> 0 | Y35: =SUMIFS($V$2:$V$104775,$P$2:$P$104775,'2. Assumptions'!$H$64,$A$2:$A$104775,$A35) -> 0 | Z35: =SUMIFS($V$2:$V$104775,$P$2:$P$104775,'2. Assumptions'!$H$63,$A$2:$A$104775,$A35) -> 0 | AA35: 591 | AB35: 147.75 | AC35: 0.6331690594 | AD35: =(IF(P35=$P$2,_xlfn.IFS(AND(Q35>'2. Assumptions'!$O$14,Q35<='2. Assumptions'!$P$14),'2. Assumptions'!$Q$14,AND(Q35>'2. Assumptions'!$O$15,Q35<='2. Assumptions'!$P$15),'2. Assumptions'!$Q$15,(Q35>'2. Assumptions'!$O$16),'2. Assumptions'!$Q$16),0))*Q35/1000 -> 2186.541541 | AE35: =(IF(P35='2. Assumptions'!$O$19,_xlfn.IFS(AND(Q35>'2. Assumptions'!$O$21,Q35<='2. Assumptions'!$P$21),'2. Assumptions'!$Q$21,AND(Q35>'2. Assumptions'!$O$22,Q35<='2. Assumptions'!$P$22),'2. Assumptions'!$Q$22,AND(Q35>'2. Assumptions'!$O$23, Q35<='2. Assumptions'!$P$23),'2. Assumptions'!$Q$23,Q35>'2. Assumptions'!$P$24,'2. Assumptions'!$Q$24),0))*Q35/1000 -> 0 | AF35: =IF(SUM(AD35:AE35)<>0,'2. Assumptions'!$L$70,0) -> 2711.000926 | AG35: =IFERROR(_xlfn.IFS(P35='2. Assumptions'!$H$65,'2. Assumptions'!$L$65*Q35,P35='2. Assumptions'!$H$66,'2. Assumptions'!$L$66*Q35),0) -> 0 | AH35: =IF(P35='2. Assumptions'!$H$63,'2. Assumptions'!$L$63*Q35,0) -> 0 | AI35: =IF(P35='2. Assumptions'!$H$64,'2. Assumptions'!$L$64*Q35,0) -> 0 | AJ35: =IF(OR(Table310[[#This Row],[Treatment Type ]]="Above Ground RW Tank",Table310[[#This Row],[Treatment Type ]]="Below Ground RW Tank"),INDEX('2. Assumptions'!$K$13:$K$62,MATCH(Table310[[#This Row],[Treatment volume (m^2 or L) ]],'2. Assumptions'!$I$13:$I$62,1))*('2. Assumptions'!$X$27),Table310[[#This Row],[Treatment volume (m^2 or L) ]]*'2. Assumptions'!$X$27) -> 2503.135823 | AK35: =IF(SUM(AD35:AE35)<>0,'2. Assumptions'!$L$69,0) -> 2494.120852 | AL35: =IFERROR(IF(Table310[[#This Row],[Raingarden Cost]]<>0,(Table310[[#This Row],[Raingarden Cost]]+Table310[[#This Row],[Asset Land Cost ($)]])/(100*Table310[[#This Row],[Total Site Raingarden treatment]]),0),0) -> 0 | AM35: =IFERROR(IF(SUM(Table310[[#This Row],[Above Ground Tank Cost]:[Plumbing Cost]])<>0,(Table310[[#This Row],[Above Ground Tank Cost]]+Table310[[#This Row],[Below Ground Tank Cost]]+Table310[[#This Row],[Plumbing Cost]]+Table310[[#This Row],[Pump]]+Table310[[#This Row],[Asset Land Cost ($)]])/(100*Table310[[#This Row],[Total site Rainwater Tank Treatment]]),0),0) -> 95.51856775 | AN35: =IFERROR(IF(Table310[[#This Row],[Buffer Strip]]<>0,(Table310[[#This Row],[Buffer Strip]]+Table310[[#This Row],[Asset Land Cost ($)]])/(100*Table310[[#This Row],[Total Site Buffer Strip Treatment]]),0),0) -> 0 | AO35: =IFERROR(IF(Table310[[#This Row],[Infiltration Sand]]<>0,(Table310[[#This Row],[Infiltration Sand]]+Table310[[#This Row],[Asset Land Cost ($)]])/(100*Table310[[#This Row],[Total Site Infiltration Sand Treatment]]),0),0) -> 0 | AP35: =SUMIFS($O$2:$O$104775,$P$2:$P$104775,'2. Assumptions'!$O$12,$A$2:$A$104775,$A35) + SUMIFS($O$2:$O$104775,$P$2:$P$104775,'2. Assumptions'!$O$19,$A$2:$A$104775,$A35) -> 424.6 | AQ35: =SUMIFS($O$2:$O$104775,$P$2:$P$104775,'2. Assumptions'!$H$65,$A$2:$A$104775,$A35) + SUMIFS($O$2:$O$104775,$P$2:$P$104775,'2. Assumptions'!$H$66,$A$2:$A$104775,$A35) -> 0 | AR35: =SUMIFS($O$2:$O$104775,$P$2:$P$104775,'2. Assumptions'!$H$64,$A$2:$A$104775,$A35) -> 0 | AS35: =SUMIFS($O$2:$O$104775,$P$2:$P$104775,'2. Assumptions'!$H$63,$A$2:$A$104775,$A35) -> 0 | AT35: =IFERROR(IF(Table310[[#This Row],[Raingarden Cost]]<>0,(Table310[[#This Row],[Raingarden Cost]]+Table310[[#This Row],[Asset Land Cost ($)]])/(Table310[[#This Row],[Total Site m2 Raingarden treatment]]),0),0) -> 0 | AU35: =IFERROR(IF(SUM(Table310[[#This Row],[Above Ground Tank Cost]:[Plumbing Cost]])<>0,(Table310[[#This Row],[Above Ground Tank Cost]]+Table310[[#This Row],[Below Ground Tank Cost]]+Table310[[#This Row],[Plumbing Cost]]+Table310[[#This Row],[Pump]]+Table310[[#This Row],[Asset Land Cost ($)]])/(Table310[[#This Row],[Total site m2 Rainwater Tank Treatment]]),0),0) -> 23.30381333 | AV35: =IFERROR(IF(Table310[[#This Row],[Buffer Strip]]<>0,(Table310[[#This Row],[Buffer Strip]]+Table310[[#This Row],[Asset Land Cost ($)]])/(Table310[[#This Row],[Total Site m2 Buffer Strip Treatment]]),0),0) -> 0 | AW35: =IFERROR(IF(Table310[[#This Row],[Infiltration Sand]]<>0,(Table310[[#This Row],[Infiltration Sand]]+Table310[[#This Row],[Asset Land Cost ($)]])/(Table310[[#This Row],[Total Site m2 Infiltration Sand Treatment]]),0),0) -> 0 | AX35: 92.13034582 | AY35: 591 | AZ35: =SUM(Table310[[#This Row],[Above Ground Tank Cost]:[Pump]]) -> 9894.799141 | BA35: 66.96987575 | BB35: =O35*'2. Assumptions'!$D$35 -> 0.178642 | BC35: =U35*'2. Assumptions'!$D$40*BB35*'2. Assumptions'!$D$38 -> 0.08327511995 | BD35: 0.1145614429 | BE35: 86371.11132 | BF35: 7391.663319 | BG35: 64521.38807 | BH35: 50.02817813
A36: 7 | B36: 785921 | C36: 2019 | D36: Darebin City Council | E36: 12-14 Young St, PRESTON | F36: Preston | G36: 3072 | H36: Residential | I36: Multi Unit | J36: 4 | K36: =_xlfn.IFS(AND(Table310[[#This Row],[Residential/Commercial/Industrial]]=$H$3,Table310[[#This Row],[No. Of Dwellings/Units]]>='2. Assumptions'!$U$27,Table310[[#This Row],[No. Of Dwellings/Units]]<='2. Assumptions'!$V$27),'2. Assumptions'!$W$27,AND(Table310[[#This Row],[Residential/Commercial/Industrial]]=$H$3,Table310[[#This Row],[No. Of Dwellings/Units]]>='2. Assumptions'!$U$28,Table310[[#This Row],[No. Of Dwellings/Units]]<='2. Assumptions'!$V$28),'2. Assumptions'!$W$28,AND(Table310[[#This Row],[Residential/Commercial/Industrial]]=$H$3,Table310[[#This Row],[No. Of Dwellings/Units]]>='2. Assumptions'!$U$29,Table310[[#This Row],[No. Of Dwellings/Units]]<='2. Assumptions'!$V$29),'2. Assumptions'!$W$29,Table310[[#This Row],[Residential/Commercial/Industrial]]<>$H$3,"Non-Residential") -> Medium Density | L36: 933.4 | M36: Garage | N36: Roof | O36: 166.4 | P36: None | Q36: 0 | R36: 0 | S36: 0 | U36: 1.035903215 | V36: 0 | W36: =SUMIFS($V$2:$V$104775,$P$2:$P$104775,'2. Assumptions'!$O$12,$A$2:$A$104775,$A36) + SUMIFS($V$2:$V$104775,$P$2:$P$104775,'2. Assumptions'!$O$19,$A$2:$A$104775,$A36) -> 1.035903215 | X36: =SUMIFS($V$2:$V$104775,$P$2:$P$104775,'2. Assumptions'!$H$65,$A$2:$A$104775,$A36) + SUMIFS($V$2:$V$104775,$P$2:$P$104775,'2. Assumptions'!$H$66,$A$2:$A$104775,$A36) -> 0 | Y36: =SUMIFS($V$2:$V$104775,$P$2:$P$104775,'2. Assumptions'!$H$64,$A$2:$A$104775,$A36) -> 0 | Z36: =SUMIFS($V$2:$V$104775,$P$2:$P$104775,'2. Assumptions'!$H$63,$A$2:$A$104775,$A36) -> 0 | AA36: 591 | AB36: 147.75 | AC36: 0.6331690594 | AD36: =(IF(P36=$P$2,_xlfn.IFS(AND(Q36>'2. Assumptions'!$O$14,Q36<='2. Assumptions'!$P$14),'2. Assumptions'!$Q$14,AND(Q36>'2. Assumptions'!$O$15,Q36<='2. Assumptions'!$P$15),'2. Assumptions'!$Q$15,(Q36>'2. Assumptions'!$O$16),'2. Assumptions'!$Q$16),0))*Q36/1000 -> 0 | AE36: =(IF(P36='2. Assumptions'!$O$19,_xlfn.IFS(AND(Q36>'2. Assumptions'!$O$21,Q36<='2. Assumptions'!$P$21),'2. Assumptions'!$Q$21,AND(Q36>'2. Assumptions'!$O$22,Q36<='2. Assumptions'!$P$22),'2. Assumptions'!$Q$22,AND(Q36>'2. Assumptions'!$O$23, Q36<='2. Assumptions'!$P$23),'2. Assumptions'!$Q$23,Q36>'2. Assumptions'!$P$24,'2. Assumptions'!$Q$24),0))*Q36/1000 -> 0 | AF36: =IF(SUM(AD36:AE36)<>0,'2. Assumptions'!$L$70,0) -> 0 | AG36: =IFERROR(_xlfn.IFS(P36='2. Assumptions'!$H$65,'2. Assumptions'!$L$65*Q36,P36='2. Assumptions'!$H$66,'2. Assumptions'!$L$66*Q36),0) -> 0 | AH36: =IF(P36='2. Assumptions'!$H$63,'2. Assumptions'!$L$63*Q36,0) -> 0 | AI36: =IF(P36='2. Assumptions'!$H$64,'2. Assumptions'!$L$64*Q36,0) -> 0 | AJ36: =IF(OR(Table310[[#This Row],[Treatment Type ]]="Above Ground RW Tank",Table310[[#This Row],[Treatment Type ]]="Below Ground RW Tank"),INDEX('2. Assumptions'!$K$13:$K$62,MATCH(Table310[[#This Row],[Treatment volume (m^2 or L) ]],'2. Assumptions'!$I$13:$I$62,1))*('2. Assumptions'!$X$27),Table310[[#This Row],[Treatment volume (m^2 or L) ]]*'2. Assumptions'!$X$27) -> 0 | AK36: =IF(SUM(AD36:AE36)<>0,'2. Assumptions'!$L$69,0) -> 0 | AL36: =IFERROR(IF(Table310[[#This Row],[Raingarden Cost]]<>0,(Table310[[#This Row],[Raingarden Cost]]+Table310[[#This Row],[Asset Land Cost ($)]])/(100*Table310[[#This Row],[Total Site Raingarden treatment]]),0),0) -> 0 | AM36: =IFERROR(IF(SUM(Table310[[#This Row],[Above Ground Tank Cost]:[Plumbing Cost]])<>0,(Table310[[#This Row],[Above Ground Tank Cost]]+Table310[[#This Row],[Below Ground Tank Cost]]+Table310[[#This Row],[Plumbing Cost]]+Table310[[#This Row],[Pump]]+Table310[[#This Row],[Asset Land Cost ($)]])/(100*Table310[[#This Row],[Total site Rainwater Tank Treatment]]),0),0) -> 0 | AN36: =IFERROR(IF(Table310[[#This Row],[Buffer Strip]]<>0,(Table310[[#This Row],[Buffer Strip]]+Table310[[#This Row],[Asset Land Cost ($)]])/(100*Table310[[#This Row],[Total Site Buffer Strip Treatment]]),0),0) -> 0 | AO36: =IFERROR(IF(Table310[[#This Row],[Infiltration Sand]]<>0,(Table310[[#This Row],[Infiltration Sand]]+Table310[[#This Row],[Asset Land Cost ($)]])/(100*Table310[[#This Row],[Total Site Infiltration Sand Treatment]]),0),0) -> 0 | AP36: =SUMIFS($O$2:$O$104775,$P$2:$P$104775,'2. Assumptions'!$O$12,$A$2:$A$104775,$A36) + SUMIFS($O$2:$O$104775,$P$2:$P$104775,'2. Assumptions'!$O$19,$A$2:$A$104775,$A36) -> 424.6 | AQ36: =SUMIFS($O$2:$O$104775,$P$2:$P$104775,'2. Assumptions'!$H$65,$A$2:$A$104775,$A36) + SUMIFS($O$2:$O$104775,$P$2:$P$104775,'2. Assumptions'!$H$66,$A$2:$A$104775,$A36) -> 0 | AR36: =SUMIFS($O$2:$O$104775,$P$2:$P$104775,'2. Assumptions'!$H$64,$A$2:$A$104775,$A36) -> 0 | AS36: =SUMIFS($O$2:$O$104775,$P$2:$P$104775,'2. Assumptions'!$H$63,$A$2:$A$104775,$A36) -> 0 | AT36: =IFERROR(IF(Table310[[#This Row],[Raingarden Cost]]<>0,(Table310[[#This Row],[Raingarden Cost]]+Table310[[#This Row],[Asset Land Cost ($)]])/(Table310[[#This Row],[Total Site m2 Raingarden treatment]]),0),0) -> 0 | AU36: =IFERROR(IF(SUM(Table310[[#This Row],[Above Ground Tank Cost]:[Plumbing Cost]])<>0,(Table310[[#This Row],[Above Ground Tank Cost]]+Table310[[#This Row],[Below Ground Tank Cost]]+Table310[[#This Row],[Plumbing Cost]]+Table310[[#This Row],[Pump]]+Table310[[#This Row],[Asset Land Cost ($)]])/(Table310[[#This Row],[Total site m2 Rainwater Tank Treatment]]),0),0) -> 0 | AV36: =IFERROR(IF(Table310[[#This Row],[Buffer Strip]]<>0,(Table310[[#This Row],[Buffer Strip]]+Table310[[#This Row],[Asset Land Cost ($)]])/(Table310[[#This Row],[Total Site m2 Buffer Strip Treatment]]),0),0) -> 0 | AW36: =IFERROR(IF(Table310[[#This Row],[Infiltration Sand]]<>0,(Table310[[#This Row],[Infiltration Sand]]+Table310[[#This Row],[Asset Land Cost ($)]])/(Table310[[#This Row],[Total Site m2 Infiltration Sand Treatment]]),0),0) -> 0 | AX36: 0 | AY36: 591 | AZ36: =SUM(Table310[[#This Row],[Above Ground Tank Cost]:[Pump]]) -> 0 | BA36: 66.96987575 | BB36: =O36*'2. Assumptions'!$D$35 -> 0.2767786667 | BC36: =U36*'2. Assumptions'!$D$40*BB36*'2. Assumptions'!$D$38 -> 0.1290221598 | BD36: 0.1145614429 | BE36: 86371.11132 | BF36: 0 | BG36: 64521.38807 | BH36: 50.02817813
A37: 8 | B37: 738138 | C37: 2019 | D37: Darebin City Council | E37: 124 Rathcown Rd, RESERVOIR | F37: Reservoir | G37: 3073 | H37: Residential | I37: Multi Unit | J37: 3 | K37: =_xlfn.IFS(AND(Table310[[#This Row],[Residential/Commercial/Industrial]]=$H$3,Table310[[#This Row],[No. Of Dwellings/Units]]>='2. Assumptions'!$U$27,Table310[[#This Row],[No. Of Dwellings/Units]]<='2. Assumptions'!$V$27),'2. Assumptions'!$W$27,AND(Table310[[#This Row],[Residential/Commercial/Industrial]]=$H$3,Table310[[#This Row],[No. Of Dwellings/Units]]>='2. Assumptions'!$U$28,Table310[[#This Row],[No. Of Dwellings/Units]]<='2. Assumptions'!$V$28),'2. Assumptions'!$W$28,AND(Table310[[#This Row],[Residential/Commercial/Industrial]]=$H$3,Table310[[#This Row],[No. Of Dwellings/Units]]>='2. Assumptions'!$U$29,Table310[[#This Row],[No. Of Dwellings/Units]]<='2. Assumptions'!$V$29),'2. Assumptions'!$W$29,Table310[[#This Row],[Residential/Commercial/Industrial]]<>$H$3,"Non-Residential") -> Medium Density | L37: 752 | M37: =I37&1 -> Multi Unit1 | N37: Roof | O37: 73 | P37: Above Ground RW Tank | Q37: 2000 | R37: 168.6 | S37: 82 | U37: 1.023258352 | V37: 0.2741158129 | W37: =SUMIFS($V$2:$V$104775,$P$2:$P$104775,'2. Assumptions'!$O$12,$A$2:$A$104775,$A37) + SUMIFS($V$2:$V$104775,$P$2:$P$104775,'2. Assumptions'!$O$19,$A$2:$A$104775,$A37) -> 0.6008864143 | X37: =SUMIFS($V$2:$V$104775,$P$2:$P$104775,'2. Assumptions'!$H$65,$A$2:$A$104775,$A37) + SUMIFS($V$2:$V$104775,$P$2:$P$104775,'2. Assumptions'!$H$66,$A$2:$A$104775,$A37) -> 0.4223719376 | Y37: =SUMIFS($V$2:$V$104775,$P$2:$P$104775,'2. Assumptions'!$H$64,$A$2:$A$104775,$A37) -> 0 | Z37: =SUMIFS($V$2:$V$104775,$P$2:$P$104775,'2. Assumptions'!$H$63,$A$2:$A$104775,$A37) -> 0 | AA37: 260 | AB37: 149.6666667 | AC37: 0.5970744681 | AD37: =(IF(P37=$P$2,_xlfn.IFS(AND(Q37>'2. Assumptions'!$O$14,Q37<='2. Assumptions'!$P$14),'2. Assumptions'!$Q$14,AND(Q37>'2. Assumptions'!$O$15,Q37<='2. Assumptions'!$P$15),'2. Assumptions'!$Q$15,(Q37>'2. Assumptions'!$O$16),'2. Assumptions'!$Q$16),0))*Q37/1000 -> 2186.541541 | AE37: =(IF(P37='2. Assumptions'!$O$19,_xlfn.IFS(AND(Q37>'2. Assumptions'!$O$21,Q37<='2. Assumptions'!$P$21),'2. Assumptions'!$Q$21,AND(Q37>'2. Assumptions'!$O$22,Q37<='2. Assumptions'!$P$22),'2. Assumptions'!$Q$22,AND(Q37>'2. Assumptions'!$O$23, Q37<='2. Assumptions'!$P$23),'2. Assumptions'!$Q$23,Q37>'2. Assumptions'!$P$24,'2. Assumptions'!$Q$24),0))*Q37/1000 -> 0 | AF37: =IF(SUM(AD37:AE37)<>0,'2. Assumptions'!$L$70,0) -> 2711.000926 | AG37: =IFERROR(_xlfn.IFS(P37='2. Assumptions'!$H$65,'2. Assumptions'!$L$65*Q37,P37='2. Assumptions'!$H$66,'2. Assumptions'!$L$66*Q37),0) -> 0 | AH37: =IF(P37='2. Assumptions'!$H$63,'2. Assumptions'!$L$63*Q37,0) -> 0 | AI37: =IF(P37='2. Assumptions'!$H$64,'2. Assumptions'!$L$64*Q37,0) -> 0 | AJ37: =IF(OR(Table310[[#This Row],[Treatment Type ]]="Above Ground RW Tank",Table310[[#This Row],[Treatment Type ]]="Below Ground RW Tank"),INDEX('2. Assumptions'!$K$13:$K$62,MATCH(Table310[[#This Row],[Treatment volume (m^2 or L) ]],'2. Assumptions'!$I$13:$I$62,1))*('2. Assumptions'!$X$27),Table310[[#This Row],[Treatment volume (m^2 or L) ]]*'2. Assumptions'!$X$27) -> 2503.135823 | AK37: =IF(SUM(AD37:AE37)<>0,'2. Assumptions'!$L$69,0) -> 2494.120852 | AL37: =IFERROR(IF(Table310[[#This Row],[Raingarden Cost]]<>0,(Table310[[#This Row],[Raingarden Cost]]+Table310[[#This Row],[Asset Land Cost ($)]])/(100*Table310[[#This Row],[Total Site Raingarden treatment]]),0),0) -> 0 | AM37: =IFERROR(IF(SUM(Table310[[#This Row],[Above Ground Tank Cost]:[Plumbing Cost]])<>0,(Table310[[#This Row],[Above Ground Tank Cost]]+Table310[[#This Row],[Below Ground Tank Cost]]+Table310[[#This Row],[Plumbing Cost]]+Table310[[#This Row],[Pump]]+Table310[[#This Row],[Asset Land Cost ($)]])/(100*Table310[[#This Row],[Total site Rainwater Tank Treatment]]),0),0) -> 164.6700426 | AN37: =IFERROR(IF(Table310[[#This Row],[Buffer Strip]]<>0,(Table310[[#This Row],[Buffer Strip]]+Table310[[#This Row],[Asset Land Cost ($)]])/(100*Table310[[#This Row],[Total Site Buffer Strip Treatment]]),0),0) -> 0 | AO37: =IFERROR(IF(Table310[[#This Row],[Infiltration Sand]]<>0,(Table310[[#This Row],[Infiltration Sand]]+Table310[[#This Row],[Asset Land Cost ($)]])/(100*Table310[[#This Row],[Total Site Infiltration Sand Treatment]]),0),0) -> 0 | AP37: =SUMIFS($O$2:$O$104775,$P$2:$P$104775,'2. Assumptions'!$O$12,$A$2:$A$104775,$A37) + SUMIFS($O$2:$O$104775,$P$2:$P$104775,'2. Assumptions'!$O$19,$A$2:$A$104775,$A37) -> 165 | AQ37: =SUMIFS($O$2:$O$104775,$P$2:$P$104775,'2. Assumptions'!$H$65,$A$2:$A$104775,$A37) + SUMIFS($O$2:$O$104775,$P$2:$P$104775,'2. Assumptions'!$H$66,$A$2:$A$104775,$A37) -> 145 | AR37: =SUMIFS($O$2:$O$104775,$P$2:$P$104775,'2. Assumptions'!$H$64,$A$2:$A$104775,$A37) -> 0 | AS37: =SUMIFS($O$2:$O$104775,$P$2:$P$104775,'2. Assumptions'!$H$63,$A$2:$A$104775,$A37) -> 0 | AT37: =IFERROR(IF(Table310[[#This Row],[Raingarden Cost]]<>0,(Table310[[#This Row],[Raingarden Cost]]+Table310[[#This Row],[Asset Land Cost ($)]])/(Table310[[#This Row],[Total Site m2 Raingarden treatment]]),0),0) -> 0 | AU37: =IFERROR(IF(SUM(Table310[[#This Row],[Above Ground Tank Cost]:[Plumbing Cost]])<>0,(Table310[[#This Row],[Above Ground Tank Cost]]+Table310[[#This Row],[Below Ground Tank Cost]]+Table310[[#This Row],[Plumbing Cost]]+Table310[[#This Row],[Pump]]+Table310[[#This Row],[Asset Land Cost ($)]])/(Table310[[#This Row],[Total site m2 Rainwater Tank Treatment]]),0),0) -> 59.96847965 | AV37: =IFERROR(IF(Table310[[#This Row],[Buffer Strip]]<>0,(Table310[[#This Row],[Buffer Strip]]+Table310[[#This Row],[Asset Land Cost ($)]])/(Table310[[#This Row],[Total Site m2 Buffer Strip Treatment]]),0),0) -> 0 | AW37: =IFERROR(IF(Table310[[#This Row],[Infiltration Sand]]<>0,(Table310[[#This Row],[Infiltration Sand]]+Table310[[#This Row],[Asset Land Cost ($)]])/(Table310[[#This Row],[Total Site m2 Infiltration Sand Treatment]]),0),0) -> 0 | AX37: 135.5451937 | AY37: 449 | AZ37: =SUM(Table310[[#This Row],[Above Ground Tank Cost]:[Pump]]) -> 9894.799141 | BA37: 82.71967149 | BB37: =O37*'2. Assumptions'!$D$35 -> 0.1214233333 | BC37: =U37*'2. Assumptions'!$D$40*BB37*'2. Assumptions'!$D$38 -> 0.05591134798 | BD37: 0.1146310285 | BE37: 108001.9752 | BF37: 7391.663319 | BG37: 72050.15713 | BH37: 55.18385489
